Workbook

Sheet kadft
B4: 県 名 | F4: 市町村名 | I4: =""&IF(グラフ用シート!$G$6<>"NO",グラフ用シート!G8,グラフ用シート!$G$10)&" " -> 旧市町村名 | T4: 地域類型区分
B5: 茨城県 | T5: =INDEX(地域類型区分!$C$4:$C$442,グラフ用シート!F3) -> 区分設定 | W5: =INDEX(地域類型区分!D4:D442,グラフ用シート!F3) -> されていません
U7: 県計 | W7: との比較
B9: 土地の状況 | W9: 単位：㏊
E11: 総土地面積 | H11: 林野面積 | K11: 耕地面積計（農山村地域調査結果） | W11: 耕作放棄地 面積
N12: 田面積 | Q12: 畑面積 | T12: 樹園地面積
B13: 2010年 | E13: =INDEX('2010年 '!$D$4:$BC$450,グラフ用シート!$F$3,1) -> 609,569 | H13: =INDEX('2010年 '!$D$4:$BC$450,グラフ用シート!$F$3,2) -> 189,261 | K13: =INDEX('2010年 '!$D$4:$BC$450,グラフ用シート!$F$3,3) -> 175,627 | N13: =INDEX('2010年 '!$D$4:$BC$450,グラフ用シート!$F$3,4) -> 100,452 | Q13: =INDEX('2010年 '!$D$4:$BC$450,グラフ用シート!$F$3,5) -> 67,505 | T13: =INDEX('2010年 '!$D$4:$BC$450,グラフ用シート!$F$3,6) -> 7,670 | W13: =INDEX('2010年 '!$D$4:$BC$450,グラフ用シート!$F$3,7) -> 21,120
B14: 2015年 | E14: =INDEX('2015年'!$E$4:$AW$446,グラフ用シート!$F$3,1) -> 609,693 | H14: =INDEX('2015年'!$E$4:$AW$446,グラフ用シート!$F$3,2) -> 190,029 | K14: =INDEX('2015年'!$E$4:$AW$446,グラフ用シート!$F$3,3) -> 174,753 | N14: =INDEX('2015年'!$E$4:$AW$446,グラフ用シート!$F$3,4) -> 100,064 | Q14: =INDEX('2015年'!$E$4:$AW$446,グラフ用シート!$F$3,5) -> 67,124 | T14: =INDEX('2015年'!$E$4:$AW$446,グラフ用シート!$F$3,6) -> 7,565 | W14: =INDEX('2015年'!$E$4:$AW$446,グラフ用シート!$F$3,7) -> 23,918
B15: 比率(%) | F15: － | H15: ※1 | I15: =IFERROR(ROUND(H14/$E$14*100,1),"nc") -> 31.2 | K15: ※1 | L15: =IFERROR(ROUND(K14/$E$14*100,1),"nc") -> 28.7 | N15: ※2 | O15: =IFERROR(ROUND(N14/$K$14*100,1),"nc") -> 57.3 | Q15: ※2 | R15: =IFERROR(ROUND(Q14/$K$14*100,1),"nc") -> 38.4 | T15: ※2 | U15: =IFERROR(ROUND(T14/$K$14*100,1),"nc") -> 4.3 | W15: ※3 | X15: =IFERROR(ROUND(W14/グラフ用シート!$B$12*100,1),"nc") -> 12.0
B16: 県計 比率(%) | F16: － | H16: ※1 | I16: 31.2 | K16: ※1 | L16: 28.7 | N16: ※2 | O16: 57.3 | Q16: ※2 | R16: 38.4 | T16: ※2 | U16: 4.3 | W16: ※3 | X16: 12.0
B17: ※1 総土地面積に対する比率 ※2 耕地面積計に対する比率 ※3 耕作放棄地率は耕作放棄地面積と耕地面積の和に対する割合
D18: =IF($U$7="県計",グラフ用シート!C13,IF($U$7="前回",グラフ用シート!E13)) -> 林野率及び耕地率 | K18: =IF($U$7="県計",グラフ用シート!C18,IF($U$7="前回",グラフ用シート!E18)) -> 地目別の耕地面積割合 | Q18: （％） | R18: 0 | U18: =IF($U$7="県計",グラフ用シート!F23,IF($U$7="前回",グラフ用シート!D23)) -> 耕作放棄地率 | Y18: =IF(kadft!$U$7="県計",グラフ用シート!$I$18,IF(kadft!$U$7="前回",グラフ用シート!$I$16)) -> （％） | Z18: =IF(kadft!$U$7="県計",$I$18,IF(kadft!$U$7="前回",$I$16)) -> 0
P19: 内円 | Q19: =IF($U$7="県計",グラフ用シート!J15,IF($U$7="前回",グラフ用シート!G14)) -> 県 計
A20: =IF(kadft!$U$7="県計",グラフ用シート!$I$18,IF(kadft!$U$7="前回",グラフ用シート!$I$16)) -> （％） | B20: =IF(kadft!$U$7="県計",$I$18,IF(kadft!$U$7="前回",$I$16)) -> 0 | P20: 外円 | Q20: =IF($U$7="県計",グラフ用シート!G13,IF($U$7="前回",グラフ用シート!G15)) -> 茨城県
B28: 法制上の指定地域面積 | N28: 単位：㏊ | U28: 森林地域 | W28: =E35 -> (1.0)
E30: 森林地域 | G30: 農業地域 | I30: 市街化 区域 | K30: 市街化 調整区域 | M30: 商業関連地域 | O30: 工業関連地域
Q31: 工業関連地域 | X31: 農業地域
B32: 項目別面積 | E32: =INDEX('指定地域 '!$I$5:$N$443,グラフ用シート!$F$3,1) -> 198,114 | G32: =INDEX('指定地域 '!$I$5:$N$443,グラフ用シート!$F$3,2) -> 477,377 | I32: =INDEX('指定地域 '!$I$5:$N$443,グラフ用シート!$F$3,3) -> 52,075 | K32: =INDEX('指定地域 '!$I$5:$N$443,グラフ用シート!$F$3,4) -> 252,071 | M32: =INDEX('指定地域 '!$I$5:$N$443,グラフ用シート!$F$3,5) -> 2,919 | O32: =INDEX('指定地域 '!$I$5:$N$443,グラフ用シート!$F$3,6) -> 15,677 | R32: =O35 -> (1.0) | X32: =G35 -> (1.0)
B33: 比率(%) | E33: =ROUND(E32/$E$14*100,1) -> 32.5 | G33: =ROUND(G32/$E$14*100,1) -> 78.3 | I33: =ROUND(I32/$E$14*100,1) -> 8.5 | K33: =ROUND(K32/$E$14*100,1) -> 41.3 | M33: =ROUND(M32/$E$14*100,1) -> 0.5 | O33: =ROUND(O32/$E$14*100,1) -> 2.6
B34: 県計 比率(%) | E34: 32.5 | G34: 78.3 | I34: 8.5 | K34: 41.3 | M34: 0.5 | O34: 2.6
B35: 特化係数 | E35: =E33/E34 -> 1.0 | G35: =G33/G34 -> 1.0 | I35: =I33/I34 -> 1.0 | K35: =K33/K34 -> 1.0 | M35: =M33/M34 -> 1.0 | O35: =O33/O34 -> 1.0 | Q35: 商業関連地域 | X35: 市街化区域
B36: ※ 商業関連地域は、近隣商業地域及び商業地域の合計。 工業関連地域は、準工業地域、工業地域及び工業専用地域の合計。 | R36: =M35 -> (1.0) | X36: =I35 -> (1.0)
B37: ※ 比率は、総土地面積（2015年）に対する比率である。
B38: ※ 特化係数は、比率／県計比率で算出。1.0を超えるほど特化している。 | T38: 市街化調整区域 | W38: =K35 -> (1.0)
B40: 農業生産関連事業実施経営体数 | T40: 単位：経営体
E42: 農業経営体 数計 | H42: 生産関連事業を実施している実経営体数 | K42: 事業種類別経営体数
K43: 農産物の加工 | N43: 消費者に直接販売 | Q43: 観光農園 | T43: その他
B45: 2010年 | E45: =INDEX('2010年 '!$D$4:$AV$448,グラフ用シート!$F$3,8) -> 71,542 | H45: =INDEX('2010年 '!$D$4:$AV$448,グラフ用シート!$F$3,9) -> 12,522 | K45: =INDEX('2010年 '!$D$4:$AV$448,グラフ用シート!$F$3,10) -> 1,502 | N45: =INDEX('2010年 '!$D$4:$AV$448,グラフ用シート!$F$3,11) -> 11,560 | Q45: =INDEX('2010年 '!$D$4:$AV$448,グラフ用シート!$F$3,12) -> 343 | T45: =INDEX('2010年 '!$D$4:$AV$448,グラフ用シート!$F$3,13) -> 261
B46: 2015年 | E46: =INDEX('2015年'!$E$4:$AZ$456,グラフ用シート!$F$3,8) -> 57,989 | H46: =INDEX('2015年'!$E$4:$AZ$456,グラフ用シート!$F$3,9) -> 11,319 | K46: =INDEX('2015年'!$E$4:$AZ$456,グラフ用シート!$F$3,10) -> 981 | N46: =INDEX('2015年'!$E$4:$AZ$456,グラフ用シート!$F$3,11) -> 10,893 | Q46: =INDEX('2015年'!$E$4:$AZ$456,グラフ用シート!$F$3,12) -> 257 | T46: =INDEX('2015年'!$E$4:$AZ$456,グラフ用シート!$F$3,13) -> 187
B47: 比率(%) | E47: － | H47: =IFERROR(ROUND(H46/E46*100,1),"nc") -> 19.5 | K47: =IFERROR(ROUND(K46/$E$46*100,1),"nc") -> 1.7 | N47: =IFERROR(ROUND(N46/$E$46*100,1),"nc") -> 18.8 | Q47: =IFERROR(ROUND(Q46/$E$46*100,1),"nc") -> 0.4 | T47: =IFERROR(ROUND(T46/$E$46*100,1),"nc") -> 0.3
B48: 県計 比率(%) | E48: － | H48: 19.5 | K48: 1.7 | N48: 18.8 | Q48: 0.4 | T48: 0.3
B49: ※ 比率は、農業経営体数計に対する比率である。 ※ その他は、貸農園・体験農園、農家民宿、農家レストラン等である。
B50: =IF(kadft!$U$7="県計",グラフ用シート!$I$18,IF(kadft!$U$7="前回",グラフ用シート!$I$17)) -> （％） | D50: =IF($U$7="県計",グラフ用シート!$C$45,IF($U$7="前回",グラフ用シート!$D$45)) -> 事業実施率 | O50: =IF($U$7="県計",グラフ用シート!$C$51,IF($U$7="前回",グラフ用シート!$D$51)) -> 事業種類別実施率
Y57: =IF(kadft!$U$7="県計",グラフ用シート!$I$18,IF(kadft!$U$7="前回",グラフ用シート!$I$17)) -> （％）
B58: 農業集落の状況 | V58: 単位：集落
E60: 農業集落数計 | G60: 水田率別農業集落数 | M60: 農家率別農業集落数
G61: 水田集落（70％以上） | I61: 田畑集落 （30～70） | K61: 畑地集落 （30％未満） | M61: 10％未満 | O61: 10～30 | Q61: 30～50 | S61: 50～70 | U61: 70～90 | W61: 90％以上
B63: 2010年 | E63: =INDEX('2010年 '!$D$4:$AV$448,グラフ用シート!$F$3,14) -> 3,816 | G63: =INDEX('2010年 '!$D$4:$AV$448,グラフ用シート!$F$3,15) -> 1,314 | I63: =INDEX('2010年 '!$D$4:$AV$448,グラフ用シート!$F$3,16) -> 1,676 | K63: =INDEX('2010年 '!$D$4:$AV$448,グラフ用シート!$F$3,17) -> 826 | M63: =INDEX('2010年 '!$D$4:$AV$448,グラフ用シート!$F$3,18) -> 690 | O63: =INDEX('2010年 '!$D$4:$AV$448,グラフ用シート!$F$3,19) -> 1,098 | Q63: =INDEX('2010年 '!$D$4:$AV$448,グラフ用シート!$F$3,20) -> 1,088 | S63: =INDEX('2010年 '!$D$4:$AV$448,グラフ用シート!$F$3,21) -> 692 | U63: =INDEX('2010年 '!$D$4:$AV$448,グラフ用シート!$F$3,22) -> 188 | W63: =INDEX('2010年 '!$D$4:$AV$448,グラフ用シート!$F$3,23) -> 60
B64: 2015年 | E64: =INDEX('2015年'!$E$4:$AZ$456,グラフ用シート!$F$3,14) -> 3,802 | G64: =INDEX('2015年'!$E$4:$AZ$456,グラフ用シート!$F$3,15) -> 1,310 | I64: =INDEX('2015年'!$E$4:$AZ$456,グラフ用シート!$F$3,16) -> 1,673 | K64: =INDEX('2015年'!$E$4:$AZ$456,グラフ用シート!$F$3,17) -> 819 | M64: =INDEX('2015年'!$E$4:$AZ$456,グラフ用シート!$F$3,18) -> 901 | O64: =INDEX('2015年'!$E$4:$AZ$456,グラフ用シート!$F$3,19) -> 1,276 | Q64: =INDEX('2015年'!$E$4:$AZ$456,グラフ用シート!$F$3,20) -> 1,071 | S64: =INDEX('2015年'!$E$4:$AZ$456,グラフ用シート!$F$3,21) -> 459 | U64: =INDEX('2015年'!$E$4:$AZ$456,グラフ用シート!$F$3,22) -> 77 | W64: =INDEX('2015年'!$E$4:$AZ$456,グラフ用シート!$F$3,23) -> 18
B65: 構成比(%) | E65: － | G65: =IFERROR(ROUND(G64/$E$64*100,1),"nc") -> 34.5 | I65: =IFERROR(ROUND(I64/$E$64*100,1),"nc") -> 44.0 | K65: =IFERROR(ROUND(K64/$E$64*100,1),"nc") -> 21.5 | M65: =IFERROR(ROUND(M64/$E$64*100,1),"nc") -> 23.7 | O65: =IFERROR(ROUND(O64/$E$64*100,1),"nc") -> 33.6 | Q65: =IFERROR(ROUND(Q64/$E$64*100,1),"nc") -> 28.2 | S65: =IFERROR(ROUND(S64/$E$64*100,1),"nc") -> 12.1 | U65: =IFERROR(ROUND(U64/$E$64*100,1),"nc") -> 2.0 | W65: =IFERROR(ROUND(W64/$E$64*100,1),"nc") -> 0.5
B66: 県計 構成比(%) | E66: － | G66: 34.5 | I66: 44.0 | K66: 21.5 | M66: 23.7 | O66: 33.6 | Q66: 28.2 | S66: 12.1 | U66: 2.0 | W66: 0.5
C67: =IF($U$7="県計",グラフ用シート!$D$61,IF($U$7="前回",グラフ用シート!$F$61)) -> 水田率別農業集落数割合 | D67: =IF($T$58="県計",$G$65,IF($T$58="前回",$G$64)) -> FALSE | E67: FALSE | F67: FALSE | G67: FALSE | H67: FALSE | I67: FALSE | J67: FALSE | K67: FALSE | L67: =IF(kadft!$U$7="県計",グラフ用シート!$I$18,IF(kadft!$U$7="前回",グラフ用シート!$I$17)) -> （％） | O67: =IF($U$7="県計",グラフ用シート!$D$66,IF($U$7="前回",グラフ用シート!$F$66)) -> 農家率別農業集落数割合 | P67: =IF($T$58="県計",$G$65,IF($T$58="前回",$G$64)) -> FALSE | Q67: FALSE | R67: FALSE | S67: FALSE | T67: FALSE | U67: FALSE | V67: FALSE | W67: FALSE
K74: =IF(kadft!$U$7="県計",グラフ用シート!$I$18,IF(kadft!$U$7="前回",グラフ用シート!$I$17)) -> （％）
B75: 寄り合いの実施状況 | W75: 単位：集落
E77: 農業生産にかかる事項 | H77: 農道・水路・ため池等の管理 | K77: 集落共有財産・施設の管理 | N77: 環境美化・自然環境の保全 | Q77: 農業集落行事の計画・推進 | T77: 農業集落内の福祉・厚生 | W77: 寄り合いを開催しなかった
B79: 2010年 | E79: =INDEX('2010年 '!$D$4:$AV$448,グラフ用シート!$F$3,24) -> 1,709 | H79: =INDEX('2010年 '!$D$4:$AV$448,グラフ用シート!$F$3,25) -> 2,140 | K79: =INDEX('2010年 '!$D$4:$AV$448,グラフ用シート!$F$3,26) -> 2,087 | N79: =INDEX('2010年 '!$D$4:$AV$448,グラフ用シート!$F$3,27) -> 2,707 | Q79: =INDEX('2010年 '!$D$4:$AV$448,グラフ用シート!$F$3,28) -> 2,803 | T79: =INDEX('2010年 '!$D$4:$AV$448,グラフ用シート!$F$3,29) -> 1,311 | W79: =INDEX('2010年 '!$D$4:$AV$448,グラフ用シート!$F$3,30) -> 381
B80: 2015年 | E80: =INDEX('2015年'!$E$4:$AZ$456,グラフ用シート!$F$3,24) -> 1,781 | H80: =INDEX('2015年'!$E$4:$AZ$456,グラフ用シート!$F$3,25) -> 2,904 | K80: =INDEX('2015年'!$E$4:$AZ$456,グラフ用シート!$F$3,26) -> 2,473 | N80: =INDEX('2015年'!$E$4:$AZ$456,グラフ用シート!$F$3,27) -> 3,290 | Q80: =INDEX('2015年'!$E$4:$AZ$456,グラフ用シート!$F$3,28) -> 3,143 | T80: =INDEX('2015年'!$E$4:$AZ$456,グラフ用シート!$F$3,29) -> 2,097 | W80: =INDEX('2015年'!$E$4:$AZ$456,グラフ用シート!$F$3,30) -> 218
B81: 比率(%) | E81: =IFERROR(ROUND(E80/$E$64*100,1),"nc") -> 46.8 | H81: =IFERROR(ROUND(H80/$E$64*100,1),"nc") -> 76.4 | K81: =IFERROR(ROUND(K80/$E$64*100,1),"nc") -> 65.0 | N81: =IFERROR(ROUND(N80/$E$64*100,1),"nc") -> 86.5 | Q81: =IFERROR(ROUND(Q80/$E$64*100,1),"nc") -> 82.7 | T81: =IFERROR(ROUND(T80/$E$64*100,1),"nc") -> 55.2 | W81: =IFERROR(ROUND(W80/$E$64*100,1),"nc") -> 5.7
B82: 県計 比率(%) | E82: 46.8 | H82: 76.4 | K82: 65.0 | N82: 86.5 | Q82: 82.7 | T82: 55.2 | W82: 5.7
B83: ※ 比率は、「農業集落の状況」の農業集落数計に対する比率。 | L83: =IF($U$7="県計",グラフ用シート!$D$83,IF($U$7="前回",グラフ用シート!$F$83)) -> 寄り合いの実施率 | M83: =IF($T$58="県計",$G$65,IF($T$58="前回",$G$64)) -> FALSE | N83: FALSE | O83: FALSE | P83: FALSE | Q83: FALSE
Y92: =IF(kadft!$U$7="県計",グラフ用シート!$I$18,IF(kadft!$U$7="前回",グラフ用シート!$J$16)) -> （％）
B93: 保全管理の実施状況 | V93: 単位：集落
E95: 農地のある集落 | I95: 森林のある集落 | M95: ため池・湖沼のある集落 | Q95: 河川・水路のある集落 | U95: 農業用用排水路のある集落
G96: 農地の保全をしている | K96: 森林の保全をしている | O96: ため池・湖沼の保全をしている | S96: 河川・水路の保全をしている | W96: 農業用用排水路の保全をしている
B98: 2010年 | E98: =INDEX('2010年 '!$D$4:$AV$448,グラフ用シート!$F$3,31) -> 3,776 | G98: =INDEX('2010年 '!$D$4:$AV$448,グラフ用シート!$F$3,32) -> 460 | I98: =INDEX('2010年 '!$D$4:$AV$448,グラフ用シート!$F$3,33) -> 3,002 | K98: =INDEX('2010年 '!$D$4:$AV$448,グラフ用シート!$F$3,34) -> 207 | M98: =INDEX('2010年 '!$D$4:$AV$448,グラフ用シート!$F$3,35) -> 955 | O98: =INDEX('2010年 '!$D$4:$AV$448,グラフ用シート!$F$3,36) -> 394 | Q98: =INDEX('2010年 '!$D$4:$AV$448,グラフ用シート!$F$3,37) -> 2,536 | S98: =INDEX('2010年 '!$D$4:$AV$448,グラフ用シート!$F$3,38) -> 805 | U98: =INDEX('2010年 '!$D$4:$AV$448,グラフ用シート!$F$3,39) -> 3,594 | W98: =INDEX('2010年 '!$D$4:$AV$448,グラフ用シート!$F$3,40) -> 2,056
B99: 2015年 | E99: =INDEX('2015年'!$E$4:$AZ$456,グラフ用シート!$F$3,31) -> 3,764 | G99: =INDEX('2015年'!$E$4:$AZ$456,グラフ用シート!$F$3,32) -> 779 | I99: =INDEX('2015年'!$E$4:$AZ$456,グラフ用シート!$F$3,33) -> 2,994 | K99: =INDEX('2015年'!$E$4:$AZ$456,グラフ用シート!$F$3,34) -> 321 | M99: =INDEX('2015年'!$E$4:$AZ$456,グラフ用シート!$F$3,35) -> 955 | O99: =INDEX('2015年'!$E$4:$AZ$456,グラフ用シート!$F$3,36) -> 434 | Q99: =INDEX('2015年'!$E$4:$AZ$456,グラフ用シート!$F$3,37) -> 2,537 | S99: =INDEX('2015年'!$E$4:$AZ$456,グラフ用シート!$F$3,38) -> 1,042 | U99: =INDEX('2015年'!$E$4:$AZ$456,グラフ用シート!$F$3,39) -> 3,585 | W99: =INDEX('2015年'!$E$4:$AZ$456,グラフ用シート!$F$3,40) -> 2,434
B100: 比率(%) | G100: =IFERROR(ROUND(G99/$E$99*100,1),"nc") -> 20.7 | K100: =IFERROR(ROUND(K99/$I$99*100,1),"nc") -> 10.7 | O100: =IFERROR(ROUND(O99/$M$99*100,1),"nc") -> 45.4 | S100: =IFERROR(ROUND(S99/$Q$99*100,1),"nc") -> 41.1 | W100: =IFERROR(ROUND(W99/$U$99*100,1),"nc") -> 67.9
B101: 県計 比率(%) | G101: 20.7 | K101: 10.7 | O101: 45.4 | S101: 41.1 | W101: 67.9
A102: =IF(kadft!$U$7="県計",グラフ用シート!$I$18,IF(kadft!$U$7="前回",グラフ用シート!$J$16)) -> （％） | G102: =IF($U$7="県計",グラフ用シート!$C$102,IF($U$7="前回",グラフ用シート!$F$102)) -> 保全管理の実施率

Sheet グラフ用シート (hidden)
B3: 県計 | D3: =IFERROR(MATCH(kadft!F5,'2010年 '!$A$4:$A$442,0),"1") -> 1 | E3: =IFERROR(MATCH(kadft!J5,'2010年 '!$B$4:$B$442,0)," ") ->  | F3: =""&IF(E3<>" ",E3,D3)&"" -> 1
B4: 前回 | D4: 市町村列 | E4: 旧市町村列 | F4: 優先列
G6: =IF(COUNTIF(元データ!$AC$6:$AC$30,kadft!J5),"OK","NO") -> OK | H6: 市町村に対し旧市町村の該当有無
G8: 旧市町村名
G10: 旧市町村を再選択して下さい
C11: 林野面積 | D11: 耕地面積
B12: =kadft!W14+kadft!K14 -> 198,671 | C12: 林野率 | D12: 耕地率 | G12: =INDEX(地域類型区分!B4:B442,$F$3,1) -> 茨城県
C13: 林野率及び耕地率 | E13: 林野面積及び耕地面積 | G13: =G12 -> 茨城県 | H13: 優先表示地域名
D14: =IF(kadft!$U$7="県計",$C$12,IF(kadft!$U$7="前回",$C$11)) -> 林野率 | E14: =IF(kadft!$U$7="県計",$D$12,IF(kadft!$U$7="前回",$D$11)) -> 耕地率 | G14: 2010年
C15: =IF(kadft!$U$7="県計",$J$15,IF(kadft!$U$7="前回",$G$14)) -> 県 計 | D15: =IF(kadft!$U$7="県計",kadft!$I$16,IF(kadft!$U$7="前回",kadft!$H$13)) -> 31.2 | E15: =IF(kadft!$U$7="県計",kadft!$L$16,IF(kadft!$U$7="前回",kadft!$K$13)) -> 28.7 | G15: 2015年 | J15: 県 計
C16: =IF(kadft!$U$7="県計",$G$13,IF(kadft!$U$7="前回",$G$15)) -> 茨城県 | D16: =IF(kadft!$U$7="県計",kadft!$I$15,IF(kadft!$U$7="前回",kadft!$H$14)) -> 31.2 | E16: =IF(kadft!$U$7="県計",kadft!$L$15,IF(kadft!$U$7="前回",kadft!$K$14)) -> 28.7 | I16: (㏊) | J16: （集落）
I17: （経営体）
C18: 地目別の耕地面積割合 | E18: 地目別の耕地面積割合 | I18: （％）
D19: =kadft!N12 -> 田面積 | E19: =kadft!Q12 -> 畑面積 | F19: =kadft!T12 -> 樹園地面積
C20: =IF(kadft!$U$7="県計",$G$13,IF(kadft!$U$7="前回",$G$15)) -> 茨城県 | D20: =IF(kadft!$U$7="県計",kadft!$O$15,IF(kadft!$U$7="前回",ROUND(kadft!$N$14/kadft!K14*100,1))) -> 57.3 | E20: =IF(kadft!$U$7="県計",kadft!$R$15,IF(kadft!$U$7="前回",ROUND(kadft!$Q$14/kadft!K14*100,1))) -> 38.4 | F20: =IF(kadft!$U$7="県計",kadft!$U$15,IF(kadft!$U$7="前回",ROUND(kadft!$T$14/kadft!K14*100,1))) -> 4.3
C21: =IF(kadft!$U$7="県計",$J$15,IF(kadft!$U$7="前回",$G$14)) -> 県 計 | D21: =IF(kadft!$U$7="県計",kadft!$O$16,IF(kadft!$U$7="前回",ROUND(kadft!$N$13/kadft!K13*100,1))) -> 57.3 | E21: =IF(kadft!$U$7="県計",kadft!$R$16,IF(kadft!$U$7="前回",ROUND(kadft!$Q$13/kadft!K13*100,1))) -> 38.4 | F21: =IF(kadft!$U$7="県計",kadft!$U$16,IF(kadft!$U$7="前回",ROUND(kadft!$T$13/kadft!K13*100,1))) -> 4.3 | I21: 単位１
I22: =IF(kadft!$U$7="県計",$I$18,IF(kadft!$U$7="前回",$I$16)) -> （％）
D23: 耕作放棄地面積 | F23: 耕作放棄地率
C24: =IF(kadft!$U$7="県計",$J$15,IF(kadft!$U$7="前回",$G$14)) -> 県 計 | D24: =IF(kadft!$U$7="県計",kadft!$X$16,IF(kadft!$U$7="前回",ROUND(kadft!$W$13,0))) -> 12
C25: =IF(kadft!$U$7="県計",$G$13,IF(kadft!$U$7="前回",$G$15)) -> 茨城県 | D25: =IF(kadft!$U$7="県計",kadft!$X$15,IF(kadft!$U$7="前回",ROUND(kadft!$W$14,0))) -> 12
G26: IF($U$6="県計",BH17,IF($U$6="前回",BJ17))
D31: =kadft!E30 -> 森林地域 | E31: =kadft!G30 -> 農業地域 | F31: 市街化区域 | G31: 市街化調整区域 | H31: 商業関連地域 | I31: 工業関連地域
C32: =G13 -> 茨城県 | D32: =IF(kadft!E$35=0,0.001,kadft!E$35) -> 1.0 | E32: =IF(kadft!G$35=0,0.001,kadft!G$35) -> 1.0 | F32: =IF(kadft!I$35=0,0.001,kadft!I$35) -> 1.0 | G32: =IF(kadft!K$35=0,0.001,kadft!K$35) -> 1.0 | H32: =IF(kadft!M$35=0,0.001,kadft!M$35) -> 1.0 | I32: =IF(kadft!O$35=0,0.001,kadft!O$35) -> 1.0
C33: =J15 -> 県 計 | D33: 1.0 | E33: 1.0 | F33: 1.0 | G33: 1.0 | H33: 1.0 | I33: 1.0
I41: 単位１
I44: =IF(kadft!$U$7="県計",$I$18,IF(kadft!$U$7="前回",$I$17)) -> （％）
C45: 事業実施率 | D45: 事業実施経営体数
C46: 事業有り | D46: 事業無し
B47: =IF(kadft!$U$7="県計",$J$15,IF(kadft!$U$7="前回",$G$14)) -> 県 計 | C47: =IF(kadft!$U$7="県計",kadft!$H$48,IF(kadft!$U$7="前回",kadft!$H$45)) -> 19.5 | D47: =IF(kadft!$U$7="県計",kadft!$H$48,IF(kadft!$U$7="前回",kadft!$H$45)) -> 19.5
B48: =IF(kadft!$U$7="県計",$G$13,IF(kadft!$U$7="前回",$G$15)) -> 茨城県 | C48: =IF(kadft!$U$7="県計",kadft!$H$47,IF(kadft!$U$7="前回",kadft!$H$46)) -> 19.5 | D48: =E45/kadft!E46 -> 0
C51: 事業種類別実施率 | D51: 事業種類別経営体数
C52: =kadft!T43 -> その他 | D52: =kadft!Q43 -> 観光農園 | E52: =kadft!N43 -> 消費者に直接販売 | F52: =kadft!K43 -> 農産物の加工
B53: =IF(kadft!$U$7="県計",$J$15,IF(kadft!$U$7="前回",$G$14)) -> 県 計 | C53: =IF(kadft!$U$7="県計",kadft!$T$48,IF(kadft!$U$7="前回",kadft!$T$45)) -> 0.3 | D53: =IF(kadft!$U$7="県計",kadft!$Q$48,IF(kadft!$U$7="前回",kadft!$Q$45)) -> 0.4 | E53: =IF(kadft!$U$7="県計",kadft!$N$48,IF(kadft!$U$7="前回",kadft!$N$45)) -> 18.8 | F53: =IF(kadft!$U$7="県計",kadft!$K$48,IF(kadft!$U$7="前回",kadft!$K$45)) -> 1.7
B54: =IF(kadft!$U$7="県計",$G$13,IF(kadft!$U$7="前回",$G$15)) -> 茨城県 | C54: =IF(kadft!$U$7="県計",kadft!$T$47,IF(kadft!$U$7="前回",kadft!$T$46)) -> 0.3 | D54: =IF(kadft!$U$7="県計",kadft!$Q$47,IF(kadft!$U$7="前回",kadft!$Q$46)) -> 0.4 | E54: =IF(kadft!$U$7="県計",kadft!$N$47,IF(kadft!$U$7="前回",kadft!$N$46)) -> 18.8 | F54: =IF(kadft!$U$7="県計",kadft!$K$47,IF(kadft!$U$7="前回",kadft!$K$46)) -> 1.7
D61: 水田率別農業集落数割合 | F61: 水田率別農業集落数
D62: 水田集落 | E62: 田畑集落 | F62: 畑地集落
C63: =IF(kadft!$U$7="県計",$G$13,IF(kadft!$U$7="前回",$G$15)) -> 茨城県 | D63: =IF(kadft!$U$7="県計",kadft!$G$65,IF(kadft!$U$7="前回",kadft!$G$64)) -> 34.5 | E63: =IF(kadft!$U$7="県計",kadft!$I$65,IF(kadft!$U$7="前回",kadft!$I$64)) -> 44 | F63: =IF(kadft!$U$7="県計",kadft!$K$65,IF(kadft!$U$7="前回",kadft!$K$64)) -> 21.5
C64: =IF(kadft!$U$7="県計",$J$15,IF(kadft!$U$7="前回",$G$14)) -> 県 計 | D64: =IF(kadft!$U$7="県計",kadft!$G$66,IF(kadft!$U$7="前回",kadft!$G$63)) -> 34.5 | E64: =IF(kadft!$U$7="県計",kadft!$I$66,IF(kadft!$U$7="前回",kadft!$I$63)) -> 44 | F64: =IF(kadft!$U$7="県計",kadft!$K$66,IF(kadft!$U$7="前回",kadft!$K$63)) -> 21.5
D66: 農家率別農業集落数割合 | F66: 農家率別農業集落数
D67: １０%未満 | E67: 10～30 | F67: 30～50 | G67: 50～70 | H67: 70～90 | I67: 90%以上
C68: =IF(kadft!$U$7="県計",$J$15,IF(kadft!$U$7="前回",$G$14)) -> 県 計 | D68: =IF(kadft!$U$7="県計",kadft!$M$66,IF(kadft!$U$7="前回",kadft!$M$63)) -> 23.7 | E68: =IF(kadft!$U$7="県計",kadft!$O$66,IF(kadft!$U$7="前回",kadft!$O$63)) -> 33.6 | F68: =IF(kadft!$U$7="県計",kadft!$Q$66,IF(kadft!$U$7="前回",kadft!$Q$63)) -> 28.2 | G68: =IF(kadft!$U$7="県計",kadft!$S$66,IF(kadft!$U$7="前回",kadft!$S$63)) -> 12.1 | H68: =IF(kadft!$U$7="県計",kadft!$U$66,IF(kadft!$U$7="前回",kadft!$U$63)) -> 2 | I68: =IF(kadft!$U$7="県計",kadft!$W$66,IF(kadft!$U$7="前回",kadft!$W$63)) -> 0.5
C69: =IF(kadft!$U$7="県計",$G$13,IF(kadft!$U$7="前回",$G$15)) -> 茨城県 | D69: =IF(kadft!$U$7="県計",kadft!$M$65,IF(kadft!$U$7="前回",kadft!$M$64)) -> 23.7 | E69: =IF(kadft!$U$7="県計",kadft!$O$65,IF(kadft!$U$7="前回",kadft!$O$64)) -> 33.6 | F69: =IF(kadft!$U$7="県計",kadft!$Q$65,IF(kadft!$U$7="前回",kadft!$Q$64)) -> 28.2 | G69: =IF(kadft!$U$7="県計",kadft!$S$65,IF(kadft!$U$7="前回",kadft!$S$64)) -> 12.1 | H69: =IF(kadft!$U$7="県計",kadft!$U$65,IF(kadft!$U$7="前回",kadft!$U$64)) -> 2 | I69: =IF(kadft!$U$7="県計",kadft!$W$65,IF(kadft!$U$7="前回",kadft!$W$64)) -> 0.5
J71: 単位１
J72: =IF(kadft!$U$7="県計",$I$18,IF(kadft!$U$7="前回",$J$16)) -> （％）
D83: 寄り合いの実施率 | F83: 寄り合いの実施状況
C85: =kadft!W77 -> 寄り合いを開催しなかった | D85: =kadft!T77 -> 農業集落内の福祉・厚生 | E85: =kadft!Q77 -> 農業集落行事の計画・推進 | F85: =kadft!N77 -> 環境美化・自然環境の保全 | G85: =kadft!K77 -> 集落共有財産・施設の管理 | H85: =kadft!H77 -> 農道・水路・ため池等の管理 | I85: =kadft!E77 -> 農業生産にかかる事項
B86: =IF(kadft!$U$7="県計",$J$15,IF(kadft!$U$7="前回",$G$14)) -> 県 計 | C86: =IF(kadft!$U$7="県計",kadft!$W$82,IF(kadft!$U$7="前回",kadft!$W$79)) -> 5.7 | D86: =IF(kadft!$U$7="県計",kadft!$T$82,IF(kadft!$U$7="前回",kadft!$T$79)) -> 55.2 | E86: =IF(kadft!$U$7="県計",kadft!$Q$82,IF(kadft!$U$7="前回",kadft!$Q$79)) -> 82.7 | F86: =IF(kadft!$U$7="県計",kadft!$N$82,IF(kadft!$U$7="前回",kadft!$N$79)) -> 86.5 | G86: =IF(kadft!$U$7="県計",kadft!$K$82,IF(kadft!$U$7="前回",kadft!$K$79)) -> 65 | H86: =IF(kadft!$U$7="県計",kadft!$H$82,IF(kadft!$U$7="前回",kadft!$H$79)) -> 76.4 | I86: =IF(kadft!$U$7="県計",kadft!$E$82,IF(kadft!$U$7="前回",kadft!$E$79)) -> 46.8
B87: =IF(kadft!$U$7="県計",$G$13,IF(kadft!$U$7="前回",$G$15)) -> 茨城県 | C87: =IF(kadft!$U$7="県計",kadft!$W$81,IF(kadft!$U$7="前回",kadft!$W$80)) -> 5.7 | D87: =IF(kadft!$U$7="県計",kadft!$T$81,IF(kadft!$U$7="前回",kadft!$T$80)) -> 55.2 | E87: =IF(kadft!$U$7="県計",kadft!$Q$81,IF(kadft!$U$7="前回",kadft!$Q$80)) -> 82.7 | F87: =IF(kadft!$U$7="県計",kadft!$N$81,IF(kadft!$U$7="前回",kadft!$N$80)) -> 86.5 | G87: =IF(kadft!$U$7="県計",kadft!$K$81,IF(kadft!$U$7="前回",kadft!$K$80)) -> 65 | H87: =IF(kadft!$U$7="県計",kadft!$H$81,IF(kadft!$U$7="前回",kadft!$H$80)) -> 76.4 | I87: =IF(kadft!$U$7="県計",kadft!$E$81,IF(kadft!$U$7="前回",kadft!$E$80)) -> 46.8
C102: 保全管理の実施率 | F102: 保全管理の実施状況
C103: 農地の保全 | D103: 森林の保全 | E103: ため池・湖沼の保全 | F103: 河川・水路の保全 | G103: 農業用用排水路の保全
B104: =IF(kadft!$U$7="県計",$J$15,IF(kadft!$U$7="前回",$G$14)) -> 県 計 | C104: =IF(kadft!$U$7="県計",kadft!$G$101,IF(kadft!$U$7="前回",kadft!$G$98)) -> 20.7 | D104: =IF(kadft!$U$7="県計",kadft!$K$101,IF(kadft!$U$7="前回",kadft!$K$98)) -> 10.7 | E104: =IF(kadft!$U$7="県計",kadft!$O$101,IF(kadft!$U$7="前回",kadft!$O$98)) -> 45.4 | F104: =IF(kadft!$U$7="県計",kadft!$S$101,IF(kadft!$U$7="前回",kadft!$S$98)) -> 41.1 | G104: =IF(kadft!$U$7="県計",kadft!$W$101,IF(kadft!$U$7="前回",kadft!$W$98)) -> 67.9
B105: =IF(kadft!$U$7="県計",$G$13,IF(kadft!$U$7="前回",$G$15)) -> 茨城県 | C105: =IF(kadft!$U$7="県計",kadft!$G$100,IF(kadft!$U$7="前回",kadft!$G$99)) -> 20.7 | D105: =IF(kadft!$U$7="県計",kadft!$K$100,IF(kadft!$U$7="前回",kadft!$K$99)) -> 10.7 | E105: =IF(kadft!$U$7="県計",kadft!$O$100,IF(kadft!$U$7="前回",kadft!$O$99)) -> 45.4 | F105: =IF(kadft!$U$7="県計",kadft!$S$100,IF(kadft!$U$7="前回",kadft!$S$99)) -> 41.1 | G105: =IF(kadft!$U$7="県計",kadft!$W$100,IF(kadft!$U$7="前回",kadft!$W$99)) -> 67.9

Sheet 2010年 (hidden)
B1: 2010データ | D1: 1 | E1: 2 | F1: 3 | G1: 4 | H1: 5 | I1: 6 | J1: 7 | K1: 8 | L1: 9 | M1: 10 | N1: 11 | O1: 12 | P1: 13 | Q1: 14 | R1: 15 | S1: 16 | T1: 17 | U1: 18 | V1: 19 | W1: 20 | X1: 21 | Y1: 22 | Z1: 23 | AA1: 24 | AB1: 25 | AC1: 26 | AD1: 27 | AE1: 28 | AF1: 29 | AG1: 30 | AH1: 31 | AI1: 32 | AJ1: 33 | AK1: 34 | AL1: 35 | AM1: 36 | AN1: 37 | AO1: 38 | AP1: 39 | AQ1: 40 | AR1: 41 | AS1: 42 | AT1: 43 | AU1: 44 | AV1: 45
D2: 総土地面積 | F2: 耕地面積 | J2: 耕作放棄地面積 | K2: 生産関連事業 | Q2: 水田率別農業集落数 | U2: 農家率別農業集落数 | AA2: 寄り合い | AH2: 環境保全
D3: 総土地面積 | E3: 林野面積 | F3: 耕地面積 | G3: 田面積 | H3: 畑面積 | I3: 樹園地面積 | J3: 耕作放棄地面積 | K3: 農業経営体数計 | L3: 農業生産関連事業を行っている実経営体数 | M3: 事業種類別_農産物の加工 | N3: 事業種類別_消費者に直接販売 | O3: 事業種類別_観光農園 | P3: その他 | Q3: 計 | R3: 水田集落 （70％以上） | S3: 田畑集落 （30～70） | T3: 畑地集落 （30％未満） | U3: 10％未満 | V3: １０～３０ | W3: ３０～５０ | X3: ５０～７０ | Y3: ７０～９０ | Z3: 90％以上 | AA3: 寄り合いの議題_農業生産にかかる事項 | AB3: 寄り合いの議題_農道・農業用用排水路・ため池の管理 | AC3: 寄り合いの議題_集落共有財産・共用施設の管理 | AD3: 寄り合いの議題_環境美化・自然環境の保全 | AE3: 寄り合いの議題_農業集落行事（祭り・イベント等）の計画・推進 | AF3: 寄り合いの議題_農業集落内の福祉・厚生 | AG3: 寄り合いを開催しなかった | AH3: 農地のある集落 | AI3: 農地保全している | AJ3: 森林のある集落 | AK3: 森林保全している | AL3: ため池・湖沼のある集落 | AM3: ため池・湖沼保全している | AN3: 河川・水路のある集落 | AO3: 河川・水路保全している | AP3: 農業用用排水路のある集落 | AQ3: 農業用用排水路保全している
A4: 県計 | B4: 県計 | C4: 000-00 | D4: 609,569 | E4: 189,261 | F4: 175627 | G4: 100452 | H4: 67505 | I4: 7670 | J4: 21,120 | K4: 71542 | L4: 12522 | M4: 1502 | N4: 11560 | O4: 343 | P4: 261 | Q4: 3 816 | R4: 1 314 | S4: 1 676 | T4: 826 | U4: 690 | V4: 1,098 | W4: 1,088 | X4: 692 | Y4: 188 | Z4: 60 | AA4: 1709 | AB4: 2140 | AC4: 2087 | AD4: 2707 | AE4: 2803 | AF4: 1311 | AG4: 381 | AH4: 3776 | AI4: 460 | AJ4: 3002 | AK4: 207 | AL4: 955 | AM4: 394 | AN4: 2536 | AO4: 805 | AP4: 3594 | AQ4: 2056
A5: 水戸市 | C5: 201-00 | D5: 21,743 | E5: 3,493 | F5: 7153 | G5: 4383 | H5: 2477 | I5: 293 | J5: 913 | K5: 3262 | L5: 543 | M5: 49 | N5: 510 | O5: 8 | P5: 13 | Q5: 184 | R5: 54 | S5: 84 | T5: 46 | U5: 70 | V5: 38 | W5: 44 | X5: 27 | Y5: 5 | Z5: - | AA5: 64 | AB5: 82 | AC5: 63 | AD5: 94 | AE5: 90 | AF5: 34 | AG5: 55 | AH5: 163 | AI5: 6 | AJ5: 131 | AK5: 7 | AL5: 58 | AM5: 44 | AN5: 106 | AO5: 39 | AP5: 147 | AQ5: 88
B6: 水戸市（旧） | C6: 201-01 | D6: 1,491 | E6: 23 | F6: 35 | G6: 20 | H6: 15 | I6: 0 | J6: 13 | K6: 37 | L6: 3 | M6: 1 | N6: 3 | O6: - | P6: - | Q6: 31 | R6: 7 | S6: 3 | T6: 21 | U6: 30 | V6: - | W6: 1 | X6: - | Y6: - | Z6: - | AA6: 0 | AB6: 0 | AC6: 0 | AD6: 0 | AE6: 0 | AF6: 0 | AG6: 31 | AH6: 11 | AI6: 0 | AJ6: 1 | AK6: 0 | AL6: 2 | AM6: 1 | AN6: 8 | AO6: 0 | AP6: 5 | AQ6: 0
B7: 国田村 | C7: 201-02 | D7: 1,004 | E7: 82 | F7: 569 | G7: 396 | H7: 155 | I7: 18 | J7: 44 | K7: 281 | L7: 26 | M7: 3 | N7: 24 | O7: - | P7: - | Q7: 18 | R7: 7 | S7: 10 | T7: 1 | U7: - | V7: 1 | W7: 6 | X7: 10 | Y7: 1 | Z7: - | AA7: 15 | AB7: 15 | AC7: 1 | AD7: 2 | AE7: 0 | AF7: 0 | AG7: 0 | AH7: 18 | AI7: 0 | AJ7: 12 | AK7: 0 | AL7: 3 | AM7: 2 | AN7: 13 | AO7: 1 | AP7: 18 | AQ7: 15
B8: 吉田村 | C8: 201-03 | D8: 950 | E8: 66 | F8: 100 | G8: 45 | H8: 51 | I8: 4 | J8: 22 | K8: 40 | L8: 7 | M8: - | N8: 7 | O8: - | P8: - | Q8: 6 | R8: 1 | S8: 4 | T8: 1 | U8: 6 | V8: - | W8: - | X8: - | Y8: - | Z8: - | AA8: 0 | AB8: 0 | AC8: 0 | AD8: 0 | AE8: 0 | AF8: 0 | AG8: 6 | AH8: 6 | AI8: 0 | AJ8: 6 | AK8: 0 | AL8: 2 | AM8: 1 | AN8: 5 | AO8: 0 | AP8: 6 | AQ8: 0
B9: 酒門村２－１ | C9: 201-04 | D9: 1,278 | E9: 273 | F9: 442 | G9: 314 | H9: 118 | I9: 10 | J9: 76 | K9: 168 | L9: 33 | M9: 4 | N9: 30 | O9: - | P9: 1 | Q9: 8 | R9: 4 | S9: 4 | T9: - | U9: 3 | V9: 5 | W9: - | X9: - | Y9: - | Z9: - | AA9: 1 | AB9: 2 | AC9: 1 | AD9: 2 | AE9: 0 | AF9: 0 | AG9: 6 | AH9: 8 | AI9: 0 | AJ9: 7 | AK9: 0 | AL9: 1 | AM9: 1 | AN9: 5 | AO9: 2 | AP9: 8 | AQ9: 1
B10: 柳河村 | C10: 201-05 | D10: 643 | E10: 5 | F10: 291 | G10: 185 | H10: 103 | I10: 3 | J10: 14 | K10: 160 | L10: 19 | M10: - | N10: 19 | O10: - | P10: - | Q10: 4 | R10: 1 | S10: 3 | T10: - | U10: 1 | V10: 2 | W10: 1 | X10: - | Y10: - | Z10: - | AA10: 4 | AB10: 4 | AC10: 1 | AD10: 1 | AE10: 0 | AF10: 0 | AG10: 0 | AH10: 4 | AI10: 0 | AJ10: 1 | AK10: 0 | AL10: 0 | AM10: 0 | AN10: 4 | AO10: 0 | AP10: 4 | AQ10: 4
B11: 渡里村 | C11: 201-06 | D11: 1,078 | E11: 217 | F11: 254 | G11: 113 | H11: 136 | I11: 5 | J11: 55 | K11: 87 | L11: 19 | M11: 2 | N11: 18 | O11: - | P11: 1 | Q11: 5 | R11: 1 | S11: 3 | T11: 1 | U11: 4 | V11: - | W11: 1 | X11: - | Y11: - | Z11: - | AA11: 4 | AB11: 4 | AC11: 1 | AD11: 1 | AE11: 1 | AF11: 0 | AG11: 1 | AH11: 5 | AI11: 0 | AJ11: 5 | AK11: 0 | AL11: 1 | AM11: 1 | AN11: 2 | AO11: 0 | AP11: 3 | AQ11: 3
B12: 上大野村 | C12: 201-07 | D12: 605 | E12: 16 | F12: 362 | G12: 301 | H12: 56 | I12: 5 | J12: 12 | K12: 178 | L12: 24 | M12: 1 | N12: 23 | O12: - | P12: - | Q12: 6 | R12: 5 | S12: 1 | T12: - | U12: - | V12: 4 | W12: 1 | X12: 1 | Y12: - | Z12: - | AA12: 4 | AB12: 3 | AC12: 1 | AD12: 4 | AE12: 0 | AF12: 0 | AG12: 2 | AH12: 6 | AI12: 0 | AJ12: 5 | AK12: 0 | AL12: 0 | AM12: 0 | AN12: 5 | AO12: 0 | AP12: 6 | AQ12: 3
B13: 緑岡村 | C13: 201-08 | D13: 2,508 | E13: 281 | F13: 452 | G13: 225 | H13: 208 | I13: 19 | J13: 90 | K13: 216 | L13: 47 | M13: 3 | N13: 43 | O13: 2 | P13: 3 | Q13: 19 | R13: 1 | S13: 10 | T13: 8 | U13: 16 | V13: 2 | W13: 1 | X13: - | Y13: - | Z13: - | AA13: 0 | AB13: 1 | AC13: 0 | AD13: 13 | AE13: 14 | AF13: 0 | AG13: 5 | AH13: 18 | AI13: 0 | AJ13: 18 | AK13: 0 | AL13: 5 | AM13: 3 | AN13: 3 | AO13: 0 | AP13: 11 | AQ13: 1
B14: 飯富村 | C14: 201-09 | D14: 1,495 | E14: 323 | F14: 545 | G14: 134 | H14: 404 | I14: 7 | J14: 98 | K14: 172 | L14: 28 | M14: 7 | N14: 24 | O14: 1 | P14: 2 | Q14: 8 | R14: - | S14: 3 | T14: 5 | U14: - | V14: 3 | W14: 5 | X14: - | Y14: - | Z14: - | AA14: 2 | AB14: 7 | AC14: 7 | AD14: 5 | AE14: 6 | AF14: 3 | AG14: 1 | AH14: 8 | AI14: 0 | AJ14: 8 | AK14: 1 | AL14: 2 | AM14: 2 | AN14: 6 | AO14: 1 | AP14: 8 | AQ14: 7
B15: 上中妻村 | C15: 201-10 | D15: 838 | E15: 112 | F15: 353 | G15: 200 | H15: 146 | I15: 7 | J15: 53 | K15: 148 | L15: 14 | M15: - | N15: 14 | O15: - | P15: - | Q15: 4 | R15: - | S15: 4 | T15: - | U15: 1 | V15: 2 | W15: - | X15: 1 | Y15: - | Z15: - | AA15: 0 | AB15: 3 | AC15: 4 | AD15: 4 | AE15: 4 | AF15: 3 | AG15: 0 | AH15: 4 | AI15: 0 | AJ15: 4 | AK15: 0 | AL15: 2 | AM15: 2 | AN15: 0 | AO15: 0 | AP15: 4 | AQ15: 3
B16: 山根村 | C16: 201-11 | D16: 1,556 | E16: 522 | F16: 215 | G16: 96 | H16: 105 | I16: 14 | J16: 72 | K16: 131 | L16: 35 | M16: - | N16: 35 | O16: 4 | P16: 1 | Q16: 6 | R16: - | S16: 6 | T16: - | U16: 1 | V16: 1 | W16: 3 | X16: 1 | Y16: - | Z16: - | AA16: 2 | AB16: 4 | AC16: 6 | AD16: 3 | AE16: 5 | AF16: 3 | AG16: 0 | AH16: 6 | AI16: 0 | AJ16: 6 | AK16: 0 | AL16: 6 | AM16: 6 | AN16: 1 | AO16: 1 | AP16: 6 | AQ16: 4
B17: 河和田村 | C17: 201-12 | D17: 1,258 | E17: 254 | F17: 330 | G17: 197 | H17: 111 | I17: 22 | J17: 68 | K17: 182 | L17: 39 | M17: 5 | N17: 36 | O17: 1 | P17: 1 | Q17: 9 | R17: 3 | S17: 3 | T17: 3 | U17: 4 | V17: 4 | W17: 1 | X17: - | Y17: - | Z17: - | AA17: 0 | AB17: 0 | AC17: 0 | AD17: 8 | AE17: 9 | AF17: 0 | AG17: 0 | AH17: 9 | AI17: 0 | AJ17: 9 | AK17: 0 | AL17: 4 | AM17: 2 | AN17: 0 | AO17: 0 | AP17: 9 | AQ17: 0
B18: 下大野村 | C18: 201-13 | D18: 987 | E18: 10 | F18: 642 | G18: 595 | H18: 39 | I18: 8 | J18: 21 | K18: 257 | L18: 80 | M18: 1 | N18: 80 | O18: - | P18: - | Q18: 8 | R18: 8 | S18: - | T18: - | U18: - | V18: 2 | W18: 6 | X18: - | Y18: - | Z18: - | AA18: 7 | AB18: 8 | AC18: 7 | AD18: 8 | AE18: 8 | AF18: 6 | AG18: 0 | AH18: 8 | AI18: 2 | AJ18: 0 | AK18: 0 | AL18: 2 | AM18: 2 | AN18: 8 | AO18: 5 | AP18: 8 | AQ18: 8
B19: 稲荷村 | C19: 201-14 | D19: 976 | E19: 152 | F19: 453 | G19: 381 | H19: 62 | I19: 10 | J19: 21 | K19: 227 | L19: 40 | M19: 9 | N19: 34 | O19: - | P19: - | Q19: 10 | R19: 10 | S19: - | T19: - | U19: 2 | V19: 1 | W19: 6 | X19: 1 | Y19: - | Z19: - | AA19: 9 | AB19: 10 | AC19: 8 | AD19: 10 | AE19: 10 | AF19: 3 | AG19: 0 | AH19: 10 | AI19: 1 | AJ19: 7 | AK19: 1 | AL19: 6 | AM19: 4 | AN19: 10 | AO19: 4 | AP19: 10 | AQ19: 10
B20: 大場村（水戸市） | C20: 201-15 | D20: 926 | E20: 248 | F20: 463 | G20: 358 | H20: 96 | I20: 9 | J20: 34 | K20: 211 | L20: 37 | M20: 3 | N20: 36 | O20: - | P20: - | Q20: 9 | R20: 4 | S20: 5 | T20: - | U20: - | V20: 1 | W20: 3 | X20: 3 | Y20: 2 | Z20: - | AA20: 8 | AB20: 6 | AC20: 6 | AD20: 8 | AE20: 9 | AF20: 4 | AG20: 0 | AH20: 9 | AI20: 2 | AJ20: 9 | AK20: 2 | AL20: 7 | AM20: 3 | AN20: 9 | AO20: 3 | AP20: 9 | AQ20: 6
B21: 下中妻村 | C21: 201-16 | D21: 1,171 | E21: 256 | F21: 357 | G21: 209 | H21: 128 | I21: 20 | J21: 37 | K21: 176 | L21: 27 | M21: 4 | N21: 25 | O21: - | P21: 1 | Q21: 5 | R21: - | S21: 5 | T21: - | U21: 1 | V21: 1 | W21: 3 | X21: - | Y21: - | Z21: - | AA21: 2 | AB21: 3 | AC21: 2 | AD21: 4 | AE21: 5 | AF21: 3 | AG21: 0 | AH21: 5 | AI21: 1 | AJ21: 5 | AK21: 2 | AL21: 3 | AM21: 3 | AN21: 4 | AO21: 2 | AP21: 5 | AQ21: 5
B22: 中妻村 | C22: 201-17 | D22: 787 | E22: 164 | F22: 374 | G22: 217 | H22: 144 | I22: 13 | J22: 48 | K22: 213 | L22: 27 | M22: - | N22: 25 | O22: - | P22: 2 | Q22: 7 | R22: 1 | S22: 6 | T22: - | U22: - | V22: 1 | W22: 2 | X22: 4 | Y22: - | Z22: - | AA22: 1 | AB22: 7 | AC22: 7 | AD22: 7 | AE22: 7 | AF22: 4 | AG22: 0 | AH22: 7 | AI22: 0 | AJ22: 7 | AK22: 1 | AL22: 3 | AM22: 3 | AN22: 7 | AO22: 6 | AP22: 7 | AQ22: 5
B23: 鯉渕村２－１ | C23: 201-18 | D23: 2,192 | E23: 489 | F23: 916 | G23: 397 | H23: 400 | I23: 119 | J23: 133 | K23: 378 | L23: 38 | M23: 6 | N23: 34 | O23: - | P23: 1 | Q23: 21 | R23: 1 | S23: 14 | T23: 6 | U23: 1 | V23: 8 | W23: 4 | X23: 6 | Y23: 2 | Z23: - | AA23: 5 | AB23: 5 | AC23: 11 | AD23: 14 | AE23: 12 | AF23: 5 | AG23: 3 | AH23: 21 | AI23: 0 | AJ23: 21 | AK23: 0 | AL23: 9 | AM23: 8 | AN23: 16 | AO23: 14 | AP23: 20 | AQ23: 13
A24: 日立市 | C24: 202-00 | D24: 22,555 | E24: 12,433 | F24: 996 | G24: 674 | H24: 287 | I24: 35 | J24: 249 | K24: 756 | L24: 194 | M24: 13 | N24: 185 | O24: 20 | P24: 5 | Q24: 32 | R24: 12 | S24: 10 | T24: 10 | U24: 18 | V24: 3 | W24: 9 | X24: 2 | Y24: - | Z24: - | AA24: 3 | AB24: 15 | AC24: 4 | AD24: 14 | AE24: 3 | AF24: 2 | AG24: 11 | AH24: 31 | AI24: 0 | AJ24: 31 | AK24: 0 | AL24: 4 | AM24: 4 | AN24: 15 | AO24: 8 | AP24: 22 | AQ24: 17
B25: 中里村 | C25: 202-01 | D25: 3,368 | E25: 2,413 | F25: 134 | G25: 85 | H25: 32 | I25: 17 | J25: 59 | K25: 97 | L25: 30 | M25: - | N25: 29 | O25: 15 | P25: 1 | Q25: 4 | R25: 2 | S25: 2 | T25: - | U25: - | V25: 1 | W25: 2 | X25: 1 | Y25: - | Z25: - | AA25: 1 | AB25: 1 | AC25: 0 | AD25: 2 | AE25: 0 | AF25: 0 | AG25: 1 | AH25: 4 | AI25: 0 | AJ25: 4 | AK25: 0 | AL25: 0 | AM25: 0 | AN25: 4 | AO25: 3 | AP25: 4 | AQ25: 3
B26: 豊浦町 | C26: 202-02 | D26: 785 | E26: 204 | F26: 33 | G26: 16 | H26: 14 | I26: 3 | J26: 18 | K26: 35 | L26: 10 | M26: - | N26: 10 | O26: 2 | P26: - | Q26: 2 | R26: - | S26: 2 | T26: - | U26: 2 | V26: - | W26: - | X26: - | Y26: - | Z26: - | AA26: 1 | AB26: 2 | AC26: 1 | AD26: 2 | AE26: 0 | AF26: 1 | AG26: 0 | AH26: 2 | AI26: 0 | AJ26: 2 | AK26: 0 | AL26: 0 | AM26: 0 | AN26: 0 | AO26: 0 | AP26: 2 | AQ26: 2
B27: 日高村 | C27: 202-03 | D27: 1,555 | E27: 719 | F27: 44 | G27: 27 | H27: 17 | I27: 0 | J27: 21 | K27: 51 | L27: 5 | M27: 1 | N27: 5 | O27: - | P27: - | Q27: 3 | R27: 1 | S27: 1 | T27: 1 | U27: 3 | V27: - | W27: - | X27: - | Y27: - | Z27: - | AA27: 0 | AB27: 1 | AC27: 0 | AD27: 0 | AE27: 0 | AF27: 0 | AG27: 2 | AH27: 3 | AI27: 0 | AJ27: 3 | AK27: 0 | AL27: 0 | AM27: 0 | AN27: 1 | AO27: 0 | AP27: 3 | AQ27: 1
B28: 日立市（旧） | C28: 202-04 | D28: 3,744 | E28: 1,879 | F28: 4 | G28: 0 | H28: 4 | I28: 0 | J28: 6 | K28: 19 | L28: 4 | M28: 1 | N28: 3 | O28: - | P28: - | Q28: 4 | R28: - | S28: - | T28: 4 | U28: 4 | V28: - | W28: - | X28: - | Y28: - | Z28: - | AA28: 0 | AB28: 0 | AC28: 1 | AD28: 4 | AE28: 2 | AF28: 0 | AG28: 0 | AH28: 3 | AI28: 0 | AJ28: 4 | AK28: 0 | AL28: 0 | AM28: 0 | AN28: 0 | AO28: 0 | AP28: 0 | AQ28: 0
B29: 多賀町 | C29: 202-05 | D29: 4,435 | E29: 1,880 | F29: 23 | G29: 1 | H29: 20 | I29: 2 | J29: 16 | K29: 27 | L29: 4 | M29: - | N29: 4 | O29: - | P29: - | Q29: 5 | R29: - | S29: - | T29: 5 | U29: 5 | V29: - | W29: - | X29: - | Y29: - | Z29: - | AA29: 0 | AB29: 0 | AC29: 0 | AD29: 0 | AE29: 0 | AF29: 0 | AG29: 5 | AH29: 5 | AI29: 0 | AJ29: 5 | AK29: 0 | AL29: 0 | AM29: 0 | AN29: 1 | AO29: 0 | AP29: 0 | AQ29: 0
B30: 久慈町 | C30: 202-06 | D30: 341 | E30: 23 | F30: … | G30: … | H30: … | I30: … | J30: 6 | K30: 5 | L30: 1 | M30: 1 | N30: 1 | O30: - | P30: - | Q30: - | R30: - | S30: - | T30: - | U30: - | V30: - | W30: - | X30: - | Y30: - | Z30: - | AA30: … | AB30: … | AC30: … | AD30: … | AE30: … | AF30: … | AG30: … | AH30: … | AI30: … | AJ30: … | AK30: … | AL30: … | AM30: … | AN30: … | AO30: … | AP30: … | AQ30: …
B31: 坂本村 | C31: 202-07 | D31: 633 | E31: 95 | F31: 190 | G31: 151 | H31: 34 | I31: 5 | J31: 24 | K31: 105 | L31: 30 | M31: 1 | N31: 29 | O31: 1 | P31: - | Q31: 4 | R31: 3 | S31: 1 | T31: - | U31: 1 | V31: - | W31: 3 | X31: - | Y31: - | Z31: - | AA31: 1 | AB31: 2 | AC31: 1 | AD31: 1 | AE31: 0 | AF31: 0 | AG31: 2 | AH31: 4 | AI31: 0 | AJ31: 4 | AK31: 0 | AL31: 0 | AM31: 0 | AN31: 0 | AO31: 0 | AP31: 4 | AQ31: 2
B32: 東小沢村 | C32: 202-08 | D32: 475 | E32: 23 | F32: 152 | G32: 121 | H32: 29 | I32: 2 | J32: 13 | K32: 116 | L32: 29 | M32: 2 | N32: 29 | O32: 1 | P32: - | Q32: 3 | R32: 3 | S32: - | T32: - | U32: - | V32: - | W32: 2 | X32: 1 | Y32: - | Z32: - | AA32: 0 | AB32: 2 | AC32: 0 | AD32: 1 | AE32: 0 | AF32: 0 | AG32: 1 | AH32: 3 | AI32: 0 | AJ32: 2 | AK32: 0 | AL32: 0 | AM32: 0 | AN32: 3 | AO32: 1 | AP32: 2 | AQ32: 2
B33: 黒前村２－１ | C33: 202-09 | D33: 5,566 | E33: 4,579 | F33: 174 | G33: 122 | H33: 50 | I33: 2 | J33: 49 | K33: 115 | L33: 18 | M33: - | N33: 17 | O33: 1 | P33: - | Q33: 3 | R33: 2 | S33: 1 | T33: - | U33: - | V33: 1 | W33: 2 | X33: - | Y33: - | Z33: - | AA33: 0 | AB33: 3 | AC33: 1 | AD33: 1 | AE33: 1 | AF33: 1 | AG33: 0 | AH33: 3 | AI33: 0 | AJ33: 3 | AK33: 0 | AL33: 1 | AM33: 1 | AN33: 3 | AO33: 1 | AP33: 3 | AQ33: 3
B34: 櫛形村 | C34: 202-10 | D34: 1,653 | E34: 621 | F34: 242 | G34: 151 | H34: 87 | I34: 4 | J34: 37 | K34: 186 | L34: 63 | M34: 7 | N34: 58 | O34: - | P34: 4 | Q34: 4 | R34: 1 | S34: 3 | T34: - | U34: 3 | V34: 1 | W34: - | X34: - | Y34: - | Z34: - | AA34: 0 | AB34: 4 | AC34: 0 | AD34: 3 | AE34: 0 | AF34: 0 | AG34: 0 | AH34: 4 | AI34: 0 | AJ34: 4 | AK34: 0 | AL34: 3 | AM34: 3 | AN34: 3 | AO34: 3 | AP34: 4 | AQ34: 4
A35: 土浦市 | C35: 203-00 | D35: 12,299 | E35: 1,427 | F35: 3519 | G35: 1984 | H35: 1218 | I35: 317 | J35: 574 | K35: 1461 | L35: 318 | M35: 27 | N35: 295 | O35: 8 | P35: 6 | Q35: 70 | R35: 19 | S35: 43 | T35: 8 | U35: 21 | V35: 17 | W35: 19 | X35: 10 | Y35: 3 | Z35: - | AA35: 14 | AB35: 26 | AC35: 21 | AD35: 46 | AE35: 55 | AF35: 13 | AG35: 8 | AH35: 70 | AI35: 20 | AJ35: 64 | AK35: 6 | AL35: 29 | AM35: 6 | AN35: 28 | AO35: 11 | AP35: 68 | AQ35: 24
B36: 土浦市（旧） | C36: 203-01 | D36: 5,822 | E36: 525 | F36: 1428 | G36: 863 | H36: 501 | I36: 64 | J36: 256 | K36: 650 | L36: 130 | M36: 9 | N36: 120 | O36: 1 | P36: 2 | Q36: 38 | R36: 13 | S36: 19 | T36: 6 | U36: 17 | V36: 10 | W36: 5 | X36: 4 | Y36: 2 | Z36: - | AA36: 10 | AB36: 15 | AC36: 15 | AD36: 22 | AE36: 29 | AF36: 11 | AG36: 5 | AH36: 38 | AI36: 18 | AJ36: 35 | AK36: 4 | AL36: 13 | AM36: 2 | AN36: 13 | AO36: 9 | AP36: 36 | AQ36: 19
B37: 上大津村 | C37: 203-02 | D37: 2,358 | E37: 258 | F37: 919 | G37: 491 | H37: 286 | I37: 142 | J37: 143 | K37: 375 | L37: 43 | M37: 4 | N37: 37 | O37: 1 | P37: 4 | Q37: 12 | R37: 2 | S37: 9 | T37: 1 | U37: 2 | V37: 2 | W37: 6 | X37: 2 | Y37: - | Z37: - | AA37: 3 | AB37: 9 | AC37: 4 | AD37: 4 | AE37: 6 | AF37: 2 | AG37: 3 | AH37: 12 | AI37: 1 | AJ37: 11 | AK37: 1 | AL37: 4 | AM37: 3 | AN37: 2 | AO37: 2 | AP37: 12 | AQ37: 5
B38: 藤沢村 | C38: 203-03 | D38: 1,026 | E38: 88 | F38: 461 | G38: 233 | H38: 168 | I38: 60 | J38: 64 | K38: 134 | L38: 22 | M38: 3 | N38: 20 | O38: 2 | P38: - | Q38: 7 | R38: - | S38: 6 | T38: 1 | U38: 2 | V38: 3 | W38: 1 | X38: 1 | Y38: - | Z38: - | AA38: 0 | AB38: 1 | AC38: 1 | AD38: 7 | AE38: 7 | AF38: 0 | AG38: 0 | AH38: 7 | AI38: 0 | AJ38: 6 | AK38: 1 | AL38: 4 | AM38: 0 | AN38: 4 | AO38: 0 | AP38: 7 | AQ38: 0
B39: 山ノ荘村 | C39: 203-04 | D39: 1,486 | E39: 514 | F39: 395 | G39: 205 | H39: 157 | I39: 33 | J39: 63 | K39: 174 | L39: 84 | M39: 10 | N39: 79 | O39: 3 | P39: - | Q39: 6 | R39: 2 | S39: 4 | T39: - | U39: - | V39: - | W39: 3 | X39: 2 | Y39: 1 | Z39: - | AA39: 1 | AB39: 1 | AC39: 1 | AD39: 6 | AE39: 6 | AF39: 0 | AG39: 0 | AH39: 6 | AI39: 0 | AJ39: 6 | AK39: 0 | AL39: 4 | AM39: 0 | AN39: 5 | AO39: 0 | AP39: 6 | AQ39: 0
B40: 斗利出村 | C40: 203-05 | D40: 690 | E40: 42 | F40: 316 | G40: 192 | H40: 106 | I40: 18 | J40: 48 | K40: 128 | L40: 39 | M40: 1 | N40: 39 | O40: 1 | P40: - | Q40: 7 | R40: 2 | S40: 5 | T40: - | U40: - | V40: 2 | W40: 4 | X40: 1 | Y40: - | Z40: - | AA40: 0 | AB40: 0 | AC40: 0 | AD40: 7 | AE40: 7 | AF40: 0 | AG40: 0 | AH40: 7 | AI40: 1 | AJ40: 6 | AK40: 0 | AL40: 4 | AM40: 1 | AN40: 4 | AO40: 0 | AP40: 7 | AQ40: 0
A41: 古河市 | C41: 204-00 | D41: 12,358 | E41: 887 | F41: 5232 | G41: 2373 | H41: 2831 | I41: 28 | J41: 516 | K41: 2057 | L41: 334 | M41: 24 | N41: 322 | O41: 3 | P41: 8 | Q41: 103 | R41: 7 | S41: 76 | T41: 20 | U41: 40 | V41: 47 | W41: 11 | X41: 5 | Y41: - | Z41: - | AA41: 52 | AB41: 43 | AC41: 53 | AD41: 64 | AE41: 71 | AF41: 47 | AG41: 21 | AH41: 103 | AI41: 13 | AJ41: 88 | AK41: 1 | AL41: 3 | AM41: 2 | AN41: 57 | AO41: 48 | AP41: 95 | AQ41: 91
B42: 古河町 | C42: 204-01 | D42: 816 | E42: 2 | F42: 21 | G42: 11 | H42: 10 | I42: 0 | J42: 13 | K42: 19 | L42: 3 | M42: - | N42: 3 | O42: - | P42: - | Q42: 4 | R42: 1 | S42: 2 | T42: 1 | U42: 4 | V42: - | W42: - | X42: - | Y42: - | Z42: - | AA42: 0 | AB42: 0 | AC42: 0 | AD42: 0 | AE42: 0 | AF42: 0 | AG42: 4 | AH42: 4 | AI42: 0 | AJ42: 0 | AK42: 0 | AL42: 0 | AM42: 0 | AN42: 3 | AO42: 0 | AP42: 1 | AQ42: 0
B43: 新郷村 | C43: 204-02 | D43: 1,301 | E43: 20 | F43: 337 | G43: 214 | H43: 121 | I43: 2 | J43: 49 | K43: 154 | L43: 41 | M43: 1 | N43: 41 | O43: - | P43: 1 | Q43: 12 | R43: 2 | S43: 7 | T43: 3 | U43: 9 | V43: 2 | W43: 1 | X43: - | Y43: - | Z43: - | AA43: 0 | AB43: 0 | AC43: 0 | AD43: 0 | AE43: 0 | AF43: 0 | AG43: 12 | AH43: 12 | AI43: 1 | AJ43: 7 | AK43: 0 | AL43: 0 | AM43: 0 | AN43: 7 | AO43: 1 | AP43: 10 | AQ43: 9
B44: 勝鹿村 | C44: 204-03 | D44: 1,079 | E44: 49 | F44: 397 | G44: 192 | H44: 202 | I44: 3 | J44: 58 | K44: 227 | L44: 32 | M44: 4 | N44: 30 | O44: - | P44: 1 | Q44: 9 | R44: - | S44: 7 | T44: 2 | U44: 4 | V44: 4 | W44: 1 | X44: - | Y44: - | Z44: - | AA44: 9 | AB44: 9 | AC44: 9 | AD44: 9 | AE44: 9 | AF44: 9 | AG44: 0 | AH44: 9 | AI44: 0 | AJ44: 9 | AK44: 0 | AL44: 0 | AM44: 0 | AN44: 4 | AO44: 4 | AP44: 9 | AQ44: 9
B45: 香取村 | C45: 204-04 | D45: 1,541 | E45: 78 | F45: 726 | G45: 346 | H45: 378 | I45: 2 | J45: 91 | K45: 256 | L45: 42 | M45: - | N45: 42 | O45: - | P45: - | Q45: 10 | R45: - | S45: 8 | T45: 2 | U45: 2 | V45: 7 | W45: 1 | X45: - | Y45: - | Z45: - | AA45: 10 | AB45: 10 | AC45: 10 | AD45: 10 | AE45: 10 | AF45: 10 | AG45: 0 | AH45: 10 | AI45: 3 | AJ45: 10 | AK45: 0 | AL45: 0 | AM45: 0 | AN45: 7 | AO45: 7 | AP45: 10 | AQ45: 10
B46: 桜井村 | C46: 204-05 | D46: 1,301 | E46: 142 | F46: 609 | G46: 213 | H46: 392 | I46: 4 | J46: 57 | K46: 205 | L46: 31 | M46: - | N46: 31 | O46: - | P46: - | Q46: 8 | R46: - | S46: 7 | T46: 1 | U46: 2 | V46: 6 | W46: - | X46: - | Y46: - | Z46: - | AA46: 0 | AB46: 0 | AC46: 0 | AD46: 0 | AE46: 6 | AF46: 0 | AG46: 2 | AH46: 8 | AI46: 0 | AJ46: 7 | AK46: 0 | AL46: 0 | AM46: 0 | AN46: 7 | AO46: 7 | AP46: 8 | AQ46: 8
B47: 岡郷村 | C47: 204-06 | D47: 1,353 | E47: 154 | F47: 612 | G47: 282 | H47: 327 | I47: 3 | J47: 63 | K47: 224 | L47: 39 | M47: 3 | N47: 37 | O47: - | P47: - | Q47: 14 | R47: 3 | S47: 9 | T47: 2 | U47: 4 | V47: 5 | W47: 2 | X47: 3 | Y47: - | Z47: - | AA47: 0 | AB47: 0 | AC47: 0 | AD47: 0 | AE47: 11 | AF47: 0 | AG47: 3 | AH47: 14 | AI47: 5 | AJ47: 11 | AK47: 0 | AL47: 0 | AM47: 0 | AN47: 10 | AO47: 10 | AP47: 13 | AQ47: 13
B48: 幸島村 | C48: 204-07 | D48: 2,143 | E48: 291 | F48: 1010 | G48: 482 | H48: 517 | I48: 11 | J48: 72 | K48: 384 | L48: 58 | M48: 9 | N48: 54 | O48: 2 | P48: 3 | Q48: 21 | R48: - | S48: 19 | T48: 2 | U48: 8 | V48: 11 | W48: 2 | X48: - | Y48: - | Z48: - | AA48: 9 | AB48: 12 | AC48: 11 | AD48: 20 | AE48: 11 | AF48: 4 | AG48: 0 | AH48: 21 | AI48: 2 | AJ48: 21 | AK48: 1 | AL48: 0 | AM48: 0 | AN48: 8 | AO48: 8 | AP48: 19 | AQ48: 18
B49: 名崎村２－１ | C49: 204-08 | D49: 1,359 | E49: 70 | F49: 690 | G49: 273 | H49: 414 | I49: 3 | J49: 80 | K49: 266 | L49: 39 | M49: 3 | N49: 37 | O49: 1 | P49: 1 | Q49: 10 | R49: - | S49: 8 | T49: 2 | U49: 3 | V49: 5 | W49: 1 | X49: 1 | Y49: - | Z49: - | AA49: 10 | AB49: 5 | AC49: 10 | AD49: 10 | AE49: 9 | AF49: 10 | AG49: 0 | AH49: 10 | AI49: 0 | AJ49: 10 | AK49: 0 | AL49: 1 | AM49: 1 | AN49: 7 | AO49: 7 | AP49: 10 | AQ49: 10
B50: 八俣村 | C50: 204-09 | D50: 1,465 | E50: 81 | F50: 830 | G50: 360 | H50: 470 | I50: 0 | J50: 33 | K50: 322 | L50: 49 | M50: 4 | N50: 47 | O50: - | P50: 2 | Q50: 15 | R50: 1 | S50: 9 | T50: 5 | U50: 4 | V50: 7 | W50: 3 | X50: 1 | Y50: - | Z50: - | AA50: 14 | AB50: 7 | AC50: 13 | AD50: 15 | AE50: 15 | AF50: 14 | AG50: 0 | AH50: 15 | AI50: 2 | AJ50: 13 | AK50: 0 | AL50: 2 | AM50: 1 | AN50: 4 | AO50: 4 | AP50: 15 | AQ50: 14
A51: 石岡市 | C51: 205-00 | D51: 21,562 | E51: 7,820 | F51: 6662 | G51: 3084 | H51: 2459 | I51: 1119 | J51: 1,142 | K51: 3263 | L51: 725 | M51: 34 | N51: 699 | O51: 45 | P51: 16 | Q51: 172 | R51: 28 | S51: 96 | T51: 48 | U51: 22 | V51: 16 | W51: 39 | X51: 50 | Y51: 28 | Z51: 17 | AA51: 44 | AB51: 58 | AC51: 76 | AD51: 148 | AE51: 138 | AF51: 40 | AG51: 6 | AH51: 172 | AI51: 25 | AJ51: 156 | AK51: 27 | AL51: 49 | AM51: 8 | AN51: 127 | AO51: 28 | AP51: 162 | AQ51: 35
B52: 石岡町 | C52: 205-01 | D52: 3,128 | E52: 386 | F52: 1006 | G52: 394 | H52: 421 | I52: 191 | J52: 205 | K52: 478 | L52: 86 | M52: 5 | N52: 78 | O52: 1 | P52: 3 | Q52: 30 | R52: 2 | S52: 14 | T52: 14 | U52: 16 | V52: 3 | W52: 6 | X52: 5 | Y52: - | Z52: - | AA52: 1 | AB52: 1 | AC52: 6 | AD52: 30 | AE52: 28 | AF52: 1 | AG52: 0 | AH52: 30 | AI52: 0 | AJ52: 26 | AK52: 0 | AL52: 5 | AM52: 0 | AN52: 11 | AO52: 0 | AP52: 24 | AQ52: 0
B53: 高浜町 | C53: 205-02 | D53: 1,100 | E53: 75 | F53: 377 | G53: 233 | H53: 113 | I53: 31 | J53: 58 | K53: 196 | L53: 25 | M53: 1 | N53: 25 | O53: - | P53: - | Q53: 7 | R53: 3 | S53: 3 | T53: 1 | U53: 2 | V53: 1 | W53: 1 | X53: 2 | Y53: 1 | Z53: - | AA53: 3 | AB53: 1 | AC53: 2 | AD53: 7 | AE53: 7 | AF53: 5 | AG53: 0 | AH53: 7 | AI53: 0 | AJ53: 7 | AK53: 1 | AL53: 2 | AM53: 1 | AN53: 5 | AO53: 1 | AP53: 6 | AQ53: 1
B54: 三村 | C54: 205-03 | D54: 1,008 | E54: 145 | F54: 532 | G54: 238 | H54: 183 | I54: 111 | J54: 102 | K54: 218 | L54: 32 | M54: 3 | N54: 30 | O54: - | P54: 1 | Q54: 15 | R54: 3 | S54: 5 | T54: 7 | U54: - | V54: - | W54: 7 | X54: 4 | Y54: 3 | Z54: 1 | AA54: 0 | AB54: 0 | AC54: 1 | AD54: 14 | AE54: 14 | AF54: 0 | AG54: 0 | AH54: 15 | AI54: 1 | AJ54: 13 | AK54: 3 | AL54: 7 | AM54: 0 | AN54: 5 | AO54: 0 | AP54: 13 | AQ54: 2
B55: 関川村 | C55: 205-04 | D55: 730 | E55: 74 | F55: 402 | G55: 212 | H55: 158 | I55: 32 | J55: 68 | K55: 175 | L55: 21 | M55: 2 | N55: 20 | O55: - | P55: - | Q55: 7 | R55: 4 | S55: 1 | T55: 2 | U55: - | V55: - | W55: 1 | X55: 6 | Y55: - | Z55: - | AA55: 0 | AB55: 0 | AC55: 0 | AD55: 7 | AE55: 7 | AF55: 0 | AG55: 0 | AH55: 7 | AI55: 0 | AJ55: 7 | AK55: 0 | AL55: 5 | AM55: 0 | AN55: 1 | AO55: 0 | AP55: 7 | AQ55: 0
B56: 柿岡町 | C56: 205-05 | D56: 998 | E56: 185 | F56: 365 | G56: 216 | H56: 94 | I56: 55 | J56: 62 | K56: 189 | L56: 46 | M56: 6 | N56: 42 | O56: 1 | P56: 3 | Q56: 15 | R56: 2 | S56: 11 | T56: 2 | U56: 2 | V56: 5 | W56: 5 | X56: 3 | Y56: - | Z56: - | AA56: 4 | AB56: 6 | AC56: 9 | AD56: 12 | AE56: 13 | AF56: 7 | AG56: 1 | AH56: 15 | AI56: 3 | AJ56: 12 | AK56: 2 | AL56: 6 | AM56: 2 | AN56: 13 | AO56: 4 | AP56: 14 | AQ56: 5
B57: 小幡村 | C57: 205-06 | D57: 2,239 | E57: 1,361 | F57: 489 | G57: 253 | H57: 130 | I57: 106 | J57: 114 | K57: 287 | L57: 96 | M57: 1 | N57: 96 | O57: 20 | P57: 1 | Q57: 21 | R57: 7 | S57: 9 | T57: 5 | U57: 1 | V57: 2 | W57: 6 | X57: 8 | Y57: 4 | Z57: - | AA57: 5 | AB57: 6 | AC57: 9 | AD57: 19 | AE57: 17 | AF57: 3 | AG57: 1 | AH57: 21 | AI57: 3 | AJ57: 18 | AK57: 2 | AL57: 3 | AM57: 1 | AN57: 18 | AO57: 5 | AP57: 21 | AQ57: 4
B58: 葦穂村 | C58: 205-07 | D58: 2,392 | E58: 1,219 | F58: 582 | G58: 287 | H58: 204 | I58: 91 | J58: 117 | K58: 308 | L58: 90 | M58: 5 | N58: 88 | O58: 8 | P58: 2 | Q58: 8 | R58: - | S58: 8 | T58: - | U58: - | V58: - | W58: - | X58: 1 | Y58: 2 | Z58: 5 | AA58: 2 | AB58: 4 | AC58: 6 | AD58: 6 | AE58: 7 | AF58: 3 | AG58: 1 | AH58: 8 | AI58: 1 | AJ58: 8 | AK58: 2 | AL58: 3 | AM58: 0 | AN58: 8 | AO58: 1 | AP58: 8 | AQ58: 2
B59: 恋瀬村 | C59: 205-08 | D59: 2,257 | E59: 1,542 | F59: 488 | G59: 275 | H59: 181 | I59: 32 | J59: 70 | K59: 252 | L59: 51 | M59: - | N59: 51 | O59: - | P59: - | Q59: 14 | R59: 3 | S59: 9 | T59: 2 | U59: 1 | V59: 1 | W59: 3 | X59: 6 | Y59: 3 | Z59: - | AA59: 4 | AB59: 7 | AC59: 10 | AD59: 14 | AE59: 6 | AF59: 4 | AG59: 0 | AH59: 14 | AI59: 6 | AJ59: 12 | AK59: 5 | AL59: 1 | AM59: 0 | AN59: 13 | AO59: 5 | AP59: 14 | AQ59: 5
B60: 瓦会村 | C60: 205-09 | D60: 1,577 | E60: 539 | F60: 469 | G60: 252 | H60: 191 | I60: 26 | J60: 56 | K60: 254 | L60: 67 | M60: 3 | N60: 67 | O60: 1 | P60: 1 | Q60: 11 | R60: - | S60: 11 | T60: - | U60: - | V60: - | W60: 3 | X60: 2 | Y60: 6 | Z60: - | AA60: 8 | AB60: 8 | AC60: 6 | AD60: 10 | AE60: 10 | AF60: 1 | AG60: 0 | AH60: 11 | AI60: 5 | AJ60: 10 | AK60: 4 | AL60: 4 | AM60: 3 | AN60: 11 | AO60: 4 | AP60: 11 | AQ60: 5
B61: 園部村 | C61: 205-10 | D61: 1,982 | E61: 539 | F61: 978 | G61: 216 | H61: 398 | I61: 364 | J61: 125 | K61: 395 | L61: 83 | M61: 3 | N61: 78 | O61: 2 | P61: 3 | Q61: 21 | R61: 1 | S61: 7 | T61: 13 | U61: - | V61: 2 | W61: 5 | X61: 7 | Y61: 3 | Z61: 4 | AA61: 8 | AB61: 11 | AC61: 10 | AD61: 12 | AE61: 11 | AF61: 7 | AG61: 2 | AH61: 21 | AI61: 2 | AJ61: 20 | AK61: 4 | AL61: 3 | AM61: 1 | AN61: 19 | AO61: 2 | AP61: 21 | AQ61: 4
B62: 林村 | C62: 205-11 | D62: 1,657 | E62: 591 | F62: 474 | G62: 228 | H62: 214 | I62: 32 | J62: 83 | K62: 259 | L62: 42 | M62: 3 | N62: 40 | O62: 2 | P62: 1 | Q62: 13 | R62: 3 | S62: 8 | T62: 2 | U62: - | V62: 2 | W62: 1 | X62: 2 | Y62: 2 | Z62: 6 | AA62: 3 | AB62: 7 | AC62: 8 | AD62: 11 | AE62: 12 | AF62: 3 | AG62: 0 | AH62: 13 | AI62: 1 | AJ62: 13 | AK62: 1 | AL62: 7 | AM62: 0 | AN62: 13 | AO62: 1 | AP62: 13 | AQ62: 1
B63: 小桜村 | C63: 205-12 | D63: 2,270 | E63: 1,164 | F63: 500 | G63: 280 | H63: 172 | I63: 48 | J63: 82 | K63: 252 | L63: 86 | M63: 2 | N63: 84 | O63: 10 | P63: 1 | Q63: 10 | R63: - | S63: 10 | T63: - | U63: - | V63: - | W63: 1 | X63: 4 | Y63: 4 | Z63: 1 | AA63: 6 | AB63: 7 | AC63: 9 | AD63: 6 | AE63: 6 | AF63: 6 | AG63: 1 | AH63: 10 | AI63: 3 | AJ63: 10 | AK63: 3 | AL63: 3 | AM63: 0 | AN63: 10 | AO63: 5 | AP63: 10 | AQ63: 6
A64: 結城市 | C64: 207-00 | D64: 6,584 | E64: 256 | F64: 3396 | G64: 1705 | H64: 1653 | I64: 38 | J64: 295 | K64: 1250 | L64: 207 | M64: 8 | N64: 201 | O64: 3 | P64: 8 | Q64: 80 | R64: 20 | S64: 46 | T64: 14 | U64: 17 | V64: 33 | W64: 20 | X64: 8 | Y64: 2 | Z64: - | AA64: 30 | AB64: 55 | AC64: 66 | AD64: 63 | AE64: 70 | AF64: 33 | AG64: 2 | AH64: 80 | AI64: 1 | AJ64: 51 | AK64: 11 | AL64: 1 | AM64: 1 | AN64: 44 | AO64: 10 | AP64: 80 | AQ64: 56
B65: 結城町 | C65: 207-01 | D65: 1,943 | E65: 46 | F65: 752 | G65: 424 | H65: 311 | I65: 17 | J65: 79 | K65: 298 | L65: 45 | M65: 3 | N65: 42 | O65: - | P65: 1 | Q65: 21 | R65: 7 | S65: 10 | T65: 4 | U65: 12 | V65: 7 | W65: 2 | X65: - | Y65: - | Z65: - | AA65: 12 | AB65: 13 | AC65: 10 | AD65: 5 | AE65: 12 | AF65: 1 | AG65: 2 | AH65: 21 | AI65: 1 | AJ65: 8 | AK65: 1 | AL65: 0 | AM65: 0 | AN65: 10 | AO65: 5 | AP65: 21 | AQ65: 16
B66: 絹川村 | C66: 207-02 | D66: 660 | E66: 3 | F66: 240 | G66: 188 | H66: 52 | I66: 0 | J66: 38 | K66: 100 | L66: 23 | M66: 1 | N66: 23 | O66: - | P66: 1 | Q66: 11 | R66: 6 | S66: 5 | T66: - | U66: 3 | V66: 8 | W66: - | X66: - | Y66: - | Z66: - | AA66: 0 | AB66: 4 | AC66: 11 | AD66: 11 | AE66: 11 | AF66: 2 | AG66: 0 | AH66: 11 | AI66: 0 | AJ66: 2 | AK66: 1 | AL66: 1 | AM66: 1 | AN66: 9 | AO66: 1 | AP66: 11 | AQ66: 7
B67: 上山川村 | C67: 207-03 | D67: 1,003 | E67: 81 | F67: 529 | G67: 265 | H67: 247 | I67: 17 | J67: 65 | K67: 176 | L67: 34 | M67: - | N67: 34 | O67: 2 | P67: 1 | Q67: 12 | R67: 2 | S67: 7 | T67: 3 | U67: - | V67: 7 | W67: 5 | X67: - | Y67: - | Z67: - | AA67: 2 | AB67: 4 | AC67: 11 | AD67: 12 | AE67: 11 | AF67: 0 | AG67: 0 | AH67: 12 | AI67: 0 | AJ67: 11 | AK67: 2 | AL67: 0 | AM67: 0 | AN67: 7 | AO67: 1 | AP67: 12 | AQ67: 7
B68: 山川村 | C68: 207-04 | D68: 1,105 | E68: 14 | F68: 794 | G68: 449 | H68: 345 | I68: 0 | J68: 29 | K68: 299 | L68: 71 | M68: 2 | N68: 70 | O68: - | P68: - | Q68: 17 | R68: 5 | S68: 11 | T68: 1 | U68: - | V68: 6 | W68: 6 | X68: 4 | Y68: 1 | Z68: - | AA68: 0 | AB68: 17 | AC68: 17 | AD68: 17 | AE68: 17 | AF68: 17 | AG68: 0 | AH68: 17 | AI68: 0 | AJ68: 12 | AK68: 0 | AL68: 0 | AM68: 0 | AN68: 6 | AO68: 1 | AP68: 17 | AQ68: 7
B69: 江川村 | C69: 207-05 | D69: 1,873 | E69: 112 | F69: 1081 | G69: 379 | H69: 698 | I69: 4 | J69: 84 | K69: 377 | L69: 34 | M69: 2 | N69: 32 | O69: 1 | P69: 5 | Q69: 19 | R69: - | S69: 13 | T69: 6 | U69: 2 | V69: 5 | W69: 7 | X69: 4 | Y69: 1 | Z69: - | AA69: 16 | AB69: 17 | AC69: 17 | AD69: 18 | AE69: 19 | AF69: 13 | AG69: 0 | AH69: 19 | AI69: 0 | AJ69: 18 | AK69: 7 | AL69: 0 | AM69: 0 | AN69: 12 | AO69: 2 | AP69: 19 | AQ69: 19
A70: 龍ケ崎市 | C70: 208-00 | D70: 7,820 | E70: 642 | F70: 2719 | G70: 2301 | H70: 402 | I70: 16 | J70: 270 | K70: 869 | L70: 182 | M70: 8 | N70: 177 | O70: 3 | P70: 3 | Q70: 56 | R70: 45 | S70: 9 | T70: 2 | U70: 20 | V70: 18 | W70: 15 | X70: 2 | Y70: 1 | Z70: - | AA70: 12 | AB70: 26 | AC70: 21 | AD70: 33 | AE70: 33 | AF70: 12 | AG70: 14 | AH70: 56 | AI70: 27 | AJ70: 24 | AK70: 2 | AL70: 8 | AM70: 1 | AN70: 43 | AO70: 11 | AP70: 56 | AQ70: 31
B71: 長戸村 | C71: 208-01 | D71: 1,091 | E71: 141 | F71: 449 | G71: 395 | H71: 50 | I71: 4 | J71: 45 | K71: 140 | L71: 21 | M71: 2 | N71: 20 | O71: - | P71: - | Q71: 5 | R71: 5 | S71: - | T71: - | U71: - | V71: 2 | W71: 3 | X71: - | Y71: - | Z71: - | AA71: 2 | AB71: 3 | AC71: 3 | AD71: 3 | AE71: 4 | AF71: 3 | AG71: 1 | AH71: 5 | AI71: 2 | AJ71: 4 | AK71: 1 | AL71: 1 | AM71: 1 | AN71: 5 | AO71: 2 | AP71: 5 | AQ71: 3
B72: 龍ヶ崎町 | C72: 208-02 | D72: 718 | E72: 10 | F72: 183 | G72: 173 | H72: 10 | I72: 0 | J72: 9 | K72: 38 | L72: 6 | M72: 1 | N72: 5 | O72: - | P72: - | Q72: 5 | R72: 5 | S72: - | T72: - | U72: 4 | V72: 1 | W72: - | X72: - | Y72: - | Z72: - | AA72: 1 | AB72: 1 | AC72: 0 | AD72: 3 | AE72: 4 | AF72: 0 | AG72: 0 | AH72: 5 | AI72: 4 | AJ72: 1 | AK72: 0 | AL72: 0 | AM72: 0 | AN72: 4 | AO72: 1 | AP72: 5 | AQ72: 4
B73: 川原代村 | C73: 208-03 | D73: 511 | E73: 7 | F73: 193 | G73: 178 | H73: 15 | I73: 0 | J73: 8 | K73: 86 | L73: 20 | M73: - | N73: 20 | O73: - | P73: - | Q73: 8 | R73: 8 | S73: - | T73: - | U73: 3 | V73: 2 | W73: 1 | X73: 2 | Y73: - | Z73: - | AA73: 4 | AB73: 6 | AC73: 0 | AD73: 6 | AE73: 4 | AF73: 1 | AG73: 0 | AH73: 8 | AI73: 8 | AJ73: 0 | AK73: 0 | AL73: 1 | AM73: 0 | AN73: 6 | AO73: 2 | AP73: 8 | AQ73: 8
B74: 馴柴村 | C74: 208-04 | D74: 1,894 | E74: 144 | F74: 375 | G74: 307 | H74: 65 | I74: 3 | J74: 70 | K74: 118 | L74: 36 | M74: - | N74: 35 | O74: - | P74: 1 | Q74: 9 | R74: 6 | S74: 2 | T74: 1 | U74: 8 | V74: 1 | W74: - | X74: - | Y74: - | Z74: - | AA74: 0 | AB74: 1 | AC74: 2 | AD74: 1 | AE74: 1 | AF74: 1 | AG74: 6 | AH74: 9 | AI74: 1 | AJ74: 7 | AK74: 0 | AL74: 3 | AM74: 0 | AN74: 9 | AO74: 1 | AP74: 9 | AQ74: 1
B75: 八原村 | C75: 208-05 | D75: 1,935 | E75: 321 | F75: 487 | G75: 265 | H75: 215 | I75: 7 | J75: 101 | K75: 170 | L75: 29 | M75: 2 | N75: 29 | O75: 2 | P75: 1 | Q75: 7 | R75: 3 | S75: 3 | T75: 1 | U75: 4 | V75: 1 | W75: 2 | X75: - | Y75: - | Z75: - | AA75: 0 | AB75: 0 | AC75: 0 | AD75: 0 | AE75: 0 | AF75: 0 | AG75: 7 | AH75: 7 | AI75: 0 | AJ75: 7 | AK75: 0 | AL75: 1 | AM75: 0 | AN75: 6 | AO75: 0 | AP75: 7 | AQ75: 0
B76: 北文間村 | C76: 208-06 | D76: 621 | E76: 13 | F76: 344 | G76: 325 | H76: 18 | I76: 1 | J76: 20 | K76: 127 | L76: 29 | M76: 1 | N76: 29 | O76: - | P76: - | Q76: 7 | R76: 7 | S76: - | T76: - | U76: - | V76: 2 | W76: 5 | X76: - | Y76: - | Z76: - | AA76: 0 | AB76: 5 | AC76: 3 | AD76: 6 | AE76: 7 | AF76: 0 | AG76: 0 | AH76: 7 | AI76: 7 | AJ76: 2 | AK76: 1 | AL76: 1 | AM76: 0 | AN76: 6 | AO76: 4 | AP76: 7 | AQ76: 7
B77: 大宮村 | C77: 208-07 | D77: 929 | E77: 2 | F77: 621 | G77: 593 | H77: 27 | I77: 1 | J77: 16 | K77: 170 | L77: 36 | M77: 2 | N77: 35 | O77: 1 | P77: - | Q77: 14 | R77: 10 | S77: 4 | T77: - | U77: 1 | V77: 9 | W77: 3 | X77: - | Y77: 1 | Z77: - | AA77: 5 | AB77: 10 | AC77: 12 | AD77: 14 | AE77: 12 | AF77: 7 | AG77: 0 | AH77: 14 | AI77: 4 | AJ77: 2 | AK77: 0 | AL77: 1 | AM77: 0 | AN77: 6 | AO77: 1 | AP77: 14 | AQ77: 7
B78: 高須村２－２ | C78: 208-08 | D78: 121 | E78: 4 | F78: 67 | G78: 65 | H78: 2 | I78: 0 | J78: 0 | K78: 20 | L78: 5 | M78: - | N78: 4 | O78: - | P78: 1 | Q78: 1 | R78: 1 | S78: - | T78: - | U78: - | V78: - | W78: 1 | X78: - | Y78: - | Z78: - | AA78: 0 | AB78: 0 | AC78: 1 | AD78: 0 | AE78: 1 | AF78: 0 | AG78: 0 | AH78: 1 | AI78: 1 | AJ78: 1 | AK78: 0 | AL78: 0 | AM78: 0 | AN78: 1 | AO78: 0 | AP78: 1 | AQ78: 1
A79: 下妻市 | C79: 210-00 | D79: 8,088 | E79: 383 | F79: 4387 | G79: 3033 | H79: 1107 | I79: 247 | J79: 352 | K79: 1699 | L79: 210 | M79: 6 | N79: 204 | O79: - | P79: 3 | Q79: 79 | R79: 40 | S79: 30 | T79: 9 | U79: 14 | V79: 27 | W79: 20 | X79: 14 | Y79: 4 | Z79: - | AA79: 66 | AB79: 60 | AC79: 68 | AD79: 69 | AE79: 75 | AF79: 38 | AG79: 1 | AH79: 79 | AI79: 17 | AJ79: 38 | AK79: 1 | AL79: 1 | AM79: 1 | AN79: 39 | AO79: 5 | AP79: 79 | AQ79: 39
B80: 下妻町 | C80: 210-01 | D80: 585 | E80: 17 | F80: 71 | G80: 30 | H80: 37 | I80: 4 | J80: 55 | K80: 55 | L80: 6 | M80: 1 | N80: 5 | O80: - | P80: - | Q80: 5 | R80: - | S80: 4 | T80: 1 | U80: 4 | V80: 1 | W80: - | X80: - | Y80: - | Z80: - | AA80: 0 | AB80: 1 | AC80: 2 | AD80: 2 | AE80: 5 | AF80: 3 | AG80: 0 | AH80: 5 | AI80: 0 | AJ80: 3 | AK80: 0 | AL80: 0 | AM80: 0 | AN80: 3 | AO80: 0 | AP80: 5 | AQ80: 1
B81: 大宝村 | C81: 210-02 | D81: 904 | E81: 31 | F81: 551 | G81: 422 | H81: 82 | I81: 47 | J81: 36 | K81: 180 | L81: 16 | M81: - | N81: 15 | O81: - | P81: 1 | Q81: 11 | R81: 8 | S81: 1 | T81: 2 | U81: 2 | V81: 6 | W81: 2 | X81: 1 | Y81: - | Z81: - | AA81: 10 | AB81: 10 | AC81: 9 | AD81: 9 | AE81: 9 | AF81: 2 | AG81: 0 | AH81: 11 | AI81: 4 | AJ81: 6 | AK81: 1 | AL81: 0 | AM81: 0 | AN81: 3 | AO81: 1 | AP81: 11 | AQ81: 10
B82: 騰波ノ江村 | C82: 210-03 | D82: 681 | E82: 11 | F82: 459 | G82: 331 | H82: 28 | I82: 100 | J82: 23 | K82: 170 | L82: 11 | M82: - | N82: 11 | O82: - | P82: - | Q82: 10 | R82: 5 | S82: 2 | T82: 3 | U82: - | V82: 3 | W82: 4 | X82: 3 | Y82: - | Z82: - | AA82: 10 | AB82: 10 | AC82: 10 | AD82: 10 | AE82: 10 | AF82: 3 | AG82: 0 | AH82: 10 | AI82: 1 | AJ82: 8 | AK82: 0 | AL82: 0 | AM82: 0 | AN82: 5 | AO82: 0 | AP82: 10 | AQ82: 6
B83: 上妻村 | C83: 210-04 | D83: 1,797 | E83: 146 | F83: 928 | G83: 472 | H83: 367 | I83: 89 | J83: 114 | K83: 349 | L83: 60 | M83: 2 | N83: 58 | O83: - | P83: - | Q83: 12 | R83: 1 | S83: 10 | T83: 1 | U83: 2 | V83: 3 | W83: 3 | X83: 2 | Y83: 2 | Z83: - | AA83: 5 | AB83: 5 | AC83: 6 | AD83: 7 | AE83: 11 | AF83: 6 | AG83: 1 | AH83: 12 | AI83: 4 | AJ83: 11 | AK83: 0 | AL83: 0 | AM83: 0 | AN83: 6 | AO83: 3 | AP83: 12 | AQ83: 6
B84: 総上村 | C84: 210-05 | D84: 672 | E84: 16 | F84: 404 | G84: 290 | H84: 114 | I84: 0 | J84: 35 | K84: 130 | L84: 15 | M84: 2 | N84: 15 | O84: - | P84: 1 | Q84: 6 | R84: 4 | S84: 1 | T84: 1 | U84: 1 | V84: 2 | W84: 3 | X84: - | Y84: - | Z84: - | AA84: 6 | AB84: 6 | AC84: 6 | AD84: 6 | AE84: 6 | AF84: 0 | AG84: 0 | AH84: 6 | AI84: 0 | AJ84: 2 | AK84: 0 | AL84: 0 | AM84: 0 | AN84: 0 | AO84: 0 | AP84: 6 | AQ84: 5
B85: 豊加美村 | C85: 210-06 | D85: 698 | E85: 8 | F85: 479 | G85: 394 | H85: 83 | I85: 2 | J85: 9 | K85: 218 | L85: 32 | M85: 1 | N85: 31 | O85: - | P85: - | Q85: 7 | R85: 4 | S85: 3 | T85: - | U85: - | V85: 2 | W85: 2 | X85: 3 | Y85: - | Z85: - | AA85: 7 | AB85: 7 | AC85: 7 | AD85: 7 | AE85: 7 | AF85: 0 | AG85: 0 | AH85: 7 | AI85: 4 | AJ85: 2 | AK85: 0 | AL85: 0 | AM85: 0 | AN85: 0 | AO85: 0 | AP85: 7 | AQ85: 7
B86: 高道祖村 | C86: 210-07 | D86: 763 | E86: 89 | F86: 388 | G86: 272 | H86: 116 | I86: 0 | J86: 17 | K86: 139 | L86: 6 | M86: - | N86: 6 | O86: - | P86: - | Q86: 4 | R86: 2 | S86: 2 | T86: - | U86: 2 | V86: 1 | W86: 1 | X86: - | Y86: - | Z86: - | AA86: 4 | AB86: 3 | AC86: 4 | AD86: 4 | AE86: 3 | AF86: 0 | AG86: 0 | AH86: 4 | AI86: 1 | AJ86: 4 | AK86: 0 | AL86: 1 | AM86: 1 | AN86: 2 | AO86: 0 | AP86: 4 | AQ86: 1
B87: 大形村 | C87: 210-08 | D87: 934 | E87: 58 | F87: 461 | G87: 213 | H87: 243 | I87: 5 | J87: 50 | K87: 169 | L87: 8 | M87: - | N87: 8 | O87: - | P87: - | Q87: 8 | R87: 1 | S87: 6 | T87: 1 | U87: 1 | V87: 4 | W87: 2 | X87: 1 | Y87: - | Z87: - | AA87: 8 | AB87: 4 | AC87: 8 | AD87: 8 | AE87: 8 | AF87: 8 | AG87: 0 | AH87: 8 | AI87: 0 | AJ87: 2 | AK87: 0 | AL87: 0 | AM87: 0 | AN87: 6 | AO87: 0 | AP87: 8 | AQ87: 0
B88: 蚕飼村 | C88: 210-09 | D88: 302 | E88: 5 | F88: 173 | G88: 153 | H88: 20 | I88: 0 | J88: 3 | K88: 91 | L88: 13 | M88: - | N88: 13 | O88: - | P88: - | Q88: 5 | R88: 4 | S88: 1 | T88: - | U88: - | V88: 2 | W88: - | X88: 2 | Y88: 1 | Z88: - | AA88: 5 | AB88: 4 | AC88: 5 | AD88: 5 | AE88: 5 | AF88: 5 | AG88: 0 | AH88: 5 | AI88: 2 | AJ88: 0 | AK88: 0 | AL88: 0 | AM88: 0 | AN88: 4 | AO88: 1 | AP88: 5 | AQ88: 2
B89: 玉村２－１ | C89: 210-10 | D89: 252 | E89: 1 | F89: 182 | G89: 178 | H89: 4 | I89: 0 | J89: 4 | K89: 74 | L89: 17 | M89: - | N89: 16 | O89: - | P89: 1 | Q89: 3 | R89: 3 | S89: - | T89: - | U89: - | V89: 1 | W89: 1 | X89: 1 | Y89: - | Z89: - | AA89: 3 | AB89: 3 | AC89: 3 | AD89: 3 | AE89: 3 | AF89: 3 | AG89: 0 | AH89: 3 | AI89: 0 | AJ89: 0 | AK89: 0 | AL89: 0 | AM89: 0 | AN89: 3 | AO89: 0 | AP89: 3 | AQ89: 0
B90: 宗道村 | C90: 210-11 | D90: 500 | E90: 1 | F90: 291 | G90: 278 | H90: 13 | I90: 0 | J90: 6 | K90: 124 | L90: 26 | M90: - | N90: 26 | O90: - | P90: - | Q90: 8 | R90: 8 | S90: - | T90: - | U90: 2 | V90: 2 | W90: 2 | X90: 1 | Y90: 1 | Z90: - | AA90: 8 | AB90: 7 | AC90: 8 | AD90: 8 | AE90: 8 | AF90: 8 | AG90: 0 | AH90: 8 | AI90: 1 | AJ90: 0 | AK90: 0 | AL90: 0 | AM90: 0 | AN90: 7 | AO90: 0 | AP90: 8 | AQ90: 1
A91: 常総市 | C91: 211-00 | D91: 12,352 | E91: 606 | F91: 6056 | G91: 4621 | H91: 1403 | I91: 32 | J91: 464 | K91: 2560 | L91: 462 | M91: 16 | N91: 451 | O91: 5 | P91: 6 | Q91: 154 | R91: 94 | S91: 36 | T91: 24 | U91: 19 | V91: 56 | W91: 50 | X91: 21 | Y91: 8 | Z91: - | AA91: 88 | AB91: 97 | AC91: 80 | AD91: 83 | AE91: 112 | AF91: 41 | AG91: 5 | AH91: 152 | AI91: 5 | AJ91: 51 | AK91: 2 | AL91: 13 | AM91: 8 | AN91: 79 | AO91: 22 | AP91: 150 | AQ91: 108
B92: 水海道町 | C92: 211-01 | D92: 489 | E92: 4 | F92: 108 | G92: 66 | H92: 41 | I92: 1 | J92: 16 | K92: 50 | L92: 11 | M92: - | N92: 11 | O92: - | P92: 1 | Q92: 7 | R92: 1 | S92: 3 | T92: 3 | U92: 6 | V92: 1 | W92: - | X92: - | Y92: - | Z92: - | AA92: 2 | AB92: 2 | AC92: 1 | AD92: 3 | AE92: 4 | AF92: 1 | AG92: 3 | AH92: 5 | AI92: 0 | AJ92: 2 | AK92: 0 | AL92: 0 | AM92: 0 | AN92: 0 | AO92: 0 | AP92: 5 | AQ92: 3
B93: 坂手村 | C93: 211-02 | D93: 799 | E93: 69 | F93: 262 | G93: 168 | H93: 90 | I93: 4 | J93: 47 | K93: 107 | L93: 9 | M93: 1 | N93: 8 | O93: - | P93: - | Q93: 11 | R93: 4 | S93: 3 | T93: 4 | U93: - | V93: 5 | W93: 5 | X93: 1 | Y93: - | Z93: - | AA93: 0 | AB93: 2 | AC93: 2 | AD93: 8 | AE93: 8 | AF93: 0 | AG93: 1 | AH93: 11 | AI93: 0 | AJ93: 1 | AK93: 0 | AL93: 0 | AM93: 0 | AN93: 2 | AO93: 0 | AP93: 11 | AQ93: 0
B94: 豊岡村 | C94: 211-03 | D94: 877 | E94: 70 | F94: 403 | G94: 336 | H94: 67 | I94: 0 | J94: 43 | K94: 166 | L94: 32 | M94: 1 | N94: 31 | O94: - | P94: - | Q94: 12 | R94: 7 | S94: 4 | T94: 1 | U94: 2 | V94: 4 | W94: 5 | X94: 1 | Y94: - | Z94: - | AA94: 2 | AB94: 6 | AC94: 1 | AD94: 5 | AE94: 6 | AF94: 2 | AG94: 1 | AH94: 12 | AI94: 0 | AJ94: 3 | AK94: 0 | AL94: 2 | AM94: 1 | AN94: 6 | AO94: 1 | AP94: 12 | AQ94: 7
B95: 菅原村 | C95: 211-04 | D95: 910 | E95: 44 | F95: 509 | G95: 377 | H95: 127 | I95: 5 | J95: 36 | K95: 263 | L95: 45 | M95: 1 | N95: 44 | O95: - | P95: - | Q95: 11 | R95: 7 | S95: 2 | T95: 2 | U95: - | V95: - | W95: 5 | X95: 5 | Y95: 1 | Z95: - | AA95: 3 | AB95: 4 | AC95: 4 | AD95: 4 | AE95: 9 | AF95: 3 | AG95: 0 | AH95: 11 | AI95: 1 | AJ95: 5 | AK95: 1 | AL95: 0 | AM95: 0 | AN95: 5 | AO95: 2 | AP95: 11 | AQ95: 10
B96: 大花羽村 | C96: 211-05 | D96: 584 | E96: 29 | F96: 279 | G96: 219 | H96: 59 | I96: 1 | J96: 27 | K96: 71 | L96: 5 | M96: - | N96: 5 | O96: - | P96: - | Q96: 7 | R96: 3 | S96: 4 | T96: - | U96: - | V96: 5 | W96: 2 | X96: - | Y96: - | Z96: - | AA96: 0 | AB96: 1 | AC96: 4 | AD96: 1 | AE96: 7 | AF96: 1 | AG96: 0 | AH96: 7 | AI96: 0 | AJ96: 3 | AK96: 0 | AL96: 0 | AM96: 0 | AN96: 3 | AO96: 2 | AP96: 7 | AQ96: 6
B97: 三妻村 | C97: 211-06 | D97: 818 | E97: 2 | F97: 470 | G97: 441 | H97: 28 | I97: 1 | J97: 3 | K97: 176 | L97: 31 | M97: - | N97: 31 | O97: 1 | P97: - | Q97: 15 | R97: 14 | S97: 1 | T97: - | U97: 4 | V97: 4 | W97: 6 | X97: 1 | Y97: - | Z97: - | AA97: 14 | AB97: 14 | AC97: 1 | AD97: 3 | AE97: 5 | AF97: 1 | AG97: 0 | AH97: 15 | AI97: 1 | AJ97: 0 | AK97: 0 | AL97: 0 | AM97: 0 | AN97: 3 | AO97: 0 | AP97: 15 | AQ97: 8
B98: 五箇村 | C98: 211-07 | D98: 711 | E98: - | F98: 448 | G98: 390 | H98: 58 | I98: 0 | J98: 12 | K98: 229 | L98: 51 | M98: - | N98: 51 | O98: - | P98: - | Q98: 9 | R98: 9 | S98: - | T98: - | U98: - | V98: 1 | W98: 2 | X98: 4 | Y98: 2 | Z98: - | AA98: 7 | AB98: 9 | AC98: 2 | AD98: 1 | AE98: 1 | AF98: 0 | AG98: 0 | AH98: 9 | AI98: 0 | AJ98: 0 | AK98: 0 | AL98: 3 | AM98: 0 | AN98: 3 | AO98: 0 | AP98: 9 | AQ98: 7
B99: 大生村 | C99: 211-08 | D99: 783 | E99: 3 | F99: 500 | G99: 465 | H99: 35 | I99: 0 | J99: 13 | K99: 208 | L99: 56 | M99: 1 | N99: 55 | O99: - | P99: - | Q99: 11 | R99: 11 | S99: - | T99: - | U99: - | V99: 3 | W99: 3 | X99: 5 | Y99: - | Z99: - | AA99: 4 | AB99: 9 | AC99: 7 | AD99: 7 | AE99: 7 | AF99: 4 | AG99: 0 | AH99: 11 | AI99: 0 | AJ99: 4 | AK99: 0 | AL99: 0 | AM99: 0 | AN99: 10 | AO99: 2 | AP99: 11 | AQ99: 8
B100: 内守谷村 | C100: 211-09 | D100: 569 | E100: 47 | F100: 149 | G100: 101 | H100: 45 | I100: 3 | J100: 42 | K100: 45 | L100: 5 | M100: - | N100: 5 | O100: - | P100: - | Q100: 4 | R100: 2 | S100: 2 | T100: - | U100: 2 | V100: 2 | W100: - | X100: - | Y100: - | Z100: - | AA100: 2 | AB100: 3 | AC100: 3 | AD100: 3 | AE100: 4 | AF100: 0 | AG100: 0 | AH100: 4 | AI100: 0 | AJ100: 4 | AK100: 0 | AL100: 0 | AM100: 0 | AN100: 3 | AO100: 0 | AP100: 4 | AQ100: 3
B101: 菅生村 | C101: 211-10 | D101: 1,190 | E101: 114 | F101: 543 | G101: 309 | H101: 231 | I101: 3 | J101: 88 | K101: 159 | L101: 27 | M101: 3 | N101: 25 | O101: 1 | P101: 2 | Q101: 15 | R101: 2 | S101: 7 | T101: 6 | U101: - | V101: 8 | W101: 6 | X101: - | Y101: 1 | Z101: - | AA101: 4 | AB101: 1 | AC101: 13 | AD101: 4 | AE101: 15 | AF101: 4 | AG101: 0 | AH101: 15 | AI101: 1 | AJ101: 11 | AK101: 0 | AL101: 6 | AM101: 6 | AN101: 4 | AO101: 0 | AP101: 15 | AQ101: 10
B102: 十和村２－２ | C102: 211-11 | D102: 106 | E102: - | F102: 60 | G102: 43 | H102: 15 | I102: 2 | J102: 8 | K102: 20 | L102: 6 | M102: - | N102: 6 | O102: - | P102: - | Q102: 1 | R102: 1 | S102: - | T102: - | U102: - | V102: - | W102: 1 | X102: - | Y102: - | Z102: - | AA102: 0 | AB102: 0 | AC102: 0 | AD102: 1 | AE102: 0 | AF102: 1 | AG102: 0 | AH102: 1 | AI102: 0 | AJ102: 0 | AK102: 0 | AL102: 0 | AM102: 0 | AN102: 1 | AO102: 0 | AP102: 1 | AQ102: 1
B103: 真瀬村２－２ | C103: 211-12 | D103: 127 | E103: - | F103: 86 | G103: 84 | H103: 2 | I103: 0 | J103: 0 | K103: 31 | L103: 12 | M103: - | N103: 12 | O103: - | P103: - | Q103: 1 | R103: 1 | S103: - | T103: - | U103: - | V103: - | W103: - | X103: 1 | Y103: - | Z103: - | AA103: 1 | AB103: 1 | AC103: 1 | AD103: 1 | AE103: 1 | AF103: 1 | AG103: 0 | AH103: 1 | AI103: 1 | AJ103: 1 | AK103: 0 | AL103: 1 | AM103: 1 | AN103: 1 | AO103: 1 | AP103: 1 | AQ103: 1
B104: 石下町 | C104: 211-13 | D104: 845 | E104: 6 | F104: 367 | G104: 319 | H104: 48 | I104: 0 | J104: 6 | K104: 213 | L104: 29 | M104: 1 | N104: 29 | O104: 1 | P104: - | Q104: 15 | R104: 12 | S104: 1 | T104: 2 | U104: 4 | V104: 8 | W104: 2 | X104: - | Y104: 1 | Z104: - | AA104: 15 | AB104: 13 | AC104: 11 | AD104: 7 | AE104: 11 | AF104: 0 | AG104: 0 | AH104: 15 | AI104: 0 | AJ104: 1 | AK104: 1 | AL104: 0 | AM104: 0 | AN104: 12 | AO104: 0 | AP104: 15 | AQ104: 12
B105: 玉村２－２ | C105: 211-14 | D105: 408 | E105: 18 | F105: 246 | G105: 218 | H105: 27 | I105: 1 | J105: 4 | K105: 134 | L105: 40 | M105: 1 | N105: 40 | O105: - | P105: - | Q105: 3 | R105: 3 | S105: - | T105: - | U105: - | V105: 2 | W105: 1 | X105: - | Y105: - | Z105: - | AA105: 3 | AB105: 3 | AC105: 2 | AD105: 3 | AE105: 3 | AF105: 2 | AG105: 0 | AH105: 3 | AI105: 0 | AJ105: 1 | AK105: 0 | AL105: 1 | AM105: 0 | AN105: 3 | AO105: 0 | AP105: 3 | AQ105: 3
B106: 豊田村 | C106: 211-15 | D106: 609 | E106: 5 | F106: 334 | G106: 297 | H106: 37 | I106: 0 | J106: 5 | K106: 185 | L106: 35 | M106: 1 | N106: 34 | O106: - | P106: - | Q106: 9 | R106: 8 | S106: 1 | T106: - | U106: - | V106: 2 | W106: 4 | X106: 2 | Y106: 1 | Z106: - | AA106: 9 | AB106: 8 | AC106: 6 | AD106: 9 | AE106: 8 | AF106: 2 | AG106: 0 | AH106: 9 | AI106: 0 | AJ106: 0 | AK106: 0 | AL106: 0 | AM106: 0 | AN106: 9 | AO106: 0 | AP106: 9 | AQ106: 8
B107: 岡田村（常総市） | C107: 211-16 | D107: 855 | E107: 63 | F107: 373 | G107: 217 | H107: 154 | I107: 2 | J107: 39 | K107: 191 | L107: 27 | M107: 3 | N107: 27 | O107: - | P107: 1 | Q107: 7 | R107: 2 | S107: 5 | T107: - | U107: 1 | V107: 6 | W107: - | X107: - | Y107: - | Z107: - | AA107: 7 | AB107: 7 | AC107: 7 | AD107: 7 | AE107: 7 | AF107: 6 | AG107: 0 | AH107: 7 | AI107: 0 | AJ107: 7 | AK107: 0 | AL107: 0 | AM107: 0 | AN107: 7 | AO107: 7 | AP107: 7 | AQ107: 7
B108: 飯沼村 | C108: 211-17 | D108: 1,672 | E108: 132 | F108: 919 | G108: 571 | H108: 339 | I108: 9 | J108: 75 | K108: 312 | L108: 41 | M108: 3 | N108: 37 | O108: 2 | P108: 2 | Q108: 16 | R108: 7 | S108: 3 | T108: 6 | U108: - | V108: 5 | W108: 8 | X108: 1 | Y108: 2 | Z108: - | AA108: 15 | AB108: 14 | AC108: 15 | AD108: 16 | AE108: 16 | AF108: 13 | AG108: 0 | AH108: 16 | AI108: 1 | AJ108: 8 | AK108: 0 | AL108: 0 | AM108: 0 | AN108: 7 | AO108: 7 | AP108: 14 | AQ108: 14
A109: 常陸太田市 | C109: 212-00 | D109: 37,201 | E109: 24,842 | F109: 5217 | G109: 3400 | H109: 1586 | I109: 231 | J109: 1,008 | K109: 3166 | L109: 578 | M109: 32 | N109: 558 | O109: 71 | P109: 5 | Q109: 232 | R109: 75 | S109: 127 | T109: 30 | U109: 14 | V109: 41 | W109: 72 | X109: 70 | Y109: 25 | Z109: 10 | AA109: 106 | AB109: 162 | AC109: 172 | AD109: 175 | AE109: 192 | AF109: 157 | AG109: 31 | AH109: 232 | AI109: 26 | AJ109: 224 | AK109: 18 | AL109: 59 | AM109: 25 | AN109: 207 | AO109: 85 | AP109: 225 | AQ109: 195
B110: 太田町 | C110: 212-01 | D110: 303 | E110: 3 | F110: 34 | G110: 31 | H110: 3 | I110: 0 | J110: X | K110: 19 | L110: x | M110: x | N110: x | O110: x | P110: x | Q110: 3 | R110: 3 | S110: - | T110: - | U110: 3 | V110: - | W110: - | X110: - | Y110: - | Z110: - | AA110: 0 | AB110: 0 | AC110: 0 | AD110: 0 | AE110: 0 | AF110: 0 | AG110: 3 | AH110: 3 | AI110: 0 | AJ110: 3 | AK110: 0 | AL110: 0 | AM110: 0 | AN110: 0 | AO110: 0 | AP110: 3 | AQ110: 0
B111: 機初村 | C111: 212-02 | D111: 1,472 | E111: 692 | F111: 323 | G111: 221 | H111: 98 | I111: 4 | J111: 42 | K111: 264 | L111: 61 | M111: 1 | N111: 61 | O111: 2 | P111: - | Q111: 11 | R111: 5 | S111: 6 | T111: - | U111: 1 | V111: 2 | W111: 2 | X111: 4 | Y111: 1 | Z111: 1 | AA111: 5 | AB111: 10 | AC111: 11 | AD111: 11 | AE111: 11 | AF111: 11 | AG111: 0 | AH111: 11 | AI111: 0 | AJ111: 10 | AK111: 0 | AL111: 2 | AM111: 0 | AN111: 6 | AO111: 4 | AP111: 11 | AQ111: 8
B112: 世矢村 | C112: 212-03 | D112: 1,536 | E112: 680 | F112: 395 | G112: 260 | H112: 123 | I112: 12 | J112: 78 | K112: 267 | L112: 69 | M112: 3 | N112: 66 | O112: 15 | P112: - | Q112: 20 | R112: 8 | S112: 10 | T112: 2 | U112: 2 | V112: 5 | W112: 6 | X112: 6 | Y112: 1 | Z112: - | AA112: 5 | AB112: 8 | AC112: 5 | AD112: 5 | AE112: 5 | AF112: 5 | AG112: 12 | AH112: 20 | AI112: 0 | AJ112: 18 | AK112: 0 | AL112: 9 | AM112: 3 | AN112: 20 | AO112: 20 | AP112: 19 | AQ112: 17
B113: 西小沢村 | C113: 212-04 | D113: 586 | E113: 67 | F113: 338 | G113: 271 | H113: 55 | I113: 12 | J113: 35 | K113: 212 | L113: 41 | M113: 3 | N113: 39 | O113: - | P113: - | Q113: 9 | R113: 7 | S113: 2 | T113: - | U113: - | V113: - | W113: 4 | X113: 3 | Y113: 2 | Z113: - | AA113: 7 | AB113: 9 | AC113: 9 | AD113: 9 | AE113: 8 | AF113: 8 | AG113: 0 | AH113: 9 | AI113: 0 | AJ113: 5 | AK113: 0 | AL113: 0 | AM113: 0 | AN113: 4 | AO113: 3 | AP113: 9 | AQ113: 9
B114: 幸久村 | C114: 212-05 | D114: 751 | E114: 91 | F114: 452 | G114: 362 | H114: 88 | I114: 2 | J114: 27 | K114: 263 | L114: 30 | M114: - | N114: 30 | O114: 1 | P114: - | Q114: 8 | R114: 6 | S114: 2 | T114: - | U114: - | V114: - | W114: 2 | X114: 4 | Y114: 1 | Z114: 1 | AA114: 6 | AB114: 8 | AC114: 8 | AD114: 8 | AE114: 8 | AF114: 3 | AG114: 0 | AH114: 8 | AI114: 0 | AJ114: 8 | AK114: 0 | AL114: 0 | AM114: 0 | AN114: 8 | AO114: 0 | AP114: 8 | AQ114: 8
B115: 佐竹村 | C115: 212-06 | D115: 824 | E115: 186 | F115: 344 | G115: 280 | H115: 57 | I115: 7 | J115: 36 | K115: 171 | L115: 22 | M115: 2 | N115: 20 | O115: 2 | P115: - | Q115: 8 | R115: 5 | S115: 3 | T115: - | U115: 1 | V115: 2 | W115: 3 | X115: 1 | Y115: - | Z115: 1 | AA115: 8 | AB115: 8 | AC115: 6 | AD115: 7 | AE115: 7 | AF115: 4 | AG115: 0 | AH115: 8 | AI115: 0 | AJ115: 8 | AK115: 0 | AL115: 4 | AM115: 0 | AN115: 4 | AO115: 0 | AP115: 8 | AQ115: 6
B116: 誉田村 | C116: 212-07 | D116: 2,167 | E116: 1,081 | F116: 260 | G116: 127 | H116: 86 | I116: 47 | J116: 92 | K116: 155 | L116: 61 | M116: 1 | N116: 61 | O116: 42 | P116: 1 | Q116: 11 | R116: 2 | S116: 8 | T116: 1 | U116: 2 | V116: 4 | W116: 1 | X116: 4 | Y116: - | Z116: - | AA116: 0 | AB116: 6 | AC116: 9 | AD116: 9 | AE116: 7 | AF116: 9 | AG116: 1 | AH116: 11 | AI116: 0 | AJ116: 11 | AK116: 0 | AL116: 4 | AM116: 1 | AN116: 11 | AO116: 1 | AP116: 10 | AQ116: 6
B117: 佐都村 | C117: 212-08 | D117: 1,373 | E117: 948 | F117: 206 | G117: 106 | H117: 92 | I117: 8 | J117: 41 | K117: 133 | L117: 35 | M117: - | N117: 34 | O117: 1 | P117: 1 | Q117: 11 | R117: 1 | S117: 9 | T117: 1 | U117: - | V117: 2 | W117: 6 | X117: 2 | Y117: - | Z117: 1 | AA117: 10 | AB117: 11 | AC117: 11 | AD117: 11 | AE117: 11 | AF117: 10 | AG117: 0 | AH117: 11 | AI117: 0 | AJ117: 10 | AK117: 0 | AL117: 2 | AM117: 0 | AN117: 10 | AO117: 10 | AP117: 11 | AQ117: 11
B118: 河内村２－１ | C118: 212-09 | D118: 1,939 | E118: 1,441 | F118: 120 | G118: 62 | H118: 54 | I118: 4 | J118: 81 | K118: 40 | L118: 9 | M118: 3 | N118: 8 | O118: - | P118: 1 | Q118: 13 | R118: - | S118: 13 | T118: - | U118: - | V118: 4 | W118: 5 | X118: 3 | Y118: 1 | Z118: - | AA118: 0 | AB118: 0 | AC118: 0 | AD118: 0 | AE118: 0 | AF118: 0 | AG118: 13 | AH118: 13 | AI118: 3 | AJ118: 13 | AK118: 0 | AL118: 0 | AM118: 0 | AN118: 13 | AO118: 6 | AP118: 13 | AQ118: 13
B119: 郡戸村 | C119: 212-10 | D119: 959 | E119: 252 | F119: 412 | G119: 347 | H119: 60 | I119: 5 | J119: 32 | K119: 297 | L119: 42 | M119: 4 | N119: 40 | O119: - | P119: - | Q119: 11 | R119: 11 | S119: - | T119: - | U119: - | V119: 2 | W119: 1 | X119: 6 | Y119: 2 | Z119: - | AA119: 0 | AB119: 1 | AC119: 8 | AD119: 11 | AE119: 11 | AF119: 11 | AG119: 0 | AH119: 11 | AI119: 0 | AJ119: 11 | AK119: 0 | AL119: 1 | AM119: 0 | AN119: 11 | AO119: 0 | AP119: 11 | AQ119: 11
B120: 久米村 | C120: 212-11 | D120: 1,228 | E120: 505 | F120: 383 | G120: 321 | H120: 61 | I120: 1 | J120: 46 | K120: 247 | L120: 46 | M120: 2 | N120: 45 | O120: 1 | P120: - | Q120: 10 | R120: 8 | S120: 2 | T120: - | U120: 2 | V120: 2 | W120: 3 | X120: 2 | Y120: 1 | Z120: - | AA120: 0 | AB120: 4 | AC120: 8 | AD120: 10 | AE120: 10 | AF120: 9 | AG120: 0 | AH120: 10 | AI120: 0 | AJ120: 10 | AK120: 0 | AL120: 6 | AM120: 3 | AN120: 10 | AO120: 0 | AP120: 10 | AQ120: 10
B121: 金郷村 | C121: 212-12 | D121: 1,741 | E121: 676 | F121: 463 | G121: 326 | H121: 125 | I121: 12 | J121: 84 | K121: 292 | L121: 37 | M121: - | N121: 37 | O121: - | P121: - | Q121: 13 | R121: 6 | S121: 7 | T121: - | U121: - | V121: 1 | W121: 6 | X121: 3 | Y121: 2 | Z121: 1 | AA121: 13 | AB121: 13 | AC121: 13 | AD121: 13 | AE121: 13 | AF121: 11 | AG121: 0 | AH121: 13 | AI121: 0 | AJ121: 13 | AK121: 0 | AL121: 8 | AM121: 6 | AN121: 12 | AO121: 0 | AP121: 13 | AQ121: 13
B122: 金砂村 | C122: 212-13 | D122: 2,236 | E122: 1,441 | F122: 248 | G122: 93 | H122: 144 | I122: 11 | J122: 97 | K122: 114 | L122: 16 | M122: 3 | N122: 15 | O122: 1 | P122: - | Q122: 18 | R122: - | S122: 15 | T122: 3 | U122: - | V122: 1 | W122: 11 | X122: 5 | Y122: 1 | Z122: - | AA122: 18 | AB122: 18 | AC122: 18 | AD122: 18 | AE122: 18 | AF122: 18 | AG122: 0 | AH122: 18 | AI122: 11 | AJ122: 18 | AK122: 0 | AL122: 2 | AM122: 1 | AN122: 18 | AO122: 0 | AP122: 18 | AQ122: 18
B123: 天下野村 | C123: 212-14 | D123: 1,751 | E123: 1,216 | F123: 129 | G123: 36 | H123: 79 | I123: 14 | J123: 55 | K123: 36 | L123: 4 | M123: - | N123: 4 | O123: - | P123: - | Q123: 13 | R123: - | S123: 6 | T123: 7 | U123: 1 | V123: 5 | W123: 1 | X123: 4 | Y123: 1 | Z123: 1 | AA123: 3 | AB123: 13 | AC123: 13 | AD123: 5 | AE123: 13 | AF123: 5 | AG123: 0 | AH123: 13 | AI123: 0 | AJ123: 13 | AK123: 0 | AL123: 3 | AM123: 2 | AN123: 13 | AO123: 0 | AP123: 13 | AQ123: 10
B124: 染和田村 | C124: 212-15 | D124: 2,337 | E124: 1,821 | F124: 244 | G124: 109 | H124: 116 | I124: 19 | J124: 78 | K124: 115 | L124: 18 | M124: 1 | N124: 16 | O124: 1 | P124: - | Q124: 14 | R124: 1 | S124: 11 | T124: 2 | U124: 1 | V124: 2 | W124: 6 | X124: 4 | Y124: 1 | Z124: - | AA124: 11 | AB124: 12 | AC124: 11 | AD124: 14 | AE124: 13 | AF124: 14 | AG124: 0 | AH124: 14 | AI124: 4 | AJ124: 14 | AK124: 3 | AL124: 5 | AM124: 2 | AN124: 14 | AO124: 7 | AP124: 14 | AQ124: 13
B125: 高倉村 | C125: 212-16 | D125: 2,522 | E125: 2,028 | F125: 86 | G125: 15 | H125: 62 | I125: 9 | J125: 33 | K125: 34 | L125: 6 | M125: - | N125: 6 | O125: - | P125: - | Q125: 10 | R125: - | S125: 1 | T125: 9 | U125: 1 | V125: 1 | W125: 4 | X125: 2 | Y125: 2 | Z125: - | AA125: 5 | AB125: 7 | AC125: 9 | AD125: 9 | AE125: 10 | AF125: 8 | AG125: 0 | AH125: 10 | AI125: 1 | AJ125: 10 | AK125: 2 | AL125: 2 | AM125: 0 | AN125: 10 | AO125: 4 | AP125: 9 | AQ125: 5
B126: 山田村 | C126: 212-17 | D126: 1,375 | E126: 787 | F126: 247 | G126: 108 | H126: 117 | I126: 22 | J126: 58 | K126: 141 | L126: 33 | M126: 2 | N126: 32 | O126: 3 | P126: - | Q126: 16 | R126: 1 | S126: 11 | T126: 4 | U126: - | V126: 4 | W126: 1 | X126: 7 | Y126: 3 | Z126: 1 | AA126: 6 | AB126: 8 | AC126: 13 | AD126: 16 | AE126: 16 | AF126: 15 | AG126: 0 | AH126: 16 | AI126: 4 | AJ126: 16 | AK126: 0 | AL126: 8 | AM126: 5 | AN126: 10 | AO126: 3 | AP126: 12 | AQ126: 8
B127: 河内村２－２ | C127: 212-18 | D127: 103 | E127: 78 | F127: 9 | G127: 4 | H127: 4 | I127: 1 | J127: X | K127: 2 | L127: x | M127: x | N127: x | O127: x | P127: x | Q127: 1 | R127: - | S127: 1 | T127: - | U127: - | V127: - | W127: - | X127: 1 | Y127: - | Z127: - | AA127: 0 | AB127: 0 | AC127: 0 | AD127: 0 | AE127: 1 | AF127: 1 | AG127: 0 | AH127: 1 | AI127: 0 | AJ127: 1 | AK127: 0 | AL127: 0 | AM127: 0 | AN127: 1 | AO127: 0 | AP127: 1 | AQ127: 0
B128: 小里村 | C128: 212-19 | D128: 7,368 | E128: 6,567 | F128: 335 | G128: 220 | H128: 95 | I128: 20 | J128: 45 | K128: 244 | L128: 29 | M128: 4 | N128: 27 | O128: 2 | P128: 2 | Q128: 16 | R128: 9 | S128: 6 | T128: 1 | U128: - | V128: - | W128: 6 | X128: 3 | Y128: 5 | Z128: 2 | AA128: 4 | AB128: 16 | AC128: 12 | AD128: 9 | AE128: 16 | AF128: 14 | AG128: 0 | AH128: 16 | AI128: 2 | AJ128: 16 | AK128: 8 | AL128: 2 | AM128: 2 | AN128: 16 | AO128: 16 | AP128: 16 | AQ128: 16
B129: 賀美村 | C129: 212-20 | D129: 4,630 | E129: 4,282 | F129: 189 | G129: 101 | H129: 67 | I129: 21 | J129: 40 | K129: 120 | L129: 14 | M129: 2 | N129: 13 | O129: - | P129: - | Q129: 16 | R129: 2 | S129: 14 | T129: - | U129: - | V129: 4 | W129: 4 | X129: 6 | Y129: 1 | Z129: 1 | AA129: 5 | AB129: 10 | AC129: 8 | AD129: 10 | AE129: 14 | AF129: 1 | AG129: 2 | AH129: 16 | AI129: 1 | AJ129: 16 | AK129: 5 | AL129: 1 | AM129: 0 | AN129: 16 | AO129: 11 | AP129: 16 | AQ129: 13
A130: 高萩市 | C130: 214-00 | D130: 19,365 | E130: 15,619 | F130: 791 | G130: 574 | H130: 204 | I130: 13 | J130: 180 | K130: 471 | L130: 153 | M130: 6 | N130: 148 | O130: - | P130: - | Q130: 17 | R130: 10 | S130: 7 | T130: - | U130: 6 | V130: 4 | W130: 2 | X130: 2 | Y130: 3 | Z130: - | AA130: 14 | AB130: 17 | AC130: 13 | AD130: 16 | AE130: 15 | AF130: 15 | AG130: 0 | AH130: 17 | AI130: 7 | AJ130: 17 | AK130: 0 | AL130: 5 | AM130: 3 | AN130: 13 | AO130: 8 | AP130: 17 | AQ130: 16
B131: 高萩町 | C131: 214-01 | D131: 2,122 | E131: 807 | F131: 229 | G131: 179 | H131: 48 | I131: 2 | J131: 27 | K131: 172 | L131: 62 | M131: 2 | N131: 60 | O131: - | P131: - | Q131: 6 | R131: 4 | S131: 2 | T131: - | U131: 4 | V131: 2 | W131: - | X131: - | Y131: - | Z131: - | AA131: 6 | AB131: 6 | AC131: 3 | AD131: 6 | AE131: 6 | AF131: 6 | AG131: 0 | AH131: 6 | AI131: 3 | AJ131: 6 | AK131: 0 | AL131: 2 | AM131: 2 | AN131: 2 | AO131: 2 | AP131: 6 | AQ131: 6
B132: 松岡町 | C132: 214-02 | D132: 3,235 | E132: 2,045 | F132: 309 | G132: 231 | H132: 73 | I132: 5 | J132: 86 | K132: 164 | L132: 66 | M132: 2 | N132: 64 | O132: - | P132: - | Q132: 4 | R132: 2 | S132: 2 | T132: - | U132: 2 | V132: 2 | W132: - | X132: - | Y132: - | Z132: - | AA132: 3 | AB132: 4 | AC132: 4 | AD132: 3 | AE132: 3 | AF132: 3 | AG132: 0 | AH132: 4 | AI132: 2 | AJ132: 4 | AK132: 0 | AL132: 2 | AM132: 1 | AN132: 4 | AO132: 2 | AP132: 4 | AQ132: 4
B133: 高岡村 | C133: 214-03 | D133: 13,550 | E133: 12,318 | F133: 247 | G133: 159 | H133: 82 | I133: 6 | J133: 64 | K133: 131 | L133: 23 | M133: 2 | N133: 22 | O133: - | P133: - | Q133: 6 | R133: 3 | S133: 3 | T133: - | U133: - | V133: - | W133: 2 | X133: 2 | Y133: 2 | Z133: - | AA133: 4 | AB133: 6 | AC133: 5 | AD133: 6 | AE133: 5 | AF133: 5 | AG133: 0 | AH133: 6 | AI133: 2 | AJ133: 6 | AK133: 0 | AL133: 1 | AM133: 0 | AN133: 6 | AO133: 4 | AP133: 6 | AQ133: 5
B134: 黒前村２－２ | C134: 214-04 | D134: 458 | E134: 451 | F134: 6 | G134: 5 | H134: 1 | I134: 0 | J134: 3 | K134: 4 | L134: 2 | M134: - | N134: 2 | O134: - | P134: - | Q134: 1 | R134: 1 | S134: - | T134: - | U134: - | V134: - | W134: - | X134: - | Y134: 1 | Z134: - | AA134: 1 | AB134: 1 | AC134: 1 | AD134: 1 | AE134: 1 | AF134: 1 | AG134: 0 | AH134: 1 | AI134: 0 | AJ134: 1 | AK134: 0 | AL134: 0 | AM134: 0 | AN134: 1 | AO134: 0 | AP134: 1 | AQ134: 1
A135: 北茨城市 | C135: 215-00 | D135: 18,655 | E135: 12,755 | F135: 1480 | G135: 1157 | H135: 299 | I135: 24 | J135: 255 | K135: 1035 | L135: 398 | M135: 12 | N135: 392 | O135: 2 | P135: 8 | Q135: 44 | R135: 30 | S135: 11 | T135: 3 | U135: 19 | V135: 17 | W135: 2 | X135: 5 | Y135: 1 | Z135: - | AA135: 24 | AB135: 33 | AC135: 25 | AD135: 26 | AE135: 29 | AF135: 23 | AG135: 5 | AH135: 44 | AI135: 8 | AJ135: 43 | AK135: 9 | AL135: 20 | AM135: 10 | AN135: 35 | AO135: 21 | AP135: 42 | AQ135: 37
B136: 南中郷村 | C136: 215-01 | D136: 2,775 | E136: 1,235 | F136: 428 | G136: 329 | H136: 92 | I136: 7 | J136: 45 | K136: 271 | L136: 113 | M136: 7 | N136: 112 | O136: - | P136: 1 | Q136: 8 | R136: 5 | S136: 3 | T136: - | U136: 5 | V136: 3 | W136: - | X136: - | Y136: - | Z136: - | AA136: 6 | AB136: 8 | AC136: 5 | AD136: 8 | AE136: 7 | AF136: 7 | AG136: 0 | AH136: 8 | AI136: 2 | AJ136: 8 | AK136: 0 | AL136: 5 | AM136: 4 | AN136: 8 | AO136: 8 | AP136: 8 | AQ136: 8
B137: 磯原町 | C137: 215-02 | D137: 2,746 | E137: 1,507 | F137: 309 | G137: 237 | H137: 67 | I137: 5 | J137: 68 | K137: 219 | L137: 83 | M137: 2 | N137: 83 | O137: 1 | P137: 1 | Q137: 9 | R137: 6 | S137: 2 | T137: 1 | U137: 3 | V137: 3 | W137: 2 | X137: 1 | Y137: - | Z137: - | AA137: 5 | AB137: 6 | AC137: 8 | AD137: 8 | AE137: 7 | AF137: 8 | AG137: 0 | AH137: 9 | AI137: 0 | AJ137: 8 | AK137: 4 | AL137: 3 | AM137: 1 | AN137: 9 | AO137: 4 | AP137: 9 | AQ137: 7
B138: 華川村 | C138: 215-03 | D138: 5,075 | E138: 3,994 | F138: 222 | G138: 171 | H138: 45 | I138: 6 | J138: 48 | K138: 163 | L138: 62 | M138: 2 | N138: 58 | O138: 1 | P138: 5 | Q138: 8 | R138: 7 | S138: 1 | T138: - | U138: 3 | V138: 3 | W138: - | X138: 2 | Y138: - | Z138: - | AA138: 2 | AB138: 6 | AC138: 3 | AD138: 2 | AE138: 5 | AF138: 2 | AG138: 0 | AH138: 8 | AI138: 3 | AJ138: 8 | AK138: 1 | AL138: 4 | AM138: 0 | AN138: 7 | AO138: 3 | AP138: 8 | AQ138: 8
B139: 関南村 | C139: 215-04 | D139: 1,426 | E139: 789 | F139: 206 | G139: 164 | H139: 40 | I139: 2 | J139: 31 | K139: 132 | L139: 46 | M139: - | N139: 45 | O139: - | P139: 1 | Q139: 5 | R139: 4 | S139: 1 | T139: - | U139: - | V139: 4 | W139: - | X139: 1 | Y139: - | Z139: - | AA139: 3 | AB139: 5 | AC139: 3 | AD139: 2 | AE139: 4 | AF139: 2 | AG139: 0 | AH139: 5 | AI139: 0 | AJ139: 5 | AK139: 1 | AL139: 3 | AM139: 3 | AN139: 4 | AO139: 2 | AP139: 5 | AQ139: 5
B140: 大津町 | C140: 215-05 | D140: 388 | E140: 95 | F140: 24 | G140: 18 | H140: 6 | I140: 0 | J140: X | K140: 18 | L140: 8 | M140: - | N140: 8 | O140: - | P140: - | Q140: 4 | R140: 3 | S140: - | T140: 1 | U140: 4 | V140: - | W140: - | X140: - | Y140: - | Z140: - | AA140: 2 | AB140: 2 | AC140: 1 | AD140: 1 | AE140: 1 | AF140: 1 | AG140: 2 | AH140: 4 | AI140: 0 | AJ140: 4 | AK140: 0 | AL140: 0 | AM140: 0 | AN140: 0 | AO140: 0 | AP140: 3 | AQ140: 2
B141: 平潟町 | C141: 215-06 | D141: 137 | E141: 60 | F141: 5 | G141: 2 | H141: 3 | I141: 0 | J141: X | K141: 3 | L141: - | M141: - | N141: - | O141: - | P141: - | Q141: 3 | R141: - | S141: 2 | T141: 1 | U141: 3 | V141: - | W141: - | X141: - | Y141: - | Z141: - | AA141: 0 | AB141: 0 | AC141: 0 | AD141: 0 | AE141: 0 | AF141: 0 | AG141: 3 | AH141: 3 | AI141: 0 | AJ141: 3 | AK141: 0 | AL141: 1 | AM141: 0 | AN141: 0 | AO141: 0 | AP141: 2 | AQ141: 0
B142: 関本村 | C142: 215-07 | D142: 6,108 | E142: 5,075 | F142: 286 | G142: 236 | H142: 46 | I142: 4 | J142: 40 | K142: 229 | L142: 86 | M142: 1 | N142: 86 | O142: - | P142: - | Q142: 7 | R142: 5 | S142: 2 | T142: - | U142: 1 | V142: 4 | W142: - | X142: 1 | Y142: 1 | Z142: - | AA142: 6 | AB142: 6 | AC142: 5 | AD142: 5 | AE142: 5 | AF142: 3 | AG142: 0 | AH142: 7 | AI142: 3 | AJ142: 7 | AK142: 3 | AL142: 4 | AM142: 2 | AN142: 7 | AO142: 4 | AP142: 7 | AQ142: 7
A143: 笠間市 | C143: 216-00 | D143: 24,027 | E143: 10,366 | F143: 5259 | G143: 2768 | H143: 1506 | I143: 985 | J143: 769 | K143: 3141 | L143: 536 | M143: 33 | N143: 506 | O143: 11 | P143: 8 | Q143: 198 | R143: 39 | S143: 122 | T143: 37 | U143: 44 | V143: 45 | W143: 47 | X143: 43 | Y143: 15 | Z143: 4 | AA143: 58 | AB143: 113 | AC143: 118 | AD143: 144 | AE143: 144 | AF143: 74 | AG143: 14 | AH143: 194 | AI143: 14 | AJ143: 184 | AK143: 16 | AL143: 93 | AM143: 56 | AN143: 176 | AO143: 62 | AP143: 187 | AQ143: 175
B144: 笠間町 | C144: 216-01 | D144: 1,274 | E144: 367 | F144: 248 | G144: 145 | H144: 91 | I144: 12 | J144: 46 | K144: 146 | L144: 31 | M144: - | N144: 31 | O144: 1 | P144: - | Q144: 24 | R144: 4 | S144: 12 | T144: 8 | U144: 17 | V144: 4 | W144: - | X144: 1 | Y144: 1 | Z144: 1 | AA144: 2 | AB144: 1 | AC144: 1 | AD144: 15 | AE144: 9 | AF144: 2 | AG144: 3 | AH144: 22 | AI144: 2 | AJ144: 14 | AK144: 2 | AL144: 3 | AM144: 3 | AN144: 24 | AO144: 7 | AP144: 17 | AQ144: 17
B145: 大池田村 | C145: 216-02 | D145: 3,225 | E145: 2,082 | F145: 432 | G145: 248 | H145: 162 | I145: 22 | J145: 70 | K145: 267 | L145: 44 | M145: 1 | N145: 43 | O145: - | P145: - | Q145: 13 | R145: 2 | S145: 10 | T145: 1 | U145: - | V145: - | W145: 4 | X145: 6 | Y145: 3 | Z145: - | AA145: 0 | AB145: 2 | AC145: 1 | AD145: 3 | AE145: 8 | AF145: 0 | AG145: 5 | AH145: 13 | AI145: 0 | AJ145: 13 | AK145: 0 | AL145: 10 | AM145: 0 | AN145: 13 | AO145: 0 | AP145: 13 | AQ145: 13
B146: 北山内村 | C146: 216-03 | D146: 3,315 | E146: 1,990 | F146: 443 | G146: 309 | H146: 112 | I146: 22 | J146: 71 | K146: 312 | L146: 64 | M146: 3 | N146: 62 | O146: - | P146: - | Q146: 17 | R146: 8 | S146: 9 | T146: - | U146: - | V146: 5 | W146: 5 | X146: 4 | Y146: 3 | Z146: - | AA146: 1 | AB146: 6 | AC146: 6 | AD146: 13 | AE146: 14 | AF146: 5 | AG146: 0 | AH146: 17 | AI146: 2 | AJ146: 17 | AK146: 2 | AL146: 10 | AM146: 5 | AN146: 17 | AO146: 2 | AP146: 17 | AQ146: 17
B147: 南山内村 | C147: 216-04 | D147: 2,941 | E147: 1,563 | F147: 564 | G147: 378 | H147: 132 | I147: 54 | J147: 85 | K147: 387 | L147: 66 | M147: 8 | N147: 61 | O147: 4 | P147: 1 | Q147: 17 | R147: 8 | S147: 9 | T147: - | U147: - | V147: 1 | W147: 7 | X147: 6 | Y147: 1 | Z147: 2 | AA147: 6 | AB147: 13 | AC147: 11 | AD147: 12 | AE147: 10 | AF147: 1 | AG147: 2 | AH147: 17 | AI147: 6 | AJ147: 17 | AK147: 4 | AL147: 10 | AM147: 8 | AN147: 17 | AO147: 11 | AP147: 17 | AQ147: 17
B148: 西山内村 | C148: 216-05 | D148: 2,408 | E148: 1,306 | F148: 464 | G148: 251 | H148: 189 | I148: 24 | J148: 92 | K148: 221 | L148: 43 | M148: 1 | N148: 42 | O148: 2 | P148: 1 | Q148: 20 | R148: 4 | S148: 15 | T148: 1 | U148: 3 | V148: 8 | W148: 5 | X148: 4 | Y148: - | Z148: - | AA148: 4 | AB148: 15 | AC148: 13 | AD148: 16 | AE148: 17 | AF148: 4 | AG148: 0 | AH148: 20 | AI148: 0 | AJ148: 20 | AK148: 2 | AL148: 10 | AM148: 4 | AN148: 20 | AO148: 8 | AP148: 20 | AQ148: 20
B149: 宍戸町 | C149: 216-06 | D149: 2,550 | E149: 653 | F149: 673 | G149: 321 | H149: 192 | I149: 160 | J149: 104 | K149: 359 | L149: 56 | M149: 4 | N149: 53 | O149: - | P149: - | Q149: 28 | R149: 1 | S149: 22 | T149: 5 | U149: 13 | V149: 12 | W149: 2 | X149: 1 | Y149: - | Z149: - | AA149: 17 | AB149: 23 | AC149: 21 | AD149: 19 | AE149: 17 | AF149: 11 | AG149: 2 | AH149: 27 | AI149: 0 | AJ149: 25 | AK149: 0 | AL149: 11 | AM149: 11 | AN149: 21 | AO149: 4 | AP149: 25 | AQ149: 23
B150: 北川根村 | C150: 216-07 | D150: 1,298 | E150: 261 | F150: 398 | G150: 168 | H150: 115 | I150: 115 | J150: 40 | K150: 281 | L150: 29 | M150: 3 | N150: 25 | O150: - | P150: 2 | Q150: 15 | R150: 1 | S150: 9 | T150: 5 | U150: 1 | V150: 3 | W150: 8 | X150: 3 | Y150: - | Z150: - | AA150: 6 | AB150: 11 | AC150: 13 | AD150: 10 | AE150: 12 | AF150: 4 | AG150: 1 | AH150: 15 | AI150: 0 | AJ150: 15 | AK150: 0 | AL150: 7 | AM150: 5 | AN150: 15 | AO150: 13 | AP150: 15 | AQ150: 14
B151: 大原村 | C151: 216-08 | D151: 1,751 | E151: 580 | F151: 426 | G151: 259 | H151: 94 | I151: 73 | J151: 69 | K151: 242 | L151: 33 | M151: 2 | N151: 31 | O151: - | P151: 1 | Q151: 16 | R151: 4 | S151: 10 | T151: 2 | U151: 1 | V151: 2 | W151: 10 | X151: 3 | Y151: - | Z151: - | AA151: 11 | AB151: 16 | AC151: 16 | AD151: 16 | AE151: 16 | AF151: 16 | AG151: 0 | AH151: 16 | AI151: 0 | AJ151: 16 | AK151: 0 | AL151: 8 | AM151: 8 | AN151: 16 | AO151: 10 | AP151: 16 | AQ151: 16
B152: 鯉渕村２－２ | C152: 216-09 | D152: 272 | E152: 41 | F152: 78 | G152: 33 | H152: 20 | I152: 25 | J152: 13 | K152: 43 | L152: 4 | M152: - | N152: 3 | O152: - | P152: 1 | Q152: 3 | R152: - | S152: 3 | T152: - | U152: 3 | V152: - | W152: - | X152: - | Y152: - | Z152: - | AA152: 2 | AB152: 1 | AC152: 3 | AD152: 3 | AE152: 3 | AF152: 2 | AG152: 0 | AH152: 3 | AI152: 0 | AJ152: 3 | AK152: 0 | AL152: 0 | AM152: 0 | AN152: 3 | AO152: 1 | AP152: 3 | AQ152: 3
B153: 岩間町 | C153: 216-10 | D153: 3,255 | E153: 1,201 | F153: 841 | G153: 412 | H153: 128 | I153: 301 | J153: 91 | K153: 540 | L153: 120 | M153: 8 | N153: 113 | O153: 4 | P153: 1 | Q153: 35 | R153: 7 | S153: 16 | T153: 12 | U153: 6 | V153: 8 | W153: 5 | X153: 10 | Y153: 5 | Z153: 1 | AA153: 5 | AB153: 16 | AC153: 26 | AD153: 29 | AE153: 31 | AF153: 24 | AG153: 1 | AH153: 34 | AI153: 2 | AJ153: 34 | AK153: 5 | AL153: 18 | AM153: 9 | AN153: 23 | AO153: 3 | AP153: 34 | AQ153: 25
B154: 南川根村 | C154: 216-11 | D154: 1,738 | E154: 322 | F154: 692 | G154: 244 | H154: 271 | I154: 177 | J154: 88 | K154: 343 | L154: 46 | M154: 3 | N154: 42 | O154: - | P154: 1 | Q154: 10 | R154: - | S154: 7 | T154: 3 | U154: - | V154: 2 | W154: 1 | X154: 5 | Y154: 2 | Z154: - | AA154: 4 | AB154: 9 | AC154: 7 | AD154: 8 | AE154: 7 | AF154: 5 | AG154: 0 | AH154: 10 | AI154: 2 | AJ154: 10 | AK154: 1 | AL154: 6 | AM154: 3 | AN154: 7 | AO154: 3 | AP154: 10 | AQ154: 10
A155: 取手市 | C155: 217-00 | D155: 6,996 | E155: 211 | F155: 2314 | G155: 2138 | H155: 166 | I155: 10 | J155: 169 | K155: 1120 | L155: 339 | M155: 13 | N155: 332 | O155: 1 | P155: 10 | Q155: 69 | R155: 55 | S155: 9 | T155: 5 | U155: 25 | V155: 12 | W155: 14 | X155: 11 | Y155: 6 | Z155: 1 | AA155: 21 | AB155: 33 | AC155: 29 | AD155: 37 | AE155: 58 | AF155: 16 | AG155: 7 | AH155: 66 | AI155: 9 | AJ155: 37 | AK155: 1 | AL155: 1 | AM155: 0 | AN155: 48 | AO155: 8 | AP155: 65 | AQ155: 12
B156: 取手町 | C156: 217-01 | D156: 1,076 | E156: 20 | F156: 125 | G156: 114 | H156: 10 | I156: 1 | J156: 6 | K156: 72 | L156: 32 | M156: 2 | N156: 30 | O156: - | P156: 3 | Q156: 8 | R156: 5 | S156: - | T156: 3 | U156: 7 | V156: 1 | W156: - | X156: - | Y156: - | Z156: - | AA156: 2 | AB156: 3 | AC156: 3 | AD156: 7 | AE156: 8 | AF156: 3 | AG156: 0 | AH156: 6 | AI156: 0 | AJ156: 7 | AK156: 0 | AL156: 0 | AM156: 0 | AN156: 4 | AO156: 0 | AP156: 5 | AQ156: 0
B157: 小文間村 | C157: 217-02 | D157: 587 | E157: 46 | F157: 196 | G157: 176 | H157: 19 | I157: 1 | J157: 6 | K157: 95 | L157: 31 | M157: - | N157: 31 | O157: - | P157: - | Q157: 6 | R157: 5 | S157: 1 | T157: - | U157: - | V157: 4 | W157: 1 | X157: 1 | Y157: - | Z157: - | AA157: 0 | AB157: 0 | AC157: 0 | AD157: 1 | AE157: 5 | AF157: 1 | AG157: 1 | AH157: 6 | AI157: 0 | AJ157: 6 | AK157: 0 | AL157: 0 | AM157: 0 | AN157: 4 | AO157: 0 | AP157: 6 | AQ157: 0
B158: 寺原村 | C158: 217-03 | D158: 631 | E158: 24 | F158: 207 | G158: 187 | H158: 18 | I158: 2 | J158: 16 | K158: 103 | L158: 36 | M158: 2 | N158: 35 | O158: - | P158: 2 | Q158: 9 | R158: 8 | S158: 1 | T158: - | U158: 5 | V158: - | W158: 1 | X158: 2 | Y158: 1 | Z158: - | AA158: 4 | AB158: 4 | AC158: 5 | AD158: 7 | AE158: 5 | AF158: 3 | AG158: 2 | AH158: 9 | AI158: 0 | AJ158: 9 | AK158: 0 | AL158: 0 | AM158: 0 | AN158: 6 | AO158: 0 | AP158: 9 | AQ158: 0
B159: 高井村２－２ | C159: 217-04 | D159: 503 | E159: 55 | F159: 133 | G159: 101 | H159: 30 | I159: 2 | J159: 43 | K159: 76 | L159: 31 | M159: 1 | N159: 31 | O159: - | P159: 1 | Q159: 5 | R159: 2 | S159: 3 | T159: - | U159: 1 | V159: 2 | W159: - | X159: 1 | Y159: 1 | Z159: - | AA159: 2 | AB159: 3 | AC159: 1 | AD159: 5 | AE159: 5 | AF159: 2 | AG159: 0 | AH159: 5 | AI159: 0 | AJ159: 5 | AK159: 0 | AL159: 0 | AM159: 0 | AN159: 4 | AO159: 0 | AP159: 5 | AQ159: 0
B160: 稲戸井村 | C160: 217-05 | D160: 916 | E160: 51 | F160: 57 | G160: 29 | H160: 26 | I160: 2 | J160: 47 | K160: 33 | L160: 8 | M160: - | N160: 6 | O160: - | P160: 2 | Q160: 6 | R160: 1 | S160: 4 | T160: 1 | U160: 5 | V160: 1 | W160: - | X160: - | Y160: - | Z160: - | AA160: 1 | AB160: 1 | AC160: 1 | AD160: 3 | AE160: 6 | AF160: 2 | AG160: 0 | AH160: 6 | AI160: 0 | AJ160: 6 | AK160: 0 | AL160: 0 | AM160: 0 | AN160: 5 | AO160: 0 | AP160: 6 | AQ160: 0
B161: 相馬町 | C161: 217-06 | D161: 585 | E161: 2 | F161: 193 | G161: 189 | H161: 4 | I161: 0 | J161: 4 | K161: 94 | L161: 31 | M161: 1 | N161: 31 | O161: - | P161: - | Q161: 6 | R161: 5 | S161: - | T161: 1 | U161: 2 | V161: 1 | W161: 1 | X161: 2 | Y161: - | Z161: - | AA161: 2 | AB161: 4 | AC161: 3 | AD161: 1 | AE161: 4 | AF161: 0 | AG161: 0 | AH161: 5 | AI161: 0 | AJ161: 0 | AK161: 0 | AL161: 0 | AM161: 0 | AN161: 4 | AO161: 0 | AP161: 5 | AQ161: 0
B162: 山王村 | C162: 217-07 | D162: 779 | E162: 10 | F162: 380 | G162: 355 | H162: 24 | I162: 1 | J162: 17 | K162: 161 | L162: 45 | M162: 2 | N162: 44 | O162: - | P162: - | Q162: 7 | R162: 7 | S162: - | T162: - | U162: 1 | V162: 1 | W162: 5 | X162: - | Y162: - | Z162: - | AA162: 4 | AB162: 5 | AC162: 3 | AD162: 2 | AE162: 6 | AF162: 2 | AG162: 1 | AH162: 7 | AI162: 1 | AJ162: 3 | AK162: 1 | AL162: 0 | AM162: 0 | AN162: 7 | AO162: 2 | AP162: 7 | AQ162: 2
B163: 久賀村２－２ | C163: 217-08 | D163: 580 | E163: 1 | F163: 322 | G163: 307 | H163: 14 | I163: 1 | J163: 16 | K163: 170 | L163: 50 | M163: 3 | N163: 49 | O163: - | P163: - | Q163: 6 | R163: 6 | S163: - | T163: - | U163: 1 | V163: 1 | W163: 3 | X163: - | Y163: 1 | Z163: - | AA163: 0 | AB163: 3 | AC163: 2 | AD163: 1 | AE163: 5 | AF163: 0 | AG163: 1 | AH163: 6 | AI163: 1 | AJ163: 0 | AK163: 0 | AL163: 0 | AM163: 0 | AN163: 4 | AO163: 0 | AP163: 6 | AQ163: 1
B164: 高須村２－１ | C164: 217-09 | D164: 605 | E164: 1 | F164: 292 | G164: 283 | H164: 9 | I164: 0 | J164: 4 | K164: 115 | L164: 25 | M164: 2 | N164: 25 | O164: 1 | P164: - | Q164: 6 | R164: 6 | S164: - | T164: - | U164: 2 | V164: - | W164: 1 | X164: 2 | Y164: - | Z164: 1 | AA164: 2 | AB164: 4 | AC164: 4 | AD164: 5 | AE164: 6 | AF164: 1 | AG164: 0 | AH164: 6 | AI164: 3 | AJ164: 0 | AK164: 0 | AL164: 0 | AM164: 0 | AN164: 5 | AO164: 4 | AP164: 6 | AQ164: 5
B165: 六郷村 | C165: 217-10 | D165: 734 | E165: 1 | F165: 409 | G165: 397 | H165: 12 | I165: 0 | J165: 10 | K165: 201 | L165: 50 | M165: - | N165: 50 | O165: - | P165: 2 | Q165: 10 | R165: 10 | S165: - | T165: - | U165: 1 | V165: 1 | W165: 2 | X165: 3 | Y165: 3 | Z165: - | AA165: 4 | AB165: 6 | AC165: 7 | AD165: 5 | AE165: 8 | AF165: 2 | AG165: 2 | AH165: 10 | AI165: 4 | AJ165: 1 | AK165: 0 | AL165: 1 | AM165: 0 | AN165: 5 | AO165: 2 | AP165: 10 | AQ165: 4
A166: 牛久市 | C166: 219-00 | D166: 5,888 | E166: 1,110 | F166: 1507 | G166: 556 | H166: 914 | I166: 37 | J166: 395 | K166: 531 | L166: 97 | M166: 4 | N166: 94 | O166: 5 | P166: 4 | Q166: 32 | R166: 1 | S166: 20 | T166: 11 | U166: 14 | V166: 8 | W166: 8 | X166: 1 | Y166: 1 | Z166: - | AA166: 2 | AB166: 0 | AC166: 1 | AD166: 29 | AE166: 31 | AF166: 21 | AG166: 0 | AH166: 30 | AI166: 0 | AJ166: 29 | AK166: 0 | AL166: 1 | AM166: 0 | AN166: 19 | AO166: 0 | AP166: 28 | AQ166: 0
B167: 牛久町 | C167: 219-01 | D167: 1,135 | E167: 173 | F167: 166 | G167: 95 | H167: 67 | I167: 4 | J167: 84 | K167: 92 | L167: 11 | M167: - | N167: 11 | O167: - | P167: - | Q167: 7 | R167: 1 | S167: 3 | T167: 3 | U167: 5 | V167: 1 | W167: 1 | X167: - | Y167: - | Z167: - | AA167: 0 | AB167: 0 | AC167: 0 | AD167: 6 | AE167: 6 | AF167: 4 | AG167: 0 | AH167: 7 | AI167: 0 | AJ167: 6 | AK167: 0 | AL167: 0 | AM167: 0 | AN167: 1 | AO167: 0 | AP167: 6 | AQ167: 0
B168: 岡田村（牛久市） | C168: 219-02 | D168: 2,617 | E168: 464 | F168: 606 | G168: 187 | H168: 410 | I168: 9 | J168: 150 | K168: 255 | L168: 53 | M168: 3 | N168: 51 | O168: 1 | P168: 2 | Q168: 14 | R168: - | S168: 9 | T168: 5 | U168: 8 | V168: 4 | W168: 1 | X168: 1 | Y168: - | Z168: - | AA168: 1 | AB168: 0 | AC168: 1 | AD168: 12 | AE168: 14 | AF168: 10 | AG168: 0 | AH168: 12 | AI168: 0 | AJ168: 12 | AK168: 0 | AL168: 0 | AM168: 0 | AN168: 10 | AO168: 0 | AP168: 12 | AQ168: 0
B169: 奥野村 | C169: 219-03 | D169: 2,136 | E169: 473 | F169: 735 | G169: 274 | H169: 437 | I169: 24 | J169: 161 | K169: 184 | L169: 33 | M169: 1 | N169: 32 | O169: 4 | P169: 2 | Q169: 11 | R169: - | S169: 8 | T169: 3 | U169: 1 | V169: 3 | W169: 6 | X169: - | Y169: 1 | Z169: - | AA169: 1 | AB169: 0 | AC169: 0 | AD169: 11 | AE169: 11 | AF169: 7 | AG169: 0 | AH169: 11 | AI169: 0 | AJ169: 11 | AK169: 0 | AL169: 1 | AM169: 0 | AN169: 8 | AO169: 0 | AP169: 10 | AQ169: 0
A170: つくば市 | C170: 220-00 | D170: 28,407 | E170: 4,217 | F170: 11054 | G170: 4764 | H170: 6070 | I170: 220 | J170: 1,322 | K170: 3913 | L170: 723 | M170: 53 | N170: 681 | O170: 21 | P170: 33 | Q170: 250 | R170: 36 | S170: 126 | T170: 88 | U170: 25 | V170: 77 | W170: 91 | X170: 45 | Y170: 8 | Z170: 4 | AA170: 148 | AB170: 157 | AC170: 147 | AD170: 162 | AE170: 210 | AF170: 55 | AG170: 8 | AH170: 249 | AI170: 41 | AJ170: 222 | AK170: 24 | AL170: 47 | AM170: 13 | AN170: 157 | AO170: 38 | AP170: 239 | AQ170: 69
B171: 栄村 | C171: 220-01 | D171: 854 | E171: 38 | F171: 410 | G171: 263 | H171: 138 | I171: 9 | J171: 70 | K171: 148 | L171: 20 | M171: 1 | N171: 18 | O171: 1 | P171: 3 | Q171: 10 | R171: 3 | S171: 7 | T171: - | U171: 1 | V171: 7 | W171: 1 | X171: 1 | Y171: - | Z171: - | AA171: 10 | AB171: 10 | AC171: 5 | AD171: 5 | AE171: 10 | AF171: 3 | AG171: 0 | AH171: 10 | AI171: 0 | AJ171: 8 | AK171: 2 | AL171: 4 | AM171: 2 | AN171: 6 | AO171: 2 | AP171: 10 | AQ171: 2
B172: 九重村 | C172: 220-02 | D172: 1,949 | E172: 144 | F172: 503 | G172: 207 | H172: 271 | I172: 25 | J172: 139 | K172: 179 | L172: 36 | M172: 3 | N172: 33 | O172: 2 | P172: 4 | Q172: 15 | R172: 1 | S172: 8 | T172: 6 | U172: 5 | V172: 8 | W172: 2 | X172: - | Y172: - | Z172: - | AA172: 14 | AB172: 13 | AC172: 8 | AD172: 10 | AE172: 14 | AF172: 1 | AG172: 1 | AH172: 14 | AI172: 2 | AJ172: 12 | AK172: 2 | AL172: 6 | AM172: 1 | AN172: 3 | AO172: 2 | AP172: 12 | AQ172: 6
B173: 栗原村２－１ | C173: 220-03 | D173: 711 | E173: 91 | F173: 311 | G173: 139 | H173: 164 | I173: 8 | J173: 46 | K173: 103 | L173: 16 | M173: - | N173: 15 | O173: - | P173: 1 | Q173: 5 | R173: 1 | S173: 3 | T173: 1 | U173: - | V173: 2 | W173: 1 | X173: 1 | Y173: 1 | Z173: - | AA173: 5 | AB173: 4 | AC173: 1 | AD173: 3 | AE173: 5 | AF173: 1 | AG173: 0 | AH173: 5 | AI173: 0 | AJ173: 5 | AK173: 0 | AL173: 3 | AM173: 1 | AN173: 4 | AO173: 0 | AP173: 5 | AQ173: 1
B174: 島名村 | C174: 220-04 | D174: 1,605 | E174: 267 | F174: 581 | G174: 235 | H174: 315 | I174: 31 | J174: 78 | K174: 185 | L174: 31 | M174: 2 | N174: 31 | O174: 1 | P174: - | Q174: 18 | R174: - | S174: 14 | T174: 4 | U174: 1 | V174: 4 | W174: 6 | X174: 7 | Y174: - | Z174: - | AA174: 4 | AB174: 8 | AC174: 4 | AD174: 9 | AE174: 14 | AF174: 3 | AG174: 3 | AH174: 18 | AI174: 6 | AJ174: 18 | AK174: 6 | AL174: 0 | AM174: 0 | AN174: 16 | AO174: 8 | AP174: 18 | AQ174: 10
B175: 葛城村 | C175: 220-05 | D175: 1,416 | E175: 217 | F175: 204 | G175: 64 | H175: 134 | I175: 6 | J175: 75 | K175: 113 | L175: 22 | M175: 4 | N175: 20 | O175: 1 | P175: - | Q175: 14 | R175: - | S175: 6 | T175: 8 | U175: 1 | V175: 3 | W175: 7 | X175: 1 | Y175: 1 | Z175: 1 | AA175: 1 | AB175: 4 | AC175: 6 | AD175: 6 | AE175: 12 | AF175: 1 | AG175: 1 | AH175: 14 | AI175: 8 | AJ175: 10 | AK175: 3 | AL175: 0 | AM175: 0 | AN175: 12 | AO175: 2 | AP175: 14 | AQ175: 6
B176: 小野川村 | C176: 220-06 | D176: 2,500 | E176: 369 | F176: 573 | G176: 167 | H176: 400 | I176: 6 | J176: 140 | K176: 220 | L176: 42 | M176: 4 | N176: 38 | O176: 1 | P176: 1 | Q176: 21 | R176: 2 | S176: 9 | T176: 10 | U176: 3 | V176: 7 | W176: 5 | X176: 4 | Y176: 1 | Z176: 1 | AA176: 19 | AB176: 14 | AC176: 21 | AD176: 21 | AE176: 15 | AF176: 0 | AG176: 0 | AH176: 21 | AI176: 0 | AJ176: 20 | AK176: 0 | AL176: 0 | AM176: 0 | AN176: 0 | AO176: 0 | AP176: 19 | AQ176: 0
B177: 谷田部町 | C177: 220-07 | D177: 1,712 | E177: 150 | F177: 608 | G177: 240 | H177: 351 | I177: 17 | J177: 73 | K177: 197 | L177: 29 | M177: 1 | N177: 26 | O177: - | P177: 2 | Q177: 20 | R177: 2 | S177: 11 | T177: 7 | U177: 3 | V177: 7 | W177: 5 | X177: 5 | Y177: - | Z177: - | AA177: 2 | AB177: 3 | AC177: 12 | AD177: 6 | AE177: 17 | AF177: 5 | AG177: 1 | AH177: 20 | AI177: 0 | AJ177: 13 | AK177: 0 | AL177: 0 | AM177: 0 | AN177: 11 | AO177: 1 | AP177: 17 | AQ177: 1
B178: 真瀬村２－１ | C178: 220-08 | D178: 801 | E178: 64 | F178: 393 | G178: 209 | H178: 169 | I178: 15 | J178: 51 | K178: 179 | L178: 26 | M178: - | N178: 26 | O178: 1 | P178: 1 | Q178: 5 | R178: 1 | S178: 3 | T178: 1 | U178: - | V178: 1 | W178: 1 | X178: 1 | Y178: 1 | Z178: 1 | AA178: 0 | AB178: 3 | AC178: 2 | AD178: 1 | AE178: 4 | AF178: 1 | AG178: 1 | AH178: 5 | AI178: 2 | AJ178: 5 | AK178: 0 | AL178: 0 | AM178: 0 | AN178: 4 | AO178: 2 | AP178: 5 | AQ178: 2
B179: 上郷村 | C179: 220-09 | D179: 1,301 | E179: 138 | F179: 603 | G179: 259 | H179: 334 | I179: 10 | J179: 37 | K179: 263 | L179: 28 | M179: 7 | N179: 20 | O179: 1 | P179: 2 | Q179: 21 | R179: 2 | S179: 15 | T179: 4 | U179: 2 | V179: 5 | W179: 11 | X179: 2 | Y179: 1 | Z179: - | AA179: 15 | AB179: 19 | AC179: 20 | AD179: 20 | AE179: 21 | AF179: 11 | AG179: 0 | AH179: 21 | AI179: 0 | AJ179: 21 | AK179: 0 | AL179: 1 | AM179: 0 | AN179: 14 | AO179: 0 | AP179: 21 | AQ179: 0
B180: 旭村２－１ | C180: 220-10 | D180: 1,632 | E180: 153 | F180: 793 | G180: 199 | H180: 582 | I180: 12 | J180: 28 | K180: 328 | L180: 43 | M180: 2 | N180: 42 | O180: 4 | P180: 4 | Q180: 23 | R180: - | S180: 5 | T180: 18 | U180: - | V180: 5 | W180: 10 | X180: 8 | Y180: - | Z180: - | AA180: 10 | AB180: 14 | AC180: 12 | AD180: 13 | AE180: 16 | AF180: 6 | AG180: 1 | AH180: 23 | AI180: 11 | AJ180: 22 | AK180: 8 | AL180: 3 | AM180: 1 | AN180: 14 | AO180: 8 | AP180: 22 | AQ180: 13
B181: 吉沼村２－２ | C181: 220-11 | D181: 286 | E181: 22 | F181: 183 | G181: 39 | H181: 144 | I181: 0 | J181: 4 | K181: 69 | L181: 6 | M181: - | N181: 4 | O181: - | P181: 2 | Q181: 2 | R181: - | S181: - | T181: 2 | U181: - | V181: - | W181: 2 | X181: - | Y181: - | Z181: - | AA181: 2 | AB181: 2 | AC181: 2 | AD181: 2 | AE181: 2 | AF181: 1 | AG181: 0 | AH181: 2 | AI181: 0 | AJ181: 2 | AK181: 0 | AL181: 0 | AM181: 0 | AN181: 2 | AO181: 0 | AP181: 2 | AQ181: 0
B182: 筑波町 | C182: 220-12 | D182: 1,488 | E182: 683 | F182: 244 | G182: 197 | H182: 45 | I182: 2 | J182: 35 | K182: 88 | L182: 37 | M182: 1 | N182: 37 | O182: - | P182: - | Q182: 4 | R182: 3 | S182: - | T182: 1 | U182: 1 | V182: 2 | W182: 1 | X182: - | Y182: - | Z182: - | AA182: 3 | AB182: 4 | AC182: 1 | AD182: 1 | AE182: 4 | AF182: 2 | AG182: 0 | AH182: 4 | AI182: 0 | AJ182: 4 | AK182: 0 | AL182: 1 | AM182: 0 | AN182: 4 | AO182: 0 | AP182: 3 | AQ182: 1
B183: 北条町 | C183: 220-13 | D183: 676 | E183: 112 | F183: 329 | G183: 258 | H183: 69 | I183: 2 | J183: 18 | K183: 128 | L183: 43 | M183: 2 | N183: 41 | O183: - | P183: - | Q183: 8 | R183: 6 | S183: 2 | T183: - | U183: 2 | V183: 2 | W183: 2 | X183: 1 | Y183: 1 | Z183: - | AA183: 4 | AB183: 7 | AC183: 1 | AD183: 4 | AE183: 8 | AF183: 0 | AG183: 0 | AH183: 8 | AI183: 0 | AJ183: 8 | AK183: 0 | AL183: 3 | AM183: 0 | AN183: 7 | AO183: 0 | AP183: 8 | AQ183: 1
B184: 小田村 | C184: 220-14 | D184: 1,804 | E184: 646 | F184: 501 | G184: 398 | H184: 90 | I184: 13 | J184: 57 | K184: 173 | L184: 87 | M184: 7 | N184: 85 | O184: 5 | P184: 3 | Q184: 9 | R184: 6 | S184: 3 | T184: - | U184: - | V184: 3 | W184: 5 | X184: 1 | Y184: - | Z184: - | AA184: 6 | AB184: 8 | AC184: 5 | AD184: 5 | AE184: 8 | AF184: 4 | AG184: 0 | AH184: 9 | AI184: 1 | AJ184: 9 | AK184: 1 | AL184: 7 | AM184: 3 | AN184: 7 | AO184: 1 | AP184: 9 | AQ184: 3
B185: 田井村 | C185: 220-15 | D185: 1,026 | E185: 279 | F185: 324 | G185: 219 | H185: 105 | I185: 0 | J185: 56 | K185: 114 | L185: 61 | M185: 2 | N185: 60 | O185: - | P185: 2 | Q185: 9 | R185: 3 | S185: 6 | T185: - | U185: 1 | V185: 2 | W185: 4 | X185: 2 | Y185: - | Z185: - | AA185: 6 | AB185: 8 | AC185: 6 | AD185: 5 | AE185: 7 | AF185: 0 | AG185: 0 | AH185: 9 | AI185: 0 | AJ185: 9 | AK185: 0 | AL185: 3 | AM185: 1 | AN185: 4 | AO185: 1 | AP185: 9 | AQ185: 1
B186: 作岡村 | C186: 220-16 | D186: 1,446 | E186: 193 | F186: 680 | G186: 233 | H186: 445 | I186: 2 | J186: 45 | K186: 219 | L186: 18 | M186: 2 | N186: 15 | O186: 1 | P186: - | Q186: 8 | R186: 1 | S186: 6 | T186: 1 | U186: - | V186: 3 | W186: 4 | X186: 1 | Y186: - | Z186: - | AA186: 8 | AB186: 5 | AC186: 3 | AD186: 6 | AE186: 6 | AF186: 2 | AG186: 0 | AH186: 8 | AI186: 2 | AJ186: 8 | AK186: 1 | AL186: 3 | AM186: 2 | AN186: 1 | AO186: 1 | AP186: 8 | AQ186: 7
B187: 田水山村 | C187: 220-17 | D187: 712 | E187: 77 | F187: 301 | G187: 174 | H187: 123 | I187: 4 | J187: 44 | K187: 105 | L187: 10 | M187: 3 | N187: 8 | O187: - | P187: 1 | Q187: 4 | R187: 2 | S187: 2 | T187: - | U187: - | V187: 3 | W187: 1 | X187: - | Y187: - | Z187: - | AA187: 1 | AB187: 2 | AC187: 1 | AD187: 3 | AE187: 3 | AF187: 0 | AG187: 0 | AH187: 4 | AI187: 1 | AJ187: 3 | AK187: 0 | AL187: 3 | AM187: 1 | AN187: 4 | AO187: 1 | AP187: 4 | AQ187: 3
B188: 菅間村 | C188: 220-18 | D188: 666 | E188: 76 | F188: 383 | G188: 268 | H188: 115 | I188: 0 | J188: 21 | K188: 133 | L188: 14 | M188: - | N188: 14 | O188: 1 | P188: 1 | Q188: 7 | R188: 2 | S188: 3 | T188: 2 | U188: 1 | V188: 2 | W188: 1 | X188: 2 | Y188: - | Z188: 1 | AA188: 6 | AB188: 1 | AC188: 3 | AD188: 3 | AE188: 3 | AF188: 1 | AG188: 0 | AH188: 7 | AI188: 4 | AJ188: 6 | AK188: 0 | AL188: 1 | AM188: 0 | AN188: 4 | AO188: 3 | AP188: 7 | AQ188: 6
B189: 栗原村２－２ | C189: 220-19 | D189: 99 | E189: - | F189: 46 | G189: 15 | H189: 31 | I189: 0 | J189: 22 | K189: 15 | L189: 3 | M189: - | N189: 3 | O189: - | P189: - | Q189: 1 | R189: - | S189: 1 | T189: - | U189: - | V189: - | W189: 1 | X189: - | Y189: - | Z189: - | AA189: 0 | AB189: 0 | AC189: 0 | AD189: 1 | AE189: 1 | AF189: 0 | AG189: 0 | AH189: 1 | AI189: 0 | AJ189: 0 | AK189: 0 | AL189: 0 | AM189: 0 | AN189: 0 | AO189: 0 | AP189: 1 | AQ189: 1
B190: 大穂村 | C190: 220-20 | D190: 1,810 | E190: 112 | F190: 1155 | G190: 391 | H190: 741 | I190: 23 | J190: 81 | K190: 298 | L190: 24 | M190: 2 | N190: 23 | O190: - | P190: 1 | Q190: 7 | R190: 1 | S190: 3 | T190: 3 | U190: - | V190: 2 | W190: 4 | X190: 1 | Y190: - | Z190: - | AA190: 3 | AB190: 4 | AC190: 3 | AD190: 6 | AE190: 6 | AF190: 1 | AG190: 0 | AH190: 7 | AI190: 2 | AJ190: 7 | AK190: 0 | AL190: 3 | AM190: 1 | AN190: 7 | AO190: 4 | AP190: 7 | AQ190: 3
B191: 吉沼村２－１ | C191: 220-21 | D191: 1,201 | E191: 49 | F191: 756 | G191: 218 | H191: 526 | I191: 12 | J191: 31 | K191: 257 | L191: 23 | M191: 1 | N191: 22 | O191: 1 | P191: 1 | Q191: 13 | R191: - | S191: 6 | T191: 7 | U191: 2 | V191: 2 | W191: 6 | X191: 1 | Y191: 2 | Z191: - | AA191: 11 | AB191: 13 | AC191: 13 | AD191: 13 | AE191: 13 | AF191: 7 | AG191: 0 | AH191: 13 | AI191: 0 | AJ191: 7 | AK191: 0 | AL191: 1 | AM191: 0 | AN191: 11 | AO191: 0 | AP191: 13 | AQ191: 0
B192: 旭村２－２ | C192: 220-22 | D192: 313 | E192: 37 | F192: 143 | G192: 38 | H192: 94 | I192: 11 | J192: 29 | K192: 62 | L192: 3 | M192: 2 | N192: 2 | O192: - | P192: - | Q192: 5 | R192: - | S192: 2 | T192: 3 | U192: - | V192: 2 | W192: 3 | X192: - | Y192: - | Z192: - | AA192: 2 | AB192: 3 | AC192: 4 | AD192: 3 | AE192: 5 | AF192: 3 | AG192: 0 | AH192: 5 | AI192: 2 | AJ192: 5 | AK192: 1 | AL192: 2 | AM192: 0 | AN192: 5 | AO192: 2 | AP192: 5 | AQ192: 2
B193: 茎崎町 | C193: 220-23 | D193: 2,399 | E193: 300 | F193: 1030 | G193: 334 | H193: 684 | I193: 12 | J193: 141 | K193: 337 | L193: 101 | M193: 7 | N193: 98 | O193: 1 | P193: 4 | Q193: 21 | R193: - | S193: 11 | T193: 10 | U193: 2 | V193: 5 | W193: 8 | X193: 6 | Y193: - | Z193: - | AA193: 16 | AB193: 8 | AC193: 14 | AD193: 16 | AE193: 16 | AF193: 2 | AG193: 0 | AH193: 21 | AI193: 0 | AJ193: 20 | AK193: 0 | AL193: 3 | AM193: 0 | AN193: 17 | AO193: 0 | AP193: 20 | AQ193: 0
A194: ひたちなか市 | C194: 221-00 | D194: 9,904 | E194: 620 | F194: 2671 | G194: 1182 | H194: 1477 | I194: 12 | J194: 245 | K194: 1262 | L194: 635 | M194: 514 | N194: 334 | O194: 6 | P194: 4 | Q194: 35 | R194: 9 | S194: 15 | T194: 11 | U194: 25 | V194: 6 | W194: 4 | X194: - | Y194: - | Z194: - | AA194: 12 | AB194: 16 | AC194: 23 | AD194: 35 | AE194: 24 | AF194: 8 | AG194: 0 | AH194: 35 | AI194: 0 | AJ194: 28 | AK194: 1 | AL194: 12 | AM194: 0 | AN194: 35 | AO194: 0 | AP194: 35 | AQ194: 0
B195: 那珂湊町 | C195: 221-01 | D195: 1,305 | E195: 65 | F195: 448 | G195: 219 | H195: 227 | I195: 2 | J195: 31 | K195: 155 | L195: 99 | M195: 89 | N195: 49 | O195: 1 | P195: 1 | Q195: 8 | R195: 2 | S195: 3 | T195: 3 | U195: 4 | V195: 2 | W195: 2 | X195: - | Y195: - | Z195: - | AA195: 3 | AB195: 3 | AC195: 4 | AD195: 8 | AE195: 3 | AF195: 0 | AG195: 0 | AH195: 8 | AI195: 0 | AJ195: 6 | AK195: 0 | AL195: 4 | AM195: 0 | AN195: 8 | AO195: 0 | AP195: 8 | AQ195: 0
B196: 平磯町 | C196: 221-02 | D196: 493 | E196: 23 | F196: 210 | G196: 26 | H196: 184 | I196: 0 | J196: 14 | K196: 24 | L196: 16 | M196: 16 | N196: 3 | O196: - | P196: - | Q196: 4 | R196: - | S196: - | T196: 4 | U196: 4 | V196: - | W196: - | X196: - | Y196: - | Z196: - | AA196: 0 | AB196: 1 | AC196: 0 | AD196: 4 | AE196: 2 | AF196: 0 | AG196: 0 | AH196: 4 | AI196: 0 | AJ196: 2 | AK196: 0 | AL196: 1 | AM196: 0 | AN196: 4 | AO196: 0 | AP196: 4 | AQ196: 0
B197: 前渡村２－２ | C197: 221-03 | D197: 759 | E197: 20 | F197: 144 | G197: 25 | H197: 119 | I197: 0 | J197: 14 | K197: 113 | L197: 105 | M197: 103 | N197: 48 | O197: - | P197: - | Q197: 2 | R197: - | S197: - | T197: 2 | U197: - | V197: 2 | W197: - | X197: - | Y197: - | Z197: - | AA197: 2 | AB197: 0 | AC197: 2 | AD197: 2 | AE197: 0 | AF197: 0 | AG197: 0 | AH197: 2 | AI197: 0 | AJ197: 2 | AK197: 0 | AL197: 0 | AM197: 0 | AN197: 2 | AO197: 0 | AP197: 2 | AQ197: 0
B198: 勝田町 | C198: 221-04 | D198: 3,527 | E198: 154 | F198: 940 | G198: 570 | H198: 365 | I198: 5 | J198: 72 | K198: 505 | L198: 169 | M198: 103 | N198: 106 | O198: 1 | P198: 2 | Q198: 14 | R198: 7 | S198: 6 | T198: 1 | U198: 11 | V198: 2 | W198: 1 | X198: - | Y198: - | Z198: - | AA198: 0 | AB198: 5 | AC198: 10 | AD198: 14 | AE198: 12 | AF198: 1 | AG198: 0 | AH198: 14 | AI198: 0 | AJ198: 11 | AK198: 0 | AL198: 3 | AM198: 0 | AN198: 14 | AO198: 0 | AP198: 14 | AQ198: 0
B199: 佐野村 | C199: 221-05 | D199: 1,693 | E199: 160 | F199: 424 | G199: 144 | H199: 278 | I199: 2 | J199: 70 | K199: 225 | L199: 87 | M199: 58 | N199: 53 | O199: 3 | P199: - | Q199: 4 | R199: - | S199: 3 | T199: 1 | U199: 4 | V199: - | W199: - | X199: - | Y199: - | Z199: - | AA199: 4 | AB199: 4 | AC199: 4 | AD199: 4 | AE199: 4 | AF199: 4 | AG199: 0 | AH199: 4 | AI199: 0 | AJ199: 4 | AK199: 1 | AL199: 2 | AM199: 0 | AN199: 4 | AO199: 0 | AP199: 4 | AQ199: 0
B200: 前渡村２－１ | C200: 221-06 | D200: 2,127 | E200: 198 | F200: 505 | G200: 198 | H200: 304 | I200: 3 | J200: 44 | K200: 240 | L200: 159 | M200: 145 | N200: 75 | O200: 1 | P200: 1 | Q200: 3 | R200: - | S200: 3 | T200: - | U200: 2 | V200: - | W200: 1 | X200: - | Y200: - | Z200: - | AA200: 3 | AB200: 3 | AC200: 3 | AD200: 3 | AE200: 3 | AF200: 3 | AG200: 0 | AH200: 3 | AI200: 0 | AJ200: 3 | AK200: 0 | AL200: 2 | AM200: 0 | AN200: 3 | AO200: 0 | AP200: 3 | AQ200: 0
... 242 more rows

Sheet 2015年 (hidden)
E1: 1 | F1: 2 | G1: 3 | H1: 4 | I1: 5 | J1: 6 | K1: 7 | L1: 8 | M1: 9 | N1: 10 | O1: 11 | P1: 12 | Q1: 13 | R1: 14 | S1: 15 | T1: 16 | U1: 17 | V1: 18 | W1: 19 | X1: 20 | Y1: 21 | Z1: 22 | AA1: 23 | AB1: 24 | AC1: 25 | AD1: 26 | AE1: 27 | AF1: 28 | AG1: 29 | AH1: 30 | AI1: 31 | AJ1: 32 | AK1: 33 | AL1: 34 | AM1: 35 | AN1: 36 | AO1: 37 | AP1: 38 | AQ1: 39 | AR1: 40 | AS1: 41 | AT1: 42 | AU1: 43 | AV1: 44 | AW1: 45
E2: 総土地面積 | G2: 耕地面積 | K2: 耕作放棄地 | L2: 生産関連事業 | R2: 水田率別農業集落数 | V2: 農家率別農業集落数 | AB2: 寄り合いの議題_農業生産にかかる事項 | AI2: 保全管理
C3: 新旧市区町村 | E3: 総土地面積 | F3: 林野面積 | G3: 耕地面積 | H3: 田面積 | I3: 畑面積 | J3: 樹園地面積 | K3: 耕作放棄地 | L3: 計 | M3: 農業生産関連事業を行っている実経営体数 | N3: 事業種類別_農産物の加工 | O3: 事業種類別_消費者に直接販売 | P3: 事業種類別_観光農園 | Q3: その他 | R3: 計 | S3: 水田集落 （70％以上） | T3: 田畑集落 （30～70） | U3: 畑地集落 （30％未満） | V3: 10％未満 | W3: 10～30 | X3: 30～50 | Y3: 50～70 | Z3: 70～90 | AA3: 90％以上 | AB3: 寄り合いの議題_農業生産にかかる事項 | AC3: 寄り合いの議題_農道・農業用用排水路・ため池の管理 | AD3: 寄り合いの議題_集落共有財産・共用施設の管理 | AE3: 寄り合いの議題_環境美化・自然環境の保全 | AF3: 寄り合いの議題_農業集落行事（祭り・イベント等）の計画・推進 | AG3: 寄り合いの議題_農業集落内の福祉・厚生 | AH3: 寄り合いを開催しなかった | AI3: 農地がある集落 | AJ3: 農地_保全している | AK3: 森林がある集落 | AL3: 森林_保全している | AM3: ため池・湖沼がある集落 | AN3: ため池・湖沼_保全している | AO3: 河川・水路がある集落 | AP3: 河川・水路_保全している | AQ3: 農業用用排水路がある集落 | AR3: 農業用用排水路_保全している
A4: 1 | B4: 茨城県 | E4: 609693 | F4: 190029 | G4: 174753 | H4: 100064 | I4: 67124 | J4: 7565 | K4: 23918 | L4: 57989 | M4: 11319 | N4: 981 | O4: 10893 | P4: 257 | Q4: 187 | R4: 3802 | S4: 1310 | T4: 1673 | U4: 819 | V4: 901 | W4: 1276 | X4: 1071 | Y4: 459 | Z4: 77 | AA4: 18 | AB4: 1781 | AC4: 2904 | AD4: 2473 | AE4: 3290 | AF4: 3143 | AG4: 2097 | AH4: 218 | AI4: 3764 | AJ4: 779 | AK4: 2994 | AL4: 321 | AM4: 955 | AN4: 434 | AO4: 2537 | AP4: 1042 | AQ4: 3585 | AR4: 2434
A5: 2 | B5: 水戸市 | D5: 201-00 | E5: 21732 | F5: 3474 | G5: 7132 | H5: 4379 | I5: 2460 | J5: 293 | K5: 1335 | L5: 2666 | M5: 499 | N5: 39 | O5: 485 | P5: 12 | Q5: 5 | R5: 184 | S5: 54 | T5: 84 | U5: 46 | V5: 72 | W5: 45 | X5: 45 | Y5: 18 | Z5: 4 | AA5: - | AB5: 50 | AC5: 109 | AD5: 84 | AE5: 121 | AF5: 122 | AG5: 52 | AH5: 50 | AI5: 163 | AJ5: 15 | AK5: 131 | AL5: 12 | AM5: 58 | AN5: 41 | AO5: 106 | AP5: 49 | AQ5: 147 | AR5: 93
A6: 3 | C6: 水戸市（旧） | D6: 201-01 | E6: 1490 | F6: 23 | G6: 35 | H6: 20 | I6: 15 | J6: - | K6: 16 | L6: 28 | M6: 3 | N6: - | O6: 3 | P6: - | Q6: - | R6: 31 | S6: 7 | T6: 3 | U6: 21 | V6: 30 | W6: - | X6: 1 | Y6: - | Z6: - | AA6: - | AB6: - | AC6: - | AD6: - | AE6: - | AF6: - | AG6: - | AH6: 31 | AI6: 11 | AJ6: - | AK6: 1 | AL6: - | AM6: 2 | AN6: - | AO6: 8 | AP6: - | AQ6: 5 | AR6: -
A7: 4 | C7: 国田村 | D7: 201-02 | E7: 1003 | F7: 82 | G7: 569 | H7: 396 | I7: 155 | J7: 18 | K7: 73 | L7: 245 | M7: 23 | N7: 1 | O7: 22 | P7: - | Q7: 1 | R7: 18 | S7: 7 | T7: 10 | U7: 1 | V7: - | W7: 2 | X7: 7 | Y7: 7 | Z7: 2 | AA7: - | AB7: 7 | AC7: 18 | AD7: 11 | AE7: 18 | AF7: 18 | AG7: - | AH7: - | AI7: 18 | AJ7: - | AK7: 12 | AL7: - | AM7: 3 | AN7: 2 | AO7: 13 | AP7: - | AQ7: 18 | AR7: 18
A8: 5 | C8: 吉田村 | D8: 201-03 | E8: 950 | F8: 66 | G8: 99 | H8: 44 | I8: 51 | J8: 4 | K8: 22 | L8: 31 | M8: 7 | N8: - | O8: 7 | P8: - | Q8: - | R8: 6 | S8: 1 | T8: 4 | U8: 1 | V8: 6 | W8: - | X8: - | Y8: - | Z8: - | AA8: - | AB8: - | AC8: - | AD8: - | AE8: - | AF8: - | AG8: - | AH8: 6 | AI8: 6 | AJ8: - | AK8: 6 | AL8: - | AM8: 2 | AN8: - | AO8: 5 | AP8: - | AQ8: 6 | AR8: -
A9: 6 | C9: 酒門村２－１ | D9: 201-04 | E9: 1277 | F9: 272 | G9: 442 | H9: 314 | I9: 118 | J9: 10 | K9: 94 | L9: 152 | M9: 31 | N9: 5 | O9: 30 | P9: 1 | Q9: - | R9: 8 | S9: 4 | T9: 4 | U9: - | V9: 3 | W9: 5 | X9: - | Y9: - | Z9: - | AA9: - | AB9: 1 | AC9: 3 | AD9: 1 | AE9: 4 | AF9: 2 | AG9: - | AH9: 3 | AI9: 8 | AJ9: - | AK9: 7 | AL9: - | AM9: 1 | AN9: - | AO9: 5 | AP9: 2 | AQ9: 8 | AR9: 1
A10: 7 | C10: 柳河村 | D10: 201-05 | E10: 643 | F10: 5 | G10: 291 | H10: 185 | I10: 103 | J10: 3 | K10: 20 | L10: 147 | M10: 25 | N10: 1 | O10: 25 | P10: 1 | Q10: - | R10: 4 | S10: 1 | T10: 3 | U10: - | V10: 1 | W10: 2 | X10: 1 | Y10: - | Z10: - | AA10: - | AB10: 2 | AC10: 4 | AD10: 3 | AE10: 4 | AF10: 4 | AG10: - | AH10: - | AI10: 4 | AJ10: - | AK10: 1 | AL10: - | AM10: - | AN10: - | AO10: 4 | AP10: 2 | AQ10: 4 | AR10: 4
A11: 8 | C11: 渡里村 | D11: 201-06 | E11: 1077 | F11: 216 | G11: 251 | H11: 113 | I11: 133 | J11: 5 | K11: 62 | L11: 61 | M11: 13 | N11: 1 | O11: 13 | P11: - | Q11: - | R11: 5 | S11: 1 | T11: 3 | U11: 1 | V11: 4 | W11: - | X11: 1 | Y11: - | Z11: - | AA11: - | AB11: - | AC11: 4 | AD11: 4 | AE11: 4 | AF11: 3 | AG11: - | AH11: 1 | AI11: 5 | AJ11: - | AK11: 5 | AL11: - | AM11: 1 | AN11: 1 | AO11: 2 | AP11: - | AQ11: 3 | AR11: 3
A12: 9 | C12: 上大野村 | D12: 201-07 | E12: 605 | F12: 16 | G12: 362 | H12: 301 | I12: 56 | J12: 5 | K12: 27 | L12: 151 | M12: 28 | N12: - | O12: 28 | P12: - | Q12: - | R12: 6 | S12: 5 | T12: 1 | U12: - | V12: 1 | W12: 3 | X12: 2 | Y12: - | Z12: - | AA12: - | AB12: 3 | AC12: 4 | AD12: 3 | AE12: 3 | AF12: 1 | AG12: 1 | AH12: 2 | AI12: 6 | AJ12: - | AK12: 5 | AL12: - | AM12: - | AN12: - | AO12: 5 | AP12: - | AQ12: 6 | AR12: 3
A13: 10 | C13: 緑岡村 | D13: 201-08 | E13: 2506 | F13: 279 | G13: 439 | H13: 222 | I13: 198 | J13: 19 | K13: 104 | L13: 172 | M13: 34 | N13: 5 | O13: 34 | P13: 1 | Q13: - | R13: 19 | S13: 1 | T13: 10 | U13: 8 | V13: 16 | W13: 2 | X13: 1 | Y13: - | Z13: - | AA13: - | AB13: - | AC13: 3 | AD13: - | AE13: 11 | AF13: 15 | AG13: - | AH13: 4 | AI13: 18 | AJ13: - | AK13: 18 | AL13: - | AM13: 5 | AN13: 2 | AO13: 3 | AP13: - | AQ13: 11 | AR13: -
A14: 11 | C14: 飯富村 | D14: 201-09 | E14: 1494 | F14: 321 | G14: 545 | H14: 134 | I14: 404 | J14: 7 | K14: 142 | L14: 141 | M14: 27 | N14: 2 | O14: 26 | P14: 1 | Q14: - | R14: 8 | S14: - | T14: 3 | U14: 5 | V14: - | W14: 4 | X14: 4 | Y14: - | Z14: - | AA14: - | AB14: 2 | AC14: 8 | AD14: 7 | AE14: 8 | AF14: 8 | AG14: 6 | AH14: - | AI14: 8 | AJ14: - | AK14: 8 | AL14: 1 | AM14: 2 | AN14: 2 | AO14: 6 | AP14: 2 | AQ14: 8 | AR14: 7
A15: 12 | C15: 上中妻村 | D15: 201-10 | E15: 838 | F15: 111 | G15: 353 | H15: 200 | I15: 146 | J15: 7 | K15: 74 | L15: 129 | M15: 20 | N15: - | O15: 20 | P15: - | Q15: - | R15: 4 | S15: - | T15: 4 | U15: - | V15: 2 | W15: 1 | X15: - | Y15: 1 | Z15: - | AA15: - | AB15: - | AC15: 3 | AD15: 4 | AE15: 4 | AF15: 4 | AG15: 3 | AH15: - | AI15: 4 | AJ15: - | AK15: 4 | AL15: - | AM15: 2 | AN15: 2 | AO15: - | AP15: - | AQ15: 4 | AR15: 3
A16: 13 | C16: 山根村 | D16: 201-11 | E16: 1555 | F16: 518 | G16: 215 | H16: 96 | I16: 105 | J16: 14 | K16: 88 | L16: 84 | M16: 24 | N16: 3 | O16: 23 | P16: 6 | Q16: 1 | R16: 6 | S16: - | T16: 6 | U16: - | V16: 1 | W16: 2 | X16: 3 | Y16: - | Z16: - | AA16: - | AB16: 2 | AC16: 6 | AD16: 6 | AE16: 5 | AF16: 5 | AG16: 3 | AH16: - | AI16: 6 | AJ16: - | AK16: 6 | AL16: - | AM16: 6 | AN16: 5 | AO16: 1 | AP16: 1 | AQ16: 6 | AR16: 4
A17: 14 | C17: 河和田村 | D17: 201-12 | E17: 1257 | F17: 253 | G17: 326 | H17: 197 | I17: 107 | J17: 22 | K17: 88 | L17: 149 | M17: 34 | N17: 6 | O17: 32 | P17: 1 | Q17: 1 | R17: 9 | S17: 3 | T17: 3 | U17: 3 | V17: 5 | W17: 4 | X17: - | Y17: - | Z17: - | AA17: - | AB17: - | AC17: 2 | AD17: - | AE17: 7 | AF17: 9 | AG17: - | AH17: - | AI17: 9 | AJ17: - | AK17: 9 | AL17: - | AM17: 4 | AN17: 2 | AO17: - | AP17: - | AQ17: 9 | AR17: -
A18: 15 | C18: 下大野村 | D18: 201-13 | E18: 987 | F18: 10 | G18: 642 | H18: 595 | I18: 39 | J18: 8 | K18: 28 | L18: 225 | M18: 64 | N18: 2 | O18: 63 | P18: 1 | Q18: 1 | R18: 8 | S18: 8 | T18: - | U18: - | V18: - | W18: 3 | X18: 5 | Y18: - | Z18: - | AA18: - | AB18: 8 | AC18: 8 | AD18: 8 | AE18: 8 | AF18: 8 | AG18: 8 | AH18: - | AI18: 8 | AJ18: 2 | AK18: - | AL18: - | AM18: 2 | AN18: 2 | AO18: 8 | AP18: 8 | AQ18: 8 | AR18: 8
A19: 16 | C19: 稲荷村 | D19: 201-14 | E19: 976 | F19: 151 | G19: 453 | H19: 381 | I19: 62 | J19: 10 | K19: 46 | L19: 193 | M19: 31 | N19: 4 | O19: 27 | P19: - | Q19: 1 | R19: 10 | S19: 10 | T19: - | U19: - | V19: 2 | W19: 3 | X19: 4 | Y19: 1 | Z19: - | AA19: - | AB19: 9 | AC19: 10 | AD19: 10 | AE19: 10 | AF19: 10 | AG19: 9 | AH19: - | AI19: 10 | AJ19: 6 | AK19: 7 | AL19: 4 | AM19: 6 | AN19: 5 | AO19: 10 | AP19: 8 | AQ19: 10 | AR19: 10
A20: 17 | C20: 大場村（水戸市） | D20: 201-15 | E20: 926 | F20: 247 | G20: 463 | H20: 358 | I20: 96 | J20: 9 | K20: 43 | L20: 178 | M20: 38 | N20: 4 | O20: 36 | P20: - | Q20: - | R20: 9 | S20: 4 | T20: 5 | U20: - | V20: - | W20: 1 | X20: 6 | Y20: 1 | Z20: 1 | AA20: - | AB20: 9 | AC20: 8 | AD20: 7 | AE20: 9 | AF20: 9 | AG20: 9 | AH20: - | AI20: 9 | AJ20: 3 | AK20: 9 | AL20: 3 | AM20: 7 | AN20: 4 | AO20: 9 | AP20: 4 | AQ20: 9 | AR20: 7
A21: 18 | C21: 下中妻村 | D21: 201-16 | E21: 1170 | F21: 255 | G21: 357 | H21: 209 | I21: 128 | J21: 20 | K21: 71 | L21: 138 | M21: 29 | N21: 2 | O21: 29 | P21: - | Q21: - | R21: 5 | S21: - | T21: 5 | U21: - | V21: 1 | W21: 2 | X21: 2 | Y21: - | Z21: - | AA21: - | AB21: 2 | AC21: 5 | AD21: 2 | AE21: 4 | AF21: 5 | AG21: 3 | AH21: - | AI21: 5 | AJ21: 2 | AK21: 5 | AL21: 2 | AM21: 3 | AN21: 3 | AO21: 4 | AP21: 2 | AQ21: 5 | AR21: 5
A22: 19 | C22: 中妻村 | D22: 201-17 | E22: 787 | F22: 163 | G22: 374 | H22: 217 | I22: 144 | J22: 13 | K22: 76 | L22: 166 | M22: 34 | N22: 1 | O22: 34 | P22: - | Q22: - | R22: 7 | S22: 1 | T22: 6 | U22: - | V22: - | W22: 1 | X22: 3 | Y22: 3 | Z22: - | AA22: - | AB22: 1 | AC22: 7 | AD22: 7 | AE22: 7 | AF22: 7 | AG22: 3 | AH22: - | AI22: 7 | AJ22: - | AK22: 7 | AL22: 1 | AM22: 3 | AN22: 3 | AO22: 7 | AP22: 6 | AQ22: 7 | AR22: 6
A23: 20 | C23: 鯉渕村２－１ | D23: 201-18 | E23: 2191 | F23: 486 | G23: 916 | H23: 397 | I23: 400 | J23: 119 | K23: 260 | L23: 276 | M23: 34 | N23: 2 | O23: 33 | P23: - | Q23: - | R23: 21 | S23: 1 | T23: 14 | U23: 6 | V23: - | W23: 10 | X23: 5 | Y23: 5 | Z23: 1 | AA23: - | AB23: 4 | AC23: 16 | AD23: 11 | AE23: 15 | AF23: 14 | AG23: 7 | AH23: 3 | AI23: 21 | AJ23: 2 | AK23: 21 | AL23: 1 | AM23: 9 | AN23: 8 | AO23: 16 | AP23: 14 | AQ23: 20 | AR23: 14
A24: 21 | B24: 日立市 | D24: 202-00 | E24: 22571 | F24: 12151 | G24: 967 | H24: 648 | I24: 284 | J24: 35 | K24: 229 | L24: 492 | M24: 117 | N24: 5 | O24: 114 | P24: 4 | Q24: - | R24: 32 | S24: 10 | T24: 12 | U24: 10 | V24: 19 | W24: 8 | X24: 5 | Y24: - | Z24: - | AA24: - | AB24: 4 | AC24: 10 | AD24: 1 | AE24: 10 | AF24: 14 | AG24: 2 | AH24: 12 | AI24: 31 | AJ24: 2 | AK24: 31 | AL24: 1 | AM24: 4 | AN24: 1 | AO24: 15 | AP24: 5 | AQ24: 22 | AR24: 8
A25: 22 | C25: 中里村 | D25: 202-01 | E25: 3370 | F25: 2358 | G25: 131 | H25: 82 | I25: 32 | J25: 17 | K25: 66 | L25: 61 | M25: 17 | N25: - | O25: 17 | P25: 1 | Q25: - | R25: 4 | S25: 1 | T25: 3 | U25: - | V25: 1 | W25: 1 | X25: 2 | Y25: - | Z25: - | AA25: - | AB25: 1 | AC25: 4 | AD25: - | AE25: 2 | AF25: 3 | AG25: - | AH25: - | AI25: 4 | AJ25: - | AK25: 4 | AL25: 1 | AM25: - | AN25: - | AO25: 4 | AP25: 3 | AQ25: 4 | AR25: 2
A26: 23 | C26: 豊浦町 | D26: 202-02 | E26: 786 | F26: 199 | G26: 33 | H26: 16 | I26: 14 | J26: 3 | K26: 22 | L26: 26 | M26: 10 | N26: - | O26: 10 | P26: 2 | Q26: - | R26: 2 | S26: - | T26: 2 | U26: - | V26: 2 | W26: - | X26: - | Y26: - | Z26: - | AA26: - | AB26: - | AC26: - | AD26: - | AE26: - | AF26: - | AG26: - | AH26: 2 | AI26: 2 | AJ26: - | AK26: 2 | AL26: - | AM26: - | AN26: - | AO26: - | AP26: - | AQ26: 2 | AR26: -
A27: 24 | C27: 日高村 | D27: 202-03 | E27: 1556 | F27: 703 | G27: 43 | H27: 26 | I27: 17 | J27: 0 | K27: 17 | L27: 24 | M27: 4 | N27: 1 | O27: 3 | P27: - | Q27: - | R27: 3 | S27: 1 | T27: 1 | U27: 1 | V27: 3 | W27: - | X27: - | Y27: - | Z27: - | AA27: - | AB27: - | AC27: 1 | AD27: - | AE27: - | AF27: - | AG27: - | AH27: 2 | AI27: 3 | AJ27: - | AK27: 3 | AL27: - | AM27: - | AN27: - | AO27: 1 | AP27: - | AQ27: 3 | AR27: 1
A28: 25 | C28: 日立市（旧） | D28: 202-04 | E28: 3747 | F28: 1836 | G28: 4 | H28: - | I28: 4 | J28: - | K28: X | L28: 11 | M28: x | N28: x | O28: x | P28: x | Q28: x | R28: 4 | S28: - | T28: - | U28: 4 | V28: 4 | W28: - | X28: - | Y28: - | Z28: - | AA28: - | AB28: - | AC28: - | AD28: - | AE28: 2 | AF28: 2 | AG28: - | AH28: 1 | AI28: 3 | AJ28: - | AK28: 4 | AL28: - | AM28: - | AN28: - | AO28: - | AP28: - | AQ28: - | AR28: -
A29: 26 | C29: 多賀町 | D29: 202-05 | E29: 4438 | F29: 1837 | G29: 23 | H29: 1 | I29: 20 | J29: 2 | K29: 12 | L29: 16 | M29: 3 | N29: - | O29: 3 | P29: - | Q29: - | R29: 5 | S29: - | T29: - | U29: 5 | V29: 5 | W29: - | X29: - | Y29: - | Z29: - | AA29: - | AB29: - | AC29: - | AD29: - | AE29: 2 | AF29: 2 | AG29: - | AH29: 3 | AI29: 5 | AJ29: - | AK29: 5 | AL29: - | AM29: - | AN29: - | AO29: 1 | AP29: - | AQ29: - | AR29: -
A30: 27 | C30: 久慈町 | D30: 202-06 | E30: 341 | F30: 22 | G30: … | H30: … | I30: … | J30: … | K30: X | L30: 2 | M30: x | N30: x | O30: x | P30: x | Q30: x | R30: - | S30: - | T30: - | U30: - | V30: - | W30: - | X30: - | Y30: - | Z30: - | AA30: - | AB30: … | AC30: … | AD30: … | AE30: … | AF30: … | AG30: … | AH30: … | AI30: … | AJ30: … | AK30: … | AL30: … | AM30: … | AN30: … | AO30: … | AP30: … | AQ30: … | AR30: …
A31: 28 | C31: 坂本村 | D31: 202-07 | E31: 633 | F31: 93 | G31: 185 | H31: 146 | I31: 34 | J31: 5 | K31: 24 | L31: 76 | M31: 16 | N31: - | O31: 16 | P31: 1 | Q31: - | R31: 4 | S31: 3 | T31: 1 | U31: - | V31: 1 | W31: 1 | X31: 2 | Y31: - | Z31: - | AA31: - | AB31: 2 | AC31: 2 | AD31: - | AE31: 3 | AF31: 1 | AG31: 1 | AH31: 1 | AI31: 4 | AJ31: - | AK31: 4 | AL31: - | AM31: - | AN31: - | AO31: - | AP31: - | AQ31: 4 | AR31: 2
A32: 29 | C32: 東小沢村 | D32: 202-08 | E32: 475 | F32: 22 | G32: 147 | H32: 116 | I32: 29 | J32: 2 | K32: 14 | L32: 87 | M32: 14 | N32: - | O32: 14 | P32: - | Q32: - | R32: 3 | S32: 3 | T32: - | U32: - | V32: - | W32: 2 | X32: 1 | Y32: - | Z32: - | AA32: - | AB32: - | AC32: 2 | AD32: 1 | AE32: 1 | AF32: 3 | AG32: - | AH32: - | AI32: 3 | AJ32: 1 | AK32: 2 | AL32: - | AM32: - | AN32: - | AO32: 3 | AP32: 2 | AQ32: 2 | AR32: 2
A33: 30 | C33: 黒前村２－１ | D33: 202-09 | E33: 5571 | F33: 4474 | G33: 166 | H33: 114 | I33: 50 | J33: 2 | K33: 36 | L33: 85 | M33: 11 | N33: - | O33: 11 | P33: - | Q33: - | R33: 3 | S33: 1 | T33: 2 | U33: - | V33: - | W33: 3 | X33: - | Y33: - | Z33: - | AA33: - | AB33: - | AC33: - | AD33: - | AE33: - | AF33: 2 | AG33: 1 | AH33: 1 | AI33: 3 | AJ33: - | AK33: 3 | AL33: - | AM33: 1 | AN33: - | AO33: 3 | AP33: - | AQ33: 3 | AR33: -
A34: 31 | C34: 櫛形村 | D34: 202-10 | E34: 1654 | F34: 607 | G34: 235 | H34: 147 | I34: 84 | J34: 4 | K34: 32 | L34: 104 | M34: 37 | N34: 3 | O34: 36 | P34: - | Q34: - | R34: 4 | S34: 1 | T34: 3 | U34: - | V34: 3 | W34: 1 | X34: - | Y34: - | Z34: - | AA34: - | AB34: 1 | AC34: 1 | AD34: - | AE34: - | AF34: 1 | AG34: - | AH34: 2 | AI34: 4 | AJ34: 1 | AK34: 4 | AL34: - | AM34: 3 | AN34: 1 | AO34: 3 | AP34: - | AQ34: 4 | AR34: 1
A35: 32 | B35: 土浦市 | D35: 203-00 | E35: 12289 | F35: 1499 | G35: 3509 | H35: 1978 | I35: 1219 | J35: 312 | K35: 634 | L35: 1204 | M35: 311 | N35: 18 | O35: 306 | P35: 5 | Q35: 5 | R35: 69 | S35: 19 | T35: 42 | U35: 8 | V35: 32 | W35: 18 | X35: 11 | Y35: 8 | Z35: - | AA35: - | AB35: 21 | AC35: 54 | AD35: 25 | AE35: 56 | AF35: 61 | AG35: 28 | AH35: 6 | AI35: 69 | AJ35: 33 | AK35: 63 | AL35: 14 | AM35: 29 | AN35: 15 | AO35: 28 | AP35: 15 | AQ35: 67 | AR35: 50
A36: 33 | C36: 土浦市（旧） | D36: 203-01 | E36: 5814 | F36: 446 | G36: 1418 | H36: 857 | I36: 497 | J36: 64 | K36: 296 | L36: 527 | M36: 135 | N36: 7 | O36: 132 | P36: 2 | Q36: 4 | R36: 37 | S36: 13 | T36: 18 | U36: 6 | V36: 25 | W36: 6 | X36: 2 | Y36: 4 | Z36: - | AA36: - | AB36: 15 | AC36: 27 | AD36: 18 | AE36: 29 | AF36: 32 | AG36: 15 | AH36: 3 | AI36: 37 | AJ36: 23 | AK36: 34 | AL36: 12 | AM36: 13 | AN36: 5 | AO36: 13 | AP36: 12 | AQ36: 35 | AR36: 25
A37: 34 | C37: 上大津村 | D37: 203-02 | E37: 2356 | F37: 291 | G37: 919 | H37: 491 | I37: 286 | J37: 142 | K37: 169 | L37: 324 | M37: 49 | N37: 4 | O37: 49 | P37: 1 | Q37: - | R37: 12 | S37: 2 | T37: 9 | U37: 1 | V37: 3 | W37: 6 | X37: 2 | Y37: 1 | Z37: - | AA37: - | AB37: 3 | AC37: 9 | AD37: 4 | AE37: 8 | AF37: 9 | AG37: 2 | AH37: 3 | AI37: 12 | AJ37: 5 | AK37: 11 | AL37: 1 | AM37: 4 | AN37: 2 | AO37: 2 | AP37: 1 | AQ37: 12 | AR37: 7
A38: 35 | C38: 藤沢村 | D38: 203-03 | E38: 1024 | F38: 101 | G38: 461 | H38: 233 | I38: 173 | J38: 55 | K38: 64 | L38: 109 | M38: 25 | N38: 2 | O38: 24 | P38: 1 | Q38: - | R38: 7 | S38: - | T38: 6 | U38: 1 | V38: 3 | W38: 2 | X38: 2 | Y38: - | Z38: - | AA38: - | AB38: 1 | AC38: 5 | AD38: 1 | AE38: 6 | AF38: 7 | AG38: 6 | AH38: - | AI38: 7 | AJ38: - | AK38: 6 | AL38: - | AM38: 4 | AN38: 2 | AO38: 4 | AP38: - | AQ38: 7 | AR38: 5
A39: 36 | C39: 山ノ荘村 | D39: 203-04 | E39: 1483 | F39: 614 | G39: 395 | H39: 205 | I39: 157 | J39: 33 | K39: 65 | L39: 134 | M39: 69 | N39: 4 | O39: 68 | P39: 1 | Q39: 1 | R39: 6 | S39: 2 | T39: 4 | U39: - | V39: - | W39: 1 | X39: 3 | Y39: 2 | Z39: - | AA39: - | AB39: 1 | AC39: 6 | AD39: 2 | AE39: 6 | AF39: 6 | AG39: 3 | AH39: - | AI39: 6 | AJ39: 2 | AK39: 6 | AL39: 1 | AM39: 4 | AN39: 3 | AO39: 5 | AP39: 2 | AQ39: 6 | AR39: 6
A40: 37 | C40: 斗利出村 | D40: 203-05 | E40: 696 | F40: 47 | G40: 316 | H40: 192 | I40: 106 | J40: 18 | K40: 39 | L40: 110 | M40: 33 | N40: 1 | O40: 33 | P40: - | Q40: - | R40: 7 | S40: 2 | T40: 5 | U40: - | V40: 1 | W40: 3 | X40: 2 | Y40: 1 | Z40: - | AA40: - | AB40: 1 | AC40: 7 | AD40: - | AE40: 7 | AF40: 7 | AG40: 2 | AH40: - | AI40: 7 | AJ40: 3 | AK40: 6 | AL40: - | AM40: 4 | AN40: 3 | AO40: 4 | AP40: - | AQ40: 7 | AR40: 7
A41: 38 | B41: 古河市 | D41: 204-00 | E41: 12358 | F41: 884 | G41: 5147 | H41: 2323 | I41: 2797 | J41: 27 | K41: 564 | L41: 1736 | M41: 251 | N41: 13 | O41: 248 | P41: 1 | Q41: 5 | R41: 101 | S41: 7 | T41: 72 | U41: 22 | V41: 46 | W41: 40 | X41: 11 | Y41: 4 | Z41: - | AA41: - | AB41: 51 | AC41: 90 | AD41: 57 | AE41: 78 | AF41: 76 | AG41: 66 | AH41: 7 | AI41: 101 | AJ41: 13 | AK41: 87 | AL41: 1 | AM41: 3 | AN41: 2 | AO41: 57 | AP41: 47 | AQ41: 95 | AR41: 90
A42: 39 | C42: 古河町 | D42: 204-01 | E42: 813 | F42: 2 | G42: 8 | H42: 5 | I42: 3 | J42: - | K42: 10 | L42: 12 | M42: 1 | N42: - | O42: 1 | P42: - | Q42: - | R42: 3 | S42: 1 | T42: 1 | U42: 1 | V42: 3 | W42: - | X42: - | Y42: - | Z42: - | AA42: - | AB42: - | AC42: - | AD42: - | AE42: - | AF42: - | AG42: - | AH42: 3 | AI42: 3 | AJ42: - | AK42: - | AL42: - | AM42: - | AN42: - | AO42: 3 | AP42: - | AQ42: 1 | AR42: -
A43: 40 | C43: 新郷村 | D43: 204-02 | E43: 1292 | F43: 21 | G43: 337 | H43: 214 | I43: 121 | J43: 2 | K43: 57 | L43: 132 | M43: 33 | N43: - | O43: 33 | P43: - | Q43: - | R43: 12 | S43: 2 | T43: 7 | U43: 3 | V43: 9 | W43: 2 | X43: 1 | Y43: - | Z43: - | AA43: - | AB43: 1 | AC43: 9 | AD43: 3 | AE43: 1 | AF43: - | AG43: 1 | AH43: 3 | AI43: 12 | AJ43: 1 | AK43: 7 | AL43: - | AM43: - | AN43: - | AO43: 7 | AP43: 1 | AQ43: 10 | AR43: 9
A44: 41 | C44: 勝鹿村 | D44: 204-03 | E44: 1079 | F44: 45 | G44: 390 | H44: 192 | I44: 195 | J44: 3 | K44: 63 | L44: 196 | M44: 32 | N44: 1 | O44: 32 | P44: - | Q44: - | R44: 9 | S44: - | T44: 7 | U44: 2 | V44: 5 | W44: 3 | X44: 1 | Y44: - | Z44: - | AA44: - | AB44: 9 | AC44: 9 | AD44: 9 | AE44: 9 | AF44: 7 | AG44: 7 | AH44: - | AI44: 9 | AJ44: - | AK44: 9 | AL44: - | AM44: - | AN44: - | AO44: 4 | AP44: 4 | AQ44: 9 | AR44: 9
A45: 42 | C45: 香取村 | D45: 204-04 | E45: 1551 | F45: 82 | G45: 717 | H45: 343 | I45: 372 | J45: 2 | K45: 94 | L45: 220 | M45: 29 | N45: 1 | O45: 28 | P45: - | Q45: - | R45: 10 | S45: - | T45: 8 | U45: 2 | V45: 3 | W45: 6 | X45: 1 | Y45: - | Z45: - | AA45: - | AB45: 10 | AC45: 10 | AD45: 10 | AE45: 10 | AF45: 10 | AG45: 10 | AH45: - | AI45: 10 | AJ45: 3 | AK45: 10 | AL45: - | AM45: - | AN45: - | AO45: 7 | AP45: 7 | AQ45: 10 | AR45: 10
A46: 43 | C46: 桜井村 | D46: 204-05 | E46: 1298 | F46: 140 | G46: 606 | H46: 212 | I46: 390 | J46: 4 | K46: 52 | L46: 170 | M46: 25 | N46: - | O46: 24 | P46: - | Q46: 1 | R46: 8 | S46: - | T46: 7 | U46: 1 | V46: 3 | W46: 5 | X46: - | Y46: - | Z46: - | AA46: - | AB46: 1 | AC46: 8 | AD46: 1 | AE46: 7 | AF46: 8 | AG46: 8 | AH46: - | AI46: 8 | AJ46: - | AK46: 7 | AL46: - | AM46: - | AN46: - | AO46: 7 | AP46: 7 | AQ46: 8 | AR46: 8
A47: 44 | C47: 岡郷村 | D47: 204-06 | E47: 1349 | F47: 159 | G47: 609 | H47: 282 | I47: 324 | J47: 3 | K47: 53 | L47: 197 | M47: 23 | N47: 2 | O47: 23 | P47: - | Q47: - | R47: 14 | S47: 3 | T47: 9 | U47: 2 | V47: 5 | W47: 5 | X47: 1 | Y47: 3 | Z47: - | AA47: - | AB47: 2 | AC47: 13 | AD47: - | AE47: 8 | AF47: 10 | AG47: 4 | AH47: 1 | AI47: 14 | AJ47: 5 | AK47: 11 | AL47: - | AM47: - | AN47: - | AO47: 10 | AP47: 10 | AQ47: 13 | AR47: 13
A48: 45 | C48: 幸島村 | D48: 204-07 | E48: 2147 | F48: 288 | G48: 974 | H48: 468 | I48: 495 | J48: 11 | K48: 94 | L48: 318 | M48: 34 | N48: 3 | O48: 33 | P48: 1 | Q48: 3 | R48: 20 | S48: - | T48: 17 | U48: 3 | V48: 9 | W48: 9 | X48: 2 | Y48: - | Z48: - | AA48: - | AB48: 8 | AC48: 18 | AD48: 13 | AE48: 20 | AF48: 17 | AG48: 14 | AH48: - | AI48: 20 | AJ48: 2 | AK48: 20 | AL48: 1 | AM48: - | AN48: - | AO48: 8 | AP48: 8 | AQ48: 19 | AR48: 18
A49: 46 | C49: 名崎村２－１ | D49: 204-08 | E49: 1365 | F49: 78 | G49: 675 | H49: 249 | I49: 424 | J49: 2 | K49: 95 | L49: 213 | M49: 32 | N49: 2 | O49: 32 | P49: - | Q49: 1 | R49: 10 | S49: - | T49: 7 | U49: 3 | V49: 4 | W49: 4 | X49: 2 | Y49: - | Z49: - | AA49: - | AB49: 8 | AC49: 9 | AD49: 9 | AE49: 8 | AF49: 9 | AG49: 8 | AH49: - | AI49: 10 | AJ49: - | AK49: 10 | AL49: - | AM49: 1 | AN49: 1 | AO49: 7 | AP49: 6 | AQ49: 10 | AR49: 9
A50: 47 | C50: 八俣村 | D50: 204-09 | E50: 1464 | F50: 69 | G50: 831 | H50: 358 | I50: 473 | J50: - | K50: 45 | L50: 278 | M50: 42 | N50: 4 | O50: 42 | P50: - | Q50: - | R50: 15 | S50: 1 | T50: 9 | U50: 5 | V50: 5 | W50: 6 | X50: 3 | Y50: 1 | Z50: - | AA50: - | AB50: 12 | AC50: 14 | AD50: 12 | AE50: 15 | AF50: 15 | AG50: 14 | AH50: - | AI50: 15 | AJ50: 2 | AK50: 13 | AL50: - | AM50: 2 | AN50: 1 | AO50: 4 | AP50: 4 | AQ50: 15 | AR50: 14
A51: 48 | B51: 石岡市 | D51: 205-00 | E51: 21553 | F51: 8732 | G51: 6626 | H51: 3077 | I51: 2436 | J51: 1113 | K51: 1355 | L51: 2670 | M51: 717 | N51: 26 | O51: 703 | P51: 35 | Q51: 8 | R51: 165 | S51: 27 | T51: 97 | U51: 41 | V51: 22 | W51: 32 | X51: 68 | Y51: 41 | Z51: 2 | AA51: - | AB51: 53 | AC51: 102 | AD51: 88 | AE51: 163 | AF51: 154 | AG51: 98 | AH51: - | AI51: 165 | AJ51: 53 | AK51: 153 | AL51: 24 | AM51: 49 | AN51: 12 | AO51: 127 | AP51: 62 | AQ51: 159 | AR51: 96
A52: 49 | C52: 石岡町 | D52: 205-01 | E52: 3150 | F52: 406 | G52: 980 | H52: 393 | I52: 405 | J52: 182 | K52: 263 | L52: 373 | M52: 90 | N52: 6 | O52: 85 | P52: 2 | Q52: 1 | R52: 23 | S52: 2 | T52: 14 | U52: 7 | V52: 10 | W52: 9 | X52: 4 | Y52: - | Z52: - | AA52: - | AB52: 3 | AC52: 10 | AD52: 5 | AE52: 23 | AF52: 21 | AG52: 3 | AH52: - | AI52: 23 | AJ52: 4 | AK52: 23 | AL52: 1 | AM52: 5 | AN52: - | AO52: 11 | AP52: 1 | AQ52: 22 | AR52: 10
A53: 50 | C53: 高浜町 | D53: 205-02 | E53: 1112 | F53: 230 | G53: 375 | H53: 233 | I53: 111 | J53: 31 | K53: 66 | L53: 163 | M53: 25 | N53: 2 | O53: 24 | P53: - | Q53: 1 | R53: 7 | S53: 3 | T53: 3 | U53: 1 | V53: 2 | W53: 1 | X53: 2 | Y53: 2 | Z53: - | AA53: - | AB53: 2 | AC53: 4 | AD53: 2 | AE53: 7 | AF53: 6 | AG53: 7 | AH53: - | AI53: 7 | AJ53: 2 | AK53: 7 | AL53: 1 | AM53: 2 | AN53: - | AO53: 5 | AP53: 4 | AQ53: 6 | AR53: 4
A54: 51 | C54: 三村 | D54: 205-03 | E54: 1012 | F54: 187 | G54: 532 | H54: 238 | I54: 183 | J54: 111 | K54: 116 | L54: 170 | M54: 34 | N54: - | O54: 33 | P54: - | Q54: 1 | R54: 15 | S54: 3 | T54: 5 | U54: 7 | V54: - | W54: 1 | X54: 9 | Y54: 4 | Z54: 1 | AA54: - | AB54: - | AC54: 6 | AD54: 2 | AE54: 15 | AF54: 15 | AG54: 14 | AH54: - | AI54: 15 | AJ54: 4 | AK54: 13 | AL54: 3 | AM54: 7 | AN54: 2 | AO54: 5 | AP54: 1 | AQ54: 13 | AR54: 6
A55: 52 | C55: 関川村 | D55: 205-04 | E55: 734 | F55: 135 | G55: 402 | H55: 212 | I55: 158 | J55: 32 | K55: 85 | L55: 147 | M55: 27 | N55: 2 | O55: 26 | P55: - | Q55: 1 | R55: 7 | S55: 4 | T55: 1 | U55: 2 | V55: - | W55: 1 | X55: 3 | Y55: 3 | Z55: - | AA55: - | AB55: - | AC55: 2 | AD55: - | AE55: 7 | AF55: 6 | AG55: 7 | AH55: - | AI55: 7 | AJ55: 1 | AK55: 7 | AL55: - | AM55: 5 | AN55: - | AO55: 1 | AP55: 1 | AQ55: 7 | AR55: 2
A56: 53 | C56: 柿岡町 | D56: 205-05 | E56: 1008 | F56: 272 | G56: 365 | H56: 216 | I56: 94 | J56: 55 | K56: 77 | L56: 146 | M56: 41 | N56: 3 | O56: 39 | P56: - | Q56: - | R56: 15 | S56: 2 | T56: 11 | U56: 2 | V56: 5 | W56: 6 | X56: 4 | Y56: - | Z56: - | AA56: - | AB56: 2 | AC56: 11 | AD56: 8 | AE56: 14 | AF56: 14 | AG56: 8 | AH56: - | AI56: 15 | AJ56: 6 | AK56: 12 | AL56: 4 | AM56: 6 | AN56: 4 | AO56: 13 | AP56: 6 | AQ56: 14 | AR56: 11
A57: 54 | C57: 小幡村 | D57: 205-06 | E57: 2273 | F57: 1348 | G57: 484 | H57: 248 | I57: 130 | J57: 106 | K57: 111 | L57: 238 | M57: 82 | N57: 3 | O57: 82 | P57: 11 | Q57: - | R57: 21 | S57: 6 | T57: 10 | U57: 5 | V57: 1 | W57: 4 | X57: 10 | Y57: 6 | Z57: - | AA57: - | AB57: 3 | AC57: 8 | AD57: 13 | AE57: 21 | AF57: 20 | AG57: 4 | AH57: - | AI57: 21 | AJ57: 1 | AK57: 18 | AL57: 2 | AM57: 3 | AN57: 1 | AO57: 18 | AP57: 8 | AQ57: 20 | AR57: 7
A58: 55 | C58: 葦穂村 | D58: 205-07 | E58: 2410 | F58: 1340 | G58: 581 | H58: 287 | I58: 203 | J58: 91 | K58: 141 | L58: 258 | M58: 79 | N58: 1 | O58: 79 | P58: 7 | Q58: - | R58: 8 | S58: - | T58: 8 | U58: - | V58: - | W58: 1 | X58: 5 | Y58: 2 | Z58: - | AA58: - | AB58: 2 | AC58: 5 | AD58: 6 | AE58: 7 | AF58: 8 | AG58: 4 | AH58: - | AI58: 8 | AJ58: 1 | AK58: 8 | AL58: 2 | AM58: 3 | AN58: - | AO58: 8 | AP58: 2 | AQ58: 8 | AR58: 3
A59: 56 | C59: 恋瀬村 | D59: 205-08 | E59: 2285 | F59: 1635 | G59: 488 | H59: 275 | I59: 180 | J59: 33 | K59: 102 | L59: 181 | M59: 48 | N59: 1 | O59: 47 | P59: - | Q59: - | R59: 14 | S59: 3 | T59: 9 | U59: 2 | V59: - | W59: - | X59: 11 | Y59: 3 | Z59: - | AA59: - | AB59: 13 | AC59: 14 | AD59: 14 | AE59: 14 | AF59: 13 | AG59: 10 | AH59: - | AI59: 14 | AJ59: 13 | AK59: 12 | AL59: 2 | AM59: 1 | AN59: - | AO59: 13 | AP59: 10 | AQ59: 14 | AR59: 14
A60: 57 | C60: 瓦会村 | D60: 205-09 | E60: 1584 | F60: 753 | G60: 468 | H60: 251 | I60: 189 | J60: 28 | K60: 72 | L60: 227 | M60: 71 | N60: 2 | O60: 71 | P60: 2 | Q60: - | R60: 11 | S60: - | T60: 11 | U60: - | V60: - | W60: - | X60: 6 | Y60: 5 | Z60: - | AA60: - | AB60: 11 | AC60: 11 | AD60: 11 | AE60: 11 | AF60: 11 | AG60: 10 | AH60: - | AI60: 11 | AJ60: 11 | AK60: 10 | AL60: - | AM60: 4 | AN60: 3 | AO60: 11 | AP60: 9 | AQ60: 11 | AR60: 11
A61: 58 | C61: 園部村 | D61: 205-10 | E61: 2012 | F61: 655 | G61: 977 | H61: 216 | I61: 397 | J61: 364 | K61: 133 | L61: 336 | M61: 89 | N61: 1 | O61: 88 | P61: 1 | Q61: 2 | R61: 21 | S61: 1 | T61: 7 | U61: 13 | V61: 3 | W61: 7 | X61: 6 | Y61: 5 | Z61: - | AA61: - | AB61: 8 | AC61: 10 | AD61: 10 | AE61: 21 | AF61: 21 | AG61: 21 | AH61: - | AI61: 21 | AJ61: 1 | AK61: 20 | AL61: 1 | AM61: 3 | AN61: 1 | AO61: 19 | AP61: 8 | AQ61: 21 | AR61: 10
A62: 59 | C62: 林村 | D62: 205-11 | E62: 1679 | F62: 595 | G62: 474 | H62: 228 | I62: 214 | J62: 32 | K62: 98 | L62: 215 | M62: 48 | N62: 2 | O62: 47 | P62: 2 | Q62: 1 | R62: 13 | S62: 3 | T62: 8 | U62: 2 | V62: 1 | W62: 1 | X62: 4 | Y62: 6 | Z62: 1 | AA62: - | AB62: 3 | AC62: 12 | AD62: 10 | AE62: 13 | AF62: 10 | AG62: 5 | AH62: - | AI62: 13 | AJ62: 3 | AK62: 13 | AL62: 3 | AM62: 7 | AN62: 1 | AO62: 13 | AP62: 5 | AQ62: 13 | AR62: 10
A63: 60 | C63: 小桜村 | D63: 205-12 | E63: 2294 | F63: 1176 | G63: 500 | H63: 280 | I63: 172 | J63: 48 | K63: 92 | L63: 216 | M63: 83 | N63: 3 | O63: 82 | P63: 10 | Q63: 1 | R63: 10 | S63: - | T63: 10 | U63: - | V63: - | W63: 1 | X63: 4 | Y63: 5 | Z63: - | AA63: - | AB63: 6 | AC63: 9 | AD63: 7 | AE63: 10 | AF63: 9 | AG63: 5 | AH63: - | AI63: 10 | AJ63: 6 | AK63: 10 | AL63: 5 | AM63: 3 | AN63: - | AO63: 10 | AP63: 7 | AQ63: 10 | AR63: 8
A64: 61 | B64: 結城市 | D64: 207-00 | E64: 6576 | F64: 236 | G64: 3365 | H64: 1696 | I64: 1634 | J64: 35 | K64: 302 | L64: 1051 | M64: 171 | N64: 6 | O64: 168 | P64: 4 | Q64: - | R64: 80 | S64: 20 | T64: 47 | U64: 13 | V64: 26 | W64: 27 | X64: 22 | Y64: 5 | Z64: - | AA64: - | AB64: 37 | AC64: 75 | AD64: 63 | AE64: 66 | AF64: 73 | AG64: 45 | AH64: - | AI64: 80 | AJ64: 1 | AK64: 51 | AL64: 11 | AM64: 1 | AN64: 1 | AO64: 44 | AP64: 10 | AQ64: 80 | AR64: 56
A65: 62 | C65: 結城町 | D65: 207-01 | E65: 1941 | F65: 43 | G65: 725 | H65: 417 | I65: 292 | J65: 16 | K65: 90 | L65: 253 | M65: 47 | N65: 1 | O65: 47 | P65: 3 | Q65: - | R65: 21 | S65: 7 | T65: 11 | U65: 3 | V65: 15 | W65: 5 | X65: 1 | Y65: - | Z65: - | AA65: - | AB65: 14 | AC65: 20 | AD65: 13 | AE65: 15 | AF65: 16 | AG65: 7 | AH65: - | AI65: 21 | AJ65: 1 | AK65: 8 | AL65: 1 | AM65: - | AN65: - | AO65: 10 | AP65: 5 | AQ65: 21 | AR65: 16
A66: 63 | C66: 絹川村 | D66: 207-02 | E66: 636 | F66: 3 | G66: 239 | H66: 187 | I66: 52 | J66: - | K66: 37 | L66: 70 | M66: 17 | N66: 1 | O66: 16 | P66: - | Q66: - | R66: 11 | S66: 6 | T66: 5 | U66: - | V66: 6 | W66: 5 | X66: - | Y66: - | Z66: - | AA66: - | AB66: 2 | AC66: 9 | AD66: 11 | AE66: 11 | AF66: 11 | AG66: 9 | AH66: - | AI66: 11 | AJ66: - | AK66: 2 | AL66: 1 | AM66: 1 | AN66: 1 | AO66: 9 | AP66: 1 | AQ66: 11 | AR66: 7
A67: 64 | C67: 上山川村 | D67: 207-03 | E67: 1022 | F67: 74 | G67: 529 | H67: 265 | I67: 247 | J67: 17 | K67: 58 | L67: 148 | M67: 28 | N67: - | O67: 28 | P67: 1 | Q67: - | R67: 12 | S67: 2 | T67: 7 | U67: 3 | V67: 1 | W67: 8 | X67: 3 | Y67: - | Z67: - | AA67: - | AB67: 4 | AC67: 10 | AD67: 10 | AE67: 11 | AF67: 11 | AG67: 7 | AH67: - | AI67: 12 | AJ67: - | AK67: 11 | AL67: 2 | AM67: - | AN67: - | AO67: 7 | AP67: 1 | AQ67: 12 | AR67: 7
A68: 65 | C68: 山川村 | D68: 207-04 | E68: 1113 | F68: 12 | G68: 793 | H68: 448 | I68: 345 | J68: 0 | K68: 28 | L68: 247 | M68: 51 | N68: 2 | O68: 51 | P68: - | Q68: - | R68: 17 | S68: 5 | T68: 11 | U68: 1 | V68: 2 | W68: 4 | X68: 8 | Y68: 3 | Z68: - | AA68: - | AB68: - | AC68: 17 | AD68: 17 | AE68: 17 | AF68: 16 | AG68: 14 | AH68: - | AI68: 17 | AJ68: - | AK68: 12 | AL68: - | AM68: - | AN68: - | AO68: 6 | AP68: 1 | AQ68: 17 | AR68: 7
A69: 66 | C69: 江川村 | D69: 207-05 | E69: 1864 | F69: 104 | G69: 1079 | H69: 379 | I69: 698 | J69: 2 | K69: 89 | L69: 333 | M69: 28 | N69: 2 | O69: 26 | P69: - | Q69: - | R69: 19 | S69: - | T69: 13 | U69: 6 | V69: 2 | W69: 5 | X69: 10 | Y69: 2 | Z69: - | AA69: - | AB69: 17 | AC69: 19 | AD69: 12 | AE69: 12 | AF69: 19 | AG69: 8 | AH69: - | AI69: 19 | AJ69: - | AK69: 18 | AL69: 7 | AM69: - | AN69: - | AO69: 12 | AP69: 2 | AQ69: 19 | AR69: 19
A70: 67 | B70: 龍ケ崎市 | D70: 208-00 | E70: 7855 | F70: 629 | G70: 2719 | H70: 2301 | I70: 402 | J70: 16 | K70: 292 | L70: 669 | M70: 123 | N70: 3 | O70: 122 | P70: 2 | Q70: 1 | R70: 57 | S70: 45 | T70: 9 | U70: 3 | V70: 27 | W70: 21 | X70: 7 | Y70: 1 | Z70: - | AA70: 1 | AB70: 11 | AC70: 35 | AD70: 23 | AE70: 28 | AF70: 35 | AG70: 15 | AH70: 14 | AI70: 56 | AJ70: 37 | AK70: 24 | AL70: 2 | AM70: 8 | AN70: 1 | AO70: 44 | AP70: 9 | AQ70: 56 | AR70: 34
A71: 68 | C71: 長戸村 | D71: 208-01 | E71: 1104 | F71: 184 | G71: 449 | H71: 395 | I71: 50 | J71: 4 | K71: 50 | L71: 104 | M71: 12 | N71: 1 | O71: 12 | P71: - | Q71: - | R71: 5 | S71: 5 | T71: - | U71: - | V71: 1 | W71: 4 | X71: - | Y71: - | Z71: - | AA71: - | AB71: 4 | AC71: 4 | AD71: 4 | AE71: 4 | AF71: 4 | AG71: 3 | AH71: 1 | AI71: 5 | AJ71: 2 | AK71: 4 | AL71: 1 | AM71: 1 | AN71: 1 | AO71: 5 | AP71: 2 | AQ71: 5 | AR71: 4
A72: 69 | C72: 龍ヶ崎町 | D72: 208-02 | E72: 725 | F72: 3 | G72: 183 | H72: 173 | I72: 10 | J72: - | K72: 10 | L72: 29 | M72: 6 | N72: 1 | O72: 6 | P72: - | Q72: 1 | R72: 6 | S72: 5 | T72: - | U72: 1 | V72: 6 | W72: - | X72: - | Y72: - | Z72: - | AA72: - | AB72: - | AC72: 5 | AD72: - | AE72: 1 | AF72: 2 | AG72: - | AH72: - | AI72: 5 | AJ72: 4 | AK72: 1 | AL72: - | AM72: - | AN72: - | AO72: 5 | AP72: 1 | AQ72: 6 | AR72: 5
A73: 70 | C73: 川原代村 | D73: 208-03 | E73: 508 | F73: - | G73: 193 | H73: 178 | I73: 15 | J73: - | K73: 8 | L73: 64 | M73: 15 | N73: - | O73: 15 | P73: - | Q73: - | R73: 8 | S73: 8 | T73: - | U73: - | V73: 4 | W73: 2 | X73: 1 | Y73: 1 | Z73: - | AA73: - | AB73: 1 | AC73: 6 | AD73: 1 | AE73: 4 | AF73: 5 | AG73: 3 | AH73: 1 | AI73: 8 | AJ73: 7 | AK73: - | AL73: - | AM73: 1 | AN73: - | AO73: 6 | AP73: 3 | AQ73: 8 | AR73: 7
A74: 71 | C74: 馴柴村 | D74: 208-04 | E74: 1899 | F74: 137 | G74: 375 | H74: 307 | I74: 65 | J74: 3 | K74: 78 | L74: 84 | M74: 21 | N74: 1 | O74: 20 | P74: - | Q74: - | R74: 9 | S74: 6 | T74: 2 | U74: 1 | V74: 8 | W74: 1 | X74: - | Y74: - | Z74: - | AA74: - | AB74: 1 | AC74: - | AD74: 2 | AE74: 1 | AF74: 1 | AG74: - | AH74: 6 | AI74: 9 | AJ74: 5 | AK74: 7 | AL74: - | AM74: 3 | AN74: - | AO74: 9 | AP74: 1 | AQ74: 9 | AR74: 1
A75: 72 | C75: 八原村 | D75: 208-05 | E75: 1944 | F75: 297 | G75: 487 | H75: 265 | I75: 215 | J75: 7 | K75: 116 | L75: 121 | M75: 20 | N75: - | O75: 20 | P75: 2 | Q75: - | R75: 7 | S75: 3 | T75: 3 | U75: 1 | V75: 4 | W75: 1 | X75: 2 | Y75: - | Z75: - | AA75: - | AB75: - | AC75: 2 | AD75: 1 | AE75: 2 | AF75: 2 | AG75: 2 | AH75: 5 | AI75: 7 | AJ75: 1 | AK75: 7 | AL75: 1 | AM75: 1 | AN75: - | AO75: 6 | AP75: - | AQ75: 7 | AR75: 2
A76: 73 | C76: 北文間村 | D76: 208-06 | E76: 626 | F76: 8 | G76: 344 | H76: 325 | I76: 18 | J76: 1 | K76: 13 | L76: 108 | M76: 22 | N76: - | O76: 22 | P76: - | Q76: - | R76: 7 | S76: 7 | T76: - | U76: - | V76: - | W76: 4 | X76: 3 | Y76: - | Z76: - | AA76: - | AB76: - | AC76: 5 | AD76: 2 | AE76: 4 | AF76: 6 | AG76: - | AH76: 1 | AI76: 7 | AJ76: 7 | AK76: 2 | AL76: - | AM76: 1 | AN76: - | AO76: 6 | AP76: 2 | AQ76: 7 | AR76: 6
A77: 74 | C77: 大宮村 | D77: 208-07 | E77: 930 | F77: - | G77: 621 | H77: 593 | I77: 27 | J77: 1 | K77: 17 | L77: 142 | M77: 25 | N77: - | O77: 25 | P77: - | Q77: - | R77: 14 | S77: 10 | T77: 4 | U77: - | V77: 4 | W77: 8 | X77: 1 | Y77: - | Z77: - | AA77: 1 | AB77: 5 | AC77: 12 | AD77: 12 | AE77: 12 | AF77: 14 | AG77: 7 | AH77: - | AI77: 14 | AJ77: 10 | AK77: 2 | AL77: - | AM77: 1 | AN77: - | AO77: 6 | AP77: - | AQ77: 13 | AR77: 8
A78: 75 | C78: 高須村２－２ | D78: 208-08 | E78: 119 | F78: - | G78: 67 | H78: 65 | I78: 2 | J78: - | K78: 0 | L78: 17 | M78: 2 | N78: - | O78: 2 | P78: - | Q78: - | R78: 1 | S78: 1 | T78: - | U78: - | V78: - | W78: 1 | X78: - | Y78: - | Z78: - | AA78: - | AB78: - | AC78: 1 | AD78: 1 | AE78: - | AF78: 1 | AG78: - | AH78: - | AI78: 1 | AJ78: 1 | AK78: 1 | AL78: - | AM78: - | AN78: - | AO78: 1 | AP78: - | AQ78: 1 | AR78: 1
A79: 76 | B79: 下妻市 | D79: 210-00 | E79: 8088 | F79: 383 | G79: 4363 | H79: 3027 | I79: 1091 | J79: 245 | K79: 352 | L79: 1297 | M79: 215 | N79: 4 | O79: 213 | P79: - | Q79: 2 | R79: 79 | S79: 40 | T79: 31 | U79: 8 | V79: 17 | W79: 35 | X79: 20 | Y79: 7 | Z79: - | AA79: - | AB79: 65 | AC79: 70 | AD79: 69 | AE79: 75 | AF79: 75 | AG79: 53 | AH79: - | AI79: 79 | AJ79: 17 | AK79: 38 | AL79: 1 | AM79: 1 | AN79: 1 | AO79: 39 | AP79: 5 | AQ79: 79 | AR79: 40
A80: 77 | C80: 下妻町 | D80: 210-01 | E80: 582 | F80: 16 | G80: 69 | H80: 30 | I80: 36 | J80: 3 | K80: 52 | L80: 41 | M80: 4 | N80: - | O80: 4 | P80: - | Q80: - | R80: 5 | S80: - | T80: 4 | U80: 1 | V80: 5 | W80: - | X80: - | Y80: - | Z80: - | AA80: - | AB80: - | AC80: 2 | AD80: 3 | AE80: 3 | AF80: 5 | AG80: 2 | AH80: - | AI80: 5 | AJ80: - | AK80: 3 | AL80: - | AM80: - | AN80: - | AO80: 3 | AP80: - | AQ80: 5 | AR80: 1
A81: 78 | C81: 大宝村 | D81: 210-02 | E81: 912 | F81: 31 | G81: 546 | H81: 420 | I81: 79 | J81: 47 | K81: 36 | L81: 144 | M81: 16 | N81: - | O81: 16 | P81: - | Q81: - | R81: 11 | S81: 8 | T81: 2 | U81: 1 | V81: 2 | W81: 7 | X81: 2 | Y81: - | Z81: - | AA81: - | AB81: 9 | AC81: 11 | AD81: 10 | AE81: 9 | AF81: 9 | AG81: 6 | AH81: - | AI81: 11 | AJ81: 4 | AK81: 6 | AL81: 1 | AM81: - | AN81: - | AO81: 3 | AP81: 1 | AQ81: 11 | AR81: 10
A82: 79 | C82: 騰波ノ江村 | D82: 210-03 | E82: 686 | F82: 13 | G82: 458 | H82: 331 | I82: 28 | J82: 99 | K82: 31 | L82: 139 | M82: 10 | N82: - | O82: 10 | P82: - | Q82: - | R82: 10 | S82: 5 | T82: 2 | U82: 3 | V82: - | W82: 7 | X82: 3 | Y82: - | Z82: - | AA82: - | AB82: 10 | AC82: 9 | AD82: 9 | AE82: 10 | AF82: 9 | AG82: 7 | AH82: - | AI82: 10 | AJ82: 1 | AK82: 8 | AL82: - | AM82: - | AN82: - | AO82: 5 | AP82: - | AQ82: 10 | AR82: 7
A83: 80 | C83: 上妻村 | D83: 210-04 | E83: 1784 | F83: 144 | G83: 915 | H83: 468 | I83: 358 | J83: 89 | K83: 102 | L83: 255 | M83: 57 | N83: 2 | O83: 56 | P83: - | Q83: - | R83: 12 | S83: 1 | T83: 10 | U83: 1 | V83: 2 | W83: 3 | X83: 5 | Y83: 2 | Z83: - | AA83: - | AB83: 5 | AC83: 11 | AD83: 6 | AE83: 12 | AF83: 11 | AG83: 8 | AH83: - | AI83: 12 | AJ83: 4 | AK83: 11 | AL83: - | AM83: - | AN83: - | AO83: 6 | AP83: 3 | AQ83: 12 | AR83: 6
A84: 81 | C84: 総上村 | D84: 210-05 | E84: 672 | F84: 16 | G84: 404 | H84: 290 | I84: 114 | J84: - | K84: 35 | L84: 96 | M84: 18 | N84: 1 | O84: 18 | P84: - | Q84: 1 | R84: 6 | S84: 4 | T84: 1 | U84: 1 | V84: 2 | W84: 3 | X84: 1 | Y84: - | Z84: - | AA84: - | AB84: 6 | AC84: 6 | AD84: 6 | AE84: 6 | AF84: 6 | AG84: 1 | AH84: - | AI84: 6 | AJ84: - | AK84: 2 | AL84: - | AM84: - | AN84: - | AO84: - | AP84: - | AQ84: 6 | AR84: 5
A85: 82 | C85: 豊加美村 | D85: 210-06 | E85: 708 | F85: 9 | G85: 479 | H85: 394 | I85: 83 | J85: 2 | K85: 9 | L85: 180 | M85: 32 | N85: - | O85: 32 | P85: - | Q85: - | R85: 7 | S85: 4 | T85: 3 | U85: - | V85: - | W85: 2 | X85: 3 | Y85: 2 | Z85: - | AA85: - | AB85: 7 | AC85: 7 | AD85: 7 | AE85: 7 | AF85: 7 | AG85: 1 | AH85: - | AI85: 7 | AJ85: 4 | AK85: 2 | AL85: - | AM85: - | AN85: - | AO85: - | AP85: - | AQ85: 7 | AR85: 7
A86: 83 | C86: 高道祖村 | D86: 210-07 | E86: 757 | F86: 88 | G86: 388 | H86: 272 | I86: 116 | J86: - | K86: 19 | L86: 95 | M86: 11 | N86: 1 | O86: 10 | P86: - | Q86: 1 | R86: 4 | S86: 2 | T86: 2 | U86: - | V86: 2 | W86: 2 | X86: - | Y86: - | Z86: - | AA86: - | AB86: 4 | AC86: 3 | AD86: 4 | AE86: 4 | AF86: 4 | AG86: 4 | AH86: - | AI86: 4 | AJ86: 1 | AK86: 4 | AL86: - | AM86: 1 | AN86: 1 | AO86: 2 | AP86: - | AQ86: 4 | AR86: 1
A87: 84 | C87: 大形村 | D87: 210-08 | E87: 933 | F87: 56 | G87: 461 | H87: 213 | I87: 243 | J87: 5 | K87: 53 | L87: 136 | M87: 15 | N87: - | O87: 15 | P87: - | Q87: - | R87: 8 | S87: 1 | T87: 6 | U87: 1 | V87: 1 | W87: 5 | X87: 1 | Y87: 1 | Z87: - | AA87: - | AB87: 8 | AC87: 6 | AD87: 8 | AE87: 8 | AF87: 8 | AG87: 8 | AH87: - | AI87: 8 | AJ87: - | AK87: 2 | AL87: - | AM87: - | AN87: - | AO87: 6 | AP87: - | AQ87: 8 | AR87: -
A88: 85 | C88: 蚕飼村 | D88: 210-09 | E88: 303 | F88: 8 | G88: 173 | H88: 153 | I88: 20 | J88: - | K88: 1 | L88: 70 | M88: 14 | N88: - | O88: 14 | P88: - | Q88: - | R88: 5 | S88: 4 | T88: 1 | U88: - | V88: - | W88: 2 | X88: 2 | Y88: 1 | Z88: - | AA88: - | AB88: 5 | AC88: 4 | AD88: 5 | AE88: 5 | AF88: 5 | AG88: 5 | AH88: - | AI88: 5 | AJ88: 2 | AK88: - | AL88: - | AM88: - | AN88: - | AO88: 4 | AP88: 1 | AQ88: 5 | AR88: 2
A89: 86 | C89: 玉村２－１ | D89: 210-10 | E89: 248 | F89: 1 | G89: 182 | H89: 178 | I89: 4 | J89: - | K89: 4 | L89: 50 | M89: 12 | N89: - | O89: 12 | P89: - | Q89: - | R89: 3 | S89: 3 | T89: - | U89: - | V89: 1 | W89: 1 | X89: 1 | Y89: - | Z89: - | AA89: - | AB89: 3 | AC89: 3 | AD89: 3 | AE89: 3 | AF89: 3 | AG89: 3 | AH89: - | AI89: 3 | AJ89: - | AK89: - | AL89: - | AM89: - | AN89: - | AO89: 3 | AP89: - | AQ89: 3 | AR89: -
A90: 87 | C90: 宗道村 | D90: 210-11 | E90: 503 | F90: 1 | G90: 288 | H90: 278 | I90: 10 | J90: - | K90: 11 | L90: 91 | M90: 26 | N90: - | O90: 26 | P90: - | Q90: - | R90: 8 | S90: 8 | T90: - | U90: - | V90: 2 | W90: 3 | X90: 2 | Y90: 1 | Z90: - | AA90: - | AB90: 8 | AC90: 8 | AD90: 8 | AE90: 8 | AF90: 8 | AG90: 8 | AH90: - | AI90: 8 | AJ90: 1 | AK90: - | AL90: - | AM90: - | AN90: - | AO90: 7 | AP90: - | AQ90: 8 | AR90: 1
A91: 88 | B91: 常総市 | D91: 211-00 | E91: 12364 | F91: 602 | G91: 6026 | H91: 4612 | I91: 1383 | J91: 31 | K91: 504 | L91: 1970 | M91: 432 | N91: 10 | O91: 430 | P91: 3 | Q91: 4 | R91: 154 | S91: 95 | T91: 35 | U91: 24 | V91: 29 | W91: 64 | X91: 45 | Y91: 13 | Z91: 2 | AA91: 1 | AB91: 77 | AC91: 131 | AD91: 104 | AE91: 131 | AF91: 135 | AG91: 70 | AH91: 4 | AI91: 152 | AJ91: 5 | AK91: 51 | AL91: 2 | AM91: 13 | AN91: 8 | AO91: 79 | AP91: 22 | AQ91: 150 | AR91: 109
A92: 89 | C92: 水海道町 | D92: 211-01 | E92: 492 | F92: 4 | G92: 107 | H92: 66 | I92: 41 | J92: 0 | K92: 16 | L92: 43 | M92: 11 | N92: 1 | O92: 11 | P92: 1 | Q92: - | R92: 7 | S92: 1 | T92: 3 | U92: 3 | V92: 6 | W92: 1 | X92: - | Y92: - | Z92: - | AA92: - | AB92: 3 | AC92: 4 | AD92: 5 | AE92: 5 | AF92: 4 | AG92: 4 | AH92: 2 | AI92: 5 | AJ92: - | AK92: 2 | AL92: - | AM92: - | AN92: - | AO92: - | AP92: - | AQ92: 5 | AR92: 3
A93: 90 | C93: 坂手村 | D93: 211-02 | E93: 804 | F93: 69 | G93: 262 | H93: 168 | I93: 90 | J93: 4 | K93: 56 | L93: 91 | M93: 7 | N93: 1 | O93: 7 | P93: - | Q93: - | R93: 11 | S93: 4 | T93: 3 | U93: 4 | V93: 1 | W93: 6 | X93: 4 | Y93: - | Z93: - | AA93: - | AB93: 1 | AC93: 4 | AD93: 4 | AE93: 8 | AF93: 8 | AG93: 1 | AH93: 1 | AI93: 11 | AJ93: - | AK93: 1 | AL93: - | AM93: - | AN93: - | AO93: 2 | AP93: - | AQ93: 11 | AR93: -
A94: 91 | C94: 豊岡村 | D94: 211-03 | E94: 872 | F94: 68 | G94: 399 | H94: 333 | I94: 66 | J94: - | K94: 44 | L94: 129 | M94: 34 | N94: 1 | O94: 34 | P94: - | Q94: - | R94: 12 | S94: 7 | T94: 4 | U94: 1 | V94: 4 | W94: 2 | X94: 5 | Y94: 1 | Z94: - | AA94: - | AB94: 2 | AC94: 9 | AD94: 3 | AE94: 11 | AF94: 11 | AG94: 6 | AH94: - | AI94: 12 | AJ94: - | AK94: 3 | AL94: - | AM94: 2 | AN94: 1 | AO94: 6 | AP94: 1 | AQ94: 12 | AR94: 7
A95: 92 | C95: 菅原村 | D95: 211-04 | E95: 909 | F95: 44 | G95: 509 | H95: 377 | I95: 127 | J95: 5 | K95: 49 | L95: 208 | M95: 44 | N95: - | O95: 44 | P95: - | Q95: 1 | R95: 11 | S95: 7 | T95: 2 | U95: 2 | V95: - | W95: 1 | X95: 8 | Y95: 1 | Z95: 1 | AA95: - | AB95: 1 | AC95: 10 | AD95: 4 | AE95: 9 | AF95: 10 | AG95: 7 | AH95: - | AI95: 11 | AJ95: 1 | AK95: 5 | AL95: 1 | AM95: - | AN95: - | AO95: 5 | AP95: 2 | AQ95: 11 | AR95: 10
A96: 93 | C96: 大花羽村 | D96: 211-05 | E96: 597 | F96: 29 | G96: 278 | H96: 218 | I96: 59 | J96: 1 | K96: 26 | L96: 59 | M96: 5 | N96: - | O96: 5 | P96: - | Q96: - | R96: 7 | S96: 3 | T96: 4 | U96: - | V96: - | W96: 6 | X96: 1 | Y96: - | Z96: - | AA96: - | AB96: 2 | AC96: 6 | AD96: 2 | AE96: 7 | AF96: 7 | AG96: 2 | AH96: - | AI96: 7 | AJ96: - | AK96: 3 | AL96: - | AM96: - | AN96: - | AO96: 3 | AP96: 2 | AQ96: 7 | AR96: 6
A97: 94 | C97: 三妻村 | D97: 211-06 | E97: 806 | F97: 2 | G97: 470 | H97: 441 | I97: 28 | J97: 1 | K97: 4 | L97: 124 | M97: 27 | N97: - | O97: 27 | P97: 1 | Q97: - | R97: 15 | S97: 14 | T97: 1 | U97: - | V97: 5 | W97: 6 | X97: 3 | Y97: 1 | Z97: - | AA97: - | AB97: 7 | AC97: 13 | AD97: 5 | AE97: 9 | AF97: 10 | AG97: 6 | AH97: - | AI97: 15 | AJ97: 1 | AK97: - | AL97: - | AM97: - | AN97: - | AO97: 3 | AP97: - | AQ97: 15 | AR97: 8
A98: 95 | C98: 五箇村 | D98: 211-07 | E98: 722 | F98: - | G98: 448 | H98: 390 | I98: 58 | J98: - | K98: 12 | L98: 173 | M98: 49 | N98: - | O98: 48 | P98: - | Q98: 1 | R98: 9 | S98: 9 | T98: - | U98: - | V98: - | W98: 2 | X98: 4 | Y98: 3 | Z98: - | AA98: - | AB98: 8 | AC98: 8 | AD98: 7 | AE98: 7 | AF98: 8 | AG98: 3 | AH98: 1 | AI98: 9 | AJ98: - | AK98: - | AL98: - | AM98: 3 | AN98: - | AO98: 3 | AP98: - | AQ98: 9 | AR98: 7
A99: 96 | C99: 大生村 | D99: 211-08 | E99: 784 | F99: 3 | G99: 500 | H99: 465 | I99: 35 | J99: - | K99: 15 | L99: 160 | M99: 53 | N99: - | O99: 53 | P99: - | Q99: - | R99: 11 | S99: 11 | T99: - | U99: - | V99: - | W99: 4 | X99: 4 | Y99: 3 | Z99: - | AA99: - | AB99: 4 | AC99: 9 | AD99: 10 | AE99: 10 | AF99: 8 | AG99: 5 | AH99: - | AI99: 11 | AJ99: - | AK99: 4 | AL99: - | AM99: - | AN99: - | AO99: 10 | AP99: 2 | AQ99: 11 | AR99: 8
A100: 97 | C100: 内守谷村 | D100: 211-09 | E100: 570 | F100: 45 | G100: 149 | H100: 101 | I100: 45 | J100: 3 | K100: 39 | L100: 39 | M100: 8 | N100: - | O100: 8 | P100: - | Q100: - | R100: 4 | S100: 2 | T100: 2 | U100: - | V100: 2 | W100: 2 | X100: - | Y100: - | Z100: - | AA100: - | AB100: 1 | AC100: 3 | AD100: 3 | AE100: 4 | AF100: 4 | AG100: 2 | AH100: - | AI100: 4 | AJ100: - | AK100: 4 | AL100: - | AM100: - | AN100: - | AO100: 3 | AP100: - | AQ100: 4 | AR100: 3
A101: 98 | C101: 菅生村 | D101: 211-10 | E101: 1183 | F101: 114 | G101: 543 | H101: 309 | I101: 231 | J101: 3 | K101: 92 | L101: 133 | M101: 25 | N101: 1 | O101: 25 | P101: - | Q101: 1 | R101: 15 | S101: 2 | T101: 7 | U101: 6 | V101: - | W101: 8 | X101: 6 | Y101: 1 | Z101: - | AA101: - | AB101: 4 | AC101: 14 | AD101: 12 | AE101: 9 | AF101: 13 | AG101: 7 | AH101: - | AI101: 15 | AJ101: 1 | AK101: 11 | AL101: - | AM101: 6 | AN101: 6 | AO101: 4 | AP101: - | AQ101: 15 | AR101: 10
A102: 99 | C102: 十和村２－２ | D102: 211-11 | E102: 107 | F102: - | G102: 60 | H102: 43 | I102: 15 | J102: 2 | K102: 7 | L102: 14 | M102: 5 | N102: - | O102: 5 | P102: - | Q102: - | R102: 1 | S102: 1 | T102: - | U102: - | V102: - | W102: 1 | X102: - | Y102: - | Z102: - | AA102: - | AB102: - | AC102: 1 | AD102: - | AE102: 1 | AF102: 1 | AG102: 1 | AH102: - | AI102: 1 | AJ102: - | AK102: - | AL102: - | AM102: - | AN102: - | AO102: 1 | AP102: - | AQ102: 1 | AR102: 1
A103: 100 | C103: 真瀬村２－２ | D103: 211-12 | E103: 130 | F103: - | G103: 86 | H103: 84 | I103: 2 | J103: - | K103: 0 | L103: 28 | M103: 10 | N103: - | O103: 10 | P103: - | Q103: - | R103: 1 | S103: 1 | T103: - | U103: - | V103: - | W103: - | X103: - | Y103: 1 | Z103: - | AA103: - | AB103: 1 | AC103: 1 | AD103: 1 | AE103: 1 | AF103: 1 | AG103: 1 | AH103: - | AI103: 1 | AJ103: 1 | AK103: 1 | AL103: - | AM103: 1 | AN103: 1 | AO103: 1 | AP103: 1 | AQ103: 1 | AR103: 1
A104: 101 | C104: 石下町 | D104: 211-13 | E104: 849 | F104: 6 | G104: 364 | H104: 317 | I104: 47 | J104: - | K104: 7 | L104: 135 | M104: 25 | N104: 1 | O104: 25 | P104: 1 | Q104: - | R104: 15 | S104: 12 | T104: 1 | U104: 2 | V104: 6 | W104: 7 | X104: 2 | Y104: - | Z104: - | AA104: - | AB104: 15 | AC104: 15 | AD104: 14 | AE104: 15 | AF104: 15 | AG104: 2 | AH104: - | AI104: 15 | AJ104: - | AK104: 1 | AL104: 1 | AM104: - | AN104: - | AO104: 12 | AP104: - | AQ104: 15 | AR104: 13
A105: 102 | C105: 玉村２－２ | D105: 211-14 | E105: 406 | F105: 17 | G105: 246 | H105: 218 | I105: 27 | J105: 1 | K105: 6 | L105: 100 | M105: 31 | N105: 1 | O105: 31 | P105: - | Q105: 1 | R105: 3 | S105: 3 | T105: - | U105: - | V105: - | W105: 3 | X105: - | Y105: - | Z105: - | AA105: - | AB105: 3 | AC105: 3 | AD105: 3 | AE105: 3 | AF105: 3 | AG105: 2 | AH105: - | AI105: 3 | AJ105: - | AK105: 1 | AL105: - | AM105: 1 | AN105: - | AO105: 3 | AP105: - | AQ105: 3 | AR105: 3
A106: 103 | C106: 豊田村 | D106: 211-15 | E106: 616 | F106: 5 | G106: 334 | H106: 297 | I106: 37 | J106: - | K106: 5 | L106: 137 | M106: 34 | N106: 1 | O106: 34 | P106: - | Q106: - | R106: 9 | S106: 8 | T106: 1 | U106: - | V106: 1 | W106: 4 | X106: 3 | Y106: 1 | Z106: - | AA106: - | AB106: 9 | AC106: 9 | AD106: 9 | AE106: 9 | AF106: 9 | AG106: 3 | AH106: - | AI106: 9 | AJ106: - | AK106: - | AL106: - | AM106: - | AN106: - | AO106: 9 | AP106: - | AQ106: 9 | AR106: 8
A107: 104 | C107: 岡田村（常総市） | D107: 211-16 | E107: 846 | F107: 62 | G107: 363 | H107: 214 | I107: 147 | J107: 2 | K107: 49 | L107: 130 | M107: 25 | N107: - | O107: 25 | P107: - | Q107: - | R107: 7 | S107: 3 | T107: 4 | U107: - | V107: 4 | W107: 3 | X107: - | Y107: - | Z107: - | AA107: - | AB107: 5 | AC107: 7 | AD107: 6 | AE107: 7 | AF107: 7 | AG107: 6 | AH107: - | AI107: 7 | AJ107: - | AK107: 7 | AL107: - | AM107: - | AN107: - | AO107: 7 | AP107: 7 | AQ107: 7 | AR107: 7
A108: 105 | C108: 飯沼村 | D108: 211-17 | E108: 1671 | F108: 130 | G108: 908 | H108: 571 | I108: 328 | J108: 9 | K108: 76 | L108: 267 | M108: 39 | N108: 3 | O108: 38 | P108: - | Q108: - | R108: 16 | S108: 7 | T108: 3 | U108: 6 | V108: - | W108: 8 | X108: 5 | Y108: 1 | Z108: 1 | AA108: 1 | AB108: 11 | AC108: 15 | AD108: 16 | AE108: 16 | AF108: 16 | AG108: 12 | AH108: - | AI108: 16 | AJ108: 1 | AK108: 8 | AL108: - | AM108: - | AN108: - | AO108: 7 | AP108: 7 | AQ108: 14 | AR108: 14
A109: 106 | B109: 常陸太田市 | D109: 212-00 | E109: 37199 | F109: 24759 | G109: 5194 | H109: 3390 | I109: 1573 | J109: 231 | K109: 1014 | L109: 2559 | M109: 505 | N109: 16 | O109: 495 | P109: 48 | Q109: 4 | R109: 232 | S109: 75 | T109: 127 | U109: 30 | V109: 18 | W109: 62 | X109: 86 | Y109: 44 | Z109: 14 | AA109: 8 | AB109: 139 | AC109: 198 | AD109: 188 | AE109: 209 | AF109: 202 | AG109: 190 | AH109: 18 | AI109: 232 | AJ109: 63 | AK109: 224 | AL109: 34 | AM109: 59 | AN109: 34 | AO109: 207 | AP109: 111 | AQ109: 225 | AR109: 185
A110: 107 | C110: 太田町 | D110: 212-01 | E110: 303 | F110: 3 | G110: 33 | H110: 30 | I110: 3 | J110: - | K110: 2 | L110: 13 | M110: 4 | N110: 1 | O110: 3 | P110: - | Q110: - | R110: 3 | S110: 3 | T110: - | U110: - | V110: 3 | W110: - | X110: - | Y110: - | Z110: - | AA110: - | AB110: - | AC110: - | AD110: - | AE110: - | AF110: - | AG110: - | AH110: 3 | AI110: 3 | AJ110: - | AK110: 3 | AL110: - | AM110: - | AN110: - | AO110: - | AP110: - | AQ110: 3 | AR110: -
A111: 108 | C111: 機初村 | D111: 212-02 | E111: 1472 | F111: 690 | G111: 321 | H111: 221 | I111: 96 | J111: 4 | K111: 47 | L111: 221 | M111: 47 | N111: - | O111: 46 | P111: 1 | Q111: 1 | R111: 11 | S111: 5 | T111: 6 | U111: - | V111: 1 | W111: 3 | X111: 1 | Y111: 5 | Z111: - | AA111: 1 | AB111: 5 | AC111: 10 | AD111: 10 | AE111: 11 | AF111: 10 | AG111: 11 | AH111: - | AI111: 11 | AJ111: - | AK111: 10 | AL111: - | AM111: 2 | AN111: 1 | AO111: 6 | AP111: 4 | AQ111: 11 | AR111: 9
A112: 109 | C112: 世矢村 | D112: 212-03 | E112: 1536 | F112: 678 | G112: 395 | H112: 260 | I112: 123 | J112: 12 | K112: 89 | L112: 206 | M112: 60 | N112: 1 | O112: 59 | P112: 9 | Q112: - | R112: 20 | S112: 8 | T112: 10 | U112: 2 | V112: 4 | W112: 6 | X112: 6 | Y112: 4 | Z112: - | AA112: - | AB112: 10 | AC112: 20 | AD112: 12 | AE112: 20 | AF112: 16 | AG112: 20 | AH112: - | AI112: 20 | AJ112: 16 | AK112: 18 | AL112: 12 | AM112: 9 | AN112: 6 | AO112: 20 | AP112: 20 | AQ112: 19 | AR112: 19
A113: 110 | C113: 西小沢村 | D113: 212-04 | E113: 586 | F113: 67 | G113: 338 | H113: 271 | I113: 55 | J113: 12 | K113: 30 | L113: 174 | M113: 34 | N113: 1 | O113: 34 | P113: - | Q113: 1 | R113: 9 | S113: 7 | T113: 2 | U113: - | V113: - | W113: 1 | X113: 5 | Y113: 3 | Z113: - | AA113: - | AB113: 7 | AC113: 9 | AD113: 9 | AE113: 9 | AF113: 8 | AG113: 9 | AH113: - | AI113: 9 | AJ113: - | AK113: 5 | AL113: - | AM113: - | AN113: - | AO113: 4 | AP113: 3 | AQ113: 9 | AR113: 9
A114: 111 | C114: 幸久村 | D114: 212-05 | E114: 751 | F114: 91 | G114: 450 | H114: 360 | I114: 88 | J114: 2 | K114: 30 | L114: 213 | M114: 22 | N114: - | O114: 22 | P114: - | Q114: - | R114: 8 | S114: 6 | T114: 2 | U114: - | V114: - | W114: 1 | X114: 2 | Y114: 3 | Z114: 1 | AA114: 1 | AB114: 8 | AC114: 8 | AD114: 8 | AE114: 8 | AF114: 8 | AG114: 5 | AH114: - | AI114: 8 | AJ114: - | AK114: 8 | AL114: - | AM114: - | AN114: - | AO114: 8 | AP114: - | AQ114: 8 | AR114: 8
A115: 112 | C115: 佐竹村 | D115: 212-06 | E115: 824 | F115: 185 | G115: 341 | H115: 278 | I115: 56 | J115: 7 | K115: 38 | L115: 155 | M115: 17 | N115: 1 | O115: 16 | P115: 2 | Q115: - | R115: 8 | S115: 5 | T115: 3 | U115: - | V115: 1 | W115: 3 | X115: 2 | Y115: 1 | Z115: 1 | AA115: - | AB115: 8 | AC115: 8 | AD115: 6 | AE115: 8 | AF115: 8 | AG115: 5 | AH115: - | AI115: 8 | AJ115: - | AK115: 8 | AL115: - | AM115: 4 | AN115: 1 | AO115: 4 | AP115: - | AQ115: 8 | AR115: 8
A116: 113 | C116: 誉田村 | D116: 212-07 | E116: 2167 | F116: 1077 | G116: 260 | H116: 127 | I116: 86 | J116: 47 | K116: 88 | L116: 117 | M116: 60 | N116: - | O116: 60 | P116: 31 | Q116: - | R116: 11 | S116: 2 | T116: 8 | U116: 1 | V116: 2 | W116: 4 | X116: 5 | Y116: - | Z116: - | AA116: - | AB116: 2 | AC116: 10 | AD116: 9 | AE116: 10 | AF116: 9 | AG116: 7 | AH116: 1 | AI116: 11 | AJ116: 3 | AK116: 11 | AL116: - | AM116: 4 | AN116: 1 | AO116: 11 | AP116: 5 | AQ116: 10 | AR116: 9
A117: 114 | C117: 佐都村 | D117: 212-08 | E117: 1373 | F117: 945 | G117: 206 | H117: 106 | I117: 92 | J117: 8 | K117: 50 | L117: 110 | M117: 30 | N117: - | O117: 30 | P117: - | Q117: - | R117: 11 | S117: 1 | T117: 9 | U117: 1 | V117: - | W117: 4 | X117: 4 | Y117: 2 | Z117: - | AA117: 1 | AB117: 10 | AC117: 11 | AD117: 11 | AE117: 11 | AF117: 11 | AG117: 10 | AH117: - | AI117: 11 | AJ117: 1 | AK117: 10 | AL117: - | AM117: 2 | AN117: 1 | AO117: 10 | AP117: 10 | AQ117: 11 | AR117: 11
A118: 115 | C118: 河内村２－１ | D118: 212-09 | E118: 1939 | F118: 1436 | G118: 120 | H118: 62 | I118: 54 | J118: 4 | K118: 66 | L118: 30 | M118: 10 | N118: 2 | O118: 9 | P118: 1 | Q118: - | R118: 13 | S118: - | T118: 13 | U118: - | V118: - | W118: 8 | X118: 4 | Y118: - | Z118: 1 | AA118: - | AB118: - | AC118: - | AD118: - | AE118: - | AF118: - | AG118: - | AH118: 13 | AI118: 13 | AJ118: 3 | AK118: 13 | AL118: - | AM118: - | AN118: - | AO118: 13 | AP118: 6 | AQ118: 13 | AR118: -
A119: 116 | C119: 郡戸村 | D119: 212-10 | E119: 959 | F119: 251 | G119: 410 | H119: 346 | I119: 59 | J119: 5 | K119: 39 | L119: 242 | M119: 36 | N119: 3 | O119: 35 | P119: - | Q119: - | R119: 11 | S119: 11 | T119: - | U119: - | V119: - | W119: 3 | X119: 3 | Y119: 5 | Z119: - | AA119: - | AB119: - | AC119: 9 | AD119: 11 | AE119: 11 | AF119: 11 | AG119: 11 | AH119: - | AI119: 11 | AJ119: 2 | AK119: 11 | AL119: - | AM119: 1 | AN119: - | AO119: 11 | AP119: 2 | AQ119: 11 | AR119: 9
A120: 117 | C120: 久米村 | D120: 212-11 | E120: 1228 | F120: 503 | G120: 383 | H120: 321 | I120: 61 | J120: 1 | K120: 54 | L120: 207 | M120: 34 | N120: 2 | O120: 33 | P120: - | Q120: - | R120: 10 | S120: 8 | T120: 2 | U120: - | V120: 2 | W120: 3 | X120: 3 | Y120: 1 | Z120: 1 | AA120: - | AB120: 1 | AC120: 10 | AD120: 10 | AE120: 10 | AF120: 9 | AG120: 10 | AH120: - | AI120: 10 | AJ120: 3 | AK120: 10 | AL120: - | AM120: 6 | AN120: 3 | AO120: 10 | AP120: 3 | AQ120: 10 | AR120: 10
A121: 118 | C121: 金郷村 | D121: 212-12 | E121: 1741 | F121: 674 | G121: 460 | H121: 324 | I121: 124 | J121: 12 | K121: 79 | L121: 246 | M121: 33 | N121: 1 | O121: 32 | P121: 1 | Q121: 1 | R121: 13 | S121: 6 | T121: 7 | U121: - | V121: - | W121: 1 | X121: 7 | Y121: 4 | Z121: - | AA121: 1 | AB121: 13 | AC121: 13 | AD121: 13 | AE121: 13 | AF121: 13 | AG121: 13 | AH121: - | AI121: 13 | AJ121: 2 | AK121: 13 | AL121: 1 | AM121: 8 | AN121: 8 | AO121: 12 | AP121: 12 | AQ121: 13 | AR121: 13
A122: 119 | C122: 金砂村 | D122: 212-13 | E122: 2236 | F122: 1436 | G122: 245 | H122: 93 | I122: 141 | J122: 11 | K122: 91 | L122: 90 | M122: 16 | N122: - | O122: 16 | P122: - | Q122: - | R122: 18 | S122: - | T122: 15 | U122: 3 | V122: - | W122: 5 | X122: 11 | Y122: 2 | Z122: - | AA122: - | AB122: 18 | AC122: 18 | AD122: 18 | AE122: 18 | AF122: 18 | AG122: 18 | AH122: - | AI122: 18 | AJ122: 11 | AK122: 18 | AL122: - | AM122: 2 | AN122: 1 | AO122: 18 | AP122: - | AQ122: 18 | AR122: 18
A123: 120 | C123: 天下野村 | D123: 212-14 | E123: 1751 | F123: 1212 | G123: 129 | H123: 36 | I123: 79 | J123: 14 | K123: 53 | L123: 26 | M123: 5 | N123: - | O123: 5 | P123: - | Q123: - | R123: 13 | S123: - | T123: 6 | U123: 7 | V123: 1 | W123: 6 | X123: 5 | Y123: 1 | Z123: - | AA123: - | AB123: 8 | AC123: 10 | AD123: 9 | AE123: 9 | AF123: 9 | AG123: 13 | AH123: - | AI123: 13 | AJ123: - | AK123: 13 | AL123: - | AM123: 3 | AN123: 2 | AO123: 13 | AP123: 2 | AQ123: 13 | AR123: 8
A124: 121 | C124: 染和田村 | D124: 212-15 | E124: 2337 | F124: 1815 | G124: 237 | H124: 107 | I124: 111 | J124: 19 | K124: 76 | L124: 90 | M124: 15 | N124: 1 | O124: 14 | P124: - | Q124: - | R124: 14 | S124: 1 | T124: 11 | U124: 2 | V124: 1 | W124: 3 | X124: 6 | Y124: 2 | Z124: 2 | AA124: - | AB124: 11 | AC124: 13 | AD124: 11 | AE124: 14 | AF124: 14 | AG124: 14 | AH124: - | AI124: 14 | AJ124: 9 | AK124: 14 | AL124: 4 | AM124: 5 | AN124: 3 | AO124: 14 | AP124: 10 | AQ124: 14 | AR124: 13
A125: 122 | C125: 高倉村 | D125: 212-16 | E125: 2522 | F125: 2021 | G125: 86 | H125: 15 | I125: 62 | J125: 9 | K125: 28 | L125: 21 | M125: 5 | N125: - | O125: 5 | P125: - | Q125: - | R125: 10 | S125: - | T125: 1 | U125: 9 | V125: 1 | W125: 1 | X125: 6 | Y125: - | Z125: 2 | AA125: - | AB125: 6 | AC125: 8 | AD125: 9 | AE125: 10 | AF125: 10 | AG125: 9 | AH125: - | AI125: 10 | AJ125: 4 | AK125: 10 | AL125: 3 | AM125: 2 | AN125: - | AO125: 10 | AP125: 4 | AQ125: 9 | AR125: 3
A126: 123 | C126: 山田村 | D126: 212-17 | E126: 1375 | F126: 784 | G126: 247 | H126: 108 | I126: 117 | J126: 22 | K126: 58 | L126: 111 | M126: 33 | N126: 1 | O126: 33 | P126: 2 | Q126: - | R126: 16 | S126: 1 | T126: 11 | U126: 4 | V126: 1 | W126: 4 | X126: 4 | Y126: 5 | Z126: 2 | AA126: - | AB126: 16 | AC126: 11 | AD126: 16 | AE126: 16 | AF126: 16 | AG126: 16 | AH126: - | AI126: 16 | AJ126: 6 | AK126: 16 | AL126: - | AM126: 8 | AN126: 6 | AO126: 10 | AP126: 3 | AQ126: 12 | AR126: 9
A127: 124 | C127: 河内村２－２ | D127: 212-18 | E127: 103 | F127: 78 | G127: 9 | H127: 4 | I127: 4 | J127: 1 | K127: 7 | L127: - | M127: - | N127: - | O127: - | P127: - | Q127: - | R127: 1 | S127: - | T127: 1 | U127: - | V127: - | W127: 1 | X127: - | Y127: - | Z127: - | AA127: - | AB127: - | AC127: - | AD127: - | AE127: 1 | AF127: 1 | AG127: 1 | AH127: - | AI127: 1 | AJ127: - | AK127: 1 | AL127: - | AM127: - | AN127: - | AO127: 1 | AP127: - | AQ127: 1 | AR127: -
A128: 125 | C128: 小里村 | D128: 212-19 | E128: 7367 | F128: 6545 | G128: 335 | H128: 220 | I128: 95 | J128: 20 | K128: 48 | L128: 200 | M128: 30 | N128: 1 | O128: 30 | P128: 1 | Q128: 1 | R128: 16 | S128: 9 | T128: 6 | U128: 1 | V128: - | W128: 2 | X128: 7 | Y128: 1 | Z128: 3 | AA128: 3 | AB128: 6 | AC128: 16 | AD128: 15 | AE128: 16 | AF128: 16 | AG128: 16 | AH128: - | AI128: 16 | AJ128: 2 | AK128: 16 | AL128: 9 | AM128: 2 | AN128: 1 | AO128: 16 | AP128: 16 | AQ128: 16 | AR128: 16
A129: 126 | C129: 賀美村 | D129: 212-20 | E129: 4629 | F129: 4268 | G129: 189 | H129: 101 | I129: 67 | J129: 21 | K129: 41 | L129: 87 | M129: 14 | N129: 1 | O129: 13 | P129: - | Q129: - | R129: 16 | S129: 2 | T129: 14 | U129: - | V129: 1 | W129: 3 | X129: 5 | Y129: 5 | Z129: 1 | AA129: 1 | AB129: 10 | AC129: 14 | AD129: 11 | AE129: 14 | AF129: 15 | AG129: 2 | AH129: 1 | AI129: 16 | AJ129: 1 | AK129: 16 | AL129: 5 | AM129: 1 | AN129: - | AO129: 16 | AP129: 11 | AQ129: 16 | AR129: 13
A130: 127 | B130: 高萩市 | D130: 214-00 | E130: 19358 | F130: 15450 | G130: 782 | H130: 568 | I130: 201 | J130: 13 | K130: 190 | L130: 358 | M130: 131 | N130: 8 | O130: 128 | P130: - | Q130: - | R130: 17 | S130: 10 | T130: 7 | U130: - | V130: 7 | W130: 5 | X130: 2 | Y130: 1 | Z130: 2 | AA130: - | AB130: 14 | AC130: 17 | AD130: 13 | AE130: 17 | AF130: 13 | AG130: 14 | AH130: - | AI130: 17 | AJ130: 7 | AK130: 17 | AL130: 2 | AM130: 5 | AN130: 3 | AO130: 13 | AP130: 11 | AQ130: 17 | AR130: 17
A131: 128 | C131: 高萩町 | D131: 214-01 | E131: 2121 | F131: 798 | G131: 231 | H131: 182 | I131: 47 | J131: 2 | K131: 36 | L131: 140 | M131: 57 | N131: 2 | O131: 55 | P131: - | Q131: - | R131: 6 | S131: 4 | T131: 2 | U131: - | V131: 4 | W131: 2 | X131: - | Y131: - | Z131: - | AA131: - | AB131: 6 | AC131: 6 | AD131: 3 | AE131: 6 | AF131: 5 | AG131: 5 | AH131: - | AI131: 6 | AJ131: 4 | AK131: 6 | AL131: - | AM131: 2 | AN131: 2 | AO131: 2 | AP131: 2 | AQ131: 6 | AR131: 6
A132: 129 | C132: 松岡町 | D132: 214-02 | E132: 3234 | F132: 2023 | G132: 307 | H132: 229 | I132: 73 | J132: 5 | K132: 82 | L132: 120 | M132: 54 | N132: 1 | O132: 53 | P132: - | Q132: - | R132: 4 | S132: 2 | T132: 2 | U132: - | V132: 3 | W132: 1 | X132: - | Y132: - | Z132: - | AA132: - | AB132: 3 | AC132: 4 | AD132: 4 | AE132: 4 | AF132: 2 | AG132: 2 | AH132: - | AI132: 4 | AJ132: 2 | AK132: 4 | AL132: - | AM132: 2 | AN132: 1 | AO132: 4 | AP132: 4 | AQ132: 4 | AR132: 4
A133: 130 | C133: 高岡村 | D133: 214-03 | E133: 13545 | F133: 12183 | G133: 238 | H133: 152 | I133: 80 | J133: 6 | K133: X | L133: 93 | M133: 20 | N133: 5 | O133: 20 | P133: - | Q133: - | R133: 6 | S133: 3 | T133: 3 | U133: - | V133: - | W133: 2 | X133: 2 | Y133: - | Z133: 2 | AA133: - | AB133: 4 | AC133: 6 | AD133: 5 | AE133: 6 | AF133: 5 | AG133: 6 | AH133: - | AI133: 6 | AJ133: 1 | AK133: 6 | AL133: 2 | AM133: 1 | AN133: - | AO133: 6 | AP133: 5 | AQ133: 6 | AR133: 6
A134: 131 | C134: 黒前村２－２ | D134: 214-04 | E134: 458 | F134: 446 | G134: 6 | H134: 5 | I134: 1 | J134: - | K134: X | L134: 5 | M134: - | N134: - | O134: - | P134: - | Q134: - | R134: 1 | S134: 1 | T134: - | U134: - | V134: - | W134: - | X134: - | Y134: 1 | Z134: - | AA134: - | AB134: 1 | AC134: 1 | AD134: 1 | AE134: 1 | AF134: 1 | AG134: 1 | AH134: - | AI134: 1 | AJ134: - | AK134: 1 | AL134: - | AM134: - | AN134: - | AO134: 1 | AP134: - | AQ134: 1 | AR134: 1
A135: 132 | B135: 北茨城市 | D135: 215-00 | E135: 18680 | F135: 12727 | G135: 1467 | H135: 1148 | I135: 295 | J135: 24 | K135: 331 | L135: 822 | M135: 328 | N135: 5 | O135: 325 | P135: 1 | Q135: 5 | R135: 44 | S135: 30 | T135: 11 | U135: 3 | V135: 24 | W135: 13 | X135: 5 | Y135: 2 | Z135: - | AA135: - | AB135: 32 | AC135: 37 | AD135: 31 | AE135: 34 | AF135: 32 | AG135: 26 | AH135: 5 | AI135: 44 | AJ135: 17 | AK135: 43 | AL135: 13 | AM135: 20 | AN135: 12 | AO135: 35 | AP135: 25 | AQ135: 42 | AR135: 37
A136: 133 | C136: 南中郷村 | D136: 215-01 | E136: 2779 | F136: 1232 | G136: 423 | H136: 326 | I136: 90 | J136: 7 | K136: 67 | L136: 198 | M136: 80 | N136: 1 | O136: 79 | P136: - | Q136: - | R136: 8 | S136: 5 | T136: 3 | U136: - | V136: 8 | W136: - | X136: - | Y136: - | Z136: - | AA136: - | AB136: 6 | AC136: 8 | AD136: 8 | AE136: 8 | AF136: 7 | AG136: 7 | AH136: - | AI136: 8 | AJ136: 3 | AK136: 8 | AL136: - | AM136: 5 | AN136: 4 | AO136: 8 | AP136: 8 | AQ136: 8 | AR136: 8
A137: 134 | C137: 磯原町 | D137: 215-02 | E137: 2750 | F137: 1504 | G137: 309 | H137: 237 | I137: 67 | J137: 5 | K137: 76 | L137: 178 | M137: 72 | N137: 1 | O137: 72 | P137: - | Q137: 1 | R137: 9 | S137: 6 | T137: 2 | U137: 1 | V137: 4 | W137: 2 | X137: 3 | Y137: - | Z137: - | AA137: - | AB137: 7 | AC137: 7 | AD137: 8 | AE137: 8 | AF137: 8 | AG137: 8 | AH137: - | AI137: 9 | AJ137: 1 | AK137: 8 | AL137: 3 | AM137: 3 | AN137: 1 | AO137: 9 | AP137: 4 | AQ137: 9 | AR137: 7
A138: 135 | C138: 華川村 | D138: 215-03 | E138: 5082 | F138: 3985 | G138: 222 | H138: 171 | I138: 45 | J138: 6 | K138: 58 | L138: 141 | M138: 62 | N138: 3 | O138: 60 | P138: 1 | Q138: 4 | R138: 8 | S138: 7 | T138: 1 | U138: - | V138: 3 | W138: 3 | X138: 2 | Y138: - | Z138: - | AA138: - | AB138: 7 | AC138: 8 | AD138: 4 | AE138: 8 | AF138: 5 | AG138: 3 | AH138: - | AI138: 8 | AJ138: 7 | AK138: 8 | AL138: 5 | AM138: 4 | AN138: 1 | AO138: 7 | AP138: 4 | AQ138: 8 | AR138: 8
A139: 136 | C139: 関南村 | D139: 215-04 | E139: 1428 | F139: 787 | G139: 200 | H139: 160 | I139: 38 | J139: 2 | K139: 42 | L139: 115 | M139: 42 | N139: - | O139: 42 | P139: - | Q139: - | R139: 5 | S139: 4 | T139: 1 | U139: - | V139: 1 | W139: 3 | X139: - | Y139: 1 | Z139: - | AA139: - | AB139: 3 | AC139: 5 | AD139: 4 | AE139: 2 | AF139: 5 | AG139: 2 | AH139: - | AI139: 5 | AJ139: - | AK139: 5 | AL139: 1 | AM139: 3 | AN139: 3 | AO139: 4 | AP139: 2 | AQ139: 5 | AR139: 5
A140: 137 | C140: 大津町 | D140: 215-05 | E140: 389 | F140: 95 | G140: 24 | H140: 18 | I140: 6 | J140: - | K140: X | L140: 16 | M140: x | N140: x | O140: x | P140: x | Q140: x | R140: 4 | S140: 3 | T140: - | U140: 1 | V140: 4 | W140: - | X140: - | Y140: - | Z140: - | AA140: - | AB140: 2 | AC140: 2 | AD140: 1 | AE140: 1 | AF140: 1 | AG140: 1 | AH140: 2 | AI140: 4 | AJ140: - | AK140: 4 | AL140: - | AM140: - | AN140: - | AO140: - | AP140: - | AQ140: 3 | AR140: 2
A141: 138 | C141: 平潟町 | D141: 215-06 | E141: 137 | F141: 60 | G141: 5 | H141: 2 | I141: 3 | J141: - | K141: X | L141: 1 | M141: x | N141: x | O141: x | P141: x | Q141: x | R141: 3 | S141: - | T141: 2 | U141: 1 | V141: 3 | W141: - | X141: - | Y141: - | Z141: - | AA141: - | AB141: - | AC141: - | AD141: - | AE141: - | AF141: - | AG141: - | AH141: 3 | AI141: 3 | AJ141: - | AK141: 3 | AL141: - | AM141: 1 | AN141: - | AO141: - | AP141: - | AQ141: 2 | AR141: -
A142: 139 | C142: 関本村 | D142: 215-07 | E142: 6115 | F142: 5064 | G142: 284 | H142: 234 | I142: 46 | J142: 4 | K142: 75 | L142: 173 | M142: 65 | N142: - | O142: 65 | P142: - | Q142: - | R142: 7 | S142: 5 | T142: 2 | U142: - | V142: 1 | W142: 5 | X142: - | Y142: 1 | Z142: - | AA142: - | AB142: 7 | AC142: 7 | AD142: 6 | AE142: 7 | AF142: 6 | AG142: 5 | AH142: - | AI142: 7 | AJ142: 6 | AK142: 7 | AL142: 4 | AM142: 4 | AN142: 3 | AO142: 7 | AP142: 7 | AQ142: 7 | AR142: 7
A143: 140 | B143: 笠間市 | D143: 216-00 | E143: 24040 | F143: 10047 | G143: 5254 | H143: 2766 | I143: 1504 | J143: 984 | K143: 911 | L143: 2615 | M143: 546 | N143: 26 | O143: 534 | P143: 5 | Q143: 5 | R143: 198 | S143: 39 | T143: 122 | U143: 37 | V143: 47 | W143: 50 | X143: 50 | Y143: 37 | Z143: 11 | AA143: 3 | AB143: 74 | AC143: 168 | AD143: 144 | AE143: 189 | AF143: 171 | AG143: 132 | AH143: 5 | AI143: 194 | AJ143: 37 | AK143: 184 | AL143: 26 | AM143: 93 | AN143: 60 | AO143: 176 | AP143: 96 | AQ143: 187 | AR143: 164
A144: 141 | C144: 笠間町 | D144: 216-01 | E144: 1275 | F144: 356 | G144: 246 | H144: 144 | I144: 90 | J144: 12 | K144: 51 | L144: 122 | M144: 27 | N144: 1 | O144: 26 | P144: 1 | Q144: - | R144: 24 | S144: 4 | T144: 12 | U144: 8 | V144: 17 | W144: 4 | X144: 1 | Y144: 1 | Z144: - | AA144: 1 | AB144: 2 | AC144: 8 | AD144: 2 | AE144: 16 | AF144: 11 | AG144: 6 | AH144: 4 | AI144: 22 | AJ144: 3 | AK144: 14 | AL144: 2 | AM144: 3 | AN144: 2 | AO144: 24 | AP144: 5 | AQ144: 17 | AR144: 6
A145: 142 | C145: 大池田村 | D145: 216-02 | E145: 3227 | F145: 2017 | G145: 432 | H145: 248 | I145: 162 | J145: 22 | K145: 84 | L145: 235 | M145: 39 | N145: 1 | O145: 38 | P145: - | Q145: - | R145: 13 | S145: 2 | T145: 10 | U145: 1 | V145: - | W145: - | X145: 4 | Y145: 7 | Z145: 2 | AA145: - | AB145: 2 | AC145: 13 | AD145: 8 | AE145: 13 | AF145: 13 | AG145: 2 | AH145: - | AI145: 13 | AJ145: 4 | AK145: 13 | AL145: 2 | AM145: 10 | AN145: 2 | AO145: 13 | AP145: 7 | AQ145: 13 | AR145: 13
A146: 143 | C146: 北山内村 | D146: 216-03 | E146: 3316 | F146: 1929 | G146: 443 | H146: 309 | I146: 112 | J146: 22 | K146: 102 | L146: 252 | M146: 61 | N146: 2 | O146: 59 | P146: - | Q146: 1 | R146: 17 | S146: 8 | T146: 9 | U146: - | V146: - | W146: 5 | X146: 5 | Y146: 7 | Z146: - | AA146: - | AB146: 5 | AC146: 17 | AD146: 13 | AE146: 17 | AF146: 17 | AG146: 7 | AH146: - | AI146: 17 | AJ146: 6 | AK146: 17 | AL146: 2 | AM146: 10 | AN146: 7 | AO146: 17 | AP146: 10 | AQ146: 17 | AR146: 17
A147: 144 | C147: 南山内村 | D147: 216-04 | E147: 2943 | F147: 1515 | G147: 564 | H147: 378 | I147: 132 | J147: 54 | K147: 103 | L147: 321 | M147: 71 | N147: 5 | O147: 69 | P147: 1 | Q147: 1 | R147: 17 | S147: 8 | T147: 9 | U147: - | V147: - | W147: 2 | X147: 9 | Y147: 3 | Z147: 1 | AA147: 2 | AB147: 6 | AC147: 17 | AD147: 15 | AE147: 17 | AF147: 13 | AG147: 5 | AH147: - | AI147: 17 | AJ147: 7 | AK147: 17 | AL147: 3 | AM147: 10 | AN147: 8 | AO147: 17 | AP147: 12 | AQ147: 17 | AR147: 17
A148: 145 | C148: 西山内村 | D148: 216-05 | E148: 2409 | F148: 1266 | G148: 464 | H148: 251 | I148: 189 | J148: 24 | K148: 100 | L148: 180 | M148: 36 | N148: 1 | O148: 35 | P148: - | Q148: 1 | R148: 20 | S148: 4 | T148: 15 | U148: 1 | V148: 3 | W148: 10 | X148: 2 | Y148: 5 | Z148: - | AA148: - | AB148: 4 | AC148: 19 | AD148: 17 | AE148: 20 | AF148: 18 | AG148: 17 | AH148: - | AI148: 20 | AJ148: 11 | AK148: 20 | AL148: 6 | AM148: 10 | AN148: 5 | AO148: 20 | AP148: 18 | AQ148: 20 | AR148: 19
A149: 146 | C149: 宍戸町 | D149: 216-06 | E149: 2551 | F149: 633 | G149: 670 | H149: 320 | I149: 191 | J149: 159 | K149: 114 | L149: 291 | M149: 58 | N149: 5 | O149: 58 | P149: - | Q149: - | R149: 28 | S149: 1 | T149: 22 | U149: 5 | V149: 14 | W149: 11 | X149: 3 | Y149: - | Z149: - | AA149: - | AB149: 19 | AC149: 23 | AD149: 21 | AE149: 27 | AF149: 23 | AG149: 22 | AH149: 1 | AI149: 27 | AJ149: - | AK149: 25 | AL149: - | AM149: 11 | AN149: 11 | AO149: 21 | AP149: 4 | AQ149: 25 | AR149: 23
A150: 147 | C150: 北川根村 | D150: 216-07 | E150: 1299 | F150: 253 | G150: 398 | H150: 168 | I150: 115 | J150: 115 | K150: 44 | L150: 231 | M150: 39 | N150: 1 | O150: 38 | P150: - | Q150: 1 | R150: 15 | S150: 1 | T150: 9 | U150: 5 | V150: 1 | W150: 5 | X150: 9 | Y150: - | Z150: - | AA150: - | AB150: 7 | AC150: 14 | AD150: 14 | AE150: 15 | AF150: 15 | AG150: 14 | AH150: - | AI150: 15 | AJ150: - | AK150: 15 | AL150: - | AM150: 7 | AN150: 5 | AO150: 15 | AP150: 13 | AQ150: 15 | AR150: 14
A151: 148 | C151: 大原村 | D151: 216-08 | E151: 1752 | F151: 562 | G151: 426 | H151: 259 | I151: 94 | J151: 73 | K151: 72 | L151: 207 | M151: 33 | N151: 1 | O151: 32 | P151: - | Q151: - | R151: 16 | S151: 4 | T151: 10 | U151: 2 | V151: 1 | W151: 5 | X151: 7 | Y151: 3 | Z151: - | AA151: - | AB151: 15 | AC151: 16 | AD151: 16 | AE151: 16 | AF151: 16 | AG151: 16 | AH151: - | AI151: 16 | AJ151: - | AK151: 16 | AL151: - | AM151: 8 | AN151: 8 | AO151: 16 | AP151: 12 | AQ151: 16 | AR151: 16
A152: 149 | C152: 鯉渕村２－２ | D152: 216-09 | E152: 272 | F152: 40 | G152: 78 | H152: 33 | I152: 20 | J152: 25 | K152: 14 | L152: 38 | M152: 4 | N152: - | O152: 4 | P152: - | Q152: - | R152: 3 | S152: - | T152: 3 | U152: - | V152: 3 | W152: - | X152: - | Y152: - | Z152: - | AA152: - | AB152: 3 | AC152: 3 | AD152: 3 | AE152: 3 | AF152: 3 | AG152: 3 | AH152: - | AI152: 3 | AJ152: - | AK152: 3 | AL152: - | AM152: - | AN152: - | AO152: 3 | AP152: 1 | AQ152: 3 | AR152: 3
A153: 150 | C153: 岩間町 | D153: 216-10 | E153: 3257 | F153: 1164 | G153: 841 | H153: 412 | I153: 128 | J153: 301 | K153: 130 | L153: 452 | M153: 117 | N153: 4 | O153: 116 | P153: 1 | Q153: 1 | R153: 35 | S153: 7 | T153: 16 | U153: 12 | V153: 8 | W153: 6 | X153: 6 | Y153: 8 | Z153: 7 | AA153: - | AB153: 4 | AC153: 28 | AD153: 28 | AE153: 35 | AF153: 32 | AG153: 30 | AH153: - | AI153: 34 | AJ153: 4 | AK153: 34 | AL153: 10 | AM153: 18 | AN153: 9 | AO153: 23 | AP153: 11 | AQ153: 34 | AR153: 26
A154: 151 | C154: 南川根村 | D154: 216-11 | E154: 1739 | F154: 312 | G154: 692 | H154: 244 | I154: 271 | J154: 177 | K154: 97 | L154: 286 | M154: 61 | N154: 5 | O154: 59 | P154: 2 | Q154: - | R154: 10 | S154: - | T154: 7 | U154: 3 | V154: - | W154: 2 | X154: 4 | Y154: 3 | Z154: 1 | AA154: - | AB154: 7 | AC154: 10 | AD154: 7 | AE154: 10 | AF154: 10 | AG154: 10 | AH154: - | AI154: 10 | AJ154: 2 | AK154: 10 | AL154: 1 | AM154: 6 | AN154: 3 | AO154: 7 | AP154: 3 | AQ154: 10 | AR154: 10
A155: 152 | B155: 取手市 | D155: 217-00 | E155: 6994 | F155: 199 | G155: 2295 | H155: 2128 | I155: 161 | J155: 6 | K155: 191 | L155: 969 | M155: 296 | N155: 7 | O155: 295 | P155: - | Q155: 2 | R155: 67 | S155: 55 | T155: 8 | U155: 4 | V155: 33 | W155: 10 | X155: 20 | Y155: 3 | Z155: 1 | AA155: - | AB155: 23 | AC155: 46 | AD155: 46 | AE155: 58 | AF155: 65 | AG155: 10 | AH155: - | AI155: 65 | AJ155: 19 | AK155: 35 | AL155: 1 | AM155: 1 | AN155: - | AO155: 48 | AP155: 7 | AQ155: 64 | AR155: 36
A156: 153 | C156: 取手町 | D156: 217-01 | E156: 1075 | F156: 20 | G156: 121 | H156: 115 | I156: 6 | J156: - | K156: 8 | L156: 58 | M156: 24 | N156: 2 | O156: 24 | P156: - | Q156: 2 | R156: 6 | S156: 5 | T156: - | U156: 1 | V156: 6 | W156: - | X156: - | Y156: - | Z156: - | AA156: - | AB156: 3 | AC156: 4 | AD156: 5 | AE156: 6 | AF156: 6 | AG156: 2 | AH156: - | AI156: 5 | AJ156: 4 | AK156: 5 | AL156: - | AM156: - | AN156: - | AO156: 4 | AP156: - | AQ156: 5 | AR156: 4
A157: 154 | C157: 小文間村 | D157: 217-02 | E157: 587 | F157: 46 | G157: 196 | H157: 176 | I157: 19 | J157: 1 | K157: 6 | L157: 77 | M157: 17 | N157: - | O157: 17 | P157: - | Q157: - | R157: 6 | S157: 5 | T157: 1 | U157: - | V157: 4 | W157: 1 | X157: 1 | Y157: - | Z157: - | AA157: - | AB157: 1 | AC157: 3 | AD157: 1 | AE157: 4 | AF157: 6 | AG157: - | AH157: - | AI157: 6 | AJ157: 2 | AK157: 6 | AL157: - | AM157: - | AN157: - | AO157: 4 | AP157: - | AQ157: 6 | AR157: 3
A158: 155 | C158: 寺原村 | D158: 217-03 | E158: 630 | F158: 20 | G158: 206 | H158: 187 | I158: 18 | J158: 1 | K158: 17 | L158: 92 | M158: 28 | N158: 1 | O158: 27 | P158: - | Q158: - | R158: 9 | S158: 8 | T158: 1 | U158: - | V158: 6 | W158: - | X158: 1 | Y158: 1 | Z158: 1 | AA158: - | AB158: 4 | AC158: 7 | AD158: 9 | AE158: 9 | AF158: 7 | AG158: - | AH158: - | AI158: 9 | AJ158: 5 | AK158: 9 | AL158: - | AM158: - | AN158: - | AO158: 6 | AP158: - | AQ158: 9 | AR158: 4
A159: 156 | C159: 高井村２－２ | D159: 217-04 | E159: 502 | F159: 51 | G159: 126 | H159: 97 | I159: 28 | J159: 1 | K159: 42 | L159: 63 | M159: 28 | N159: - | O159: 28 | P159: - | Q159: - | R159: 5 | S159: 2 | T159: 3 | U159: - | V159: 3 | W159: - | X159: 2 | Y159: - | Z159: - | AA159: - | AB159: 4 | AC159: 4 | AD159: 3 | AE159: 5 | AF159: 5 | AG159: 2 | AH159: - | AI159: 5 | AJ159: 1 | AK159: 5 | AL159: 1 | AM159: - | AN159: - | AO159: 4 | AP159: - | AQ159: 5 | AR159: 4
A160: 157 | C160: 稲戸井村 | D160: 217-05 | E160: 915 | F160: 47 | G160: 52 | H160: 25 | I160: 26 | J160: 1 | K160: 52 | L160: 23 | M160: 9 | N160: 1 | O160: 9 | P160: - | Q160: - | R160: 6 | S160: 1 | T160: 3 | U160: 2 | V160: 6 | W160: - | X160: - | Y160: - | Z160: - | AA160: - | AB160: 1 | AC160: 2 | AD160: 4 | AE160: 6 | AF160: 6 | AG160: 2 | AH160: - | AI160: 6 | AJ160: - | AK160: 6 | AL160: - | AM160: - | AN160: - | AO160: 5 | AP160: 1 | AQ160: 5 | AR160: 1
A161: 158 | C161: 相馬町 | D161: 217-06 | E161: 585 | F161: 2 | G161: 193 | H161: 188 | I161: 5 | J161: - | K161: 5 | L161: 79 | M161: 27 | N161: - | O161: 27 | P161: - | Q161: - | R161: 6 | S161: 5 | T161: - | U161: 1 | V161: 2 | W161: 1 | X161: 3 | Y161: - | Z161: - | AA161: - | AB161: 4 | AC161: 3 | AD161: 3 | AE161: 3 | AF161: 6 | AG161: 1 | AH161: - | AI161: 5 | AJ161: - | AK161: - | AL161: - | AM161: - | AN161: - | AO161: 4 | AP161: - | AQ161: 5 | AR161: 3
A162: 159 | C162: 山王村 | D162: 217-07 | E162: 779 | F162: 10 | G162: 380 | H162: 355 | I162: 24 | J162: 1 | K162: 25 | L162: 140 | M162: 43 | N162: 1 | O162: 43 | P162: - | Q162: - | R162: 7 | S162: 7 | T162: - | U162: - | V162: 1 | W162: 2 | X162: 4 | Y162: - | Z162: - | AA162: - | AB162: 3 | AC162: 6 | AD162: 4 | AE162: 6 | AF162: 7 | AG162: 2 | AH162: - | AI162: 7 | AJ162: - | AK162: 3 | AL162: - | AM162: - | AN162: - | AO162: 7 | AP162: 2 | AQ162: 7 | AR162: 5
A163: 160 | C163: 久賀村２－２ | D163: 217-08 | E163: 578 | F163: 1 | G163: 322 | H163: 307 | I163: 14 | J163: 1 | K163: 16 | L163: 147 | M163: 51 | N163: 1 | O163: 51 | P163: - | Q163: - | R163: 6 | S163: 6 | T163: - | U163: - | V163: 1 | W163: 3 | X163: 2 | Y163: - | Z163: - | AA163: - | AB163: 1 | AC163: 5 | AD163: 5 | AE163: 5 | AF163: 6 | AG163: - | AH163: - | AI163: 6 | AJ163: 1 | AK163: - | AL163: - | AM163: - | AN163: - | AO163: 4 | AP163: 1 | AQ163: 6 | AR163: 5
A164: 161 | C164: 高須村２－１ | D164: 217-09 | E164: 604 | F164: 1 | G164: 292 | H164: 283 | I164: 9 | J164: - | K164: 4 | L164: 108 | M164: 22 | N164: 1 | O164: 22 | P164: - | Q164: - | R164: 6 | S164: 6 | T164: - | U164: - | V164: 2 | W164: 1 | X164: 2 | Y164: 1 | Z164: - | AA164: - | AB164: - | AC164: 4 | AD164: 3 | AE164: 6 | AF164: 6 | AG164: 1 | AH164: - | AI164: 6 | AJ164: 1 | AK164: - | AL164: - | AM164: - | AN164: - | AO164: 5 | AP164: 3 | AQ164: 6 | AR164: 3
A165: 162 | C165: 六郷村 | D165: 217-10 | E165: 739 | F165: 1 | G165: 407 | H165: 395 | I165: 12 | J165: - | K165: 17 | L165: 182 | M165: 47 | N165: - | O165: 47 | P165: - | Q165: - | R165: 10 | S165: 10 | T165: - | U165: - | V165: 2 | W165: 2 | X165: 5 | Y165: 1 | Z165: - | AA165: - | AB165: 2 | AC165: 8 | AD165: 9 | AE165: 8 | AF165: 10 | AG165: - | AH165: - | AI165: 10 | AJ165: 5 | AK165: 1 | AL165: - | AM165: 1 | AN165: - | AO165: 5 | AP165: - | AQ165: 10 | AR165: 4
A166: 163 | B166: 牛久市 | D166: 219-00 | E166: 5892 | F166: 1094 | G166: 1492 | H166: 554 | I166: 902 | J166: 36 | K166: 398 | L166: 421 | M166: 112 | N166: 5 | O166: 109 | P166: 2 | Q166: 4 | R166: 32 | S166: 1 | T166: 20 | U166: 11 | V166: 19 | W166: 8 | X166: 5 | Y166: - | Z166: - | AA166: - | AB166: 2 | AC166: - | AD166: 1 | AE166: 32 | AF166: 32 | AG166: 32 | AH166: - | AI166: 30 | AJ166: - | AK166: 29 | AL166: - | AM166: 1 | AN166: - | AO166: 19 | AP166: - | AQ166: 28 | AR166: -
A167: 164 | C167: 牛久町 | D167: 219-01 | E167: 1130 | F167: 167 | G167: 163 | H167: 94 | I167: 65 | J167: 4 | K167: 62 | L167: 74 | M167: 13 | N167: - | O167: 13 | P167: - | Q167: - | R167: 7 | S167: 1 | T167: 3 | U167: 3 | V167: 5 | W167: 1 | X167: 1 | Y167: - | Z167: - | AA167: - | AB167: - | AC167: - | AD167: - | AE167: 7 | AF167: 7 | AG167: 7 | AH167: - | AI167: 7 | AJ167: - | AK167: 6 | AL167: - | AM167: - | AN167: - | AO167: 1 | AP167: - | AQ167: 6 | AR167: -
A168: 165 | C168: 岡田村（牛久市） | D168: 219-02 | E168: 2619 | F168: 461 | G168: 601 | H168: 187 | I168: 406 | J168: 8 | K168: 169 | L168: 201 | M168: 65 | N168: 4 | O168: 62 | P168: 1 | Q168: 3 | R168: 14 | S168: - | T168: 9 | U168: 5 | V168: 13 | W168: - | X168: 1 | Y168: - | Z168: - | AA168: - | AB168: 1 | AC168: - | AD168: 1 | AE168: 14 | AF168: 14 | AG168: 14 | AH168: - | AI168: 12 | AJ168: - | AK168: 12 | AL168: - | AM168: - | AN168: - | AO168: 10 | AP168: - | AQ168: 12 | AR168: -
A169: 166 | C169: 奥野村 | D169: 219-03 | E169: 2143 | F169: 466 | G169: 728 | H169: 273 | I169: 431 | J169: 24 | K169: 167 | L169: 146 | M169: 34 | N169: 1 | O169: 34 | P169: 1 | Q169: 1 | R169: 11 | S169: - | T169: 8 | U169: 3 | V169: 1 | W169: 7 | X169: 3 | Y169: - | Z169: - | AA169: - | AB169: 1 | AC169: - | AD169: - | AE169: 11 | AF169: 11 | AG169: 11 | AH169: - | AI169: 11 | AJ169: - | AK169: 11 | AL169: - | AM169: 1 | AN169: - | AO169: 8 | AP169: - | AQ169: 10 | AR169: -
A170: 167 | B170: つくば市 | D170: 220-00 | E170: 28372 | F170: 4035 | G170: 10999 | H170: 4748 | I170: 6044 | J170: 207 | K170: 1398 | L170: 3035 | M170: 573 | N170: 34 | O170: 551 | P170: 15 | Q170: 34 | R170: 249 | S170: 35 | T170: 128 | U170: 86 | V170: 60 | W170: 105 | X170: 65 | Y170: 15 | Z170: 4 | AA170: - | AB170: 138 | AC170: 186 | AD170: 176 | AE170: 227 | AF170: 222 | AG170: 84 | AH170: 1 | AI170: 249 | AJ170: 53 | AK170: 222 | AL170: 20 | AM170: 47 | AN170: 18 | AO170: 157 | AP170: 56 | AQ170: 238 | AR170: 157
A171: 168 | C171: 栄村 | D171: 220-01 | E171: 856 | F171: 36 | G171: 408 | H171: 263 | I171: 136 | J171: 9 | K171: 72 | L171: 125 | M171: 23 | N171: 1 | O171: 23 | P171: 1 | Q171: - | R171: 10 | S171: 3 | T171: 7 | U171: - | V171: 4 | W171: 5 | X171: 1 | Y171: - | Z171: - | AA171: - | AB171: 8 | AC171: 10 | AD171: 9 | AE171: 10 | AF171: 10 | AG171: 4 | AH171: - | AI171: 10 | AJ171: 1 | AK171: 8 | AL171: - | AM171: 4 | AN171: 2 | AO171: 6 | AP171: 2 | AQ171: 10 | AR171: 8
A172: 169 | C172: 九重村 | D172: 220-02 | E172: 1954 | F172: 138 | G172: 494 | H172: 206 | I172: 270 | J172: 18 | K172: 149 | L172: 153 | M172: 35 | N172: 3 | O172: 35 | P172: 1 | Q172: 2 | R172: 14 | S172: 1 | T172: 9 | U172: 4 | V172: 13 | W172: 1 | X172: - | Y172: - | Z172: - | AA172: - | AB172: 13 | AC172: 13 | AD172: 11 | AE172: 13 | AF172: 13 | AG172: 5 | AH172: - | AI172: 14 | AJ172: - | AK172: 12 | AL172: - | AM172: 6 | AN172: - | AO172: 3 | AP172: 2 | AQ172: 12 | AR172: 9
A173: 170 | C173: 栗原村２－１ | D173: 220-03 | E173: 706 | F173: 87 | G173: 311 | H173: 139 | I173: 164 | J173: 8 | K173: 53 | L173: 81 | M173: 13 | N173: - | O173: 13 | P173: - | Q173: - | R173: 5 | S173: 1 | T173: 3 | U173: 1 | V173: 1 | W173: 3 | X173: - | Y173: - | Z173: 1 | AA173: - | AB173: 4 | AC173: 4 | AD173: 4 | AE173: 4 | AF173: 5 | AG173: 4 | AH173: - | AI173: 5 | AJ173: 3 | AK173: 5 | AL173: 2 | AM173: 3 | AN173: 2 | AO173: 4 | AP173: 1 | AQ173: 5 | AR173: 3
A174: 171 | C174: 島名村 | D174: 220-04 | E174: 1617 | F174: 255 | G174: 581 | H174: 235 | I174: 315 | J174: 31 | K174: 71 | L174: 137 | M174: 28 | N174: 4 | O174: 27 | P174: 1 | Q174: 2 | R174: 18 | S174: - | T174: 14 | U174: 4 | V174: 6 | W174: 6 | X174: 4 | Y174: 2 | Z174: - | AA174: - | AB174: 13 | AC174: 11 | AD174: 7 | AE174: 15 | AF174: 17 | AG174: 5 | AH174: - | AI174: 18 | AJ174: 6 | AK174: 18 | AL174: 5 | AM174: - | AN174: - | AO174: 16 | AP174: 8 | AQ174: 18 | AR174: 10
A175: 172 | C175: 葛城村 | D175: 220-05 | E175: 1409 | F175: 208 | G175: 201 | H175: 64 | I175: 131 | J175: 6 | K175: 69 | L175: 88 | M175: 20 | N175: 2 | O175: 19 | P175: 1 | Q175: 4 | R175: 14 | S175: - | T175: 6 | U175: 8 | V175: 10 | W175: 4 | X175: - | Y175: - | Z175: - | AA175: - | AB175: 3 | AC175: 9 | AD175: 7 | AE175: 10 | AF175: 13 | AG175: 3 | AH175: - | AI175: 14 | AJ175: 8 | AK175: 10 | AL175: 4 | AM175: - | AN175: - | AO175: 12 | AP175: 2 | AQ175: 12 | AR175: 6
A176: 173 | C176: 小野川村 | D176: 220-06 | E176: 2483 | F176: 353 | G176: 573 | H176: 167 | I176: 400 | J176: 6 | K176: 154 | L176: 189 | M176: 40 | N176: 2 | O176: 36 | P176: 1 | Q176: 3 | R176: 21 | S176: 2 | T176: 9 | U176: 10 | V176: 3 | W176: 10 | X176: 5 | Y176: 3 | Z176: - | AA176: - | AB176: 19 | AC176: 14 | AD176: 21 | AE176: 21 | AF176: 14 | AG176: 2 | AH176: - | AI176: 21 | AJ176: - | AK176: 20 | AL176: - | AM176: - | AN176: - | AO176: - | AP176: - | AQ176: 19 | AR176: 13
A177: 174 | C177: 谷田部町 | D177: 220-07 | E177: 1719 | F177: 144 | G177: 595 | H177: 239 | I177: 341 | J177: 15 | K177: 87 | L177: 137 | M177: 27 | N177: 2 | O177: 26 | P177: - | Q177: - | R177: 20 | S177: 1 | T177: 12 | U177: 7 | V177: 4 | W177: 9 | X177: 5 | Y177: 2 | Z177: - | AA177: - | AB177: 1 | AC177: 4 | AD177: 12 | AE177: 15 | AF177: 17 | AG177: 3 | AH177: 1 | AI177: 20 | AJ177: - | AK177: 13 | AL177: - | AM177: - | AN177: - | AO177: 11 | AP177: - | AQ177: 17 | AR177: 2
A178: 175 | C178: 真瀬村２－１ | D178: 220-08 | E178: 801 | F178: 61 | G178: 393 | H178: 209 | I178: 169 | J178: 15 | K178: 61 | L178: 127 | M178: 27 | N178: - | O178: 25 | P178: - | Q178: 2 | R178: 5 | S178: 1 | T178: 3 | U178: 1 | V178: - | W178: 4 | X178: 1 | Y178: - | Z178: - | AA178: - | AB178: 5 | AC178: 4 | AD178: 5 | AE178: 3 | AF178: 5 | AG178: 3 | AH178: - | AI178: 5 | AJ178: 3 | AK178: 5 | AL178: - | AM178: - | AN178: - | AO178: 4 | AP178: 4 | AQ178: 5 | AR178: 4
A179: 176 | C179: 上郷村 | D179: 220-09 | E179: 1292 | F179: 132 | G179: 603 | H179: 259 | I179: 334 | J179: 10 | K179: 39 | L179: 208 | M179: 23 | N179: 3 | O179: 22 | P179: - | Q179: 1 | R179: 21 | S179: 2 | T179: 15 | U179: 4 | V179: - | W179: 11 | X179: 9 | Y179: - | Z179: 1 | AA179: - | AB179: 11 | AC179: 21 | AD179: 19 | AE179: 21 | AF179: 21 | AG179: 12 | AH179: - | AI179: 21 | AJ179: 1 | AK179: 21 | AL179: - | AM179: 1 | AN179: - | AO179: 14 | AP179: - | AQ179: 21 | AR179: 16
A180: 177 | C180: 旭村２－１ | D180: 220-10 | E180: 1627 | F180: 146 | G180: 793 | H180: 199 | I180: 582 | J180: 12 | K180: 26 | L180: 271 | M180: 43 | N180: 2 | O180: 42 | P180: 4 | Q180: - | R180: 23 | S180: - | T180: 5 | U180: 18 | V180: 3 | W180: 9 | X180: 9 | Y180: 1 | Z180: 1 | AA180: - | AB180: - | AC180: 19 | AD180: 13 | AE180: 23 | AF180: 22 | AG180: 6 | AH180: - | AI180: 23 | AJ180: 5 | AK180: 22 | AL180: 3 | AM180: 3 | AN180: - | AO180: 14 | AP180: 7 | AQ180: 22 | AR180: 17
A181: 178 | C181: 吉沼村２－２ | D181: 220-11 | E181: 282 | F181: 21 | G181: 183 | H181: 39 | I181: 144 | J181: - | K181: 7 | L181: 56 | M181: 5 | N181: - | O181: 4 | P181: - | Q181: 1 | R181: 2 | S181: - | T181: - | U181: 2 | V181: - | W181: - | X181: 2 | Y181: - | Z181: - | AA181: - | AB181: 1 | AC181: 2 | AD181: 2 | AE181: 2 | AF181: 2 | AG181: 2 | AH181: - | AI181: 2 | AJ181: - | AK181: 2 | AL181: - | AM181: - | AN181: - | AO181: 2 | AP181: - | AQ181: 2 | AR181: 2
A182: 179 | C182: 筑波町 | D182: 220-12 | E182: 1482 | F182: 654 | G182: 244 | H182: 197 | I182: 45 | J182: 2 | K182: 30 | L182: 61 | M182: 14 | N182: - | O182: 14 | P182: - | Q182: - | R182: 4 | S182: 3 | T182: - | U182: 1 | V182: 2 | W182: 2 | X182: - | Y182: - | Z182: - | AA182: - | AB182: 2 | AC182: 3 | AD182: 2 | AE182: 4 | AF182: 4 | AG182: 3 | AH182: - | AI182: 4 | AJ182: - | AK182: 4 | AL182: - | AM182: 1 | AN182: - | AO182: 4 | AP182: 3 | AQ182: 3 | AR182: 3
A183: 180 | C183: 北条町 | D183: 220-13 | E183: 678 | F183: 107 | G183: 329 | H183: 258 | I183: 69 | J183: 2 | K183: 25 | L183: 97 | M183: 27 | N183: 1 | O183: 27 | P183: - | Q183: - | R183: 8 | S183: 6 | T183: 2 | U183: - | V183: 3 | W183: 3 | X183: - | Y183: 2 | Z183: - | AA183: - | AB183: 2 | AC183: 7 | AD183: 5 | AE183: 7 | AF183: 7 | AG183: 1 | AH183: - | AI183: 8 | AJ183: 1 | AK183: 8 | AL183: - | AM183: 3 | AN183: 2 | AO183: 7 | AP183: 7 | AQ183: 8 | AR183: 7
A184: 181 | C184: 小田村 | D184: 220-14 | E184: 1815 | F184: 618 | G184: 495 | H184: 395 | I184: 87 | J184: 13 | K184: 51 | L184: 124 | M184: 47 | N184: 2 | O184: 46 | P184: 2 | Q184: 4 | R184: 9 | S184: 6 | T184: 3 | U184: - | V184: 2 | W184: 4 | X184: 3 | Y184: - | Z184: - | AA184: - | AB184: 7 | AC184: 9 | AD184: 6 | AE184: 8 | AF184: 8 | AG184: 4 | AH184: - | AI184: 9 | AJ184: 7 | AK184: 9 | AL184: 3 | AM184: 7 | AN184: 5 | AO184: 7 | AP184: 4 | AQ184: 9 | AR184: 9
A185: 182 | C185: 田井村 | D185: 220-15 | E185: 1012 | F185: 267 | G185: 324 | H185: 219 | I185: 105 | J185: - | K185: 47 | L185: 92 | M185: 31 | N185: 1 | O185: 30 | P185: - | Q185: 3 | R185: 9 | S185: 3 | T185: 6 | U185: - | V185: 1 | W185: 4 | X185: 4 | Y185: - | Z185: - | AA185: - | AB185: 6 | AC185: 9 | AD185: 9 | AE185: 8 | AF185: 7 | AG185: 2 | AH185: - | AI185: 9 | AJ185: - | AK185: 9 | AL185: 2 | AM185: 3 | AN185: 2 | AO185: 4 | AP185: 3 | AQ185: 9 | AR185: 8
A186: 183 | C186: 作岡村 | D186: 220-16 | E186: 1430 | F186: 185 | G186: 661 | H186: 222 | I186: 437 | J186: 2 | K186: 47 | L186: 157 | M186: 16 | N186: 1 | O186: 15 | P186: 2 | Q186: 3 | R186: 8 | S186: 1 | T186: 6 | U186: 1 | V186: - | W186: 3 | X186: 5 | Y186: - | Z186: - | AA186: - | AB186: 8 | AC186: 8 | AD186: 3 | AE186: 8 | AF186: 6 | AG186: 4 | AH186: - | AI186: 8 | AJ186: 4 | AK186: 8 | AL186: 1 | AM186: 3 | AN186: 3 | AO186: 1 | AP186: 1 | AQ186: 8 | AR186: 8
A187: 184 | C187: 田水山村 | D187: 220-17 | E187: 718 | F187: 74 | G187: 301 | H187: 174 | I187: 123 | J187: 4 | K187: 44 | L187: 74 | M187: 7 | N187: - | O187: 7 | P187: - | Q187: 1 | R187: 4 | S187: 2 | T187: 2 | U187: - | V187: - | W187: 4 | X187: - | Y187: - | Z187: - | AA187: - | AB187: 2 | AC187: 3 | AD187: 1 | AE187: 4 | AF187: 4 | AG187: 2 | AH187: - | AI187: 4 | AJ187: 1 | AK187: 3 | AL187: - | AM187: 3 | AN187: 1 | AO187: 4 | AP187: 2 | AQ187: 4 | AR187: 3
A188: 185 | C188: 菅間村 | D188: 220-18 | E188: 664 | F188: 73 | G188: 383 | H188: 268 | I188: 115 | J188: - | K188: 26 | L188: 109 | M188: 15 | N188: - | O188: 15 | P188: 1 | Q188: - | R188: 7 | S188: 2 | T188: 3 | U188: 2 | V188: - | W188: 3 | X188: 2 | Y188: 2 | Z188: - | AA188: - | AB188: 7 | AC188: 7 | AD188: 6 | AE188: 7 | AF188: 4 | AG188: 1 | AH188: - | AI188: 7 | AJ188: 5 | AK188: 6 | AL188: - | AM188: 1 | AN188: - | AO188: 4 | AP188: 3 | AQ188: 7 | AR188: 7
A189: 186 | C189: 栗原村２－２ | D189: 220-19 | E189: 97 | F189: - | G189: 46 | H189: 15 | I189: 31 | J189: - | K189: 6 | L189: 11 | M189: 2 | N189: - | O189: 2 | P189: - | Q189: - | R189: 1 | S189: - | T189: 1 | U189: - | V189: - | W189: 1 | X189: - | Y189: - | Z189: - | AA189: - | AB189: - | AC189: 1 | AD189: - | AE189: 1 | AF189: 1 | AG189: - | AH189: - | AI189: 1 | AJ189: 1 | AK189: - | AL189: - | AM189: - | AN189: - | AO189: - | AP189: - | AQ189: 1 | AR189: 1
A190: 187 | C190: 大穂村 | D190: 220-20 | E190: 1811 | F190: 107 | G190: 1155 | H190: 391 | I190: 741 | J190: 23 | K190: 92 | L190: 201 | M190: 19 | N190: 1 | O190: 19 | P190: - | Q190: - | R190: 7 | S190: 1 | T190: 3 | U190: 3 | V190: - | W190: 5 | X190: 1 | Y190: 1 | Z190: - | AA190: - | AB190: 3 | AC190: 4 | AD190: 4 | AE190: 7 | AF190: 7 | AG190: 2 | AH190: - | AI190: 7 | AJ190: 2 | AK190: 7 | AL190: - | AM190: 3 | AN190: 1 | AO190: 7 | AP190: 3 | AQ190: 7 | AR190: 4
A191: 188 | C191: 吉沼村２－１ | D191: 220-21 | E191: 1198 | F191: 47 | G191: 754 | H191: 218 | I191: 525 | J191: 11 | K191: 32 | L191: 208 | M191: 21 | N191: 2 | O191: 15 | P191: - | Q191: 5 | R191: 13 | S191: - | T191: 6 | U191: 7 | V191: 3 | W191: 2 | X191: 7 | Y191: - | Z191: 1 | AA191: - | AB191: 11 | AC191: 12 | AD191: 13 | AE191: 13 | AF191: 13 | AG191: 9 | AH191: - | AI191: 13 | AJ191: 1 | AK191: 7 | AL191: - | AM191: 1 | AN191: - | AO191: 11 | AP191: 3 | AQ191: 13 | AR191: 10
A192: 189 | C192: 旭村２－２ | D192: 220-22 | E192: 314 | F192: 35 | G192: 143 | H192: 38 | I192: 94 | J192: 11 | K192: 30 | L192: 47 | M192: 6 | N192: 1 | O192: 6 | P192: - | Q192: - | R192: 5 | S192: - | T192: 2 | U192: 3 | V192: 2 | W192: 2 | X192: 1 | Y192: - | Z192: - | AA192: - | AB192: - | AC192: 3 | AD192: 4 | AE192: 5 | AF192: 5 | AG192: 3 | AH192: - | AI192: 5 | AJ192: 2 | AK192: 5 | AL192: - | AM192: 2 | AN192: - | AO192: 5 | AP192: 1 | AQ192: 5 | AR192: 3
A193: 190 | C193: 茎崎町 | D193: 220-23 | E193: 2407 | F193: 287 | G193: 1029 | H193: 334 | I193: 686 | J193: 9 | K193: 180 | L193: 282 | M193: 84 | N193: 6 | O193: 83 | P193: 1 | Q193: 3 | R193: 21 | S193: - | T193: 11 | U193: 10 | V193: 3 | W193: 10 | X193: 6 | Y193: 2 | Z193: - | AA193: - | AB193: 12 | AC193: 9 | AD193: 13 | AE193: 18 | AF193: 17 | AG193: 4 | AH193: - | AI193: 21 | AJ193: 2 | AK193: 20 | AL193: - | AM193: 3 | AN193: - | AO193: 17 | AP193: - | AQ193: 21 | AR193: 4
A194: 191 | B194: ひたちなか市 | D194: 221-00 | E194: 9983 | F194: 533 | G194: 2643 | H194: 1180 | I194: 1451 | J194: 12 | K194: 272 | L194: 1054 | M194: 498 | N194: 329 | O194: 358 | P194: 6 | Q194: 4 | R194: 35 | S194: 9 | T194: 15 | U194: 11 | V194: 25 | W194: 7 | X194: 3 | Y194: - | Z194: - | AA194: - | AB194: 8 | AC194: 18 | AD194: 32 | AE194: 35 | AF194: 35 | AG194: 35 | AH194: - | AI194: 35 | AJ194: - | AK194: 28 | AL194: 1 | AM194: 12 | AN194: - | AO194: 35 | AP194: 1 | AQ194: 35 | AR194: 1
A195: 192 | C195: 那珂湊町 | D195: 221-01 | E195: 1315 | F195: 56 | G195: 448 | H195: 219 | I195: 227 | J195: 2 | K195: 33 | L195: 136 | M195: 85 | N195: 68 | O195: 57 | P195: 2 | Q195: - | R195: 8 | S195: 2 | T195: 3 | U195: 3 | V195: 4 | W195: 2 | X195: 2 | Y195: - | Z195: - | AA195: - | AB195: - | AC195: 4 | AD195: 7 | AE195: 8 | AF195: 8 | AG195: 8 | AH195: - | AI195: 8 | AJ195: - | AK195: 6 | AL195: - | AM195: 4 | AN195: - | AO195: 8 | AP195: - | AQ195: 8 | AR195: -
A196: 193 | C196: 平磯町 | D196: 221-02 | E196: 497 | F196: 20 | G196: 210 | H196: 26 | I196: 184 | J196: - | K196: 13 | L196: 22 | M196: 8 | N196: 5 | O196: 4 | P196: - | Q196: - | R196: 4 | S196: - | T196: - | U196: 4 | V196: 4 | W196: - | X196: - | Y196: - | Z196: - | AA196: - | AB196: - | AC196: 1 | AD196: 3 | AE196: 4 | AF196: 4 | AG196: 4 | AH196: - | AI196: 4 | AJ196: - | AK196: 2 | AL196: - | AM196: 1 | AN196: - | AO196: 4 | AP196: - | AQ196: 4 | AR196: -
A197: 194 | C197: 前渡村２－２ | D197: 221-03 | E197: 765 | F197: 17 | G197: 144 | H197: 25 | I197: 119 | J197: 0 | K197: 15 | L197: 95 | M197: 86 | N197: 76 | O197: 45 | P197: - | Q197: 1 | R197: 2 | S197: - | T197: - | U197: 2 | V197: - | W197: 2 | X197: - | Y197: - | Z197: - | AA197: - | AB197: - | AC197: - | AD197: 2 | AE197: 2 | AF197: 2 | AG197: 2 | AH197: - | AI197: 2 | AJ197: - | AK197: 2 | AL197: - | AM197: - | AN197: - | AO197: 2 | AP197: - | AQ197: 2 | AR197: -
A198: 195 | C198: 勝田町 | D198: 221-04 | E198: 3555 | F198: 132 | G198: 936 | H198: 570 | I198: 361 | J198: 5 | K198: 89 | L198: 405 | M198: 126 | N198: 55 | O198: 105 | P198: 1 | Q198: 3 | R198: 14 | S198: 7 | T198: 6 | U198: 1 | V198: 11 | W198: 2 | X198: 1 | Y198: - | Z198: - | AA198: - | AB198: 1 | AC198: 6 | AD198: 13 | AE198: 14 | AF198: 14 | AG198: 14 | AH198: - | AI198: 14 | AJ198: - | AK198: 11 | AL198: - | AM198: 3 | AN198: - | AO198: 14 | AP198: - | AQ198: 14 | AR198: -
A199: 196 | C199: 佐野村 | D199: 221-05 | E199: 1707 | F199: 138 | G199: 410 | H199: 142 | I199: 266 | J199: 2 | K199: 75 | L199: 198 | M199: 70 | N199: 32 | O199: 63 | P199: 2 | Q199: - | R199: 4 | S199: - | T199: 3 | U199: 1 | V199: 4 | W199: - | X199: - | Y199: - | Z199: - | AA199: - | AB199: 4 | AC199: 4 | AD199: 4 | AE199: 4 | AF199: 4 | AG199: 4 | AH199: - | AI199: 4 | AJ199: - | AK199: 4 | AL199: 1 | AM199: 2 | AN199: - | AO199: 4 | AP199: 1 | AQ199: 4 | AR199: 1
A200: 197 | C200: 前渡村２－１ | D200: 221-06 | E200: 2144 | F200: 170 | G200: 495 | H200: 198 | I200: 294 | J200: 3 | K200: 47 | L200: 198 | M200: 123 | N200: 93 | O200: 84 | P200: 1 | Q200: - | R200: 3 | S200: - | T200: 3 | U200: - | V200: 2 | W200: 1 | X200: - | Y200: - | Z200: - | AA200: - | AB200: 3 | AC200: 3 | AD200: 3 | AE200: 3 | AF200: 3 | AG200: 3 | AH200: - | AI200: 3 | AJ200: - | AK200: 3 | AL200: - | AM200: 2 | AN200: - | AO200: 3 | AP200: - | AQ200: 3 | AR200: -
... 248 more rows

Sheet 指定地域 (hidden)
I3: 1 | J3: 2 | K3: 3 | L3: 4 | M3: 5 | N3: 6
A4: KEY | B4: PREF | C4: CITY | D4: KCITY | E4: AGRI | F4: PREF_NAME | G4: CITY_NAME | H4: KCITY_NAME | I4: 森林地域_森林地域 | J4: 農業地域_農業地域 | K4: 都市地域_市街化区域 | L4: 都市地域_市街化調整 | M4: 商業関連地域 | N4: 工業関連地域
A5: 0800000000 | B5: 08 | C5: 000 | D5: 00 | E5: 000 | F5: 茨城県 | I5: 198114 | J5: 477377 | K5: 52075 | L5: 252071 | M5: 2919 | N5: 15677
A6: 0820100000 | B6: 08 | C6: 201 | D6: 00 | E6: 000 | F6: 茨城県 | G6: 水戸市 | I6: 4118 | J6: 17102 | K6: 4305 | L6: 17380 | M6: 458 | N6: 344
A7: 0820101000 | B7: 08 | C7: 201 | D7: 01 | E7: 000 | F7: 茨城県 | G7: 水戸市 | H7: 水戸市 | I7: 54 | J7: 287 | K7: 1209 | L7: 287 | M7: 281 | N7: 67
A8: 0820102000 | B8: 08 | C8: 201 | D8: 02 | E8: 000 | F8: 茨城県 | G8: 水戸市 | H8: 国田村 | I8: 92 | J8: 997 | K8: 0 | L8: 997 | M8: 0 | N8: 0
A9: 0820103000 | B9: 08 | C9: 201 | D9: 03 | E9: 000 | F9: 茨城県 | G9: 水戸市 | H9: 吉田村 | I9: 128 | J9: 440 | K9: 522 | L9: 440 | M9: 19 | N9: 45
A10: 0820104000 | B10: 08 | C10: 201 | D10: 04 | E10: 000 | F10: 茨城県 | G10: 水戸市 | H10: 酒門村２－１ | I10: 277 | J10: 1093 | K10: 174 | L10: 1093 | M10: 0 | N10: 121
A11: 0820105000 | B11: 08 | C11: 201 | D11: 05 | E11: 000 | F11: 茨城県 | G11: 水戸市 | H11: 柳河村 | I11: 9 | J11: 647 | K11: 0 | L11: 647 | M11: 0 | N11: 0
A12: 0820106000 | B12: 08 | C12: 201 | D12: 06 | E12: 000 | F12: 茨城県 | G12: 水戸市 | H12: 渡里村 | I12: 318 | J12: 810 | K12: 325 | L12: 810 | M12: 3 | N12: 0
A13: 0820107000 | B13: 08 | C13: 201 | D13: 07 | E13: 000 | F13: 茨城県 | G13: 水戸市 | H13: 上大野村 | I13: 8 | J13: 604 | K13: 0 | L13: 604 | M13: 0 | N13: 0
A14: 0820108000 | B14: 08 | C14: 201 | D14: 08 | E14: 000 | F14: 茨城県 | G14: 水戸市 | H14: 緑岡村 | I14: 399 | J14: 1338 | K14: 1172 | L14: 1338 | M14: 87 | N14: 68
A15: 0820109000 | B15: 08 | C15: 201 | D15: 09 | E15: 000 | F15: 茨城県 | G15: 水戸市 | H15: 飯富村 | I15: 354 | J15: 1286 | K15: 119 | L15: 1348 | M15: 4 | N15: 0
A16: 0820110000 | B16: 08 | C16: 201 | D16: 10 | E16: 000 | F16: 茨城県 | G16: 水戸市 | H16: 上中妻村 | I16: 101 | J16: 761 | K16: 99 | L16: 761 | M16: 1 | N16: 7
A17: 0820111000 | B17: 08 | C17: 201 | D17: 11 | E17: 000 | F17: 茨城県 | G17: 水戸市 | H17: 山根村 | I17: 733 | J17: 1340 | K17: 49 | L17: 1435 | M17: 0 | N17: 0
A18: 0820112000 | B18: 08 | C18: 201 | D18: 12 | E18: 000 | F18: 茨城県 | G18: 水戸市 | H18: 河和田村 | I18: 247 | J18: 866 | K18: 371 | L18: 866 | M18: 27 | N18: 16
A19: 0820113000 | B19: 08 | C19: 201 | D19: 13 | E19: 000 | F19: 茨城県 | G19: 水戸市 | H19: 下大野村 | I19: 8 | J19: 987 | K19: 0 | L19: 987 | M19: 0 | N19: 0
A20: 0820114000 | B20: 08 | C20: 201 | D20: 14 | E20: 000 | F20: 茨城県 | G20: 水戸市 | H20: 稲荷村 | I20: 224 | J20: 820 | K20: 153 | L20: 819 | M20: 1 | N20: 18
A21: 0820115000 | B21: 08 | C21: 201 | D21: 15 | E21: 000 | F21: 茨城県 | G21: 水戸市 | H21: 大場村 | I21: 271 | J21: 934 | K21: 1 | L21: 934 | M21: 0 | N21: 1
A22: 0820116000 | B22: 08 | C22: 201 | D22: 16 | E22: 000 | F22: 茨城県 | G22: 水戸市 | H22: 下中妻村 | I22: 349 | J22: 942 | K22: 113 | L22: 1045 | M22: 34 | N22: 2
A23: 0820117000 | B23: 08 | C23: 201 | D23: 17 | E23: 000 | F23: 茨城県 | G23: 水戸市 | H23: 中妻村 | I23: 164 | J23: 774 | K23: 0 | L23: 798 | M23: 0 | N23: 0
A24: 0820118000 | B24: 08 | C24: 201 | D24: 18 | E24: 000 | F24: 茨城県 | G24: 水戸市 | H24: 鯉渕村２－１ | I24: 385 | J24: 2174 | K24: 0 | L24: 2169 | M24: 0 | N24: 0
A25: 0820200000 | B25: 08 | C25: 202 | D25: 00 | E25: 000 | F25: 茨城県 | G25: 日立市 | I25: 13448 | J25: 10539 | K25: 5024 | L25: 3606 | M25: 221 | N25: 1305
A26: 0820201000 | B26: 08 | C26: 202 | D26: 01 | E26: 000 | F26: 茨城県 | G26: 日立市 | H26: 中里村 | I26: 2674 | J26: 2666 | K26: 0 | L26: 0 | M26: 0 | N26: 0
A27: 0820202000 | B27: 08 | C27: 202 | D27: 02 | E27: 000 | F27: 茨城県 | G27: 日立市 | H27: 豊浦町 | I27: 211 | J27: 366 | K27: 350 | L27: 242 | M27: 5 | N27: 161
A28: 0820203000 | B28: 08 | C28: 202 | D28: 03 | E28: 000 | F28: 茨城県 | G28: 日立市 | H28: 日高村 | I28: 824 | J28: 403 | K28: 571 | L28: 287 | M28: 12 | N28: 88
A29: 0820204000 | B29: 08 | C29: 202 | D29: 04 | E29: 000 | F29: 茨城県 | G29: 日立市 | H29: 日立市 | I29: 2165 | J29: 1030 | K29: 1115 | L29: 338 | M29: 102 | N29: 274
A30: 0820205000 | B30: 08 | C30: 202 | D30: 05 | E30: 000 | F30: 茨城県 | G30: 日立市 | H30: 多賀町 | I30: 1999 | J30: 1284 | K30: 2102 | L30: 374 | M30: 66 | N30: 491
A31: 0820206000 | B31: 08 | C31: 202 | D31: 06 | E31: 000 | F31: 茨城県 | G31: 日立市 | H31: 久慈町 | I31: 14 | J31: 1 | K31: 380 | L31: 1 | M31: 31 | N31: 128
A32: 0820207000 | B32: 08 | C32: 202 | D32: 07 | E32: 000 | F32: 茨城県 | G32: 日立市 | H32: 坂本村 | I32: 82 | J32: 387 | K32: 232 | L32: 402 | M32: 0 | N32: 27
A33: 0820208000 | B33: 08 | C33: 202 | D33: 08 | E33: 000 | F33: 茨城県 | G33: 日立市 | H33: 東小沢村 | I33: 0 | J33: 383 | K33: 89 | L33: 383 | M33: 0 | N33: 90
A34: 0820209000 | B34: 08 | C34: 202 | D34: 09 | E34: 000 | F34: 茨城県 | G34: 日立市 | H34: 黒前村２－１ | I34: 4800 | J34: 2776 | K34: 0 | L34: 306 | M34: 0 | N34: 0
A35: 0820210000 | B35: 08 | C35: 202 | D35: 10 | E35: 000 | F35: 茨城県 | G35: 日立市 | H35: 櫛形村 | I35: 677 | J35: 1243 | K35: 186 | L35: 1273 | M35: 5 | N35: 46
A36: 0820300000 | B36: 08 | C36: 203 | D36: 00 | E36: 000 | F36: 茨城県 | G36: 土浦市 | I36: 1327 | J36: 7823 | K36: 3307 | L36: 8257 | M36: 300 | N36: 655
A37: 0820301000 | B37: 08 | C37: 203 | D37: 01 | E37: 000 | F37: 茨城県 | G37: 土浦市 | H37: 土浦市 | I37: 372 | J37: 3145 | K37: 2581 | L37: 3227 | M37: 292 | N37: 283
A38: 0820302000 | B38: 08 | C38: 203 | D38: 02 | E38: 000 | F38: 茨城県 | G38: 土浦市 | H38: 上大津村 | I38: 197 | J38: 1716 | K38: 599 | L38: 1755 | M38: 8 | N38: 331
A39: 0820303000 | B39: 08 | C39: 203 | D39: 03 | E39: 000 | F39: 茨城県 | G39: 土浦市 | H39: 藤沢村 | I39: 96 | J39: 945 | K39: 78 | L39: 945 | M39: 0 | N39: 6
A40: 0820304000 | B40: 08 | C40: 203 | D40: 04 | E40: 000 | F40: 茨城県 | G40: 土浦市 | H40: 山ノ荘村 | I40: 630 | J40: 1349 | K40: 17 | L40: 1464 | M40: 0 | N40: 16
A41: 0820305000 | B41: 08 | C41: 203 | D41: 05 | E41: 000 | F41: 茨城県 | G41: 土浦市 | H41: 斗利出村 | I41: 32 | J41: 666 | K41: 30 | L41: 666 | M41: 0 | N41: 19
A42: 0820400000 | B42: 08 | C42: 204 | D42: 00 | E42: 000 | F42: 茨城県 | G42: 古河市 | I42: 829 | J42: 8808 | K42: 2974 | L42: 9382 | M42: 130 | N42: 714
A43: 0820401000 | B43: 08 | C43: 204 | D43: 01 | E43: 000 | F43: 茨城県 | G43: 古河市 | H43: 古河町 | I43: 4 | J43: 14 | K43: 677 | L43: 136 | M43: 104 | N43: 9
A44: 0820402000 | B44: 08 | C44: 204 | D44: 02 | E44: 000 | F44: 茨城県 | G44: 古河市 | H44: 新郷村 | I44: 23 | J44: 412 | K44: 479 | L44: 814 | M44: 0 | N44: 66
A45: 0820403000 | B45: 08 | C45: 204 | D45: 03 | E45: 000 | F45: 茨城県 | G45: 古河市 | H45: 勝鹿村 | I45: 31 | J45: 300 | K45: 731 | L45: 349 | M45: 19 | N45: 62
A46: 0820404000 | B46: 08 | C46: 204 | D46: 04 | E46: 000 | F46: 茨城県 | G46: 古河市 | H46: 香取村 | I46: 60 | J46: 1290 | K46: 260 | L46: 1290 | M46: 0 | N46: 170
A47: 0820405000 | B47: 08 | C47: 204 | D47: 05 | E47: 000 | F47: 茨城県 | G47: 古河市 | H47: 桜井村 | I47: 155 | J47: 1112 | K47: 186 | L47: 1112 | M47: 0 | N47: 108
A48: 0820406000 | B48: 08 | C48: 204 | D48: 06 | E48: 000 | F48: 茨城県 | G48: 古河市 | H48: 岡郷村 | I48: 163 | J48: 1150 | K48: 198 | L48: 1150 | M48: 0 | N48: 152
A49: 0820407000 | B49: 08 | C49: 204 | D49: 07 | E49: 000 | F49: 茨城県 | G49: 古河市 | H49: 幸島村 | I49: 267 | J49: 1776 | K49: 370 | L49: 1776 | M49: 7 | N49: 77
A50: 0820408000 | B50: 08 | C50: 204 | D50: 08 | E50: 000 | F50: 茨城県 | G50: 古河市 | H50: 名崎村２－１ | I50: 67 | J50: 1292 | K50: 73 | L50: 1292 | M50: 0 | N50: 71
A51: 0820409000 | B51: 08 | C51: 204 | D51: 09 | E51: 000 | F51: 茨城県 | G51: 古河市 | H51: 八俣村 | I51: 57 | J51: 1463 | K51: 0 | L51: 1463 | M51: 0 | N51: 0
A52: 0820500000 | B52: 08 | C52: 205 | D52: 00 | E52: 000 | F52: 茨城県 | G52: 石岡市 | I52: 8106 | J52: 17851 | K52: 1446 | L52: 4507 | M52: 57 | N52: 396
A53: 0820501000 | B53: 08 | C53: 205 | D53: 01 | E53: 000 | F53: 茨城県 | G53: 石岡市 | H53: 石岡町 | I53: 292 | J53: 2034 | K53: 1080 | L53: 2032 | M53: 57 | N53: 240
A54: 0820502000 | B54: 08 | C54: 205 | D54: 02 | E54: 000 | F54: 茨城県 | G54: 石岡市 | H54: 高浜町 | I54: 176 | J54: 734 | K54: 366 | L54: 733 | M54: 0 | N54: 154
A55: 0820503000 | B55: 08 | C55: 205 | D55: 03 | E55: 000 | F55: 茨城県 | G55: 石岡市 | H55: 三村 | I55: 115 | J55: 1001 | K55: 0 | L55: 1001 | M55: 0 | N55: 0
A56: 0820504000 | B56: 08 | C56: 205 | D56: 04 | E56: 000 | F56: 茨城県 | G56: 石岡市 | H56: 関川村 | I56: 80 | J56: 731 | K56: 0 | L56: 732 | M56: 0 | N56: 0
A57: 0820505000 | B57: 08 | C57: 205 | D57: 05 | E57: 000 | F57: 茨城県 | G57: 石岡市 | H57: 柿岡町 | I57: 177 | J57: 772 | K57: 0 | L57: 0 | M57: 0 | N57: 3
A58: 0820506000 | B58: 08 | C58: 205 | D58: 06 | E58: 000 | F58: 茨城県 | G58: 石岡市 | H58: 小幡村 | I58: 1344 | J58: 1912 | K58: 0 | L58: 0 | M58: 0 | N58: 0
A59: 0820507000 | B59: 08 | C59: 205 | D59: 07 | E59: 000 | F59: 茨城県 | G59: 石岡市 | H59: 葦穂村 | I59: 1381 | J59: 2138 | K59: 0 | L59: 0 | M59: 0 | N59: 0
A60: 0820508000 | B60: 08 | C60: 205 | D60: 08 | E60: 000 | F60: 茨城県 | G60: 石岡市 | H60: 恋瀬村 | I60: 1459 | J60: 1791 | K60: 0 | L60: 0 | M60: 0 | N60: 0
A61: 0820509000 | B61: 08 | C61: 205 | D61: 09 | E61: 000 | F61: 茨城県 | G61: 石岡市 | H61: 瓦会村 | I61: 657 | J61: 1426 | K61: 0 | L61: 0 | M61: 0 | N61: 0
A62: 0820510000 | B62: 08 | C62: 205 | D62: 10 | E62: 000 | F62: 茨城県 | G62: 石岡市 | H62: 園部村 | I62: 502 | J62: 1947 | K62: 0 | L62: 6 | M62: 0 | N62: 0
A63: 0820511000 | B63: 08 | C63: 205 | D63: 11 | E63: 000 | F63: 茨城県 | G63: 石岡市 | H63: 林村 | I63: 461 | J63: 1595 | K63: 0 | L63: 4 | M63: 0 | N63: 0
A64: 0820512000 | B64: 08 | C64: 205 | D64: 12 | E64: 000 | F64: 茨城県 | G64: 石岡市 | H64: 小桜村 | I64: 1463 | J64: 1771 | K64: 0 | L64: 0 | M64: 0 | N64: 0
A65: 0820700000 | B65: 08 | C65: 207 | D65: 00 | E65: 000 | F65: 茨城県 | G65: 結城市 | I65: 210 | J65: 5724 | K65: 850 | L65: 5720 | M65: 42 | N65: 222
A66: 0820701000 | B66: 08 | C66: 207 | D66: 01 | E66: 000 | F66: 茨城県 | G66: 結城市 | H66: 結城町 | I66: 43 | J66: 1258 | K66: 682 | L66: 1254 | M66: 42 | N66: 62
A67: 0820702000 | B67: 08 | C67: 207 | D67: 02 | E67: 000 | F67: 茨城県 | G67: 結城市 | H67: 絹川村 | I67: 4 | J67: 566 | K67: 72 | L67: 566 | M67: 0 | N67: 70
A68: 0820703000 | B68: 08 | C68: 207 | D68: 03 | E68: 000 | F68: 茨城県 | G68: 結城市 | H68: 上山川村 | I68: 64 | J68: 926 | K68: 96 | L68: 926 | M68: 0 | N68: 90
A69: 0820704000 | B69: 08 | C69: 207 | D69: 04 | E69: 000 | F69: 茨城県 | G69: 結城市 | H69: 山川村 | I69: 3 | J69: 1112 | K69: 0 | L69: 1112 | M69: 0 | N69: 0
A70: 0820705000 | B70: 08 | C70: 207 | D70: 05 | E70: 000 | F70: 茨城県 | G70: 結城市 | H70: 江川村 | I70: 95 | J70: 1863 | K70: 0 | L70: 1863 | M70: 0 | N70: 0
A71: 0820800000 | B71: 08 | C71: 208 | D71: 00 | E71: 000 | F71: 茨城県 | G71: 龍ケ崎市 | I71: 734 | J71: 6397 | K71: 1317 | L71: 6536 | M71: 74 | N71: 155
A72: 0820801000 | B72: 08 | C72: 208 | D72: 01 | E72: 000 | F72: 茨城県 | G72: 龍ケ崎市 | H72: 長戸村 | I72: 143 | J72: 986 | K72: 118 | L72: 986 | M72: 0 | N72: 83
A73: 0820802000 | B73: 08 | C73: 208 | D73: 02 | E73: 000 | F73: 茨城県 | G73: 龍ケ崎市 | H73: 龍ヶ崎町 | I73: 18 | J73: 435 | K73: 290 | L73: 435 | M73: 34 | N73: 8
A74: 0820803000 | B74: 08 | C74: 208 | D74: 03 | E74: 000 | F74: 茨城県 | G74: 龍ケ崎市 | H74: 川原代村 | I74: 3 | J74: 471 | K74: 36 | L74: 471 | M74: 0 | N74: 0
A75: 0820804000 | B75: 08 | C75: 208 | D75: 04 | E75: 000 | F75: 茨城県 | G75: 龍ケ崎市 | H75: 馴柴村 | I75: 140 | J75: 1438 | K75: 461 | L75: 1438 | M75: 35 | N75: 20
A76: 0820805000 | B76: 08 | C76: 208 | D76: 05 | E76: 000 | F76: 茨城県 | G76: 龍ケ崎市 | H76: 八原村 | I76: 423 | J76: 1421 | K76: 383 | L76: 1560 | M76: 4 | N76: 44
A77: 0820806000 | B77: 08 | C77: 208 | D77: 06 | E77: 000 | F77: 茨城県 | G77: 龍ケ崎市 | H77: 北文間村 | I77: 7 | J77: 627 | K77: 0 | L77: 627 | M77: 0 | N77: 0
A78: 0820807000 | B78: 08 | C78: 208 | D78: 07 | E78: 000 | F78: 茨城県 | G78: 龍ケ崎市 | H78: 大宮村 | I78: 0 | J78: 901 | K78: 29 | L78: 900 | M78: 0 | N78: 0
A79: 0820808000 | B79: 08 | C79: 208 | D79: 08 | E79: 000 | F79: 茨城県 | G79: 龍ケ崎市 | H79: 高須村２－２ | I79: 1 | J79: 118 | K79: 0 | L79: 118 | M79: 0 | N79: 0
A80: 0821000000 | B80: 08 | C80: 210 | D80: 00 | E80: 000 | F80: 茨城県 | G80: 下妻市 | I80: 302 | J80: 7608 | K80: 0 | L80: 6 | M80: 39 | N80: 63
A81: 0821001000 | B81: 08 | C81: 210 | D81: 01 | E81: 000 | F81: 茨城県 | G81: 下妻市 | H81: 下妻町 | I81: 18 | J81: 252 | K81: 0 | L81: 0 | M81: 37 | N81: 20
A82: 0821002000 | B82: 08 | C82: 210 | D82: 02 | E82: 000 | F82: 茨城県 | G82: 下妻市 | H82: 大宝村 | I82: 23 | J82: 909 | K82: 0 | L82: 0 | M82: 0 | N82: 0
A83: 0821003000 | B83: 08 | C83: 210 | D83: 03 | E83: 000 | F83: 茨城県 | G83: 下妻市 | H83: 騰波ノ江村 | I83: 4 | J83: 686 | K83: 0 | L83: 0 | M83: 0 | N83: 0
A84: 0821004000 | B84: 08 | C84: 210 | D84: 04 | E84: 000 | F84: 茨城県 | G84: 下妻市 | H84: 上妻村 | I84: 123 | J84: 1764 | K84: 0 | L84: 5 | M84: 0 | N84: 20
A85: 0821005000 | B85: 08 | C85: 210 | D85: 05 | E85: 000 | F85: 茨城県 | G85: 下妻市 | H85: 総上村 | I85: 10 | J85: 655 | K85: 0 | L85: 0 | M85: 0 | N85: 0
A86: 0821006000 | B86: 08 | C86: 210 | D86: 06 | E86: 000 | F86: 茨城県 | G86: 下妻市 | H86: 豊加美村 | I86: 5 | J86: 708 | K86: 0 | L86: 0 | M86: 0 | N86: 0
A87: 0821007000 | B87: 08 | C87: 210 | D87: 07 | E87: 000 | F87: 茨城県 | G87: 下妻市 | H87: 高道祖村 | I87: 63 | J87: 757 | K87: 0 | L87: 0 | M87: 0 | N87: 0
A88: 0821008000 | B88: 08 | C88: 210 | D88: 08 | E88: 000 | F88: 茨城県 | G88: 下妻市 | H88: 大形村 | I88: 53 | J88: 904 | K88: 0 | L88: 0 | M88: 0 | N88: 23
A89: 0821009000 | B89: 08 | C89: 210 | D89: 09 | E89: 000 | F89: 茨城県 | G89: 下妻市 | H89: 蚕飼村 | I89: 2 | J89: 304 | K89: 0 | L89: 0 | M89: 0 | N89: 0
A90: 0821010000 | B90: 08 | C90: 210 | D90: 10 | E90: 000 | F90: 茨城県 | G90: 下妻市 | H90: 玉村２－１ | I90: 0 | J90: 220 | K90: 0 | L90: 0 | M90: 0 | N90: 0
A91: 0821011000 | B91: 08 | C91: 210 | D91: 11 | E91: 000 | F91: 茨城県 | G91: 下妻市 | H91: 宗道村 | I91: 1 | J91: 448 | K91: 0 | L91: 0 | M91: 2 | N91: 0
A92: 0821100000 | B92: 08 | C92: 211 | D92: 00 | E92: 000 | F92: 茨城県 | G92: 常総市 | I92: 698 | J92: 11553 | K92: 484 | L92: 7488 | M92: 59 | N92: 89
A93: 0821101000 | B93: 08 | C93: 211 | D93: 01 | E93: 000 | F93: 茨城県 | G93: 常総市 | H93: 水海道町 | I93: 10 | J93: 259 | K93: 234 | L93: 259 | M93: 40 | N93: 0
A94: 0821102000 | B94: 08 | C94: 211 | D94: 02 | E94: 000 | F94: 茨城県 | G94: 常総市 | H94: 坂手村 | I94: 122 | J94: 721 | K94: 0 | L94: 803 | M94: 0 | N94: 0
A95: 0821103000 | B95: 08 | C95: 211 | D95: 03 | E95: 000 | F95: 茨城県 | G95: 常総市 | H95: 豊岡村 | I95: 65 | J95: 822 | K95: 50 | L95: 822 | M95: 0 | N95: 0
A96: 0821104000 | B96: 08 | C96: 211 | D96: 04 | E96: 000 | F96: 茨城県 | G96: 常総市 | H96: 菅原村 | I96: 53 | J96: 840 | K96: 69 | L96: 833 | M96: 0 | N96: 67
A97: 0821105000 | B97: 08 | C97: 211 | D97: 05 | E97: 000 | F97: 茨城県 | G97: 常総市 | H97: 大花羽村 | I97: 30 | J97: 593 | K97: 3 | L97: 592 | M97: 0 | N97: 4
A98: 0821106000 | B98: 08 | C98: 211 | D98: 06 | E98: 000 | F98: 茨城県 | G98: 常総市 | H98: 三妻村 | I98: 0 | J98: 754 | K98: 50 | L98: 749 | M98: 0 | N98: 0
A99: 0821107000 | B99: 08 | C99: 211 | D99: 07 | E99: 000 | F99: 茨城県 | G99: 常総市 | H99: 五箇村 | I99: 0 | J99: 721 | K99: 0 | L99: 721 | M99: 0 | N99: 0
A100: 0821108000 | B100: 08 | C100: 211 | D100: 08 | E100: 000 | F100: 茨城県 | G100: 常総市 | H100: 大生村 | I100: 2 | J100: 776 | K100: 7 | L100: 776 | M100: 0 | N100: 0
A101: 0821109000 | B101: 08 | C101: 211 | D101: 09 | E101: 000 | F101: 茨城県 | G101: 常総市 | H101: 内守谷村 | I101: 44 | J101: 499 | K101: 70 | L101: 499 | M101: 2 | N101: 11
A102: 0821110000 | B102: 08 | C102: 211 | D102: 10 | E102: 000 | F102: 茨城県 | G102: 常総市 | H102: 菅生村 | I102: 123 | J102: 1173 | K102: 0 | L102: 1185 | M102: 0 | N102: 0
A103: 0821111000 | B103: 08 | C103: 211 | D103: 11 | E103: 000 | F103: 茨城県 | G103: 常総市 | H103: 十和村２－２ | I103: 0 | J103: 107 | K103: 0 | L103: 107 | M103: 0 | N103: 0
A104: 0821112000 | B104: 08 | C104: 211 | D104: 12 | E104: 000 | F104: 茨城県 | G104: 常総市 | H104: 真瀬村２－２ | I104: 0 | J104: 130 | K104: 0 | L104: 130 | M104: 0 | N104: 0
A105: 0821113000 | B105: 08 | C105: 211 | D105: 13 | E105: 000 | F105: 茨城県 | G105: 常総市 | H105: 石下町 | I105: 4 | J105: 665 | K105: 0 | L105: 5 | M105: 17 | N105: 7
A106: 0821114000 | B106: 08 | C106: 211 | D106: 14 | E106: 000 | F106: 茨城県 | G106: 常総市 | H106: 玉村２－２ | I106: 9 | J106: 406 | K106: 0 | L106: 0 | M106: 0 | N106: 0
A107: 0821115000 | B107: 08 | C107: 211 | D107: 15 | E107: 000 | F107: 茨城県 | G107: 常総市 | H107: 豊田村 | I107: 0 | J107: 616 | K107: 0 | L107: 0 | M107: 0 | N107: 0
A108: 0821116000 | B108: 08 | C108: 211 | D108: 16 | E108: 000 | F108: 茨城県 | G108: 常総市 | H108: 岡田村 | I108: 67 | J108: 798 | K108: 0 | L108: 0 | M108: 0 | N108: 0
A109: 0821117000 | B109: 08 | C109: 211 | D109: 17 | E109: 000 | F109: 茨城県 | G109: 常総市 | H109: 飯沼村 | I109: 170 | J109: 1672 | K109: 0 | L109: 7 | M109: 0 | N109: 1
A110: 0821200000 | B110: 08 | C110: 212 | D110: 00 | E110: 000 | F110: 茨城県 | G110: 常陸太田市 | I110: 24165 | J110: 27855 | K110: 600 | L110: 5542 | M110: 32 | N110: 97
A111: 0821201000 | B111: 08 | C111: 212 | D111: 01 | E111: 000 | F111: 茨城県 | G111: 常陸太田市 | H111: 太田町 | I111: 0 | J111: 48 | K111: 253 | L111: 48 | M111: 32 | N111: 16
A112: 0821202000 | B112: 08 | C112: 212 | D112: 02 | E112: 000 | F112: 茨城県 | G112: 常陸太田市 | H112: 機初村 | I112: 727 | J112: 961 | K112: 39 | L112: 834 | M112: 0 | N112: 42
A113: 0821203000 | B113: 08 | C113: 212 | D113: 03 | E113: 000 | F113: 茨城県 | G113: 常陸太田市 | H113: 世矢村 | I113: 693 | J113: 1090 | K113: 71 | L113: 1173 | M113: 0 | N113: 25
A114: 0821204000 | B114: 08 | C114: 212 | D114: 04 | E114: 000 | F114: 茨城県 | G114: 常陸太田市 | H114: 西小沢村 | I114: 7 | J114: 589 | K114: 1 | L114: 589 | M114: 0 | N114: 3
A115: 0821205000 | B115: 08 | C115: 212 | D115: 05 | E115: 000 | F115: 茨城県 | G115: 常陸太田市 | H115: 幸久村 | I115: 23 | J115: 753 | K115: 0 | L115: 747 | M115: 0 | N115: 0
A116: 0821206000 | B116: 08 | C116: 212 | D116: 06 | E116: 000 | F116: 茨城県 | G116: 常陸太田市 | H116: 佐竹村 | I116: 159 | J116: 702 | K116: 84 | L116: 731 | M116: 0 | N116: 0
A117: 0821207000 | B117: 08 | C117: 212 | D117: 07 | E117: 000 | F117: 茨城県 | G117: 常陸太田市 | H117: 誉田村 | I117: 1112 | J117: 1663 | K117: 152 | L117: 1302 | M117: 0 | N117: 11
A118: 0821208000 | B118: 08 | C118: 212 | D118: 08 | E118: 000 | F118: 茨城県 | G118: 常陸太田市 | H118: 佐都村 | I118: 923 | J118: 743 | K118: 0 | L118: 101 | M118: 0 | N118: 0
A119: 0821209000 | B119: 08 | C119: 212 | D119: 09 | E119: 000 | F119: 茨城県 | G119: 常陸太田市 | H119: 河内村２－１ | I119: 1441 | J119: 1202 | K119: 0 | L119: 0 | M119: 0 | N119: 0
A120: 0821210000 | B120: 08 | C120: 212 | D120: 10 | E120: 000 | F120: 茨城県 | G120: 常陸太田市 | H120: 郡戸村 | I120: 146 | J120: 968 | K120: 0 | L120: 9 | M120: 0 | N120: 0
A121: 0821211000 | B121: 08 | C121: 212 | D121: 11 | E121: 000 | F121: 茨城県 | G121: 常陸太田市 | H121: 久米村 | I121: 390 | J121: 1048 | K121: 0 | L121: 8 | M121: 0 | N121: 0
A122: 0821212000 | B122: 08 | C122: 212 | D122: 12 | E122: 000 | F122: 茨城県 | G122: 常陸太田市 | H122: 金郷村 | I122: 635 | J122: 1732 | K122: 0 | L122: 0 | M122: 0 | N122: 0
A123: 0821213000 | B123: 08 | C123: 212 | D123: 13 | E123: 000 | F123: 茨城県 | G123: 常陸太田市 | H123: 金砂村 | I123: 1409 | J123: 2139 | K123: 0 | L123: 0 | M123: 0 | N123: 0
A124: 0821214000 | B124: 08 | C124: 212 | D124: 14 | E124: 000 | F124: 茨城県 | G124: 常陸太田市 | H124: 天下野村 | I124: 1317 | J124: 1201 | K124: 0 | L124: 0 | M124: 0 | N124: 0
A125: 0821215000 | B125: 08 | C125: 212 | D125: 15 | E125: 000 | F125: 茨城県 | G125: 常陸太田市 | H125: 染和田村 | I125: 1747 | J125: 1739 | K125: 0 | L125: 0 | M125: 0 | N125: 0
A126: 0821216000 | B126: 08 | C126: 212 | D126: 16 | E126: 000 | F126: 茨城県 | G126: 常陸太田市 | H126: 高倉村 | I126: 2191 | J126: 2051 | K126: 0 | L126: 0 | M126: 0 | N126: 0
A127: 0821217000 | B127: 08 | C127: 212 | D127: 17 | E127: 000 | F127: 茨城県 | G127: 常陸太田市 | H127: 山田村 | I127: 769 | J127: 1339 | K127: 0 | L127: 1 | M127: 0 | N127: 0
A128: 0821218000 | B128: 08 | C128: 212 | D128: 18 | E128: 000 | F128: 茨城県 | G128: 常陸太田市 | H128: 河内村２－２ | I128: 72 | J128: 102 | K128: 0 | L128: 0 | M128: 0 | N128: 0
A129: 0821219000 | B129: 08 | C129: 212 | D129: 19 | E129: 000 | F129: 茨城県 | G129: 常陸太田市 | H129: 小里村 | I129: 6290 | J129: 4439 | K129: 0 | L129: 0 | M129: 0 | N129: 0
A130: 0821220000 | B130: 08 | C130: 212 | D130: 20 | E130: 000 | F130: 茨城県 | G130: 常陸太田市 | H130: 賀美村 | I130: 4113 | J130: 3345 | K130: 0 | L130: 0 | M130: 0 | N130: 0
A131: 0821400000 | B131: 08 | C131: 214 | D131: 00 | E131: 000 | F131: 茨城県 | G131: 高萩市 | I131: 15510 | J131: 11984 | K131: 0 | L131: 1 | M131: 27 | N131: 219
A132: 0821401000 | B132: 08 | C132: 214 | D132: 01 | E132: 000 | F132: 茨城県 | G132: 高萩市 | H132: 高萩町 | I132: 825 | J132: 1171 | K132: 0 | L132: 1 | M132: 27 | N132: 87
A133: 0821402000 | B133: 08 | C133: 214 | D133: 02 | E133: 000 | F133: 茨城県 | G133: 高萩市 | H133: 松岡町 | I133: 2040 | J133: 1950 | K133: 0 | L133: 0 | M133: 0 | N133: 132
A134: 0821403000 | B134: 08 | C134: 214 | D134: 03 | E134: 000 | F134: 茨城県 | G134: 高萩市 | H134: 高岡村 | I134: 12234 | J134: 8635 | K134: 0 | L134: 0 | M134: 0 | N134: 0
A135: 0821404000 | B135: 08 | C135: 214 | D135: 04 | E135: 000 | F135: 茨城県 | G135: 高萩市 | H135: 黒前村２－２ | I135: 411 | J135: 229 | K135: 0 | L135: 0 | M135: 0 | N135: 0
A136: 0821500000 | B136: 08 | C136: 215 | D136: 00 | E136: 000 | F136: 茨城県 | G136: 北茨城市 | I136: 13121 | J136: 11143 | K136: 0 | L136: 0 | M136: 48 | N136: 392
A137: 0821501000 | B137: 08 | C137: 215 | D137: 01 | E137: 000 | F137: 茨城県 | G137: 北茨城市 | H137: 南中郷村 | I137: 1299 | J137: 2064 | K137: 0 | L137: 0 | M137: 0 | N137: 164
A138: 0821502000 | B138: 08 | C138: 215 | D138: 02 | E138: 000 | F138: 茨城県 | G138: 北茨城市 | H138: 磯原町 | I138: 1482 | J138: 1610 | K138: 0 | L138: 0 | M138: 29 | N138: 74
A139: 0821503000 | B139: 08 | C139: 215 | D139: 03 | E139: 000 | F139: 茨城県 | G139: 北茨城市 | H139: 華川村 | I139: 4172 | J139: 3329 | K139: 0 | L139: 0 | M139: 0 | N139: 65
A140: 0821504000 | B140: 08 | C140: 215 | D140: 04 | E140: 000 | F140: 茨城県 | G140: 北茨城市 | H140: 関南村 | I140: 814 | J140: 1341 | K140: 0 | L140: 0 | M140: 0 | N140: 49
A141: 0821505000 | B141: 08 | C141: 215 | D141: 05 | E141: 000 | F141: 茨城県 | G141: 北茨城市 | H141: 大津町 | I141: 95 | J141: 6 | K141: 0 | L141: 0 | M141: 19 | N141: 39
A142: 0821506000 | B142: 08 | C142: 215 | D142: 06 | E142: 000 | F142: 茨城県 | G142: 北茨城市 | H142: 平潟町 | I142: 46 | J142: 1 | K142: 0 | L142: 0 | M142: 0 | N142: 1
A143: 0821507000 | B143: 08 | C143: 215 | D143: 07 | E143: 000 | F143: 茨城県 | G143: 北茨城市 | H143: 関本村 | I143: 5214 | J143: 2793 | K143: 0 | L143: 0 | M143: 0 | N143: 0
A144: 0821600000 | B144: 08 | C144: 216 | D144: 00 | E144: 000 | F144: 茨城県 | G144: 笠間市 | I144: 12188 | J144: 20859 | K144: 0 | L144: 15 | M144: 52 | N144: 259
A145: 0821601000 | B145: 08 | C145: 216 | D145: 01 | E145: 000 | F145: 茨城県 | G145: 笠間市 | H145: 笠間町 | I145: 480 | J145: 576 | K145: 0 | L145: 0 | M145: 24 | N145: 0
A146: 0821602000 | B146: 08 | C146: 216 | D146: 02 | E146: 000 | F146: 茨城県 | G146: 笠間市 | H146: 大池田村 | I146: 2037 | J146: 3128 | K146: 0 | L146: 5 | M146: 0 | N146: 0
A147: 0821603000 | B147: 08 | C147: 216 | D147: 03 | E147: 000 | F147: 茨城県 | G147: 笠間市 | H147: 北山内村 | I147: 2371 | J147: 2901 | K147: 0 | L147: 0 | M147: 2 | N147: 0
A148: 0821604000 | B148: 08 | C148: 216 | D148: 04 | E148: 000 | F148: 茨城県 | G148: 笠間市 | H148: 南山内村 | I148: 1970 | J148: 2632 | K148: 0 | L148: 0 | M148: 0 | N148: 0
A149: 0821605000 | B149: 08 | C149: 216 | D149: 05 | E149: 000 | F149: 茨城県 | G149: 笠間市 | H149: 西山内村 | I149: 1452 | J149: 2255 | K149: 0 | L149: 4 | M149: 0 | N149: 0
A150: 0821606000 | B150: 08 | C150: 216 | D150: 06 | E150: 000 | F150: 茨城県 | G150: 笠間市 | H150: 宍戸町 | I150: 817 | J150: 2117 | K150: 0 | L150: 0 | M150: 16 | N150: 13
A151: 0821607000 | B151: 08 | C151: 216 | D151: 07 | E151: 000 | F151: 茨城県 | G151: 笠間市 | H151: 北川根村 | I151: 358 | J151: 1201 | K151: 0 | L151: 2 | M151: 0 | N151: 113
A152: 0821608000 | B152: 08 | C152: 216 | D152: 08 | E152: 000 | F152: 茨城県 | G152: 笠間市 | H152: 大原村 | I152: 832 | J152: 1423 | K152: 0 | L152: 1 | M152: 0 | N152: 0
A153: 0821609000 | B153: 08 | C153: 216 | D153: 09 | E153: 000 | F153: 茨城県 | G153: 笠間市 | H153: 鯉渕村２－２ | I153: 54 | J153: 272 | K153: 0 | L153: 2 | M153: 0 | N153: 0
A154: 0821610000 | B154: 08 | C154: 216 | D154: 10 | E154: 000 | F154: 茨城県 | G154: 笠間市 | H154: 岩間町 | I154: 1471 | J154: 2741 | K154: 0 | L154: 0 | M154: 11 | N154: 3
A155: 0821611000 | B155: 08 | C155: 216 | D155: 11 | E155: 000 | F155: 茨城県 | G155: 笠間市 | H155: 南川根村 | I155: 346 | J155: 1613 | K155: 0 | L155: 1 | M155: 0 | N155: 130
A156: 0821700000 | B156: 08 | C156: 217 | D156: 00 | E156: 000 | F156: 茨城県 | G156: 取手市 | I156: 260 | J156: 5194 | K156: 1757 | L156: 5236 | M156: 110 | N156: 179
A157: 0821701000 | B157: 08 | C157: 217 | D157: 01 | E157: 000 | F157: 茨城県 | G157: 取手市 | H157: 取手町 | I157: 10 | J157: 540 | K157: 534 | L157: 540 | M157: 74 | N157: 28
A158: 0821702000 | B158: 08 | C158: 217 | D158: 02 | E158: 000 | F158: 茨城県 | G158: 取手市 | H158: 小文間村 | I158: 66 | J158: 559 | K158: 25 | L158: 562 | M158: 0 | N158: 24
A159: 0821703000 | B159: 08 | C159: 217 | D159: 03 | E159: 000 | F159: 茨城県 | G159: 取手市 | H159: 寺原村 | I159: 38 | J159: 301 | K159: 316 | L159: 314 | M159: 6 | N159: 28
A160: 0821704000 | B160: 08 | C160: 217 | D160: 04 | E160: 000 | F160: 茨城県 | G160: 取手市 | H160: 高井村２－２ | I160: 67 | J160: 406 | K160: 97 | L160: 406 | M160: 7 | N160: 13
A161: 0821705000 | B161: 08 | C161: 217 | D161: 05 | E161: 000 | F161: 茨城県 | G161: 取手市 | H161: 稲戸井村 | I161: 74 | J161: 550 | K161: 340 | L161: 575 | M161: 3 | N161: 1
A162: 0821706000 | B162: 08 | C162: 217 | D162: 06 | E162: 000 | F162: 茨城県 | G162: 取手市 | H162: 相馬町 | I162: 0 | J162: 355 | K162: 231 | L162: 355 | M162: 19 | N162: 24
A163: 0821707000 | B163: 08 | C163: 217 | D163: 07 | E163: 000 | F163: 茨城県 | G163: 取手市 | H163: 山王村 | I163: 4 | J163: 778 | K163: 0 | L163: 778 | M163: 0 | N163: 0
A164: 0821708000 | B164: 08 | C164: 217 | D164: 08 | E164: 000 | F164: 茨城県 | G164: 取手市 | H164: 久賀村２－２ | I164: 0 | J164: 552 | K164: 26 | L164: 552 | M164: 0 | N164: 0
A165: 0821709000 | B165: 08 | C165: 217 | D165: 09 | E165: 000 | F165: 茨城県 | G165: 取手市 | H165: 高須村２－１ | I165: 0 | J165: 493 | K165: 110 | L165: 493 | M165: 1 | N165: 21
A166: 0821710000 | B166: 08 | C166: 217 | D166: 10 | E166: 000 | F166: 茨城県 | G166: 取手市 | H166: 六郷村 | I166: 0 | J166: 660 | K166: 78 | L166: 660 | M166: 0 | N166: 39
A167: 0821900000 | B167: 08 | C167: 219 | D167: 00 | E167: 000 | F167: 茨城県 | G167: 牛久市 | I167: 1156 | J167: 4642 | K167: 1242 | L167: 4649 | M167: 74 | N167: 165
A168: 0821901000 | B168: 08 | C168: 219 | D168: 01 | E168: 000 | F168: 茨城県 | G168: 牛久市 | H168: 牛久町 | I168: 202 | J168: 612 | K168: 518 | L168: 612 | M168: 37 | N168: 19
A169: 0821902000 | B169: 08 | C169: 219 | D169: 02 | E169: 000 | F169: 茨城県 | G169: 牛久市 | H169: 岡田村 | I169: 497 | J169: 2015 | K169: 602 | L169: 2016 | M169: 37 | N169: 32
A170: 0821903000 | B170: 08 | C170: 219 | D170: 03 | E170: 000 | F170: 茨城県 | G170: 牛久市 | H170: 奥野村 | I170: 457 | J170: 2015 | K170: 122 | L170: 2022 | M170: 0 | N170: 114
A171: 0822000000 | B171: 08 | C171: 220 | D171: 00 | E171: 000 | F171: 茨城県 | G171: つくば市 | I171: 4135 | J171: 22052 | K171: 5431 | L171: 22935 | M171: 344 | N171: 845
A172: 0822001000 | B172: 08 | C172: 220 | D172: 01 | E172: 000 | F172: 茨城県 | G172: つくば市 | H172: 栄村 | I172: 54 | J172: 682 | K172: 173 | L172: 682 | M172: 6 | N172: 0
A173: 0822002000 | B173: 08 | C173: 220 | D173: 02 | E173: 000 | F173: 茨城県 | G173: つくば市 | H173: 九重村 | I173: 78 | J173: 1103 | K173: 849 | L173: 1104 | M173: 109 | N173: 0
A174: 0822003000 | B174: 08 | C174: 220 | D174: 03 | E174: 000 | F174: 茨城県 | G174: つくば市 | H174: 栗原村２－１ | I174: 37 | J174: 467 | K174: 241 | L174: 467 | M174: 0 | N174: 6
A175: 0822004000 | B175: 08 | C175: 220 | D175: 04 | E175: 000 | F175: 茨城県 | G175: つくば市 | H175: 島名村 | I175: 231 | J175: 1240 | K175: 376 | L175: 1240 | M175: 43 | N175: 104
A176: 0822005000 | B176: 08 | C176: 220 | D176: 05 | E176: 000 | F176: 茨城県 | G176: つくば市 | H176: 葛城村 | I176: 160 | J176: 679 | K176: 729 | L176: 679 | M176: 78 | N176: 233
A177: 0822006000 | B177: 08 | C177: 220 | D177: 06 | E177: 000 | F177: 茨城県 | G177: つくば市 | H177: 小野川村 | I177: 64 | J177: 1514 | K177: 907 | L177: 1576 | M177: 14 | N177: 1
A178: 0822007000 | B178: 08 | C178: 220 | D178: 07 | E178: 000 | F178: 茨城県 | G178: つくば市 | H178: 谷田部町 | I178: 153 | J178: 1091 | K178: 627 | L178: 1091 | M178: 64 | N178: 109
A179: 0822008000 | B179: 08 | C179: 220 | D179: 08 | E179: 000 | F179: 茨城県 | G179: つくば市 | H179: 真瀬村２－１ | I179: 61 | J179: 799 | K179: 2 | L179: 799 | M179: 1 | N179: 1
A180: 0822009000 | B180: 08 | C180: 220 | D180: 09 | E180: 000 | F180: 茨城県 | G180: つくば市 | H180: 上郷村 | I180: 121 | J180: 1150 | K180: 142 | L180: 1149 | M180: 8 | N180: 67
A181: 0822010000 | B181: 08 | C181: 220 | D181: 10 | E181: 000 | F181: 茨城県 | G181: つくば市 | H181: 旭村２－１ | I181: 137 | J181: 1415 | K181: 211 | L181: 1415 | M181: 0 | N181: 47
A182: 0822011000 | B182: 08 | C182: 220 | D182: 11 | E182: 000 | F182: 茨城県 | G182: つくば市 | H182: 吉沼村２－２ | I182: 18 | J182: 280 | K182: 2 | L182: 280 | M182: 0 | N182: 2
A183: 0822012000 | B183: 08 | C183: 220 | D183: 12 | E183: 000 | F183: 茨城県 | G183: つくば市 | H183: 筑波町 | I183: 925 | J183: 1100 | K183: 76 | L183: 1406 | M183: 0 | N183: 77
A184: 0822013000 | B184: 08 | C184: 220 | D184: 13 | E184: 000 | F184: 茨城県 | G184: つくば市 | H184: 北条町 | I184: 41 | J184: 599 | K184: 81 | L184: 599 | M184: 6 | N184: 6
A185: 0822014000 | B185: 08 | C185: 220 | D185: 14 | E185: 000 | F185: 茨城県 | G185: つくば市 | H185: 小田村 | I185: 813 | J185: 1306 | K185: 63 | L185: 1751 | M185: 0 | N185: 0
A186: 0822015000 | B186: 08 | C186: 220 | D186: 15 | E186: 000 | F186: 茨城県 | G186: つくば市 | H186: 田井村 | I186: 455 | J186: 941 | K186: 0 | L186: 1011 | M186: 0 | N186: 0
A187: 0822016000 | B187: 08 | C187: 220 | D187: 16 | E187: 000 | F187: 茨城県 | G187: つくば市 | H187: 作岡村 | I187: 175 | J187: 1398 | K187: 32 | L187: 1398 | M187: 0 | N187: 24
A188: 0822017000 | B188: 08 | C188: 220 | D188: 17 | E188: 000 | F188: 茨城県 | G188: つくば市 | H188: 田水山村 | I188: 44 | J188: 592 | K188: 127 | L188: 592 | M188: 0 | N188: 87
A189: 0822018000 | B189: 08 | C189: 220 | D189: 18 | E189: 000 | F189: 茨城県 | G189: つくば市 | H189: 菅間村 | I189: 64 | J189: 665 | K189: 0 | L189: 665 | M189: 0 | N189: 0
A190: 0822019000 | B190: 08 | C190: 220 | D190: 19 | E190: 000 | F190: 茨城県 | G190: つくば市 | H190: 栗原村２－２ | I190: 0 | J190: 85 | K190: 13 | L190: 85 | M190: 0 | N190: 0
A191: 0822020000 | B191: 08 | C191: 220 | D191: 20 | E191: 000 | F191: 茨城県 | G191: つくば市 | H191: 大穂村 | I191: 85 | J191: 1369 | K191: 440 | L191: 1369 | M191: 9 | N191: 28
A192: 0822021000 | B192: 08 | C192: 220 | D192: 21 | E192: 000 | F192: 茨城県 | G192: つくば市 | H192: 吉沼村２－１ | I192: 87 | J192: 1090 | K192: 107 | L192: 1089 | M192: 6 | N192: 42
A193: 0822022000 | B193: 08 | C193: 220 | D193: 22 | E193: 000 | F193: 茨城県 | G193: つくば市 | H193: 旭村２－２ | I193: 13 | J193: 296 | K193: 18 | L193: 296 | M193: 0 | N193: 0
A194: 0822023000 | B194: 08 | C194: 220 | D194: 23 | E194: 000 | F194: 茨城県 | G194: つくば市 | H194: 茎崎町 | I194: 318 | J194: 2192 | K194: 214 | L194: 2192 | M194: 0 | N194: 12
A195: 0822100000 | B195: 08 | C195: 221 | D195: 00 | E195: 000 | F195: 茨城県 | G195: ひたちなか市 | I195: 1391 | J195: 5029 | K195: 4224 | L195: 5677 | M195: 217 | N195: 1352
A196: 0822101000 | B196: 08 | C196: 221 | D196: 01 | E196: 000 | F196: 茨城県 | G196: ひたちなか市 | H196: 那珂湊町 | I196: 128 | J196: 873 | K196: 432 | L196: 873 | M196: 32 | N196: 101
A197: 0822102000 | B197: 08 | C197: 221 | D197: 02 | E197: 000 | F197: 茨城県 | G197: ひたちなか市 | H197: 平磯町 | I197: 26 | J197: 293 | K197: 165 | L197: 339 | M197: 5 | N197: 0
A198: 0822103000 | B198: 08 | C198: 221 | D198: 03 | E198: 000 | F198: 茨城県 | G198: ひたちなか市 | H198: 前渡村２－２ | I198: 39 | J198: 163 | K198: 344 | L198: 431 | M198: 15 | N198: 206
A199: 0822104000 | B199: 08 | C199: 221 | D199: 04 | E199: 000 | F199: 茨城県 | G199: ひたちなか市 | H199: 勝田町 | I199: 471 | J199: 1781 | K199: 1730 | L199: 1781 | M199: 119 | N199: 338
A200: 0822105000 | B200: 08 | C200: 221 | D200: 05 | E200: 000 | F200: 茨城県 | G200: ひたちなか市 | H200: 佐野村 | I200: 315 | J200: 925 | K200: 764 | L200: 924 | M200: 29 | N200: 254
A201: 0822106000 | B201: 08 | C201: 221 | D201: 06 | E201: 000 | F201: 茨城県 | G201: ひたちなか市 | H201: 前渡村２－１ | I201: 413 | J201: 995 | K201: 789 | L201: 1329 | M201: 16 | N201: 453
A202: 0822200000 | B202: 08 | C202: 222 | D202: 00 | E202: 000 | F202: 茨城県 | G202: 鹿嶋市 | I202: 1860 | J202: 7105 | K202: 2338 | L202: 7455 | M202: 79 | N202: 1063
... 241 more rows

Sheet 地域類型区分 (hidden)
A4: 8 | B4: 茨城県 | C4: 区分設定 | D4: されていません
A5: 201-00 | B5: 水戸市 | C5: 都市的地域 | D5: 田畑型 | F5: 水戸市 | H5: 1 | I5: 2 | J5: 都市的地域 | K5: 田畑型
A6: 201-01 | B6: 水戸市（旧） | C6: 都市的地域 | D6: 田畑型 | F6: 水戸市 | G6: 水戸市 | H6: 1 | I6: 2 | J6: 都市的地域 | K6: 田畑型
A7: 201-02 | B7: 国田村 | C7: 平地農業地域 | D7: 水田型 | F7: 水戸市 | G7: 国田村 | H7: 2 | I7: 1 | J7: 平地農業地域 | K7: 水田型
A8: 201-03 | B8: 吉田村 | C8: 都市的地域 | D8: 田畑型 | F8: 水戸市 | G8: 吉田村 | H8: 1 | I8: 2 | J8: 都市的地域 | K8: 田畑型
A9: 201-04 | B9: 酒門村２－１ | C9: 平地農業地域 | D9: 水田型 | F9: 水戸市 | G9: 酒門村２－１ | H9: 2 | I9: 1 | J9: 平地農業地域 | K9: 水田型
A10: 201-05 | B10: 柳河村 | C10: 平地農業地域 | D10: 田畑型 | F10: 水戸市 | G10: 柳河村 | H10: 2 | I10: 2 | J10: 平地農業地域 | K10: 田畑型
A11: 201-06 | B11: 渡里村 | C11: 都市的地域 | D11: 田畑型 | F11: 水戸市 | G11: 渡里村 | H11: 1 | I11: 2 | J11: 都市的地域 | K11: 田畑型
A12: 201-07 | B12: 上大野村 | C12: 平地農業地域 | D12: 水田型 | F12: 水戸市 | G12: 上大野村 | H12: 2 | I12: 1 | J12: 平地農業地域 | K12: 水田型
A13: 201-08 | B13: 緑岡村 | C13: 都市的地域 | D13: 田畑型 | F13: 水戸市 | G13: 緑岡村 | H13: 1 | I13: 2 | J13: 都市的地域 | K13: 田畑型
A14: 201-09 | B14: 飯富村 | C14: 平地農業地域 | D14: 畑地型 | F14: 水戸市 | G14: 飯富村 | H14: 2 | I14: 3 | J14: 平地農業地域 | K14: 畑地型
A15: 201-10 | B15: 上中妻村 | C15: 都市的地域 | D15: 田畑型 | F15: 水戸市 | G15: 上中妻村 | H15: 1 | I15: 2 | J15: 都市的地域 | K15: 田畑型
A16: 201-11 | B16: 山根村 | C16: 中間農業地域 | D16: 田畑型 | F16: 水戸市 | G16: 山根村 | H16: 3 | I16: 2 | J16: 中間農業地域 | K16: 田畑型
A17: 201-12 | B17: 河和田村 | C17: 都市的地域 | D17: 田畑型 | F17: 水戸市 | G17: 河和田村 | H17: 1 | I17: 2 | J17: 都市的地域 | K17: 田畑型
A18: 201-13 | B18: 下大野村 | C18: 平地農業地域 | D18: 水田型 | F18: 水戸市 | G18: 下大野村 | H18: 2 | I18: 1 | J18: 平地農業地域 | K18: 水田型
A19: 201-14 | B19: 稲荷村 | C19: 平地農業地域 | D19: 水田型 | F19: 水戸市 | G19: 稲荷村 | H19: 2 | I19: 1 | J19: 平地農業地域 | K19: 水田型
A20: 201-15 | B20: 大場村 | C20: 平地農業地域 | D20: 水田型 | F20: 水戸市 | G20: 大場村 | H20: 2 | I20: 1 | J20: 平地農業地域 | K20: 水田型
A21: 201-16 | B21: 下中妻村 | C21: 都市的地域 | D21: 田畑型 | F21: 水戸市 | G21: 下中妻村 | H21: 1 | I21: 2 | J21: 都市的地域 | K21: 田畑型
A22: 201-17 | B22: 中妻村 | C22: 平地農業地域 | D22: 田畑型 | F22: 水戸市 | G22: 中妻村 | H22: 2 | I22: 2 | J22: 平地農業地域 | K22: 田畑型
A23: 201-18 | B23: 鯉渕村２－１ | C23: 平地農業地域 | D23: 田畑型 | F23: 水戸市 | G23: 鯉渕村２－１ | H23: 2 | I23: 2 | J23: 平地農業地域 | K23: 田畑型
A24: 202-00 | B24: 日立市 | C24: 都市的地域 | D24: 田畑型 | F24: 日立市 | H24: 1 | I24: 2 | J24: 都市的地域 | K24: 田畑型
A25: 202-01 | B25: 中里村 | C25: 中間農業地域 | D25: 田畑型 | F25: 日立市 | G25: 中里村 | H25: 3 | I25: 2 | J25: 中間農業地域 | K25: 田畑型
A26: 202-02 | B26: 豊浦町 | C26: 都市的地域 | D26: 田畑型 | F26: 日立市 | G26: 豊浦町 | H26: 1 | I26: 2 | J26: 都市的地域 | K26: 田畑型
A27: 202-03 | B27: 日高村 | C27: 都市的地域 | D27: 田畑型 | F27: 日立市 | G27: 日高村 | H27: 1 | I27: 2 | J27: 都市的地域 | K27: 田畑型
A28: 202-04 | B28: 日立市（旧） | C28: 都市的地域 | D28: 畑地型 | F28: 日立市 | G28: 日立市 | H28: 1 | I28: 3 | J28: 都市的地域 | K28: 畑地型
A29: 202-05 | B29: 多賀町 | C29: 都市的地域 | D29: 畑地型 | F29: 日立市 | G29: 多賀町 | H29: 1 | I29: 3 | J29: 都市的地域 | K29: 畑地型
A30: 202-06 | B30: 久慈町 | C30: 都市的地域 | D30: 畑地型 | F30: 日立市 | G30: 久慈町 | H30: 1 | I30: 3 | J30: 都市的地域 | K30: 畑地型
A31: 202-07 | B31: 坂本村 | C31: 都市的地域 | D31: 水田型 | F31: 日立市 | G31: 坂本村 | H31: 1 | I31: 1 | J31: 都市的地域 | K31: 水田型
A32: 202-08 | B32: 東小沢村 | C32: 平地農業地域 | D32: 水田型 | F32: 日立市 | G32: 東小沢村 | H32: 2 | I32: 1 | J32: 平地農業地域 | K32: 水田型
A33: 202-09 | B33: 黒前村２－１ | C33: 山間農業地域 | D33: 水田型 | F33: 日立市 | G33: 黒前村２－１ | H33: 4 | I33: 1 | J33: 山間農業地域 | K33: 水田型
A34: 202-10 | B34: 櫛形村 | C34: 都市的地域 | D34: 水田型 | F34: 日立市 | G34: 櫛形村 | H34: 1 | I34: 1 | J34: 都市的地域 | K34: 水田型
A35: 203-00 | B35: 土浦市 | C35: 都市的地域 | D35: 田畑型 | F35: 土浦市 | H35: 1 | I35: 2 | J35: 都市的地域 | K35: 田畑型
A36: 203-01 | B36: 土浦市（旧） | C36: 都市的地域 | D36: 田畑型 | F36: 土浦市 | G36: 土浦市 | H36: 1 | I36: 2 | J36: 都市的地域 | K36: 田畑型
A37: 203-02 | B37: 上大津村 | C37: 都市的地域 | D37: 田畑型 | F37: 土浦市 | G37: 上大津村 | H37: 1 | I37: 2 | J37: 都市的地域 | K37: 田畑型
A38: 203-03 | B38: 藤沢村 | C38: 平地農業地域 | D38: 田畑型 | F38: 土浦市 | G38: 藤沢村 | H38: 2 | I38: 2 | J38: 平地農業地域 | K38: 田畑型
A39: 203-04 | B39: 山ノ荘村 | C39: 平地農業地域 | D39: 田畑型 | F39: 土浦市 | G39: 山ノ荘村 | H39: 2 | I39: 2 | J39: 平地農業地域 | K39: 田畑型
A40: 203-05 | B40: 斗利出村 | C40: 平地農業地域 | D40: 水田型 | F40: 土浦市 | G40: 斗利出村 | H40: 2 | I40: 1 | J40: 平地農業地域 | K40: 水田型
A41: 204-00 | B41: 古河市 | C41: 都市的地域 | D41: 田畑型 | F41: 古河市 | H41: 1 | I41: 2 | J41: 都市的地域 | K41: 田畑型
A42: 204-01 | B42: 古河町 | C42: 都市的地域 | D42: 田畑型 | F42: 古河市 | G42: 古河町 | H42: 1 | I42: 2 | J42: 都市的地域 | K42: 田畑型
A43: 204-02 | B43: 新郷村 | C43: 都市的地域 | D43: 田畑型 | F43: 古河市 | G43: 新郷村 | H43: 1 | I43: 2 | J43: 都市的地域 | K43: 田畑型
A44: 204-03 | B44: 勝鹿村 | C44: 都市的地域 | D44: 田畑型 | F44: 古河市 | G44: 勝鹿村 | H44: 1 | I44: 2 | J44: 都市的地域 | K44: 田畑型
A45: 204-04 | B45: 香取村 | C45: 平地農業地域 | D45: 田畑型 | F45: 古河市 | G45: 香取村 | H45: 2 | I45: 2 | J45: 平地農業地域 | K45: 田畑型
A46: 204-05 | B46: 桜井村 | C46: 平地農業地域 | D46: 田畑型 | F46: 古河市 | G46: 桜井村 | H46: 2 | I46: 2 | J46: 平地農業地域 | K46: 田畑型
A47: 204-06 | B47: 岡郷村 | C47: 平地農業地域 | D47: 田畑型 | F47: 古河市 | G47: 岡郷村 | H47: 2 | I47: 2 | J47: 平地農業地域 | K47: 田畑型
A48: 204-07 | B48: 幸島村 | C48: 平地農業地域 | D48: 田畑型 | F48: 古河市 | G48: 幸島村 | H48: 2 | I48: 2 | J48: 平地農業地域 | K48: 田畑型
A49: 204-08 | B49: 名崎村２－１ | C49: 平地農業地域 | D49: 田畑型 | F49: 古河市 | G49: 名崎村２－１ | H49: 2 | I49: 2 | J49: 平地農業地域 | K49: 田畑型
A50: 204-09 | B50: 八俣村 | C50: 平地農業地域 | D50: 田畑型 | F50: 古河市 | G50: 八俣村 | H50: 2 | I50: 2 | J50: 平地農業地域 | K50: 田畑型
A51: 205-00 | B51: 石岡市 | C51: 都市的地域 | D51: 田畑型 | F51: 石岡市 | H51: 1 | I51: 2 | J51: 都市的地域 | K51: 田畑型
A52: 205-01 | B52: 石岡町 | C52: 都市的地域 | D52: 田畑型 | F52: 石岡市 | G52: 石岡町 | H52: 1 | I52: 2 | J52: 都市的地域 | K52: 田畑型
A53: 205-02 | B53: 高浜町 | C53: 都市的地域 | D53: 田畑型 | F53: 石岡市 | G53: 高浜町 | H53: 1 | I53: 2 | J53: 都市的地域 | K53: 田畑型
A54: 205-03 | B54: 三村 | C54: 平地農業地域 | D54: 田畑型 | F54: 石岡市 | G54: 三村 | H54: 2 | I54: 2 | J54: 平地農業地域 | K54: 田畑型
A55: 205-04 | B55: 関川村 | C55: 平地農業地域 | D55: 田畑型 | F55: 石岡市 | G55: 関川村 | H55: 2 | I55: 2 | J55: 平地農業地域 | K55: 田畑型
A56: 205-05 | B56: 柿岡町 | C56: 平地農業地域 | D56: 田畑型 | F56: 石岡市 | G56: 柿岡町 | H56: 2 | I56: 2 | J56: 平地農業地域 | K56: 田畑型
A57: 205-06 | B57: 小幡村 | C57: 平地農業地域 | D57: 田畑型 | F57: 石岡市 | G57: 小幡村 | H57: 2 | I57: 2 | J57: 平地農業地域 | K57: 田畑型
A58: 205-07 | B58: 葦穂村 | C58: 平地農業地域 | D58: 田畑型 | F58: 石岡市 | G58: 葦穂村 | H58: 2 | I58: 2 | J58: 平地農業地域 | K58: 田畑型
A59: 205-08 | B59: 恋瀬村 | C59: 中間農業地域 | D59: 田畑型 | F59: 石岡市 | G59: 恋瀬村 | H59: 3 | I59: 2 | J59: 中間農業地域 | K59: 田畑型
A60: 205-09 | B60: 瓦会村 | C60: 平地農業地域 | D60: 田畑型 | F60: 石岡市 | G60: 瓦会村 | H60: 2 | I60: 2 | J60: 平地農業地域 | K60: 田畑型
A61: 205-10 | B61: 園部村 | C61: 平地農業地域 | D61: 畑地型 | F61: 石岡市 | G61: 園部村 | H61: 2 | I61: 3 | J61: 平地農業地域 | K61: 畑地型
A62: 205-11 | B62: 林村 | C62: 平地農業地域 | D62: 田畑型 | F62: 石岡市 | G62: 林村 | H62: 2 | I62: 2 | J62: 平地農業地域 | K62: 田畑型
A63: 205-12 | B63: 小桜村 | C63: 中間農業地域 | D63: 田畑型 | F63: 石岡市 | G63: 小桜村 | H63: 3 | I63: 2 | J63: 中間農業地域 | K63: 田畑型
A64: 207-00 | B64: 結城市 | C64: 都市的地域 | D64: 田畑型 | F64: 結城市 | H64: 1 | I64: 2 | J64: 都市的地域 | K64: 田畑型
A65: 207-01 | B65: 結城町 | C65: 都市的地域 | D65: 田畑型 | F65: 結城市 | G65: 結城町 | H65: 1 | I65: 2 | J65: 都市的地域 | K65: 田畑型
A66: 207-02 | B66: 絹川村 | C66: 平地農業地域 | D66: 田畑型 | F66: 結城市 | G66: 絹川村 | H66: 2 | I66: 2 | J66: 平地農業地域 | K66: 田畑型
A67: 207-03 | B67: 上山川村 | C67: 平地農業地域 | D67: 田畑型 | F67: 結城市 | G67: 上山川村 | H67: 2 | I67: 2 | J67: 平地農業地域 | K67: 田畑型
A68: 207-04 | B68: 山川村 | C68: 平地農業地域 | D68: 田畑型 | F68: 結城市 | G68: 山川村 | H68: 2 | I68: 2 | J68: 平地農業地域 | K68: 田畑型
A69: 207-05 | B69: 江川村 | C69: 平地農業地域 | D69: 田畑型 | F69: 結城市 | G69: 江川村 | H69: 2 | I69: 2 | J69: 平地農業地域 | K69: 田畑型
A70: 208-00 | B70: 龍ケ崎市 | C70: 都市的地域 | D70: 水田型 | F70: 龍ケ崎市 | H70: 1 | I70: 1 | J70: 都市的地域 | K70: 水田型
A71: 208-01 | B71: 長戸村 | C71: 平地農業地域 | D71: 水田型 | F71: 龍ケ崎市 | G71: 長戸村 | H71: 2 | I71: 1 | J71: 平地農業地域 | K71: 水田型
A72: 208-02 | B72: 竜ケ崎町 | C72: 都市的地域 | D72: 水田型 | F72: 龍ケ崎市 | G72: 龍ヶ崎町 | H72: 1 | I72: 1 | J72: 都市的地域 | K72: 水田型
A73: 208-03 | B73: 川原代村 | C73: 都市的地域 | D73: 水田型 | F73: 龍ケ崎市 | G73: 川原代村 | H73: 1 | I73: 1 | J73: 都市的地域 | K73: 水田型
A74: 208-04 | B74: 馴柴村 | C74: 都市的地域 | D74: 水田型 | F74: 龍ケ崎市 | G74: 馴柴村 | H74: 1 | I74: 1 | J74: 都市的地域 | K74: 水田型
A75: 208-05 | B75: 八原村 | C75: 都市的地域 | D75: 田畑型 | F75: 龍ケ崎市 | G75: 八原村 | H75: 1 | I75: 2 | J75: 都市的地域 | K75: 田畑型
A76: 208-06 | B76: 北文間村 | C76: 平地農業地域 | D76: 水田型 | F76: 龍ケ崎市 | G76: 北文間村 | H76: 2 | I76: 1 | J76: 平地農業地域 | K76: 水田型
A77: 208-07 | B77: 大宮村 | C77: 平地農業地域 | D77: 水田型 | F77: 龍ケ崎市 | G77: 大宮村 | H77: 2 | I77: 1 | J77: 平地農業地域 | K77: 水田型
A78: 208-08 | B78: 高須村２－２ | C78: 平地農業地域 | D78: 水田型 | F78: 龍ケ崎市 | G78: 高須村２－２ | H78: 2 | I78: 1 | J78: 平地農業地域 | K78: 水田型
A79: 210-00 | B79: 下妻市 | C79: 平地農業地域 | D79: 水田型 | F79: 下妻市 | H79: 2 | I79: 1 | J79: 平地農業地域 | K79: 水田型
A80: 210-01 | B80: 下妻町 | C80: 都市的地域 | D80: 田畑型 | F80: 下妻市 | G80: 下妻町 | H80: 1 | I80: 2 | J80: 都市的地域 | K80: 田畑型
A81: 210-02 | B81: 大宝村 | C81: 平地農業地域 | D81: 水田型 | F81: 下妻市 | G81: 大宝村 | H81: 2 | I81: 1 | J81: 平地農業地域 | K81: 水田型
A82: 210-03 | B82: 騰波ノ江村 | C82: 平地農業地域 | D82: 水田型 | F82: 下妻市 | G82: 騰波ノ江村 | H82: 2 | I82: 1 | J82: 平地農業地域 | K82: 水田型
A83: 210-04 | B83: 上妻村 | C83: 平地農業地域 | D83: 田畑型 | F83: 下妻市 | G83: 上妻村 | H83: 2 | I83: 2 | J83: 平地農業地域 | K83: 田畑型
A84: 210-05 | B84: 総上村 | C84: 平地農業地域 | D84: 水田型 | F84: 下妻市 | G84: 総上村 | H84: 2 | I84: 1 | J84: 平地農業地域 | K84: 水田型
A85: 210-06 | B85: 豊加美村 | C85: 平地農業地域 | D85: 水田型 | F85: 下妻市 | G85: 豊加美村 | H85: 2 | I85: 1 | J85: 平地農業地域 | K85: 水田型
A86: 210-07 | B86: 高道祖村 | C86: 平地農業地域 | D86: 水田型 | F86: 下妻市 | G86: 高道祖村 | H86: 2 | I86: 1 | J86: 平地農業地域 | K86: 水田型
A87: 210-08 | B87: 大形村 | C87: 平地農業地域 | D87: 田畑型 | F87: 下妻市 | G87: 大形村 | H87: 2 | I87: 2 | J87: 平地農業地域 | K87: 田畑型
A88: 210-09 | B88: 蚕飼村 | C88: 平地農業地域 | D88: 水田型 | F88: 下妻市 | G88: 蚕飼村 | H88: 2 | I88: 1 | J88: 平地農業地域 | K88: 水田型
A89: 210-10 | B89: 玉村２－１ | C89: 平地農業地域 | D89: 水田型 | F89: 下妻市 | G89: 玉村２－１ | H89: 2 | I89: 1 | J89: 平地農業地域 | K89: 水田型
A90: 210-11 | B90: 宗道村 | C90: 平地農業地域 | D90: 水田型 | F90: 下妻市 | G90: 宗道村 | H90: 2 | I90: 1 | J90: 平地農業地域 | K90: 水田型
A91: 211-00 | B91: 常総市 | C91: 平地農業地域 | D91: 水田型 | F91: 常総市 | H91: 2 | I91: 1 | J91: 平地農業地域 | K91: 水田型
A92: 211-01 | B92: 水海道町 | C92: 都市的地域 | D92: 田畑型 | F92: 常総市 | G92: 水海道町 | H92: 1 | I92: 2 | J92: 都市的地域 | K92: 田畑型
A93: 211-02 | B93: 坂手村 | C93: 平地農業地域 | D93: 田畑型 | F93: 常総市 | G93: 坂手村 | H93: 2 | I93: 2 | J93: 平地農業地域 | K93: 田畑型
A94: 211-03 | B94: 豊岡村 | C94: 都市的地域 | D94: 水田型 | F94: 常総市 | G94: 豊岡村 | H94: 1 | I94: 1 | J94: 都市的地域 | K94: 水田型
A95: 211-04 | B95: 菅原村 | C95: 平地農業地域 | D95: 水田型 | F95: 常総市 | G95: 菅原村 | H95: 2 | I95: 1 | J95: 平地農業地域 | K95: 水田型
A96: 211-05 | B96: 大花羽村 | C96: 平地農業地域 | D96: 水田型 | F96: 常総市 | G96: 大花羽村 | H96: 2 | I96: 1 | J96: 平地農業地域 | K96: 水田型
A97: 211-06 | B97: 三妻村 | C97: 平地農業地域 | D97: 水田型 | F97: 常総市 | G97: 三妻村 | H97: 2 | I97: 1 | J97: 平地農業地域 | K97: 水田型
A98: 211-07 | B98: 五箇村 | C98: 平地農業地域 | D98: 水田型 | F98: 常総市 | G98: 五箇村 | H98: 2 | I98: 1 | J98: 平地農業地域 | K98: 水田型
A99: 211-08 | B99: 大生村 | C99: 平地農業地域 | D99: 水田型 | F99: 常総市 | G99: 大生村 | H99: 2 | I99: 1 | J99: 平地農業地域 | K99: 水田型
A100: 211-09 | B100: 内守谷村 | C100: 都市的地域 | D100: 田畑型 | F100: 常総市 | G100: 内守谷村 | H100: 1 | I100: 2 | J100: 都市的地域 | K100: 田畑型
A101: 211-10 | B101: 菅生村 | C101: 平地農業地域 | D101: 田畑型 | F101: 常総市 | G101: 菅生村 | H101: 2 | I101: 2 | J101: 平地農業地域 | K101: 田畑型
A102: 211-11 | B102: 十和村２－２ | C102: 平地農業地域 | D102: 水田型 | F102: 常総市 | G102: 十和村２－２ | H102: 2 | I102: 1 | J102: 平地農業地域 | K102: 水田型
A103: 211-12 | B103: 真瀬村２－２ | C103: 平地農業地域 | D103: 水田型 | F103: 常総市 | G103: 真瀬村２－２ | H103: 2 | I103: 1 | J103: 平地農業地域 | K103: 水田型
A104: 211-13 | B104: 石下町 | C104: 平地農業地域 | D104: 水田型 | F104: 常総市 | G104: 石下町 | H104: 2 | I104: 1 | J104: 平地農業地域 | K104: 水田型
A105: 211-14 | B105: 玉村２－２ | C105: 平地農業地域 | D105: 水田型 | F105: 常総市 | G105: 玉村２－２ | H105: 2 | I105: 1 | J105: 平地農業地域 | K105: 水田型
A106: 211-15 | B106: 豊田村 | C106: 平地農業地域 | D106: 水田型 | F106: 常総市 | G106: 豊田村 | H106: 2 | I106: 1 | J106: 平地農業地域 | K106: 水田型
A107: 211-16 | B107: 岡田村 | C107: 平地農業地域 | D107: 田畑型 | F107: 常総市 | G107: 岡田村 | H107: 2 | I107: 2 | J107: 平地農業地域 | K107: 田畑型
A108: 211-17 | B108: 飯沼村 | C108: 平地農業地域 | D108: 田畑型 | F108: 常総市 | G108: 飯沼村 | H108: 2 | I108: 2 | J108: 平地農業地域 | K108: 田畑型
A109: 212-00 | B109: 常陸太田市 | C109: 中間農業地域 | D109: 田畑型 | F109: 常陸太田市 | H109: 3 | I109: 2 | J109: 中間農業地域 | K109: 田畑型
A110: 212-01 | B110: 太田町 | C110: 都市的地域 | D110: 田畑型 | F110: 常陸太田市 | G110: 太田町 | H110: 1 | I110: 2 | J110: 都市的地域 | K110: 田畑型
A111: 212-02 | B111: 機初村 | C111: 平地農業地域 | D111: 田畑型 | F111: 常陸太田市 | G111: 機初村 | H111: 2 | I111: 2 | J111: 平地農業地域 | K111: 田畑型
A112: 212-03 | B112: 世矢村 | C112: 平地農業地域 | D112: 田畑型 | F112: 常陸太田市 | G112: 世矢村 | H112: 2 | I112: 2 | J112: 平地農業地域 | K112: 田畑型
A113: 212-04 | B113: 西小沢村 | C113: 平地農業地域 | D113: 水田型 | F113: 常陸太田市 | G113: 西小沢村 | H113: 2 | I113: 1 | J113: 平地農業地域 | K113: 水田型
A114: 212-05 | B114: 幸久村 | C114: 平地農業地域 | D114: 水田型 | F114: 常陸太田市 | G114: 幸久村 | H114: 2 | I114: 1 | J114: 平地農業地域 | K114: 水田型
A115: 212-06 | B115: 佐竹村 | C115: 平地農業地域 | D115: 水田型 | F115: 常陸太田市 | G115: 佐竹村 | H115: 2 | I115: 1 | J115: 平地農業地域 | K115: 水田型
A116: 212-07 | B116: 誉田村 | C116: 中間農業地域 | D116: 田畑型 | F116: 常陸太田市 | G116: 誉田村 | H116: 3 | I116: 2 | J116: 中間農業地域 | K116: 田畑型
A117: 212-08 | B117: 佐都村 | C117: 中間農業地域 | D117: 田畑型 | F117: 常陸太田市 | G117: 佐都村 | H117: 3 | I117: 2 | J117: 中間農業地域 | K117: 田畑型
A118: 212-09 | B118: 河内村２－１ | C118: 中間農業地域 | D118: 田畑型 | F118: 常陸太田市 | G118: 河内村２－１ | H118: 3 | I118: 2 | J118: 中間農業地域 | K118: 田畑型
A119: 212-10 | B119: 郡戸村 | C119: 平地農業地域 | D119: 水田型 | F119: 常陸太田市 | G119: 郡戸村 | H119: 2 | I119: 1 | J119: 平地農業地域 | K119: 水田型
A120: 212-11 | B120: 久米村 | C120: 平地農業地域 | D120: 田畑型 | F120: 常陸太田市 | G120: 久米村 | H120: 2 | I120: 2 | J120: 平地農業地域 | K120: 田畑型
A121: 212-12 | B121: 金郷村 | C121: 平地農業地域 | D121: 水田型 | F121: 常陸太田市 | G121: 金郷村 | H121: 2 | I121: 1 | J121: 平地農業地域 | K121: 水田型
A122: 212-13 | B122: 金砂村 | C122: 中間農業地域 | D122: 田畑型 | F122: 常陸太田市 | G122: 金砂村 | H122: 3 | I122: 2 | J122: 中間農業地域 | K122: 田畑型
A123: 212-14 | B123: 天下野村 | C123: 中間農業地域 | D123: 田畑型 | F123: 常陸太田市 | G123: 天下野村 | H123: 3 | I123: 2 | J123: 中間農業地域 | K123: 田畑型
A124: 212-15 | B124: 染和田村 | C124: 中間農業地域 | D124: 田畑型 | F124: 常陸太田市 | G124: 染和田村 | H124: 3 | I124: 2 | J124: 中間農業地域 | K124: 田畑型
A125: 212-16 | B125: 高倉村 | C125: 山間農業地域 | D125: 田畑型 | F125: 常陸太田市 | G125: 高倉村 | H125: 4 | I125: 2 | J125: 山間農業地域 | K125: 田畑型
A126: 212-17 | B126: 山田村 | C126: 中間農業地域 | D126: 田畑型 | F126: 常陸太田市 | G126: 山田村 | H126: 3 | I126: 2 | J126: 中間農業地域 | K126: 田畑型
A127: 212-18 | B127: 河内村２－２ | C127: 中間農業地域 | D127: 田畑型 | F127: 常陸太田市 | G127: 河内村２－２ | H127: 3 | I127: 2 | J127: 中間農業地域 | K127: 田畑型
A128: 212-19 | B128: 小里村 | C128: 山間農業地域 | D128: 田畑型 | F128: 常陸太田市 | G128: 小里村 | H128: 4 | I128: 2 | J128: 山間農業地域 | K128: 田畑型
A129: 212-20 | B129: 賀美村 | C129: 山間農業地域 | D129: 田畑型 | F129: 常陸太田市 | G129: 賀美村 | H129: 4 | I129: 2 | J129: 山間農業地域 | K129: 田畑型
A130: 214-00 | B130: 高萩市 | C130: 中間農業地域 | D130: 水田型 | F130: 高萩市 | H130: 3 | I130: 1 | J130: 中間農業地域 | K130: 水田型
A131: 214-01 | B131: 高萩町 | C131: 都市的地域 | D131: 水田型 | F131: 高萩市 | G131: 高萩町 | H131: 1 | I131: 1 | J131: 都市的地域 | K131: 水田型
A132: 214-02 | B132: 松岡町 | C132: 中間農業地域 | D132: 水田型 | F132: 高萩市 | G132: 松岡町 | H132: 3 | I132: 1 | J132: 中間農業地域 | K132: 水田型
A133: 214-03 | B133: 高岡村 | C133: 山間農業地域 | D133: 田畑型 | F133: 高萩市 | G133: 高岡村 | H133: 4 | I133: 2 | J133: 山間農業地域 | K133: 田畑型
A134: 214-04 | B134: 黒前村２－２ | C134: 山間農業地域 | D134: 水田型 | F134: 高萩市 | G134: 黒前村２－２ | H134: 4 | I134: 1 | J134: 山間農業地域 | K134: 水田型
A135: 215-00 | B135: 北茨城市 | C135: 中間農業地域 | D135: 水田型 | F135: 北茨城市 | H135: 3 | I135: 1 | J135: 中間農業地域 | K135: 水田型
A136: 215-01 | B136: 南中郷村 | C136: 都市的地域 | D136: 水田型 | F136: 北茨城市 | G136: 南中郷村 | H136: 1 | I136: 1 | J136: 都市的地域 | K136: 水田型
A137: 215-02 | B137: 磯原町 | C137: 中間農業地域 | D137: 水田型 | F137: 北茨城市 | G137: 磯原町 | H137: 3 | I137: 1 | J137: 中間農業地域 | K137: 水田型
A138: 215-03 | B138: 華川村 | C138: 中間農業地域 | D138: 水田型 | F138: 北茨城市 | G138: 華川村 | H138: 3 | I138: 1 | J138: 中間農業地域 | K138: 水田型
A139: 215-04 | B139: 関南村 | C139: 中間農業地域 | D139: 水田型 | F139: 北茨城市 | G139: 関南村 | H139: 3 | I139: 1 | J139: 中間農業地域 | K139: 水田型
A140: 215-05 | B140: 大津町 | C140: 都市的地域 | D140: 水田型 | F140: 北茨城市 | G140: 大津町 | H140: 1 | I140: 1 | J140: 都市的地域 | K140: 水田型
A141: 215-06 | B141: 平潟町 | C141: 都市的地域 | D141: 畑地型 | F141: 北茨城市 | G141: 平潟町 | H141: 1 | I141: 3 | J141: 都市的地域 | K141: 畑地型
A142: 215-07 | B142: 関本村 | C142: 山間農業地域 | D142: 水田型 | F142: 北茨城市 | G142: 関本村 | H142: 4 | I142: 1 | J142: 山間農業地域 | K142: 水田型
A143: 216-00 | B143: 笠間市 | C143: 平地農業地域 | D143: 田畑型 | F143: 笠間市 | H143: 2 | I143: 2 | J143: 平地農業地域 | K143: 田畑型
A144: 216-01 | B144: 笠間町 | C144: 都市的地域 | D144: 田畑型 | F144: 笠間市 | G144: 笠間町 | H144: 1 | I144: 2 | J144: 都市的地域 | K144: 田畑型
A145: 216-02 | B145: 大池田村 | C145: 中間農業地域 | D145: 田畑型 | F145: 笠間市 | G145: 大池田村 | H145: 3 | I145: 2 | J145: 中間農業地域 | K145: 田畑型
A146: 216-03 | B146: 北山内村 | C146: 中間農業地域 | D146: 田畑型 | F146: 笠間市 | G146: 北山内村 | H146: 3 | I146: 2 | J146: 中間農業地域 | K146: 田畑型
A147: 216-04 | B147: 南山内村 | C147: 中間農業地域 | D147: 田畑型 | F147: 笠間市 | G147: 南山内村 | H147: 3 | I147: 2 | J147: 中間農業地域 | K147: 田畑型
A148: 216-05 | B148: 西山内村 | C148: 中間農業地域 | D148: 水田型 | F148: 笠間市 | G148: 西山内村 | H148: 3 | I148: 1 | J148: 中間農業地域 | K148: 水田型
A149: 216-06 | B149: 宍戸町 | C149: 都市的地域 | D149: 田畑型 | F149: 笠間市 | G149: 宍戸町 | H149: 1 | I149: 2 | J149: 都市的地域 | K149: 田畑型
A150: 216-07 | B150: 北川根村 | C150: 平地農業地域 | D150: 田畑型 | F150: 笠間市 | G150: 北川根村 | H150: 2 | I150: 2 | J150: 平地農業地域 | K150: 田畑型
A151: 216-08 | B151: 大原村 | C151: 平地農業地域 | D151: 田畑型 | F151: 笠間市 | G151: 大原村 | H151: 2 | I151: 2 | J151: 平地農業地域 | K151: 田畑型
A152: 216-09 | B152: 鯉渕村２－２ | C152: 都市的地域 | D152: 田畑型 | F152: 笠間市 | G152: 鯉渕村２－２ | H152: 1 | I152: 2 | J152: 都市的地域 | K152: 田畑型
A153: 216-10 | B153: 岩間町 | C153: 平地農業地域 | D153: 田畑型 | F153: 笠間市 | G153: 岩間町 | H153: 2 | I153: 2 | J153: 平地農業地域 | K153: 田畑型
A154: 216-11 | B154: 南川根村 | C154: 平地農業地域 | D154: 田畑型 | F154: 笠間市 | G154: 南川根村 | H154: 2 | I154: 2 | J154: 平地農業地域 | K154: 田畑型
A155: 217-00 | B155: 取手市 | C155: 都市的地域 | D155: 水田型 | F155: 取手市 | H155: 1 | I155: 1 | J155: 都市的地域 | K155: 水田型
A156: 217-01 | B156: 取手町 | C156: 都市的地域 | D156: 水田型 | F156: 取手市 | G156: 取手町 | H156: 1 | I156: 1 | J156: 都市的地域 | K156: 水田型
A157: 217-02 | B157: 小文間村 | C157: 平地農業地域 | D157: 水田型 | F157: 取手市 | G157: 小文間村 | H157: 2 | I157: 1 | J157: 平地農業地域 | K157: 水田型
A158: 217-03 | B158: 寺原村 | C158: 都市的地域 | D158: 水田型 | F158: 取手市 | G158: 寺原村 | H158: 1 | I158: 1 | J158: 都市的地域 | K158: 水田型
A159: 217-04 | B159: 高井村２－２ | C159: 都市的地域 | D159: 水田型 | F159: 取手市 | G159: 高井村２－２ | H159: 1 | I159: 1 | J159: 都市的地域 | K159: 水田型
A160: 217-05 | B160: 稲戸井村 | C160: 都市的地域 | D160: 田畑型 | F160: 取手市 | G160: 稲戸井村 | H160: 1 | I160: 2 | J160: 都市的地域 | K160: 田畑型
A161: 217-06 | B161: 相馬町 | C161: 都市的地域 | D161: 水田型 | F161: 取手市 | G161: 相馬町 | H161: 1 | I161: 1 | J161: 都市的地域 | K161: 水田型
A162: 217-07 | B162: 山王村 | C162: 平地農業地域 | D162: 水田型 | F162: 取手市 | G162: 山王村 | H162: 2 | I162: 1 | J162: 平地農業地域 | K162: 水田型
A163: 217-08 | B163: 久賀村２－２ | C163: 平地農業地域 | D163: 水田型 | F163: 取手市 | G163: 久賀村２－２ | H163: 2 | I163: 1 | J163: 平地農業地域 | K163: 水田型
A164: 217-09 | B164: 高須村２－１ | C164: 平地農業地域 | D164: 水田型 | F164: 取手市 | G164: 高須村２－１ | H164: 2 | I164: 1 | J164: 平地農業地域 | K164: 水田型
A165: 217-10 | B165: 六郷村 | C165: 平地農業地域 | D165: 水田型 | F165: 取手市 | G165: 六郷村 | H165: 2 | I165: 1 | J165: 平地農業地域 | K165: 水田型
A166: 219-00 | B166: 牛久市 | C166: 都市的地域 | D166: 田畑型 | F166: 牛久市 | H166: 1 | I166: 2 | J166: 都市的地域 | K166: 田畑型
A167: 219-01 | B167: 牛久町 | C167: 都市的地域 | D167: 田畑型 | F167: 牛久市 | G167: 牛久町 | H167: 1 | I167: 2 | J167: 都市的地域 | K167: 田畑型
A168: 219-02 | B168: 岡田村 | C168: 都市的地域 | D168: 田畑型 | F168: 牛久市 | G168: 岡田村 | H168: 1 | I168: 2 | J168: 都市的地域 | K168: 田畑型
A169: 219-03 | B169: 奥野村 | C169: 平地農業地域 | D169: 田畑型 | F169: 牛久市 | G169: 奥野村 | H169: 2 | I169: 2 | J169: 平地農業地域 | K169: 田畑型
A170: 220-00 | B170: つくば市 | C170: 都市的地域 | D170: 田畑型 | F170: つくば市 | H170: 1 | I170: 2 | J170: 都市的地域 | K170: 田畑型
A171: 220-01 | B171: 栄村 | C171: 平地農業地域 | D171: 田畑型 | F171: つくば市 | G171: 栄村 | H171: 2 | I171: 2 | J171: 平地農業地域 | K171: 田畑型
A172: 220-02 | B172: 九重村 | C172: 都市的地域 | D172: 田畑型 | F172: つくば市 | G172: 九重村 | H172: 1 | I172: 2 | J172: 都市的地域 | K172: 田畑型
A173: 220-03 | B173: 栗原村２－１ | C173: 都市的地域 | D173: 田畑型 | F173: つくば市 | G173: 栗原村２－１ | H173: 1 | I173: 2 | J173: 都市的地域 | K173: 田畑型
A174: 220-04 | B174: 島名村 | C174: 平地農業地域 | D174: 田畑型 | F174: つくば市 | G174: 島名村 | H174: 2 | I174: 2 | J174: 平地農業地域 | K174: 田畑型
A175: 220-05 | B175: 葛城村 | C175: 都市的地域 | D175: 畑地型 | F175: つくば市 | G175: 葛城村 | H175: 1 | I175: 3 | J175: 都市的地域 | K175: 畑地型
A176: 220-06 | B176: 小野川村 | C176: 都市的地域 | D176: 田畑型 | F176: つくば市 | G176: 小野川村 | H176: 1 | I176: 2 | J176: 都市的地域 | K176: 田畑型
A177: 220-07 | B177: 谷田部町 | C177: 都市的地域 | D177: 田畑型 | F177: つくば市 | G177: 谷田部町 | H177: 1 | I177: 2 | J177: 都市的地域 | K177: 田畑型
A178: 220-08 | B178: 真瀬村２－１ | C178: 平地農業地域 | D178: 田畑型 | F178: つくば市 | G178: 真瀬村２－１ | H178: 2 | I178: 2 | J178: 平地農業地域 | K178: 田畑型
A179: 220-09 | B179: 上郷村 | C179: 平地農業地域 | D179: 田畑型 | F179: つくば市 | G179: 上郷村 | H179: 2 | I179: 2 | J179: 平地農業地域 | K179: 田畑型
A180: 220-10 | B180: 旭村２－１ | C180: 平地農業地域 | D180: 畑地型 | F180: つくば市 | G180: 旭村２－１ | H180: 2 | I180: 3 | J180: 平地農業地域 | K180: 畑地型
A181: 220-11 | B181: 吉沼村２－２ | C181: 平地農業地域 | D181: 畑地型 | F181: つくば市 | G181: 吉沼村２－２ | H181: 2 | I181: 3 | J181: 平地農業地域 | K181: 畑地型
A182: 220-12 | B182: 筑波町 | C182: 中間農業地域 | D182: 水田型 | F182: つくば市 | G182: 筑波町 | H182: 3 | I182: 1 | J182: 中間農業地域 | K182: 水田型
A183: 220-13 | B183: 北条町 | C183: 平地農業地域 | D183: 水田型 | F183: つくば市 | G183: 北条町 | H183: 2 | I183: 1 | J183: 平地農業地域 | K183: 水田型
A184: 220-14 | B184: 小田村 | C184: 平地農業地域 | D184: 水田型 | F184: つくば市 | G184: 小田村 | H184: 2 | I184: 1 | J184: 平地農業地域 | K184: 水田型
A185: 220-15 | B185: 田井村 | C185: 平地農業地域 | D185: 水田型 | F185: つくば市 | G185: 田井村 | H185: 2 | I185: 1 | J185: 平地農業地域 | K185: 水田型
A186: 220-16 | B186: 作岡村 | C186: 平地農業地域 | D186: 畑地型 | F186: つくば市 | G186: 作岡村 | H186: 2 | I186: 3 | J186: 平地農業地域 | K186: 畑地型
A187: 220-17 | B187: 田水山村 | C187: 平地農業地域 | D187: 田畑型 | F187: つくば市 | G187: 田水山村 | H187: 2 | I187: 2 | J187: 平地農業地域 | K187: 田畑型
A188: 220-18 | B188: 菅間村 | C188: 平地農業地域 | D188: 田畑型 | F188: つくば市 | G188: 菅間村 | H188: 2 | I188: 2 | J188: 平地農業地域 | K188: 田畑型
A189: 220-19 | B189: 栗原村２－２ | C189: 平地農業地域 | D189: 畑地型 | F189: つくば市 | G189: 栗原村２－２ | H189: 2 | I189: 3 | J189: 平地農業地域 | K189: 畑地型
A190: 220-20 | B190: 大穂村 | C190: 都市的地域 | D190: 田畑型 | F190: つくば市 | G190: 大穂村 | H190: 1 | I190: 2 | J190: 都市的地域 | K190: 田畑型
A191: 220-21 | B191: 吉沼村２－１ | C191: 平地農業地域 | D191: 畑地型 | F191: つくば市 | G191: 吉沼村２－１ | H191: 2 | I191: 3 | J191: 平地農業地域 | K191: 畑地型
A192: 220-22 | B192: 旭村２－２ | C192: 平地農業地域 | D192: 畑地型 | F192: つくば市 | G192: 旭村２－２ | H192: 2 | I192: 3 | J192: 平地農業地域 | K192: 畑地型
A193: 220-23 | B193: 茎崎町 | C193: 平地農業地域 | D193: 田畑型 | F193: つくば市 | G193: 茎崎町 | H193: 2 | I193: 2 | J193: 平地農業地域 | K193: 田畑型
A194: 221-00 | B194: ひたちなか市 | C194: 都市的地域 | D194: 田畑型 | F194: ひたちなか市 | H194: 1 | I194: 2 | J194: 都市的地域 | K194: 田畑型
A195: 221-01 | B195: 那珂湊町 | C195: 都市的地域 | D195: 田畑型 | F195: ひたちなか市 | G195: 那珂湊町 | H195: 1 | I195: 2 | J195: 都市的地域 | K195: 田畑型
A196: 221-02 | B196: 平磯町 | C196: 都市的地域 | D196: 畑地型 | F196: ひたちなか市 | G196: 平磯町 | H196: 1 | I196: 3 | J196: 都市的地域 | K196: 畑地型
A197: 221-03 | B197: 前渡村２－２ | C197: 中間農業地域 | D197: 畑地型 | F197: ひたちなか市 | G197: 前渡村２－２ | H197: 3 | I197: 3 | J197: 中間農業地域 | K197: 畑地型
A198: 221-04 | B198: 勝田町 | C198: 都市的地域 | D198: 田畑型 | F198: ひたちなか市 | G198: 勝田町 | H198: 1 | I198: 2 | J198: 都市的地域 | K198: 田畑型
A199: 221-05 | B199: 佐野村 | C199: 都市的地域 | D199: 田畑型 | F199: ひたちなか市 | G199: 佐野村 | H199: 1 | I199: 2 | J199: 都市的地域 | K199: 田畑型
A200: 221-06 | B200: 前渡村２－１ | C200: 都市的地域 | D200: 田畑型 | F200: ひたちなか市 | G200: 前渡村２－１ | H200: 1 | I200: 2 | J200: 都市的地域 | K200: 田畑型
A201: 222-00 | B201: 鹿嶋市 | C201: 都市的地域 | D201: 田畑型 | F201: 鹿嶋市 | H201: 1 | I201: 2 | J201: 都市的地域 | K201: 田畑型
A202: 222-01 | B202: 大同村 | C202: 平地農業地域 | D202: 田畑型 | F202: 鹿嶋市 | G202: 大同村 | H202: 2 | I202: 2 | J202: 平地農業地域 | K202: 田畑型
A203: 222-02 | B203: 中野村 | C203: 都市的地域 | D203: 田畑型 | F203: 鹿嶋市 | G203: 中野村 | H203: 1 | I203: 2 | J203: 都市的地域 | K203: 田畑型
... 239 more rows

Sheet 元データ (hidden)
A1: 注意事項 | C1: ･･･ | D1: 空欄追記:『調査外(湖､無人島等)』 | Z1: 別紙 2 | AB1: 市区町村名 | AC1: 旧市区町村 | AD1: 農業集落
C2: ･･･ | D2: 全角変換:『2-1』⇒『2-1』 | K2: =IF(AB2=0,"",AB2) ->  | S2: =IF(AC2=0,"",AC2) ->  | AA2: 神奈川県 | AB2: =kadft!F5 -> 0 | AC2: =kadft!F5 -> 0 | AD2: =#REF! -> 
K3: 市町村 | Q3: 旧市区町村 | V3: 農業集落
A4: 農業集落 | B4: 県 | C4: 市区町村 | D4: 旧市区町村 | E4: 農業集落 | F4: 県名 | G4: 市町村名 | H4: 旧市町村名 | I4: 農業集落名 | K4: 判定１ | O4: 抽出１ | Q4: 判定2 | S4: 抽出2 | V4: 抽出3 | Z4: 通し | AA4: 都県名 | AB4: 市区町村名 | AC4: 旧区市町村名 | AD4: 農業集落名
A5: ｺｰﾄﾞ | B5: 番号 | C5: 番号 | D5: 番号 | E5: 番号 | K5: 判定 | L5: 市区町村名 | M5: 連番 | N5: 補記 | O5: 抽出 | P5: 名 | Q5: 判定 | R5: 名 | S5: 抽出 | T5: 旧区市町村名 | U5: 連番 | V5: 抽出 | W5: 農業集落名 | X5: 連番 | Z5: №
Z6: 0
A7: 800000000 | B7: 8 | C7: 000 | D7: 00 | E7: 000 | F7: 茨城県 | K7: =IF(AND($C7>0,$H7=""),"ﾘｽﾄ１","") ->  | L7: =IF(K7="ﾘｽﾄ１",G7,"") ->  | M7: =IF(K7="","",COUNTIF($K7:K$7,"ﾘｽﾄ１")) ->  | N7: =IF(AND(D7=0,E7>0),"同一区","") ->  | O7: =IF(AND(EXACT($K$2,G7),H7>0),"該当１","") ->  | P7: =IF(O7="該当１",G7,"") ->  | Q7: =IF(O7="該当１","ﾘｽﾄ2","") ->  | R7: =IF(Q7="ﾘｽﾄ2",H7,"") ->  | S7: =IF(AND(Q7="ﾘｽﾄ2",OR(I7=0,AND(N7="同一区",E7=1))),"該当２","") ->  | T7: =IF(S7="該当２",H7,"") ->  | U7: =IF(S7="","",COUNTIF($S$7:S7,"該当２")) ->  | V7: =IF(AND($S$2=H7,E7>0,E7<998),"該当３","") ->  | W7: =IF(V7="該当３",I7,"") ->  | X7: =IF(V7="","",COUNTIF($V7:V$7,"該当３")) ->  | Z7: 1 | AA7: 神奈川県 | AB7: 水戸市 | AC7: =IF($Z7>MAX($U$7:$U$4407),"",INDEX($T$7:$T$4407,MATCH($Z7,$U$7:$U$4407,0),MATCH($AC$4,$T$5:$U$5,0))) ->  | AD7: =IF($Z7>MAX($X$7:$X$4406),"",INDEX($W$7:$W$4406,MATCH($Z7,$X$7:$X$4406,0),MATCH($AD$4,$W$5:$X$5,0))) -> 
A8: 820100000 | B8: 8 | C8: 201 | D8: 00 | E8: 000 | F8: 茨城県 | G8: 水戸市 | K8: ﾘｽﾄ１ | L8: 水戸市 | M8: =IF(K8="","",COUNTIF($K$7:K8,"ﾘｽﾄ１")) -> 1 | O8: =IF(AND(EXACT($K$2,G8),H8>0),"該当１","") ->  | U8: =IF(S8="","",COUNTIF($S$7:S8,"該当２")) ->  | X8: =IF(V8="","",COUNTIF($V$7:V8,"該当３")) ->  | Z8: 2 | AB8: 日立市 | AC8: =IF($Z8>MAX($U$7:$U$4407),"",INDEX($T$7:$T$4407,MATCH($Z8,$U$7:$U$4407,0),MATCH($AC$4,$T$5:$U$5,0))) -> 
A9: 820101000 | B9: 8 | C9: 201 | D9: 01 | E9: 000 | F9: 茨城県 | G9: 水戸市 | H9: 水戸市（旧） | M9: =IF(K9="","",COUNTIF($K$7:K9,"ﾘｽﾄ１")) ->  | O9: =IF(AND(EXACT($K$2,G9),H9>0),"該当１","") ->  | U9: =IF(S9="","",COUNTIF($S$7:S9,"該当２")) ->  | X9: =IF(V9="","",COUNTIF($V$7:V9,"該当３")) ->  | Z9: 3 | AB9: 土浦市
A10: 820101001 | B10: 8 | C10: 201 | D10: 01 | E10: 001 | F10: 茨城県 | G10: 水戸市 | H10: 水戸市（旧） | I10: 柵町一、二、三、四町目、大手町 | M10: =IF(K10="","",COUNTIF($K$7:K10,"ﾘｽﾄ１")) ->  | U10: =IF(S10="","",COUNTIF($S$7:S10,"該当２")) ->  | X10: =IF(V10="","",COUNTIF($V$7:V10,"該当３")) ->  | Z10: 4 | AB10: 古河市
A11: 820101002 | B11: 8 | C11: 201 | D11: 01 | E11: 002 | F11: 茨城県 | G11: 水戸市 | H11: 水戸市（旧） | I11: 柵町五，六町目 | M11: =IF(K11="","",COUNTIF($K$7:K11,"ﾘｽﾄ１")) ->  | U11: =IF(S11="","",COUNTIF($S$7:S11,"該当２")) ->  | X11: =IF(V11="","",COUNTIF($V$7:V11,"該当３")) ->  | Z11: 5 | AB11: 石岡市
A12: 820101003 | B12: 8 | C12: 201 | D12: 01 | E12: 003 | F12: 茨城県 | G12: 水戸市 | H12: 水戸市（旧） | I12: 霞町北三の丸 | M12: =IF(K12="","",COUNTIF($K$7:K12,"ﾘｽﾄ１")) ->  | U12: =IF(S12="","",COUNTIF($S$7:S12,"該当２")) ->  | X12: =IF(V12="","",COUNTIF($V$7:V12,"該当３")) ->  | Z12: 6 | AB12: 結城市
A13: 820101004 | B13: 8 | C13: 201 | D13: 01 | E13: 004 | F13: 茨城県 | G13: 水戸市 | H13: 水戸市（旧） | I13: 銀否、宮下、奈良屋町、南三の丸 | M13: =IF(K13="","",COUNTIF($K$7:K13,"ﾘｽﾄ１")) ->  | U13: =IF(S13="","",COUNTIF($S$7:S13,"該当２")) ->  | X13: =IF(V13="","",COUNTIF($V$7:V13,"該当３")) ->  | Z13: 7 | AB13: 龍ケ崎市
A14: 820101005 | B14: 8 | C14: 201 | D14: 01 | E14: 005 | F14: 茨城県 | G14: 水戸市 | H14: 水戸市（旧） | I14: 黒羽根，田見小路，その他１０町 | M14: =IF(K14="","",COUNTIF($K$7:K14,"ﾘｽﾄ１")) ->  | U14: =IF(S14="","",COUNTIF($S$7:S14,"該当２")) ->  | X14: =IF(V14="","",COUNTIF($V$7:V14,"該当３")) ->  | Z14: 8 | AB14: 下妻市
A15: 820101006 | B15: 8 | C15: 201 | D15: 01 | E15: 006 | F15: 茨城県 | G15: 水戸市 | H15: 水戸市（旧） | I15: 根本町一区 | M15: =IF(K15="","",COUNTIF($K$7:K15,"ﾘｽﾄ１")) ->  | U15: =IF(S15="","",COUNTIF($S$7:S15,"該当２")) ->  | X15: =IF(V15="","",COUNTIF($V$7:V15,"該当３")) ->  | Z15: 9 | AB15: 常総市
A16: 820101007 | B16: 8 | C16: 201 | D16: 01 | E16: 007 | F16: 茨城県 | G16: 水戸市 | H16: 水戸市（旧） | I16: 根本町二，三区 | M16: =IF(K16="","",COUNTIF($K$7:K16,"ﾘｽﾄ１")) ->  | U16: =IF(S16="","",COUNTIF($S$7:S16,"該当２")) ->  | X16: =IF(V16="","",COUNTIF($V$7:V16,"該当３")) ->  | Z16: 10 | AB16: 常陸太田市
A17: 820101008 | B17: 8 | C17: 201 | D17: 01 | E17: 008 | F17: 茨城県 | G17: 水戸市 | H17: 水戸市（旧） | I17: 泉町、信願寺町、その他１１町 | M17: =IF(K17="","",COUNTIF($K$7:K17,"ﾘｽﾄ１")) ->  | U17: =IF(S17="","",COUNTIF($S$7:S17,"該当２")) ->  | X17: =IF(V17="","",COUNTIF($V$7:V17,"該当３")) ->  | Z17: 11 | AB17: 高萩市
A18: 820101009 | B18: 8 | C18: 201 | D18: 01 | E18: 009 | F18: 茨城県 | G18: 水戸市 | H18: 水戸市（旧） | I18: 寺町、八幡町、藤坂、橦木町、並 | M18: =IF(K18="","",COUNTIF($K$7:K18,"ﾘｽﾄ１")) ->  | U18: =IF(S18="","",COUNTIF($S$7:S18,"該当２")) ->  | X18: =IF(V18="","",COUNTIF($V$7:V18,"該当３")) ->  | Z18: 12 | AB18: 北茨城市
A19: 820101010 | B19: 8 | C19: 201 | D19: 01 | E19: 010 | F19: 茨城県 | G19: 水戸市 | H19: 水戸市（旧） | I19: 備前町、鈴坂町、その他５町 | M19: =IF(K19="","",COUNTIF($K$7:K19,"ﾘｽﾄ１")) ->  | U19: =IF(S19="","",COUNTIF($S$7:S19,"該当２")) ->  | X19: =IF(V19="","",COUNTIF($V$7:V19,"該当３")) ->  | Z19: 13 | AB19: 笠間市
A20: 820101011 | B20: 8 | C20: 201 | D20: 01 | E20: 011 | F20: 茨城県 | G20: 水戸市 | H20: 水戸市（旧） | I20: 常磐町全域、元山町一、二、三区 | M20: =IF(K20="","",COUNTIF($K$7:K20,"ﾘｽﾄ１")) ->  | U20: =IF(S20="","",COUNTIF($S$7:S20,"該当２")) ->  | X20: =IF(V20="","",COUNTIF($V$7:V20,"該当３")) ->  | Z20: 14 | AB20: 取手市
A21: 820101012 | B21: 8 | C21: 201 | D21: 01 | E21: 012 | F21: 茨城県 | G21: 水戸市 | H21: 水戸市（旧） | I21: 元山町四区 | M21: =IF(K21="","",COUNTIF($K$7:K21,"ﾘｽﾄ１")) ->  | U21: =IF(S21="","",COUNTIF($S$7:S21,"該当２")) ->  | X21: =IF(V21="","",COUNTIF($V$7:V21,"該当３")) ->  | Z21: 15 | AB21: 牛久市
A22: 820101013 | B22: 8 | C22: 201 | D22: 01 | E22: 013 | F22: 茨城県 | G22: 水戸市 | H22: 水戸市（旧） | I22: 新大工町、寿町、向井町一、二 | M22: =IF(K22="","",COUNTIF($K$7:K22,"ﾘｽﾄ１")) ->  | U22: =IF(S22="","",COUNTIF($S$7:S22,"該当２")) ->  | X22: =IF(V22="","",COUNTIF($V$7:V22,"該当３")) ->  | Z22: 16 | AB22: つくば市
A23: 820101014 | B23: 8 | C23: 201 | D23: 01 | E23: 014 | F23: 茨城県 | G23: 水戸市 | H23: 水戸市（旧） | I23: 栄町全域、北町、楓小路 | M23: =IF(K23="","",COUNTIF($K$7:K23,"ﾘｽﾄ１")) ->  | U23: =IF(S23="","",COUNTIF($S$7:S23,"該当２")) ->  | X23: =IF(V23="","",COUNTIF($V$7:V23,"該当３")) ->  | Z23: 17 | AB23: ひたちなか市
A24: 820101015 | B24: 8 | C24: 201 | D24: 01 | E24: 015 | F24: 茨城県 | G24: 水戸市 | H24: 水戸市（旧） | I24: 谷中一、二、三丁目、馬口労町 | M24: =IF(K24="","",COUNTIF($K$7:K24,"ﾘｽﾄ１")) ->  | U24: =IF(S24="","",COUNTIF($S$7:S24,"該当２")) ->  | X24: =IF(V24="","",COUNTIF($V$7:V24,"該当３")) ->  | Z24: 18 | AB24: 鹿嶋市
A25: 820101016 | B25: 8 | C25: 201 | D25: 01 | E25: 016 | F25: 茨城県 | G25: 水戸市 | H25: 水戸市（旧） | I25: 砂久保町一，二，三，四，五区 | M25: =IF(K25="","",COUNTIF($K$7:K25,"ﾘｽﾄ１")) ->  | U25: =IF(S25="","",COUNTIF($S$7:S25,"該当２")) ->  | X25: =IF(V25="","",COUNTIF($V$7:V25,"該当３")) ->  | Z25: 19 | AB25: 潮来市
A26: 820101017 | B26: 8 | C26: 201 | D26: 01 | E26: 017 | F26: 茨城県 | G26: 水戸市 | H26: 水戸市（旧） | I26: 松本町一，二，三丁目 | M26: =IF(K26="","",COUNTIF($K$7:K26,"ﾘｽﾄ１")) ->  | U26: =IF(S26="","",COUNTIF($S$7:S26,"該当２")) ->  | X26: =IF(V26="","",COUNTIF($V$7:V26,"該当３")) ->  | Z26: 20 | AB26: 守谷市
A27: 820101018 | B27: 8 | C27: 201 | D27: 01 | E27: 018 | F27: 茨城県 | G27: 水戸市 | H27: 水戸市（旧） | I27: 松本町四，五丁目 | M27: =IF(K27="","",COUNTIF($K$7:K27,"ﾘｽﾄ１")) ->  | U27: =IF(S27="","",COUNTIF($S$7:S27,"該当２")) ->  | X27: =IF(V27="","",COUNTIF($V$7:V27,"該当３")) ->  | Z27: 21 | AB27: 常陸大宮市
A28: 820101019 | B28: 8 | C28: 201 | D28: 01 | E28: 019 | F28: 茨城県 | G28: 水戸市 | H28: 水戸市（旧） | I28: 愛宕町全域 | M28: =IF(K28="","",COUNTIF($K$7:K28,"ﾘｽﾄ１")) ->  | U28: =IF(S28="","",COUNTIF($S$7:S28,"該当２")) ->  | X28: =IF(V28="","",COUNTIF($V$7:V28,"該当３")) ->  | Z28: 22 | AB28: 那珂市
A29: 820101020 | B29: 8 | C29: 201 | D29: 01 | E29: 020 | F29: 茨城県 | G29: 水戸市 | H29: 水戸市（旧） | I29: 袴塚一，二丁目 | M29: =IF(K29="","",COUNTIF($K$7:K29,"ﾘｽﾄ１")) ->  | U29: =IF(S29="","",COUNTIF($S$7:S29,"該当２")) ->  | X29: =IF(V29="","",COUNTIF($V$7:V29,"該当３")) ->  | Z29: 23 | AB29: 筑西市
A30: 820101021 | B30: 8 | C30: 201 | D30: 01 | E30: 021 | F30: 茨城県 | G30: 水戸市 | H30: 水戸市（旧） | I30: 袴塚三丁目 | M30: =IF(K30="","",COUNTIF($K$7:K30,"ﾘｽﾄ１")) ->  | U30: =IF(S30="","",COUNTIF($S$7:S30,"該当２")) ->  | X30: =IF(V30="","",COUNTIF($V$7:V30,"該当３")) ->  | Z30: 24 | AB30: 坂東市
A31: 820101022 | B31: 8 | C31: 201 | D31: 01 | E31: 022 | F31: 茨城県 | G31: 水戸市 | H31: 水戸市（旧） | I31: 袴塚四町目、堀原町、南袴塚町 | M31: =IF(K31="","",COUNTIF($K$7:K31,"ﾘｽﾄ１")) ->  | U31: =IF(S31="","",COUNTIF($S$7:S31,"該当２")) ->  | X31: =IF(V31="","",COUNTIF($V$7:V31,"該当３")) ->  | Z31: 25 | AB31: 稲敷市
A32: 820101023 | B32: 8 | C32: 201 | D32: 01 | E32: 023 | F32: 茨城県 | G32: 水戸市 | H32: 水戸市（旧） | I32: 西原町一，二，三，四，五区 | M32: =IF(K32="","",COUNTIF($K$7:K32,"ﾘｽﾄ１")) ->  | U32: =IF(S32="","",COUNTIF($S$7:S32,"該当２")) ->  | X32: =IF(V32="","",COUNTIF($V$7:V32,"該当３")) ->  | Z32: 26 | AB32: かすみがうら市
A33: 820101024 | B33: 8 | C33: 201 | D33: 01 | E33: 024 | F33: 茨城県 | G33: 水戸市 | H33: 水戸市（旧） | I33: 西原町六，七区 | M33: =IF(K33="","",COUNTIF($K$7:K33,"ﾘｽﾄ１")) ->  | U33: =IF(S33="","",COUNTIF($S$7:S33,"該当２")) ->  | X33: =IF(V33="","",COUNTIF($V$7:V33,"該当３")) ->  | Z33: 27 | AB33: 桜川市
A34: 820101025 | B34: 8 | C34: 201 | D34: 01 | E34: 025 | F34: 茨城県 | G34: 水戸市 | H34: 水戸市（旧） | I34: 東原町一，二区 | M34: =IF(K34="","",COUNTIF($K$7:K34,"ﾘｽﾄ１")) ->  | U34: =IF(S34="","",COUNTIF($S$7:S34,"該当２")) ->  | X34: =IF(V34="","",COUNTIF($V$7:V34,"該当３")) ->  | Z34: 28 | AB34: 神栖市
A35: 820101026 | B35: 8 | C35: 201 | D35: 01 | E35: 026 | F35: 茨城県 | G35: 水戸市 | H35: 水戸市（旧） | I35: 石川町上区，石川 | M35: =IF(K35="","",COUNTIF($K$7:K35,"ﾘｽﾄ１")) ->  | U35: =IF(S35="","",COUNTIF($S$7:S35,"該当２")) ->  | X35: =IF(V35="","",COUNTIF($V$7:V35,"該当３")) ->  | Z35: 29 | AB35: 行方市
A36: 820101027 | B36: 8 | C36: 201 | D36: 01 | E36: 027 | F36: 茨城県 | G36: 水戸市 | H36: 水戸市（旧） | I36: 石川町下区 | M36: =IF(K36="","",COUNTIF($K$7:K36,"ﾘｽﾄ１")) ->  | U36: =IF(S36="","",COUNTIF($S$7:S36,"該当２")) ->  | X36: =IF(V36="","",COUNTIF($V$7:V36,"該当３")) ->  | Z36: 30 | AB36: 鉾田市
A37: 820101028 | B37: 8 | C37: 201 | D37: 01 | E37: 028 | F37: 茨城県 | G37: 水戸市 | H37: 水戸市（旧） | I37: 東町 | M37: =IF(K37="","",COUNTIF($K$7:K37,"ﾘｽﾄ１")) ->  | U37: =IF(S37="","",COUNTIF($S$7:S37,"該当２")) ->  | X37: =IF(V37="","",COUNTIF($V$7:V37,"該当３")) ->  | Z37: 31 | AB37: つくばみらい市
A38: 820101029 | B38: 8 | C38: 201 | D38: 01 | E38: 029 | F38: 茨城県 | G38: 水戸市 | H38: 水戸市（旧） | I38: 新原町 | M38: =IF(K38="","",COUNTIF($K$7:K38,"ﾘｽﾄ１")) ->  | U38: =IF(S38="","",COUNTIF($S$7:S38,"該当２")) ->  | X38: =IF(V38="","",COUNTIF($V$7:V38,"該当３")) ->  | Z38: 32 | AB38: 小美玉市
A39: 820101030 | B39: 8 | C39: 201 | D39: 01 | E39: 030 | F39: 茨城県 | G39: 水戸市 | H39: 水戸市（旧） | I39: 曙町一、二、三、四、五丁目、雨 | M39: =IF(K39="","",COUNTIF($K$7:K39,"ﾘｽﾄ１")) ->  | U39: =IF(S39="","",COUNTIF($S$7:S39,"該当２")) ->  | X39: =IF(V39="","",COUNTIF($V$7:V39,"該当３")) ->  | Z39: 33 | AB39: 茨城町 | AD39: =IF($Z39>MAX($X$7:$X$4406),"",INDEX($W$7:$W$4406,MATCH($Z39,$X$7:$X$4406,0),MATCH($AD$4,$W$5:$X$5,0))) -> 
A40: 820101031 | B40: 8 | C40: 201 | D40: 01 | E40: 031 | F40: 茨城県 | G40: 水戸市 | H40: 水戸市（旧） | I40: 東柵町、東青柳町、根積町、轟町 | M40: =IF(K40="","",COUNTIF($K$7:K40,"ﾘｽﾄ１")) ->  | U40: =IF(S40="","",COUNTIF($S$7:S40,"該当２")) ->  | X40: =IF(V40="","",COUNTIF($V$7:V40,"該当３")) ->  | Z40: 34 | AB40: 大洗町
A41: 820101032 | B41: 8 | C41: 201 | D41: 01 | E41: 032 | F41: 茨城県 | G41: 水戸市 | H41: 水戸市（旧） | I41: 立浪町、川岸通り、花畑、蔵前 | M41: =IF(K41="","",COUNTIF($K$7:K41,"ﾘｽﾄ１")) ->  | U41: =IF(S41="","",COUNTIF($S$7:S41,"該当２")) ->  | X41: =IF(V41="","",COUNTIF($V$7:V41,"該当３")) ->  | Z41: 35 | AB41: 城里町
A42: 820101033 | B42: 8 | C42: 201 | D42: 01 | E42: 033 | F42: 茨城県 | G42: 水戸市 | H42: 水戸市（旧） | I42: 渋田一、二区、細谷、門前町、杉 | M42: =IF(K42="","",COUNTIF($K$7:K42,"ﾘｽﾄ１")) ->  | U42: =IF(S42="","",COUNTIF($S$7:S42,"該当２")) ->  | X42: =IF(V42="","",COUNTIF($V$7:V42,"該当３")) ->  | Z42: 36 | AB42: 東海村
A43: 820101034 | B43: 8 | C43: 201 | D43: 01 | E43: 034 | F43: 茨城県 | G43: 水戸市 | H43: 水戸市（旧） | I43: 馬場町、川岸通り、代官町、荒神 | M43: =IF(K43="","",COUNTIF($K$7:K43,"ﾘｽﾄ１")) ->  | U43: =IF(S43="","",COUNTIF($S$7:S43,"該当２")) ->  | X43: =IF(V43="","",COUNTIF($V$7:V43,"該当３")) ->  | Z43: 37 | AB43: 大子町
A44: 820101035 | B44: 8 | C44: 201 | D44: 01 | E44: 035 | F44: 茨城県 | G44: 水戸市 | H44: 水戸市（旧） | I44: 蓮池町、蘋町、元仲ノ町九丁目 | M44: =IF(K44="","",COUNTIF($K$7:K44,"ﾘｽﾄ１")) ->  | U44: =IF(S44="","",COUNTIF($S$7:S44,"該当２")) ->  | X44: =IF(V44="","",COUNTIF($V$7:V44,"該当３")) ->  | Z44: 38 | AB44: 美浦村
A45: 820101036 | B45: 8 | C45: 201 | D45: 01 | E45: 036 | F45: 茨城県 | G45: 水戸市 | H45: 水戸市（旧） | I45: 曲尺手町、十軒町、鍛治町、八丁 | M45: =IF(K45="","",COUNTIF($K$7:K45,"ﾘｽﾄ１")) ->  | U45: =IF(S45="","",COUNTIF($S$7:S45,"該当２")) ->  | X45: =IF(V45="","",COUNTIF($V$7:V45,"該当３")) ->  | Z45: 39 | AB45: 阿見町
A46: 820101037 | B46: 8 | C46: 201 | D46: 01 | E46: 037 | F46: 茨城県 | G46: 水戸市 | H46: 水戸市（旧） | I46: 細谷町、蔵脇、細谷本郷町 | M46: =IF(K46="","",COUNTIF($K$7:K46,"ﾘｽﾄ１")) ->  | U46: =IF(S46="","",COUNTIF($S$7:S46,"該当２")) ->  | X46: =IF(V46="","",COUNTIF($V$7:V46,"該当３")) ->  | Z46: 40 | AB46: 河内町
A47: 820101038 | B47: 8 | C47: 201 | D47: 01 | E47: 038 | F47: 茨城県 | G47: 水戸市 | H47: 水戸市（旧） | I47: 新町，十町目 | M47: =IF(K47="","",COUNTIF($K$7:K47,"ﾘｽﾄ１")) ->  | U47: =IF(S47="","",COUNTIF($S$7:S47,"該当２")) ->  | X47: =IF(V47="","",COUNTIF($V$7:V47,"該当３")) ->  | Z47: 41 | AB47: 八千代町
A48: 820101039 | B48: 8 | C48: 201 | D48: 01 | E48: 039 | F48: 茨城県 | G48: 水戸市 | H48: 水戸市（旧） | I48: 若宮町 | M48: =IF(K48="","",COUNTIF($K$7:K48,"ﾘｽﾄ１")) ->  | U48: =IF(S48="","",COUNTIF($S$7:S48,"該当２")) ->  | X48: =IF(V48="","",COUNTIF($V$7:V48,"該当３")) ->  | Z48: 42 | AB48: 五霞町
A49: 820101040 | B49: 8 | C49: 201 | D49: 01 | E49: 040 | F49: 茨城県 | G49: 水戸市 | H49: 水戸市（旧） | I49: 元台町一、二丁目、宮内町 | M49: =IF(K49="","",COUNTIF($K$7:K49,"ﾘｽﾄ１")) ->  | U49: =IF(S49="","",COUNTIF($S$7:S49,"該当２")) ->  | X49: =IF(V49="","",COUNTIF($V$7:V49,"該当３")) ->  | Z49: 43 | AB49: 境町
A50: 820101041 | B50: 8 | C50: 201 | D50: 01 | E50: 041 | F50: 茨城県 | G50: 水戸市 | H50: 水戸市（旧） | I50: 元台町三，四，五，六丁目 | M50: =IF(K50="","",COUNTIF($K$7:K50,"ﾘｽﾄ１")) ->  | U50: =IF(S50="","",COUNTIF($S$7:S50,"該当２")) ->  | X50: =IF(V50="","",COUNTIF($V$7:V50,"該当３")) ->  | Z50: 44 | AB50: 利根町
A51: 820101042 | B51: 8 | C51: 201 | D51: 01 | E51: 042 | F51: 茨城県 | G51: 水戸市 | H51: 水戸市（旧） | I51: 吉田町、七軒町、裡一丁目、藤柄 | M51: =IF(K51="","",COUNTIF($K$7:K51,"ﾘｽﾄ１")) ->  | U51: =IF(S51="","",COUNTIF($S$7:S51,"該当２")) ->  | X51: =IF(V51="","",COUNTIF($V$7:V51,"該当３")) ->  | Z51: 45
A52: 820101043 | B52: 8 | C52: 201 | D52: 01 | E52: 043 | F52: 茨城県 | G52: 水戸市 | H52: 水戸市（旧） | I52: 水門町、裡二丁目、その他３町 | M52: =IF(K52="","",COUNTIF($K$7:K52,"ﾘｽﾄ１")) ->  | U52: =IF(S52="","",COUNTIF($S$7:S52,"該当２")) ->  | X52: =IF(V52="","",COUNTIF($V$7:V52,"該当３")) ->  | Z52: 46
A53: 820101044 | B53: 8 | C53: 201 | D53: 01 | E53: 044 | F53: 茨城県 | G53: 水戸市 | H53: 水戸市（旧） | I53: 紺屋町、浜町、亙谷町、檜物町 | M53: =IF(K53="","",COUNTIF($K$7:K53,"ﾘｽﾄ１")) ->  | U53: =IF(S53="","",COUNTIF($S$7:S53,"該当２")) ->  | X53: =IF(V53="","",COUNTIF($V$7:V53,"該当３")) ->  | Z53: 47
A54: 820101045 | B54: 8 | C54: 201 | D54: 01 | E54: 045 | F54: 茨城県 | G54: 水戸市 | H54: 水戸市（旧） | I54: 裡三丁目、肴町、本三、四丁目 | M54: =IF(K54="","",COUNTIF($K$7:K54,"ﾘｽﾄ１")) ->  | U54: =IF(S54="","",COUNTIF($S$7:S54,"該当２")) ->  | X54: =IF(V54="","",COUNTIF($V$7:V54,"該当３")) ->  | Z54: 48
A55: 820101046 | B55: 8 | C55: 201 | D55: 01 | E55: 046 | F55: 茨城県 | G55: 水戸市 | H55: 水戸市（旧） | I55: 東台、白銀町、本五、六、七丁目 | M55: =IF(K55="","",COUNTIF($K$7:K55,"ﾘｽﾄ１")) ->  | U55: =IF(S55="","",COUNTIF($S$7:S55,"該当２")) ->  | X55: =IF(V55="","",COUNTIF($V$7:V55,"該当３")) ->  | Z55: 49
A56: 820101047 | B56: 8 | C56: 201 | D56: 01 | E56: 047 | F56: 茨城県 | G56: 水戸市 | H56: 水戸市（旧） | I56: 裡四～七丁目、銭谷町、青物町 | M56: =IF(K56="","",COUNTIF($K$7:K56,"ﾘｽﾄ１")) ->  | U56: =IF(S56="","",COUNTIF($S$7:S56,"該当２")) ->  | X56: =IF(V56="","",COUNTIF($V$7:V56,"該当３")) ->  | Z56: 50
A57: 820101048 | B57: 8 | C57: 201 | D57: 01 | E57: 048 | F57: 茨城県 | G57: 水戸市 | H57: 水戸市（旧） | I57: 高橋町，朝日町 | M57: =IF(K57="","",COUNTIF($K$7:K57,"ﾘｽﾄ１")) ->  | U57: =IF(S57="","",COUNTIF($S$7:S57,"該当２")) ->  | X57: =IF(V57="","",COUNTIF($V$7:V57,"該当３")) -> 
A58: 820101049 | B58: 8 | C58: 201 | D58: 01 | E58: 049 | F58: 茨城県 | G58: 水戸市 | H58: 水戸市（旧） | I58: 浜田町 | M58: =IF(K58="","",COUNTIF($K$7:K58,"ﾘｽﾄ１")) ->  | U58: =IF(S58="","",COUNTIF($S$7:S58,"該当２")) ->  | X58: =IF(V58="","",COUNTIF($V$7:V58,"該当３")) -> 
A59: 820102000 | B59: 8 | C59: 201 | D59: 02 | E59: 000 | F59: 茨城県 | G59: 水戸市 | H59: 国田村 | M59: =IF(K59="","",COUNTIF($K$7:K59,"ﾘｽﾄ１")) ->  | U59: =IF(S59="","",COUNTIF($S$7:S59,"該当２")) ->  | X59: =IF(V59="","",COUNTIF($V$7:V59,"該当３")) -> 
A60: 820102001 | B60: 8 | C60: 201 | D60: 02 | E60: 001 | F60: 茨城県 | G60: 水戸市 | H60: 国田村 | I60: 舟渡，庄司，台畑 | M60: =IF(K60="","",COUNTIF($K$7:K60,"ﾘｽﾄ１")) ->  | U60: =IF(S60="","",COUNTIF($S$7:S60,"該当２")) ->  | X60: =IF(V60="","",COUNTIF($V$7:V60,"該当３")) -> 
A61: 820102002 | B61: 8 | C61: 201 | D61: 02 | E61: 002 | F61: 茨城県 | G61: 水戸市 | H61: 国田村 | I61: 後原東，後原西 | M61: =IF(K61="","",COUNTIF($K$7:K61,"ﾘｽﾄ１")) ->  | U61: =IF(S61="","",COUNTIF($S$7:S61,"該当２")) ->  | X61: =IF(V61="","",COUNTIF($V$7:V61,"該当３")) -> 
A62: 820102003 | B62: 8 | C62: 201 | D62: 02 | E62: 003 | F62: 茨城県 | G62: 水戸市 | H62: 国田村 | I62: 南横町，北横町 | M62: =IF(K62="","",COUNTIF($K$7:K62,"ﾘｽﾄ１")) ->  | U62: =IF(S62="","",COUNTIF($S$7:S62,"該当２")) ->  | X62: =IF(V62="","",COUNTIF($V$7:V62,"該当３")) -> 
A63: 820102004 | B63: 8 | C63: 201 | D63: 02 | E63: 004 | F63: 茨城県 | G63: 水戸市 | H63: 国田村 | I63: 宮本前，宮本後 | M63: =IF(K63="","",COUNTIF($K$7:K63,"ﾘｽﾄ１")) ->  | U63: =IF(S63="","",COUNTIF($S$7:S63,"該当２")) ->  | X63: =IF(V63="","",COUNTIF($V$7:V63,"該当３")) -> 
A64: 820102005 | B64: 8 | C64: 201 | D64: 02 | E64: 005 | F64: 茨城県 | G64: 水戸市 | H64: 国田村 | I64: 田向，仲畑 | M64: =IF(K64="","",COUNTIF($K$7:K64,"ﾘｽﾄ１")) ->  | U64: =IF(S64="","",COUNTIF($S$7:S64,"該当２")) ->  | X64: =IF(V64="","",COUNTIF($V$7:V64,"該当３")) -> 
A65: 820102006 | B65: 8 | C65: 201 | D65: 02 | E65: 006 | F65: 茨城県 | G65: 水戸市 | H65: 国田村 | I65: 外の内前，外の内後 | M65: =IF(K65="","",COUNTIF($K$7:K65,"ﾘｽﾄ１")) ->  | U65: =IF(S65="","",COUNTIF($S$7:S65,"該当２")) ->  | X65: =IF(V65="","",COUNTIF($V$7:V65,"該当３")) -> 
A66: 820102007 | B66: 8 | C66: 201 | D66: 02 | E66: 007 | F66: 茨城県 | G66: 水戸市 | H66: 国田村 | I66: 柳内西 | M66: =IF(K66="","",COUNTIF($K$7:K66,"ﾘｽﾄ１")) ->  | U66: =IF(S66="","",COUNTIF($S$7:S66,"該当２")) ->  | X66: =IF(V66="","",COUNTIF($V$7:V66,"該当３")) -> 
A67: 820102008 | B67: 8 | C67: 201 | D67: 02 | E67: 008 | F67: 茨城県 | G67: 水戸市 | H67: 国田村 | I67: 水戸内西，柳内中 | M67: =IF(K67="","",COUNTIF($K$7:K67,"ﾘｽﾄ１")) ->  | U67: =IF(S67="","",COUNTIF($S$7:S67,"該当２")) ->  | X67: =IF(V67="","",COUNTIF($V$7:V67,"該当３")) -> 
A68: 820102009 | B68: 8 | C68: 201 | D68: 02 | E68: 009 | F68: 茨城県 | G68: 水戸市 | H68: 国田村 | I68: 柳内東，水戸内東 | M68: =IF(K68="","",COUNTIF($K$7:K68,"ﾘｽﾄ１")) ->  | U68: =IF(S68="","",COUNTIF($S$7:S68,"該当２")) ->  | X68: =IF(V68="","",COUNTIF($V$7:V68,"該当３")) -> 
A69: 820102010 | B69: 8 | C69: 201 | D69: 02 | E69: 010 | F69: 茨城県 | G69: 水戸市 | H69: 国田村 | I69: 沢尻 | M69: =IF(K69="","",COUNTIF($K$7:K69,"ﾘｽﾄ１")) ->  | U69: =IF(S69="","",COUNTIF($S$7:S69,"該当２")) ->  | X69: =IF(V69="","",COUNTIF($V$7:V69,"該当３")) -> 
A70: 820102011 | B70: 8 | C70: 201 | D70: 02 | E70: 011 | F70: 茨城県 | G70: 水戸市 | H70: 国田村 | I70: 阿川，泉 | M70: =IF(K70="","",COUNTIF($K$7:K70,"ﾘｽﾄ１")) ->  | U70: =IF(S70="","",COUNTIF($S$7:S70,"該当２")) ->  | X70: =IF(V70="","",COUNTIF($V$7:V70,"該当３")) -> 
A71: 820102012 | B71: 8 | C71: 201 | D71: 02 | E71: 012 | F71: 茨城県 | G71: 水戸市 | H71: 国田村 | I71: 合滝の上，根本 | M71: =IF(K71="","",COUNTIF($K$7:K71,"ﾘｽﾄ１")) ->  | U71: =IF(S71="","",COUNTIF($S$7:S71,"該当２")) ->  | X71: =IF(V71="","",COUNTIF($V$7:V71,"該当３")) -> 
A72: 820102013 | B72: 8 | C72: 201 | D72: 02 | E72: 013 | F72: 茨城県 | G72: 水戸市 | H72: 国田村 | I72: 南原 | M72: =IF(K72="","",COUNTIF($K$7:K72,"ﾘｽﾄ１")) ->  | P72: =IF(O72="該当１",G72,"") ->  | Q72: =IF(O72="該当１","ﾘｽﾄ2","") ->  | R72: =IF(Q72="ﾘｽﾄ2",H72,"") ->  | T72: =IF(S72="該当２",H72,"") ->  | U72: =IF(S72="","",COUNTIF($S$7:S72,"該当２")) ->  | V72: =IF(AND($S$2=H72,E72>0,E72<998),"該当３","") ->  | W72: =IF(V72="該当３",I72,"") ->  | X72: =IF(V72="","",COUNTIF($V$7:V72,"該当３")) -> 
A73: 820102014 | B73: 8 | C73: 201 | D73: 02 | E73: 014 | F73: 茨城県 | G73: 水戸市 | H73: 国田村 | I73: 小原内，更正，平塚 | K73: =IF(AND($C73>0,$H73=""),"ﾘｽﾄ１","") ->  | L73: =IF(K73="ﾘｽﾄ１",G73,"") ->  | M73: =IF(K73="","",COUNTIF($K$7:K73,"ﾘｽﾄ１")) ->  | N73: =IF(AND(D73=0,E73>0),"同一区","") ->  | O73: =IF(AND(EXACT($K$2,G73),H73>0),"該当１","") ->  | S73: =IF(AND(Q73="ﾘｽﾄ2",OR(I73=0,AND(N73="同一区",E73=1))),"該当２","") ->  | U73: =IF(S73="","",COUNTIF($S$7:S73,"該当２")) ->  | X73: =IF(V73="","",COUNTIF($V$7:V73,"該当３")) -> 
A74: 820102015 | B74: 8 | C74: 201 | D74: 02 | E74: 015 | F74: 茨城県 | G74: 水戸市 | H74: 国田村 | I74: 関戸，山根 | M74: =IF(K74="","",COUNTIF($K$7:K74,"ﾘｽﾄ１")) ->  | U74: =IF(S74="","",COUNTIF($S$7:S74,"該当２")) ->  | X74: =IF(V74="","",COUNTIF($V$7:V74,"該当３")) -> 
A75: 820102016 | B75: 8 | C75: 201 | D75: 02 | E75: 016 | F75: 茨城県 | G75: 水戸市 | H75: 国田村 | I75: 圷内前，宿東，上宿 | M75: =IF(K75="","",COUNTIF($K$7:K75,"ﾘｽﾄ１")) ->  | U75: =IF(S75="","",COUNTIF($S$7:S75,"該当２")) ->  | X75: =IF(V75="","",COUNTIF($V$7:V75,"該当３")) -> 
A76: 820102017 | B76: 8 | C76: 201 | D76: 02 | E76: 017 | F76: 茨城県 | G76: 水戸市 | H76: 国田村 | I76: 西田谷一，西田谷二 | M76: =IF(K76="","",COUNTIF($K$7:K76,"ﾘｽﾄ１")) ->  | U76: =IF(S76="","",COUNTIF($S$7:S76,"該当２")) ->  | X76: =IF(V76="","",COUNTIF($V$7:V76,"該当３")) -> 
A77: 820102018 | B77: 8 | C77: 201 | D77: 02 | E77: 018 | F77: 茨城県 | G77: 水戸市 | H77: 国田村 | I77: 宮本，宿西 | M77: =IF(K77="","",COUNTIF($K$7:K77,"ﾘｽﾄ１")) ->  | U77: =IF(S77="","",COUNTIF($S$7:S77,"該当２")) ->  | X77: =IF(V77="","",COUNTIF($V$7:V77,"該当３")) -> 
A78: 820103000 | B78: 8 | C78: 201 | D78: 03 | E78: 000 | F78: 茨城県 | G78: 水戸市 | H78: 吉田村 | M78: =IF(K78="","",COUNTIF($K$7:K78,"ﾘｽﾄ１")) ->  | U78: =IF(S78="","",COUNTIF($S$7:S78,"該当２")) ->  | X78: =IF(V78="","",COUNTIF($V$7:V78,"該当３")) -> 
A79: 820103001 | B79: 8 | C79: 201 | D79: 03 | E79: 001 | F79: 茨城県 | G79: 水戸市 | H79: 吉田村 | I79: 東組，西組 | M79: =IF(K79="","",COUNTIF($K$7:K79,"ﾘｽﾄ１")) ->  | U79: =IF(S79="","",COUNTIF($S$7:S79,"該当２")) ->  | X79: =IF(V79="","",COUNTIF($V$7:V79,"該当３")) -> 
A80: 820103002 | B80: 8 | C80: 201 | D80: 03 | E80: 002 | F80: 茨城県 | G80: 水戸市 | H80: 吉田村 | I80: 一本松，荒谷 | M80: =IF(K80="","",COUNTIF($K$7:K80,"ﾘｽﾄ１")) ->  | U80: =IF(S80="","",COUNTIF($S$7:S80,"該当２")) ->  | X80: =IF(V80="","",COUNTIF($V$7:V80,"該当３")) -> 
A81: 820103003 | B81: 8 | C81: 201 | D81: 03 | E81: 003 | F81: 茨城県 | G81: 水戸市 | H81: 吉田村 | I81: 同心町，大鋸町，古宿 | M81: =IF(K81="","",COUNTIF($K$7:K81,"ﾘｽﾄ１")) ->  | U81: =IF(S81="","",COUNTIF($S$7:S81,"該当２")) ->  | X81: =IF(V81="","",COUNTIF($V$7:V81,"該当３")) -> 
A82: 820103004 | B82: 8 | C82: 201 | D82: 03 | E82: 004 | F82: 茨城県 | G82: 水戸市 | H82: 吉田村 | I82: 一里塚 | M82: =IF(K82="","",COUNTIF($K$7:K82,"ﾘｽﾄ１")) ->  | U82: =IF(S82="","",COUNTIF($S$7:S82,"該当２")) ->  | X82: =IF(V82="","",COUNTIF($V$7:V82,"該当３")) -> 
A83: 820103005 | B83: 8 | C83: 201 | D83: 03 | E83: 005 | F83: 茨城県 | G83: 水戸市 | H83: 吉田村 | I83: 吉沢町 | M83: =IF(K83="","",COUNTIF($K$7:K83,"ﾘｽﾄ１")) ->  | U83: =IF(S83="","",COUNTIF($S$7:S83,"該当２")) ->  | X83: =IF(V83="","",COUNTIF($V$7:V83,"該当３")) -> 
A84: 820103006 | B84: 8 | C84: 201 | D84: 03 | E84: 006 | F84: 茨城県 | G84: 水戸市 | H84: 吉田村 | I84: 東野町 | M84: =IF(K84="","",COUNTIF($K$7:K84,"ﾘｽﾄ１")) ->  | U84: =IF(S84="","",COUNTIF($S$7:S84,"該当２")) ->  | X84: =IF(V84="","",COUNTIF($V$7:V84,"該当３")) -> 
A85: 820103007 | B85: 8 | C85: 201 | D85: 03 | E85: 007 | F85: 茨城県 | G85: 水戸市 | H85: 吉田村 | I85: 米沢町 | M85: =IF(K85="","",COUNTIF($K$7:K85,"ﾘｽﾄ１")) ->  | U85: =IF(S85="","",COUNTIF($S$7:S85,"該当２")) ->  | X85: =IF(V85="","",COUNTIF($V$7:V85,"該当３")) -> 
A86: 820103008 | B86: 8 | C86: 201 | D86: 03 | E86: 008 | F86: 茨城県 | G86: 水戸市 | H86: 吉田村 | I86: 住吉町 | M86: =IF(K86="","",COUNTIF($K$7:K86,"ﾘｽﾄ１")) ->  | U86: =IF(S86="","",COUNTIF($S$7:S86,"該当２")) ->  | X86: =IF(V86="","",COUNTIF($V$7:V86,"該当３")) -> 
A87: 820104000 | B87: 8 | C87: 201 | D87: 04 | E87: 000 | F87: 茨城県 | G87: 水戸市 | H87: 酒門村２－１ | M87: =IF(K87="","",COUNTIF($K$7:K87,"ﾘｽﾄ１")) ->  | U87: =IF(S87="","",COUNTIF($S$7:S87,"該当２")) ->  | X87: =IF(V87="","",COUNTIF($V$7:V87,"該当３")) -> 
A88: 820104001 | B88: 8 | C88: 201 | D88: 04 | E88: 001 | F88: 茨城県 | G88: 水戸市 | H88: 酒門村２－１ | I88: 大和田 | M88: =IF(K88="","",COUNTIF($K$7:K88,"ﾘｽﾄ１")) ->  | U88: =IF(S88="","",COUNTIF($S$7:S88,"該当２")) ->  | X88: =IF(V88="","",COUNTIF($V$7:V88,"該当３")) -> 
A89: 820104002 | B89: 8 | C89: 201 | D89: 04 | E89: 002 | F89: 茨城県 | G89: 水戸市 | H89: 酒門村２－１ | I89: 千束 | M89: =IF(K89="","",COUNTIF($K$7:K89,"ﾘｽﾄ１")) ->  | U89: =IF(S89="","",COUNTIF($S$7:S89,"該当２")) ->  | X89: =IF(V89="","",COUNTIF($V$7:V89,"該当３")) -> 
A90: 820104003 | B90: 8 | C90: 201 | D90: 04 | E90: 003 | F90: 茨城県 | G90: 水戸市 | H90: 酒門村２－１ | I90: 酒門 | M90: =IF(K90="","",COUNTIF($K$7:K90,"ﾘｽﾄ１")) ->  | U90: =IF(S90="","",COUNTIF($S$7:S90,"該当２")) ->  | X90: =IF(V90="","",COUNTIF($V$7:V90,"該当３")) -> 
A91: 820104004 | B91: 8 | C91: 201 | D91: 04 | E91: 004 | F91: 茨城県 | G91: 水戸市 | H91: 酒門村２－１ | I91: 羅漢 | M91: =IF(K91="","",COUNTIF($K$7:K91,"ﾘｽﾄ１")) ->  | U91: =IF(S91="","",COUNTIF($S$7:S91,"該当２")) ->  | X91: =IF(V91="","",COUNTIF($V$7:V91,"該当３")) -> 
A92: 820104005 | B92: 8 | C92: 201 | D92: 04 | E92: 005 | F92: 茨城県 | G92: 水戸市 | H92: 酒門村２－１ | I92: 谷田 | M92: =IF(K92="","",COUNTIF($K$7:K92,"ﾘｽﾄ１")) ->  | U92: =IF(S92="","",COUNTIF($S$7:S92,"該当２")) ->  | X92: =IF(V92="","",COUNTIF($V$7:V92,"該当３")) -> 
A93: 820104006 | B93: 8 | C93: 201 | D93: 04 | E93: 006 | F93: 茨城県 | G93: 水戸市 | H93: 酒門村２－１ | I93: 谷田組 | M93: =IF(K93="","",COUNTIF($K$7:K93,"ﾘｽﾄ１")) ->  | U93: =IF(S93="","",COUNTIF($S$7:S93,"該当２")) ->  | X93: =IF(V93="","",COUNTIF($V$7:V93,"該当３")) -> 
A94: 820104007 | B94: 8 | C94: 201 | D94: 04 | E94: 007 | F94: 茨城県 | G94: 水戸市 | H94: 酒門村２－１ | I94: 石川 | M94: =IF(K94="","",COUNTIF($K$7:K94,"ﾘｽﾄ１")) ->  | U94: =IF(S94="","",COUNTIF($S$7:S94,"該当２")) ->  | X94: =IF(V94="","",COUNTIF($V$7:V94,"該当３")) -> 
A95: 820104008 | B95: 8 | C95: 201 | D95: 04 | E95: 008 | F95: 茨城県 | G95: 水戸市 | H95: 酒門村２－１ | I95: 西割 | M95: =IF(K95="","",COUNTIF($K$7:K95,"ﾘｽﾄ１")) ->  | U95: =IF(S95="","",COUNTIF($S$7:S95,"該当２")) ->  | X95: =IF(V95="","",COUNTIF($V$7:V95,"該当３")) -> 
A96: 820105000 | B96: 8 | C96: 201 | D96: 05 | E96: 000 | F96: 茨城県 | G96: 水戸市 | H96: 柳河村 | M96: =IF(K96="","",COUNTIF($K$7:K96,"ﾘｽﾄ１")) ->  | U96: =IF(S96="","",COUNTIF($S$7:S96,"該当２")) ->  | X96: =IF(V96="","",COUNTIF($V$7:V96,"該当３")) -> 
A97: 820105001 | B97: 8 | C97: 201 | D97: 05 | E97: 001 | F97: 茨城県 | G97: 水戸市 | H97: 柳河村 | I97: 上河内町 | M97: =IF(K97="","",COUNTIF($K$7:K97,"ﾘｽﾄ１")) ->  | U97: =IF(S97="","",COUNTIF($S$7:S97,"該当２")) ->  | X97: =IF(V97="","",COUNTIF($V$7:V97,"該当３")) -> 
A98: 820105002 | B98: 8 | C98: 201 | D98: 05 | E98: 002 | F98: 茨城県 | G98: 水戸市 | H98: 柳河村 | I98: 中河内町 | M98: =IF(K98="","",COUNTIF($K$7:K98,"ﾘｽﾄ１")) ->  | U98: =IF(S98="","",COUNTIF($S$7:S98,"該当２")) ->  | X98: =IF(V98="","",COUNTIF($V$7:V98,"該当３")) -> 
A99: 820105003 | B99: 8 | C99: 201 | D99: 05 | E99: 003 | F99: 茨城県 | G99: 水戸市 | H99: 柳河村 | I99: 柳河町 | M99: =IF(K99="","",COUNTIF($K$7:K99,"ﾘｽﾄ１")) ->  | U99: =IF(S99="","",COUNTIF($S$7:S99,"該当２")) ->  | X99: =IF(V99="","",COUNTIF($V$7:V99,"該当３")) -> 
A100: 820105004 | B100: 8 | C100: 201 | D100: 05 | E100: 004 | F100: 茨城県 | G100: 水戸市 | H100: 柳河村 | I100: 青柳町 | M100: =IF(K100="","",COUNTIF($K$7:K100,"ﾘｽﾄ１")) ->  | U100: =IF(S100="","",COUNTIF($S$7:S100,"該当２")) ->  | X100: =IF(V100="","",COUNTIF($V$7:V100,"該当３")) -> 
A101: 820106000 | B101: 8 | C101: 201 | D101: 06 | E101: 000 | F101: 茨城県 | G101: 水戸市 | H101: 渡里村 | M101: =IF(K101="","",COUNTIF($K$7:K101,"ﾘｽﾄ１")) ->  | U101: =IF(S101="","",COUNTIF($S$7:S101,"該当２")) ->  | X101: =IF(V101="","",COUNTIF($V$7:V101,"該当３")) -> 
A102: 820106001 | B102: 8 | C102: 201 | D102: 06 | E102: 001 | F102: 茨城県 | G102: 水戸市 | H102: 渡里村 | I102: 圷渡里 | M102: =IF(K102="","",COUNTIF($K$7:K102,"ﾘｽﾄ１")) ->  | U102: =IF(S102="","",COUNTIF($S$7:S102,"該当２")) ->  | X102: =IF(V102="","",COUNTIF($V$7:V102,"該当３")) -> 
A103: 820106002 | B103: 8 | C103: 201 | D103: 06 | E103: 002 | F103: 茨城県 | G103: 水戸市 | H103: 渡里村 | I103: 台渡里 | M103: =IF(K103="","",COUNTIF($K$7:K103,"ﾘｽﾄ１")) ->  | U103: =IF(S103="","",COUNTIF($S$7:S103,"該当２")) ->  | X103: =IF(V103="","",COUNTIF($V$7:V103,"該当３")) -> 
A104: 820106003 | B104: 8 | C104: 201 | D104: 06 | E104: 003 | F104: 茨城県 | G104: 水戸市 | H104: 渡里村 | I104: 堀町 | M104: =IF(K104="","",COUNTIF($K$7:K104,"ﾘｽﾄ１")) ->  | U104: =IF(S104="","",COUNTIF($S$7:S104,"該当２")) ->  | X104: =IF(V104="","",COUNTIF($V$7:V104,"該当３")) -> 
A105: 820106004 | B105: 8 | C105: 201 | D105: 06 | E105: 004 | F105: 茨城県 | G105: 水戸市 | H105: 渡里村 | I105: 田野町 | M105: =IF(K105="","",COUNTIF($K$7:K105,"ﾘｽﾄ１")) ->  | U105: =IF(S105="","",COUNTIF($S$7:S105,"該当２")) ->  | X105: =IF(V105="","",COUNTIF($V$7:V105,"該当３")) -> 
A106: 820106005 | B106: 8 | C106: 201 | D106: 06 | E106: 005 | F106: 茨城県 | G106: 水戸市 | H106: 渡里村 | I106: 錦 | M106: =IF(K106="","",COUNTIF($K$7:K106,"ﾘｽﾄ１")) ->  | U106: =IF(S106="","",COUNTIF($S$7:S106,"該当２")) ->  | X106: =IF(V106="","",COUNTIF($V$7:V106,"該当３")) -> 
A107: 820106006 | B107: 8 | C107: 201 | D107: 06 | E107: 006 | F107: 茨城県 | G107: 水戸市 | H107: 渡里村 | I107: 堀町の高野下，野田原 | M107: =IF(K107="","",COUNTIF($K$7:K107,"ﾘｽﾄ１")) ->  | U107: =IF(S107="","",COUNTIF($S$7:S107,"該当２")) ->  | X107: =IF(V107="","",COUNTIF($V$7:V107,"該当３")) -> 
A108: 820107000 | B108: 8 | C108: 201 | D108: 07 | E108: 000 | F108: 茨城県 | G108: 水戸市 | H108: 上大野村 | M108: =IF(K108="","",COUNTIF($K$7:K108,"ﾘｽﾄ１")) ->  | U108: =IF(S108="","",COUNTIF($S$7:S108,"該当２")) ->  | X108: =IF(V108="","",COUNTIF($V$7:V108,"該当３")) -> 
A109: 820107001 | B109: 8 | C109: 201 | D109: 07 | E109: 001 | F109: 茨城県 | G109: 水戸市 | H109: 上大野村 | I109: 吉沼町 | M109: =IF(K109="","",COUNTIF($K$7:K109,"ﾘｽﾄ１")) ->  | U109: =IF(S109="","",COUNTIF($S$7:S109,"該当２")) ->  | X109: =IF(V109="","",COUNTIF($V$7:V109,"該当３")) -> 
A110: 820107002 | B110: 8 | C110: 201 | D110: 07 | E110: 002 | F110: 茨城県 | G110: 水戸市 | H110: 上大野村 | I110: 渋井町 | M110: =IF(K110="","",COUNTIF($K$7:K110,"ﾘｽﾄ１")) ->  | U110: =IF(S110="","",COUNTIF($S$7:S110,"該当２")) ->  | X110: =IF(V110="","",COUNTIF($V$7:V110,"該当３")) -> 
A111: 820107003 | B111: 8 | C111: 201 | D111: 07 | E111: 003 | F111: 茨城県 | G111: 水戸市 | H111: 上大野村 | I111: 東大野 | M111: =IF(K111="","",COUNTIF($K$7:K111,"ﾘｽﾄ１")) ->  | U111: =IF(S111="","",COUNTIF($S$7:S111,"該当２")) ->  | X111: =IF(V111="","",COUNTIF($V$7:V111,"該当３")) -> 
A112: 820107004 | B112: 8 | C112: 201 | D112: 07 | E112: 004 | F112: 茨城県 | G112: 水戸市 | H112: 上大野村 | I112: 西大野 | M112: =IF(K112="","",COUNTIF($K$7:K112,"ﾘｽﾄ１")) ->  | U112: =IF(S112="","",COUNTIF($S$7:S112,"該当２")) ->  | X112: =IF(V112="","",COUNTIF($V$7:V112,"該当３")) -> 
A113: 820107005 | B113: 8 | C113: 201 | D113: 07 | E113: 005 | F113: 茨城県 | G113: 水戸市 | H113: 上大野村 | I113: 圷大野 | M113: =IF(K113="","",COUNTIF($K$7:K113,"ﾘｽﾄ１")) ->  | U113: =IF(S113="","",COUNTIF($S$7:S113,"該当２")) ->  | X113: =IF(V113="","",COUNTIF($V$7:V113,"該当３")) -> 
A114: 820107006 | B114: 8 | C114: 201 | D114: 07 | E114: 006 | F114: 茨城県 | G114: 水戸市 | H114: 上大野村 | I114: 中大野 | M114: =IF(K114="","",COUNTIF($K$7:K114,"ﾘｽﾄ１")) ->  | U114: =IF(S114="","",COUNTIF($S$7:S114,"該当２")) ->  | X114: =IF(V114="","",COUNTIF($V$7:V114,"該当３")) -> 
A115: 820108000 | B115: 8 | C115: 201 | D115: 08 | E115: 000 | F115: 茨城県 | G115: 水戸市 | H115: 緑岡村 | M115: =IF(K115="","",COUNTIF($K$7:K115,"ﾘｽﾄ１")) ->  | U115: =IF(S115="","",COUNTIF($S$7:S115,"該当２")) ->  | X115: =IF(V115="","",COUNTIF($V$7:V115,"該当３")) -> 
A116: 820108001 | B116: 8 | C116: 201 | D116: 08 | E116: 001 | F116: 茨城県 | G116: 水戸市 | H116: 緑岡村 | I116: 舟付 | M116: =IF(K116="","",COUNTIF($K$7:K116,"ﾘｽﾄ１")) ->  | U116: =IF(S116="","",COUNTIF($S$7:S116,"該当２")) ->  | X116: =IF(V116="","",COUNTIF($V$7:V116,"該当３")) -> 
A117: 820108002 | B117: 8 | C117: 201 | D117: 08 | E117: 002 | F117: 茨城県 | G117: 水戸市 | H117: 緑岡村 | I117: 払沢，福沢 | M117: =IF(K117="","",COUNTIF($K$7:K117,"ﾘｽﾄ１")) ->  | U117: =IF(S117="","",COUNTIF($S$7:S117,"該当２")) ->  | X117: =IF(V117="","",COUNTIF($V$7:V117,"該当３")) -> 
A118: 820108003 | B118: 8 | C118: 201 | D118: 08 | E118: 003 | F118: 茨城県 | G118: 水戸市 | H118: 緑岡村 | I118: 下本郷，南台 | M118: =IF(K118="","",COUNTIF($K$7:K118,"ﾘｽﾄ１")) ->  | U118: =IF(S118="","",COUNTIF($S$7:S118,"該当２")) ->  | X118: =IF(V118="","",COUNTIF($V$7:V118,"該当３")) -> 
A119: 820108004 | B119: 8 | C119: 201 | D119: 08 | E119: 004 | F119: 茨城県 | G119: 水戸市 | H119: 緑岡村 | I119: 千波原，御茶園 | M119: =IF(K119="","",COUNTIF($K$7:K119,"ﾘｽﾄ１")) ->  | U119: =IF(S119="","",COUNTIF($S$7:S119,"該当２")) ->  | X119: =IF(V119="","",COUNTIF($V$7:V119,"該当３")) -> 
A120: 820108005 | B120: 8 | C120: 201 | D120: 08 | E120: 005 | F120: 茨城県 | G120: 水戸市 | H120: 緑岡村 | I120: 上本郷，東 | M120: =IF(K120="","",COUNTIF($K$7:K120,"ﾘｽﾄ１")) ->  | U120: =IF(S120="","",COUNTIF($S$7:S120,"該当２")) ->  | X120: =IF(V120="","",COUNTIF($V$7:V120,"該当３")) -> 
A121: 820108006 | B121: 8 | C121: 201 | D121: 08 | E121: 006 | F121: 茨城県 | G121: 水戸市 | H121: 緑岡村 | I121: 冨沢，十一軒 | M121: =IF(K121="","",COUNTIF($K$7:K121,"ﾘｽﾄ１")) ->  | U121: =IF(S121="","",COUNTIF($S$7:S121,"該当２")) ->  | X121: =IF(V121="","",COUNTIF($V$7:V121,"該当３")) -> 
A122: 820108007 | B122: 8 | C122: 201 | D122: 08 | E122: 007 | F122: 茨城県 | G122: 水戸市 | H122: 緑岡村 | I122: 中山，北葉山 | M122: =IF(K122="","",COUNTIF($K$7:K122,"ﾘｽﾄ１")) ->  | U122: =IF(S122="","",COUNTIF($S$7:S122,"該当２")) ->  | X122: =IF(V122="","",COUNTIF($V$7:V122,"該当３")) -> 
A123: 820108008 | B123: 8 | C123: 201 | D123: 08 | E123: 008 | F123: 茨城県 | G123: 水戸市 | H123: 緑岡村 | I123: 下干波 | M123: =IF(K123="","",COUNTIF($K$7:K123,"ﾘｽﾄ１")) ->  | U123: =IF(S123="","",COUNTIF($S$7:S123,"該当２")) ->  | X123: =IF(V123="","",COUNTIF($V$7:V123,"該当３")) -> 
A124: 820108009 | B124: 8 | C124: 201 | D124: 08 | E124: 009 | F124: 茨城県 | G124: 水戸市 | H124: 緑岡村 | I124: 笠原 | M124: =IF(K124="","",COUNTIF($K$7:K124,"ﾘｽﾄ１")) ->  | U124: =IF(S124="","",COUNTIF($S$7:S124,"該当２")) ->  | X124: =IF(V124="","",COUNTIF($V$7:V124,"該当３")) -> 
A125: 820108010 | B125: 8 | C125: 201 | D125: 08 | E125: 010 | F125: 茨城県 | G125: 水戸市 | H125: 緑岡村 | I125: 第一開拓 | M125: =IF(K125="","",COUNTIF($K$7:K125,"ﾘｽﾄ１")) ->  | U125: =IF(S125="","",COUNTIF($S$7:S125,"該当２")) ->  | X125: =IF(V125="","",COUNTIF($V$7:V125,"該当３")) -> 
A126: 820108011 | B126: 8 | C126: 201 | D126: 08 | E126: 011 | F126: 茨城県 | G126: 水戸市 | H126: 緑岡村 | I126: 第二開拓 | M126: =IF(K126="","",COUNTIF($K$7:K126,"ﾘｽﾄ１")) ->  | U126: =IF(S126="","",COUNTIF($S$7:S126,"該当２")) ->  | X126: =IF(V126="","",COUNTIF($V$7:V126,"該当３")) -> 
A127: 820108012 | B127: 8 | C127: 201 | D127: 08 | E127: 012 | F127: 茨城県 | G127: 水戸市 | H127: 緑岡村 | I127: 原，新田 | M127: =IF(K127="","",COUNTIF($K$7:K127,"ﾘｽﾄ１")) ->  | U127: =IF(S127="","",COUNTIF($S$7:S127,"該当２")) ->  | X127: =IF(V127="","",COUNTIF($V$7:V127,"該当３")) -> 
A128: 820108013 | B128: 8 | C128: 201 | D128: 08 | E128: 013 | F128: 茨城県 | G128: 水戸市 | H128: 緑岡村 | I128: 檜木山，上坪，表原 | M128: =IF(K128="","",COUNTIF($K$7:K128,"ﾘｽﾄ１")) ->  | U128: =IF(S128="","",COUNTIF($S$7:S128,"該当２")) ->  | X128: =IF(V128="","",COUNTIF($V$7:V128,"該当３")) -> 
A129: 820108014 | B129: 8 | C129: 201 | D129: 08 | E129: 014 | F129: 茨城県 | G129: 水戸市 | H129: 緑岡村 | I129: 檜木山，中部 | M129: =IF(K129="","",COUNTIF($K$7:K129,"ﾘｽﾄ１")) ->  | U129: =IF(S129="","",COUNTIF($S$7:S129,"該当２")) ->  | X129: =IF(V129="","",COUNTIF($V$7:V129,"該当３")) -> 
A130: 820108015 | B130: 8 | C130: 201 | D130: 08 | E130: 015 | F130: 茨城県 | G130: 水戸市 | H130: 緑岡村 | I130: 東，山中 | M130: =IF(K130="","",COUNTIF($K$7:K130,"ﾘｽﾄ１")) ->  | U130: =IF(S130="","",COUNTIF($S$7:S130,"該当２")) ->  | X130: =IF(V130="","",COUNTIF($V$7:V130,"該当３")) -> 
A131: 820108016 | B131: 8 | C131: 201 | D131: 08 | E131: 016 | F131: 茨城県 | G131: 水戸市 | H131: 緑岡村 | I131: 田向井 | M131: =IF(K131="","",COUNTIF($K$7:K131,"ﾘｽﾄ１")) ->  | U131: =IF(S131="","",COUNTIF($S$7:S131,"該当２")) ->  | X131: =IF(V131="","",COUNTIF($V$7:V131,"該当３")) -> 
A132: 820108017 | B132: 8 | C132: 201 | D132: 08 | E132: 017 | F132: 茨城県 | G132: 水戸市 | H132: 緑岡村 | I132: 向井 | M132: =IF(K132="","",COUNTIF($K$7:K132,"ﾘｽﾄ１")) ->  | U132: =IF(S132="","",COUNTIF($S$7:S132,"該当２")) ->  | X132: =IF(V132="","",COUNTIF($V$7:V132,"該当３")) -> 
A133: 820108018 | B133: 8 | C133: 201 | D133: 08 | E133: 018 | F133: 茨城県 | G133: 水戸市 | H133: 緑岡村 | I133: 小吹 | M133: =IF(K133="","",COUNTIF($K$7:K133,"ﾘｽﾄ１")) ->  | U133: =IF(S133="","",COUNTIF($S$7:S133,"該当２")) ->  | X133: =IF(V133="","",COUNTIF($V$7:V133,"該当３")) -> 
A134: 820108019 | B134: 8 | C134: 201 | D134: 08 | E134: 019 | F134: 茨城県 | G134: 水戸市 | H134: 緑岡村 | I134: 水源 | M134: =IF(K134="","",COUNTIF($K$7:K134,"ﾘｽﾄ１")) ->  | U134: =IF(S134="","",COUNTIF($S$7:S134,"該当２")) ->  | X134: =IF(V134="","",COUNTIF($V$7:V134,"該当３")) -> 
A135: 820108020 | B135: 8 | C135: 201 | D135: 08 | E135: 020 | F135: 茨城県 | G135: 水戸市 | H135: 緑岡村 | I135: 見川町 | M135: =IF(K135="","",COUNTIF($K$7:K135,"ﾘｽﾄ１")) ->  | U135: =IF(S135="","",COUNTIF($S$7:S135,"該当２")) ->  | X135: =IF(V135="","",COUNTIF($V$7:V135,"該当３")) -> 
A136: 820108021 | B136: 8 | C136: 201 | D136: 08 | E136: 021 | F136: 茨城県 | G136: 水戸市 | H136: 緑岡村 | I136: 丹下 | M136: =IF(K136="","",COUNTIF($K$7:K136,"ﾘｽﾄ１")) ->  | P136: =IF(O136="該当１",G136,"") ->  | Q136: =IF(O136="該当１","ﾘｽﾄ2","") ->  | R136: =IF(Q136="ﾘｽﾄ2",H136,"") ->  | T136: =IF(S136="該当２",H136,"") ->  | U136: =IF(S136="","",COUNTIF($S$7:S136,"該当２")) ->  | V136: =IF(AND($S$2=H136,E136>0,E136<998),"該当３","") ->  | W136: =IF(V136="該当３",I136,"") ->  | X136: =IF(V136="","",COUNTIF($V$7:V136,"該当３")) -> 
A137: 820108022 | B137: 8 | C137: 201 | D137: 08 | E137: 022 | F137: 茨城県 | G137: 水戸市 | H137: 緑岡村 | I137: 裡見和 | K137: =IF(AND($C137>0,$H137=""),"ﾘｽﾄ１","") ->  | L137: =IF(K137="ﾘｽﾄ１",G137,"") ->  | M137: =IF(K137="","",COUNTIF($K$7:K137,"ﾘｽﾄ１")) ->  | N137: =IF(AND(D137=0,E137>0),"同一区","") ->  | O137: =IF(AND(EXACT($K$2,G137),H137>0),"該当１","") ->  | S137: =IF(AND(Q137="ﾘｽﾄ2",OR(I137=0,AND(N137="同一区",E137=1))),"該当２","") ->  | U137: =IF(S137="","",COUNTIF($S$7:S137,"該当２")) ->  | X137: =IF(V137="","",COUNTIF($V$7:V137,"該当３")) -> 
A138: 820108023 | B138: 8 | C138: 201 | D138: 08 | E138: 023 | F138: 茨城県 | G138: 水戸市 | H138: 緑岡村 | I138: 表見和 | M138: =IF(K138="","",COUNTIF($K$7:K138,"ﾘｽﾄ１")) ->  | U138: =IF(S138="","",COUNTIF($S$7:S138,"該当２")) ->  | X138: =IF(V138="","",COUNTIF($V$7:V138,"該当３")) -> 
A139: 820109000 | B139: 8 | C139: 201 | D139: 09 | E139: 000 | F139: 茨城県 | G139: 水戸市 | H139: 飯富村 | M139: =IF(K139="","",COUNTIF($K$7:K139,"ﾘｽﾄ１")) ->  | U139: =IF(S139="","",COUNTIF($S$7:S139,"該当２")) ->  | X139: =IF(V139="","",COUNTIF($V$7:V139,"該当３")) -> 
A140: 820109001 | B140: 8 | C140: 201 | D140: 09 | E140: 001 | F140: 茨城県 | G140: 水戸市 | H140: 飯富村 | I140: 藤井町 | M140: =IF(K140="","",COUNTIF($K$7:K140,"ﾘｽﾄ１")) ->  | U140: =IF(S140="","",COUNTIF($S$7:S140,"該当２")) ->  | X140: =IF(V140="","",COUNTIF($V$7:V140,"該当３")) -> 
A141: 820109002 | B141: 8 | C141: 201 | D141: 09 | E141: 002 | F141: 茨城県 | G141: 水戸市 | H141: 飯富村 | I141: 岩根町 | M141: =IF(K141="","",COUNTIF($K$7:K141,"ﾘｽﾄ１")) ->  | U141: =IF(S141="","",COUNTIF($S$7:S141,"該当２")) ->  | X141: =IF(V141="","",COUNTIF($V$7:V141,"該当３")) -> 
A142: 820109003 | B142: 8 | C142: 201 | D142: 09 | E142: 003 | F142: 茨城県 | G142: 水戸市 | H142: 飯富村 | I142: 上合，塙 | M142: =IF(K142="","",COUNTIF($K$7:K142,"ﾘｽﾄ１")) ->  | U142: =IF(S142="","",COUNTIF($S$7:S142,"該当２")) ->  | X142: =IF(V142="","",COUNTIF($V$7:V142,"該当３")) -> 
A143: 820109004 | B143: 8 | C143: 201 | D143: 09 | E143: 004 | F143: 茨城県 | G143: 水戸市 | H143: 飯富村 | I143: 飯富町上 | M143: =IF(K143="","",COUNTIF($K$7:K143,"ﾘｽﾄ１")) ->  | U143: =IF(S143="","",COUNTIF($S$7:S143,"該当２")) ->  | X143: =IF(V143="","",COUNTIF($V$7:V143,"該当３")) -> 
A144: 820109005 | B144: 8 | C144: 201 | D144: 09 | E144: 005 | F144: 茨城県 | G144: 水戸市 | H144: 飯富村 | I144: 睦南，睦北，安戸星 | M144: =IF(K144="","",COUNTIF($K$7:K144,"ﾘｽﾄ１")) ->  | U144: =IF(S144="","",COUNTIF($S$7:S144,"該当２")) ->  | X144: =IF(V144="","",COUNTIF($V$7:V144,"該当３")) -> 
A145: 820109006 | B145: 8 | C145: 201 | D145: 09 | E145: 006 | F145: 茨城県 | G145: 水戸市 | H145: 飯富村 | I145: 台 | M145: =IF(K145="","",COUNTIF($K$7:K145,"ﾘｽﾄ１")) ->  | U145: =IF(S145="","",COUNTIF($S$7:S145,"該当２")) ->  | X145: =IF(V145="","",COUNTIF($V$7:V145,"該当３")) -> 
A146: 820109007 | B146: 8 | C146: 201 | D146: 09 | E146: 007 | F146: 茨城県 | G146: 水戸市 | H146: 飯富村 | I146: 下宿，高根 | M146: =IF(K146="","",COUNTIF($K$7:K146,"ﾘｽﾄ１")) ->  | U146: =IF(S146="","",COUNTIF($S$7:S146,"該当２")) ->  | X146: =IF(V146="","",COUNTIF($V$7:V146,"該当３")) -> 
A147: 820109008 | B147: 8 | C147: 201 | D147: 09 | E147: 008 | F147: 茨城県 | G147: 水戸市 | H147: 飯富村 | I147: 成沢 | M147: =IF(K147="","",COUNTIF($K$7:K147,"ﾘｽﾄ１")) ->  | U147: =IF(S147="","",COUNTIF($S$7:S147,"該当２")) ->  | X147: =IF(V147="","",COUNTIF($V$7:V147,"該当３")) -> 
A148: 820110000 | B148: 8 | C148: 201 | D148: 10 | E148: 000 | F148: 茨城県 | G148: 水戸市 | H148: 上中妻村 | M148: =IF(K148="","",COUNTIF($K$7:K148,"ﾘｽﾄ１")) ->  | U148: =IF(S148="","",COUNTIF($S$7:S148,"該当２")) ->  | X148: =IF(V148="","",COUNTIF($V$7:V148,"該当３")) -> 
A149: 820110001 | B149: 8 | C149: 201 | D149: 10 | E149: 001 | F149: 茨城県 | G149: 水戸市 | H149: 上中妻村 | I149: 大塚町 | M149: =IF(K149="","",COUNTIF($K$7:K149,"ﾘｽﾄ１")) ->  | U149: =IF(S149="","",COUNTIF($S$7:S149,"該当２")) ->  | X149: =IF(V149="","",COUNTIF($V$7:V149,"該当３")) -> 
A150: 820110002 | B150: 8 | C150: 201 | D150: 10 | E150: 002 | F150: 茨城県 | G150: 水戸市 | H150: 上中妻村 | I150: 加倉井町 | M150: =IF(K150="","",COUNTIF($K$7:K150,"ﾘｽﾄ１")) ->  | U150: =IF(S150="","",COUNTIF($S$7:S150,"該当２")) ->  | X150: =IF(V150="","",COUNTIF($V$7:V150,"該当３")) -> 
A151: 820110003 | B151: 8 | C151: 201 | D151: 10 | E151: 003 | F151: 茨城県 | G151: 水戸市 | H151: 上中妻村 | I151: 金谷町 | M151: =IF(K151="","",COUNTIF($K$7:K151,"ﾘｽﾄ１")) ->  | U151: =IF(S151="","",COUNTIF($S$7:S151,"該当２")) ->  | X151: =IF(V151="","",COUNTIF($V$7:V151,"該当３")) -> 
A152: 820110004 | B152: 8 | C152: 201 | D152: 10 | E152: 004 | F152: 茨城県 | G152: 水戸市 | H152: 上中妻村 | I152: 飯島町 | M152: =IF(K152="","",COUNTIF($K$7:K152,"ﾘｽﾄ１")) ->  | U152: =IF(S152="","",COUNTIF($S$7:S152,"該当２")) ->  | X152: =IF(V152="","",COUNTIF($V$7:V152,"該当３")) -> 
A153: 820111000 | B153: 8 | C153: 201 | D153: 11 | E153: 000 | F153: 茨城県 | G153: 水戸市 | H153: 山根村 | M153: =IF(K153="","",COUNTIF($K$7:K153,"ﾘｽﾄ１")) ->  | U153: =IF(S153="","",COUNTIF($S$7:S153,"該当２")) ->  | X153: =IF(V153="","",COUNTIF($V$7:V153,"該当３")) -> 
A154: 820111001 | B154: 8 | C154: 201 | D154: 11 | E154: 001 | F154: 茨城県 | G154: 水戸市 | H154: 山根村 | I154: 全隈町 | M154: =IF(K154="","",COUNTIF($K$7:K154,"ﾘｽﾄ１")) ->  | U154: =IF(S154="","",COUNTIF($S$7:S154,"該当２")) ->  | X154: =IF(V154="","",COUNTIF($V$7:V154,"該当３")) -> 
A155: 820111002 | B155: 8 | C155: 201 | D155: 11 | E155: 002 | F155: 茨城県 | G155: 水戸市 | H155: 山根村 | I155: 開江町 | M155: =IF(K155="","",COUNTIF($K$7:K155,"ﾘｽﾄ１")) ->  | U155: =IF(S155="","",COUNTIF($S$7:S155,"該当２")) ->  | X155: =IF(V155="","",COUNTIF($V$7:V155,"該当３")) -> 
A156: 820111003 | B156: 8 | C156: 201 | D156: 11 | E156: 003 | F156: 茨城県 | G156: 水戸市 | H156: 山根村 | I156: 開拓 | M156: =IF(K156="","",COUNTIF($K$7:K156,"ﾘｽﾄ１")) ->  | U156: =IF(S156="","",COUNTIF($S$7:S156,"該当２")) ->  | X156: =IF(V156="","",COUNTIF($V$7:V156,"該当３")) -> 
A157: 820111004 | B157: 8 | C157: 201 | D157: 11 | E157: 004 | F157: 茨城県 | G157: 水戸市 | H157: 山根村 | I157: 谷津町 | M157: =IF(K157="","",COUNTIF($K$7:K157,"ﾘｽﾄ１")) ->  | U157: =IF(S157="","",COUNTIF($S$7:S157,"該当２")) ->  | X157: =IF(V157="","",COUNTIF($V$7:V157,"該当３")) -> 
A158: 820111005 | B158: 8 | C158: 201 | D158: 11 | E158: 005 | F158: 茨城県 | G158: 水戸市 | H158: 山根村 | I158: 木葉下 | M158: =IF(K158="","",COUNTIF($K$7:K158,"ﾘｽﾄ１")) ->  | U158: =IF(S158="","",COUNTIF($S$7:S158,"該当２")) ->  | X158: =IF(V158="","",COUNTIF($V$7:V158,"該当３")) -> 
A159: 820111006 | B159: 8 | C159: 201 | D159: 11 | E159: 006 | F159: 茨城県 | G159: 水戸市 | H159: 山根村 | I159: 前沢 | M159: =IF(K159="","",COUNTIF($K$7:K159,"ﾘｽﾄ１")) ->  | U159: =IF(S159="","",COUNTIF($S$7:S159,"該当２")) ->  | X159: =IF(V159="","",COUNTIF($V$7:V159,"該当３")) -> 
A160: 820112000 | B160: 8 | C160: 201 | D160: 12 | E160: 000 | F160: 茨城県 | G160: 水戸市 | H160: 河和田村 | M160: =IF(K160="","",COUNTIF($K$7:K160,"ﾘｽﾄ１")) ->  | U160: =IF(S160="","",COUNTIF($S$7:S160,"該当２")) ->  | X160: =IF(V160="","",COUNTIF($V$7:V160,"該当３")) -> 
A161: 820112001 | B161: 8 | C161: 201 | D161: 12 | E161: 001 | F161: 茨城県 | G161: 水戸市 | H161: 河和田村 | I161: 街道端 | M161: =IF(K161="","",COUNTIF($K$7:K161,"ﾘｽﾄ１")) ->  | U161: =IF(S161="","",COUNTIF($S$7:S161,"該当２")) ->  | X161: =IF(V161="","",COUNTIF($V$7:V161,"該当３")) -> 
